{"text_format":"1","workbook":"xlsx","n_sheets":4,"sheets":["Instructions","All_Inputs","Version_Control","Internal_Notes"],"not_rendered":{"charts":0,"images":1,"macros":1,"external_links":0,"defined_names":0,"comments":0,"pivot_tables":0},"unopened":[],"bounds":{"document_bytes":16777216,"sheet_cells":100000,"rows_first":2000,"rows_last":500,"rows_between":2000,"halvings":0,"cell_chars":16384,"cell_head_chars":4096},"cells_cut":0,"cells_raw":0,"read":"whole","date_system":"1900"}

{"sheet":"Instructions","index":0,"n_rows":68,"n_cols":9,"rows_kept":68,"cut":false,"hidden":false,"merged":[[51,2,52,13],[5,2,17,13],[21,2,27,13],[30,2,37,13],[40,2,46,13],[18,2,18,7]]}
[]
[]
[null," 'BE SEEN' REPORTING SPREADSHEET"]
[null," INSTRUCTIONS"]
[]
[null,null,"The 'be seen' webform should be completed by planning applicants, developers and building owners to submit energy performance data at each reporting stage (planning stage, as-built stage and in-use stage) in order to fulfil the requirements of the Mayor's 'be seen' policy set out in London Plan 2021 Policy SI 2.\n\nBefore completing and submitting this spreadsheet to the GLA, applicants should read the 'Be seen' energy monitoring guidance [https://www.london.gov.uk/what-we-do/planning/implementing-london-plan/london-plan-guidance-and-spgs/be-seen-energy-monitoring-guidance] and ensure that they have fully understood the process necessary to comply with the policy.  \n\nPlease note that at each reporting stage the form cannot be saved midway and so users will need to have all the relevant information to hand for the stage they are reporting against in order to submit the webform. The 'be seen' spreadsheet has been developed to enable development teams to capture all data offline before this is submitted via the webform.\n\nBy ticking the below box, the person submitting this webform confirms that they are fully authorised by the legal owner to submit data for this development\n"]
[]
[]
[]
[]
[]
[]
[]
[]
[]
[]
[]
[]
[null,null,"I am fully authorised by the legal owner to submit data for this development",null,null,null,null,null,"Select from List"]
[]
[null,null,"1. Planning stage "]
[null,null,"The applicant is required to provide accurate and verified estimates of each of the planning stage performance indicators through the planning stage ‘be seen’ webform, during the planning application determination period. All the required information can be viewed in the ‘be seen’ spreadsheet. Select the \"All_Inputs\" tab, click current reporting stage and select ‘planning’ from the dropdown list. Applicants should submit the 'be seen' spreadsheet along with any other relevant material as part of the webform submission."]
[]
[]
[]
[]
[]
[]
[]
[null,null,"2. As-built stage Final process to be confirmed"]
[null,null,"Once the as-built design has been completed and prior to the building being handed over (if applicable), the developer is required to provide an accurate and verified update of the estimated performance indicators submitted at planning stage by selecting the \"As-built\" reporting stage of the \"All_Inputs\" tab. This will include a number of additional indicators and a greater level of detail compared to the planning stage, along with some additional contextual information. Reporting from this point on will be for individual Reportable Units (RUs). The 'be seen' spreadsheet should be submitted to the GLA (EnergyMonitoringLPG@london.gov.uk) along with any other relevant material (e.g. DEC certificates etc.) or uploaded to the 'be seen' portal, when this is made available. This section will be updated accordingly."]
[]
[]
[]
[]
[]
[]
[]
[]
[null,null,"3. In-use stage Final process to be confirmed"]
[null,null,"During the in-use stage, the owner is required to monitor and report accurate and verified annual energy performance data for each qualifying RU via the ‘be seen’ spreadsheet for at least five years once the defects liability period (DLP) is complete. Owners are required to select the \"Operational Year xxx\" reporting stage of the \"All_Inputs\" tab, depending on the in-use reporting year, and complete the necessary information. The 'be seen' spreadsheet should be submitted to the GLA (EnergyMonitoringLPG@london.gov.uk) along with any other relevant material (e.g. DEC certificates etc.) or uploaded to the 'be seen' portal, when this is made available. This section will be updated accordingly.    \n"]
[]
[]
[]
[]
[]
[]
[]
[null," OTHER INSTRUCTIONS"]
[]
[null,null,"Please enable macros when using this spreadsheet."]
[null,null,"Macros are used to show/hide sections of the spreadsheet, depending on the stage in the 'be seen' process and the type of development. If you are unable to use macros, please hide/show rows manually."]
[]
[]
[null,null,"Key"]
[null,null,"User Input Cells"]
[null,null,null,10086399,"<- Free input (some cells are restricted in terms of the format, e.g. numbers)"]
[null,null,null,15189683,"<- Drop down selection (these may take up to ~30 seconds to run)"]
[]
[null,null,"Background Cells"]
[null,null,null,9294249,"<- Result of an internal calculation"]
[null,null,null,"+","<- Hide/show button (click away from the cell and back again to activate)."]
[null,null,null,"*","<- Required data"]
[]
[null," QUERIES / FEEDBACK"]
[]
[null,null,"Any queries of feedback on this spreadsheet should be submitted to:"]
[null,null,"EnergyMonitoringLPG@london.gov.uk"]

{"sheet":"All_Inputs","index":1,"n_rows":3370,"n_cols":108,"rows_kept":562,"cut":true,"hidden":false,"merged":[],"bounds":{"rows_first":250,"rows_last":62,"rows_between":250,"halvings":3}}
[null,null,null,null,null,null,null,null,null,null,null,null,null,null,null,null,null,null,"MAX","COL",{"$f":"COLUMN(DD3370)","v":108},null,null,null,null,null,null,null,null,null,null,null,null,null,null,null,null,null,null,"NEVER","-",null,null,null,null,null,null,null,null,null,null,null,null,null,null,null,null,null,null,null,null,null,null,null,null,null,null,null,null,null,null,null,null,null,null,null,null,null,null,null,null,null,null,null,null,null,null,null,null,null,null,null,null,null,null,null,null,null,null,null,null,null,null,null,null,null,null,"-"]
[null,null,null,null,null,null,null,null,null,null,null,null,null,null,null,null,null,null,null,"ROW",{"$f":"ROW(DD3370)","v":3370},null,null,null,null,null,null,null,null,null,null,null,null,null,null,null,null,null,null,"NEVER","-",null,null,null,null,null,null,null,null,null,null,null,null,null,null,null,null,null,null,null,null,null,null,null,null,null,null,null,null,null,null,null,null,null,null,null,null,null,null,null,null,null,null,null,null,null,null,null,null,null,null,null,null,null,null,null,null,null,null,null,null,null,null,null,null,null,null,"-"]
["NEVER","Y","Y","Y","Y","Y","Y","Y","Y","Y","Y","Y","Y","Y","Y","Y","Y","Y","Y","Y","Y","Y","Y","Y","Y","Y","Y","Y","Y","Y","Y","Y","Y","Y","Y","Y","Y","Y","Y","Y","Y","NEVER","NEVER","NEVER","NEVER","NEVER","NEVER","NEVER","NEVER","NEVER","NEVER","NEVER",{"$f":"IF($R$9=2,\"N\",\"Y\")","v":"Y"},{"$f":"BA3","v":"Y"},"Y",{"$f":"IF(AND($R$9=3,$S$9=1),\"N\",\"Y\")","v":"Y"},{"$f":"BD3","v":"Y"},"Y","Y","Y","Y","Y","Y","Y","Y",{"$f":"IF(AND($R$9=3,$S$9=2),\"N\",\"Y\")","v":"Y"},"Y","Y","Y","Y","Y","Y","Y","Y","Y",{"$f":"IF(AND($R$9=3,$S$9=3),\"N\",\"Y\")","v":"Y"},"Y","Y","Y","Y","Y","Y","Y","Y","Y",{"$f":"IF(AND($R$9=3,$S$9=4),\"N\",\"Y\")","v":"Y"},"Y","Y","Y","Y","Y","Y","Y","Y","Y",{"$f":"IF(AND($R$9=3,$S$9=5),\"N\",\"Y\")","v":"Y"},"Y","Y","Y","Y","Y","Y","Y","Y","Y","NEVER","NEVER","Y"]
[null,"MISC","CELL CONTROLS",null,null,null,null,null,null,null,null,"PROGRESS",null,null,null,null,"MISC LOCAL CALCS",null,null,null,null,null,null,null,"RU DATA",null,null,null,null,null,null,null,null,null,null,"VBA",null,null,null,"Y","-","Gap","Category",null,"Detail",null,null,null,null,null,null,null,"As Built",null,null,"Year 1",null,null,null,null,null,null,null,null,null,"Year 2",null,null,null,null,null,null,null,null,null,"Year 3",null,null,null,null,null,null,null,null,null,"Year 4",null,null,null,null,null,null,null,null,null,"Year 5",null,null,null,null,null,null,null,null,null,null,null,"-"]
[null,"-","Type",null,"Stage Requirement",null,null,null,"Current Stage",null,null,"Stage",null,"Overall",null,null,"Cell","Calcs",null,null,null,null,null,null,"Bldg RUs (EC below)",null,null,null,null,null,"Specific RU",null,"Type",null,null,"Address","Hide Buttons",null,null,"Y","-","-",0,2,1,2,"Units","Note",null,"Building / RU Data","Reqd?",null,"Data","Reqd?",null,"Data",null,"Data","Data","Data","Data","Data","Data","Reqd?",null,"Data",null,"Data","Data","Data","Data","Data","Data","Reqd?",null,"Data",null,"Data","Data","Data","Data","Data","Data","Reqd?",null,"Data",null,"Data","Data","Data","Data","Data","Data","Reqd?",null,"Data",null,"Data","Data","Data","Data","Data","Data","Reqd?",null,null,null,"-"]
[null,"Stage","Validation","Default","Summary","Planning","As Built","Operation","Required?","Done?","To Do","Data Req'd","Data ToDo","Total req'd","% To Do","Prog Bar","Current","Calc A","Calc B","Calc C","Calc D","Calc E","Calc F","Calc G","Ref","Raw Type","Complete","RU Name","Resi RU","For Llord","RU No.","Valid?","Domestic","Non-Dom","Landlord","Ref","Live?","From Row","To Row","Y","-",null,null,null,null,null,null,null,null,null,null,null,null,null,null,null,null,null,null,null,null,null,null,null,null,null,null,null,null,null,null,null,null,null,null,null,null,null,null,null,null,null,null,null,null,null,null,null,null,null,null,null,null,null,null,null,null,null,null,null,null,null,null,null,null,null,null,"-"]
[null,null,null,null,null,null,null,null,null,null,null,null,null,{"$f":"SUM(L25:L3361)","v":9},{"$f":"SUM(M25:M3361)/N7","v":0.88888888888888884},{"$f":"ROUND(18*O7,0)","v":16},null,null,null,null,null,null,null,"RU Row",0,"-","-","-",0,"Select from list",null,null,null,null,null,null,null,null,null,"NEVER","-",{"$f":"IF($R$9=0,\" PLEASE SELECT THE REPORTING STAGE BELOW\",\" OVERALL PROGRESS\")","v":" PLEASE SELECT THE REPORTING STAGE BELOW"},null,null,null,null,{"$f":"IF($R$9=0,\"\",ROUND(100*(1-O7),0)&\"%\")","v":""},null,null,null,{"$f":"IF($R$9=0,\"\",REPT(\"g\",18-P7)&REPT(\"c\",P7)&\" \")","v":""},null,null,null,null,null,null,null,null,null,null,null,null,null,null,null,null,null,null,null,null,null,null,null,null,null,null,null,null,null,null,null,null,null,null,null,null,null,null,null,null,null,null,null,null,null,null,null,null,null,null,null,null,null,null,null,null,"-"]
[null,null,null,null,null,null,null,null,null,null,null,null,null,null,null,null,null,"Stage","Year",null,null,null,{"$f":"IFERROR(LEFT(AD8,FIND(\"(\",AD8)-2),\"-\")","v":"-"},{"$f":"ROW(AQ183)","v":183},1,{"$f":"R183","v":"-"},{"$f":"S183","v":"-"},{"$f":"T183","v":"-"},{"$f":"IF(LEFT(Z8,3)=\"Res\",MAX(AC$6:AC7)+1,\"-\")","v":"-"},{"$f":"IF(ISERROR(MATCH(Y8,AC$7:AC$32,0)),\"No residential RUs listed\",\"Bldg RU \"&INDEX($Y$7:$Y$32,MATCH(Y8,$AC$7:$AC$32,0))&\" (\"&INDEX($AB$7:$AB$32,MATCH(Y8,$AC$7:$AC$32,0))&\")\")","v":"No residential RUs listed"},null,null,null,null,null,null,null,null,null,"NEVER","-",null,null,null,null,null,null,null,null,null,null,null,null,null,null,null,null,null,null,null,null,null,null,null,null,null,null,null,null,null,null,null,null,null,null,null,null,null,null,null,null,null,null,null,null,null,null,null,null,null,null,null,null,null,null,null,null,null,null,null,null,null,null,null,null,null,null,"-"]
[null,null,"List","Select from list","constant",null,null,null,1,{"$f":"IF(R9>0,1,0)","v":0},{"$f":"IF(AND(J9=0,I9=1),1,0)","v":1},null,null,null,null,null,null,{"$f":"IF(LEFT(AX:AX,2)=\"Pl\",1,IF(LEFT(AX:AX,2)=\"As\",2,IF(LEFT(AX:AX,2)=\"Op\",3,0)))","v":0},{"$f":"IF(LEFT(AX:AX,2)=\"Op\",RIGHT(AX:AX,1)*1,0)","v":0},null,null,null,{"$f":"IFERROR(LEFT(AD9,FIND(\"(\",AD9)-2),\"-\")","v":"-"},{"$f":"ROW(AQ295)","v":295},{"$f":"Y8+1","v":2},{"$f":"R295","v":"-"},{"$f":"S295","v":"-"},"-",{"$f":"IF(LEFT(Z9,3)=\"Res\",MAX(AC$6:AC8)+1,\"-\")","v":"-"},{"$f":"IF(ISERROR(MATCH(Y9,AC$7:AC$32,0)),\"-\",\"Bldg RU \"&INDEX($Y$7:$Y$32,MATCH(Y9,$AC$7:$AC$32,0))&\" (\"&INDEX($AB$7:$AB$32,MATCH(Y9,$AC$7:$AC$32,0))&\")\")","v":"-"},null,null,null,null,null,null,null,10,{"$f":"ROW(AO3370)","v":3370},"NEVER",1,null," CURRENT REPORTING STAGE      - - - - - - - - - - - - - - - - - - - - - - - - - - - - - - - - - - >>",null,null,null,null,null,null,"Select from list",{"$f":"IF(I9=1,\"*\",\"\")","v":"*"},null,null,null,null,null,null,null,null,null,null,null,null,null,null,null,null,null,null,null,null,null,null,null,null,null,null,null,null,null,null,null,null,null,null,null,null,null,null,null,null,null,null,null,null,null,null,null,null,null,null,null,null,null,null,null,null,"-"]
[null,null,null,null,null,null,null,null,null,null,null,null,null,null,null,null,null,null,null,null,null,null,"-",{"$f":"X9+(X9-X8)","v":407},3,{"$f":"R407","v":"-"},{"$f":"S407","v":"-"},"-",{"$f":"IF(LEFT(Z10,3)=\"Res\",MAX(AC$6:AC9)+1,\"-\")","v":"-"},"-",null,null,null,null,null,null,null,null,null,{"$f":"IF($R$9>1,\"N\",\"Y\")","v":"Y"},{"$f":"IF(AN11=AN10,AO11+1,1)","v":10},null,null,null,null,null,null,null,null,null,null,null,null,null,null,null,null,null,null,null,null,null,null,null,null,null,null,null,null,null,null,null,null,null,null,null,null,null,null,null,null,null,null,null,null,null,null,null,null,null,null,null,null,null,null,null,null,null,null,null,null,null,null,null,null,null,null,"-"]
[null,null,null,null,null,null,null,null,null,null,null,null,null,null,null,null,null,null,null,null,null,null,"-",519,4,{"$f":"R519","v":"-"},{"$f":"S519","v":"-"},"-",{"$f":"IF(LEFT(Z11,3)=\"Res\",MAX(AC$6:AC10)+1,\"-\")","v":"-"},"-",null,null,null,null,null,null,null,null,null,{"$f":"AN10","v":"Y"},9,null," REPORTABLE UNITS PROGRESS",null,null,null,null,null,null,null,null,null,null,null,null,null,null,null,null,null,null,null,null,null,null,null,null,null,null,null,null,null,null,null,null,null,null,null,null,null,null,null,null,null,null,null,null,null,null,null,null,null,null,null,null,null,null,null,null,null,null,null,null,null,null,null,null,"-"]
[null,null,null,null,null,null,null,null,null,null,null,null,null,null,null,null,null,null,null,null,null,null,"-",631,5,{"$f":"R631","v":"-"},{"$f":"S631","v":"-"},"-",{"$f":"IF(LEFT(Z12,3)=\"Res\",MAX(AC$6:AC11)+1,\"-\")","v":"-"},"-",null,null,null,null,null,null,null,null,null,{"$f":"AN11","v":"Y"},8,null,null,"Number of building (residential/non-residential) RUs with missing data",null,null,null,null,null,{"$f":"T168-SUM(T171:T175)&\" out of \"&T168&\" RUs\"","v":"0 out of 0 RUs"},null,null,null,null,null,null,null,null,null,null,null,null,null,null,null,null,null,null,null,null,null,null,null,null,null,null,null,null,null,null,null,null,null,null,null,null,null,null,null,null,null,null,null,null,null,null,null,null,null,null,null,null,null,null,null,null,null,"-"]
[null,null,null,null,null,null,null,null,null,null,null,null,null,null,null,null,null,null,null,null,null,null,"-",743,6,{"$f":"R743","v":"-"},{"$f":"S743","v":"-"},"-",{"$f":"IF(LEFT(Z13,3)=\"Res\",MAX(AC$6:AC12)+1,\"-\")","v":"-"},"-",null,null,null,null,null,null,null,null,null,{"$f":"AN12","v":"Y"},7,null,null,"Number of energy centre RUs with missing data",null,null,null,null,null,{"$f":"AX176-T176&\" out of \"&AX176&\" RUs\"","v":"0 out of 0 RUs"},null,null,null,null,null,null,null,null,null,null,null,null,null,null,null,null,null,null,null,null,null,null,null,null,null,null,null,null,null,null,null,null,null,null,null,null,null,null,null,null,null,null,null,null,null,null,null,null,null,null,null,null,null,null,null,null,null,"-"]
[null,null,null,null,null,null,null,null,null,null,null,null,null,null,null,null,null,null,null,null,null,null,"-",855,7,{"$f":"R855","v":"-"},{"$f":"S855","v":"-"},"-",{"$f":"IF(LEFT(Z14,3)=\"Res\",MAX(AC$6:AC13)+1,\"-\")","v":"-"},"-",null,null,null,null,null,null,null,null,null,"Y",6,null,null,null,null,null,null,null,null,null,null,null,null,null,null,null,null,null,null,null,null,null,null,null,null,null,null,null,null,null,null,null,null,null,null,null,null,null,null,null,null,null,null,null,null,null,null,null,null,null,null,null,null,null,null,null,null,null,null,null,null,null,null,null,null,null,null,"-"]
[null,null,null,null,null,null,null,null,null,null,null,null,null,null,null,null,null,null,null,null,null,null,"-",967,8,{"$f":"R967","v":"-"},{"$f":"S967","v":"-"},"-",{"$f":"IF(LEFT(Z15,3)=\"Res\",MAX(AC$6:AC14)+1,\"-\")","v":"-"},"-",null,null,null,null,null,null,null,null,null,"Y",5,null,null,null,null,null,null,null,null,null,null,null,null,null,null,null,null,null,null,null,null,null,null,null,null,null,null,null,null,null,null,null,null,null,null,null,null,null,null,null,null,null,null,null,null,null,null,null,null,null,null,null,null,null,null,null,null,null,null,null,null,null,null,null,null,null,null,"-"]
[null,null,null,null,null,null,null,null,null,null,null,null,null,null,null,null,null,null,null,null,null,null,"-",1079,9,{"$f":"R1079","v":"-"},{"$f":"S1079","v":"-"},"-",{"$f":"IF(LEFT(Z16,3)=\"Res\",MAX(AC$6:AC15)+1,\"-\")","v":"-"},"-",null,null,null,null,null,null,null,null,null,"Y",4,null,null,null,null,null,null,null,null,null,null,null,null,null,null,null,null,null,null,null,null,null,null,null,null,null,null,null,null,null,null,null,null,null,null,null,null,null,null,null,null,null,null,null,null,null,null,null,null,null,null,null,null,null,null,null,null,null,null,null,null,null,null,null,null,null,null,"-"]
[null,null,null,null,null,null,null,null,null,null,null,null,null,null,null,null,null,null,null,null,null,null,"-",1191,10,{"$f":"R1191","v":"-"},{"$f":"S1191","v":"-"},"-",{"$f":"IF(LEFT(Z17,3)=\"Res\",MAX(AC$6:AC16)+1,\"-\")","v":"-"},"-",null,null,null,null,null,null,null,null,null,"Y",3,null,null,null,null,null,null,null,null,null,null,null,null,null,null,null,null,null,null,null,null,null,null,null,null,null,null,null,null,null,null,null,null,null,null,null,null,null,null,null,null,null,null,null,null,null,null,null,null,null,null,null,null,null,null,null,null,null,null,null,null,null,null,null,null,null,null,"-"]
[null,null,null,null,null,null,null,null,null,null,null,null,null,null,null,null,null,null,null,null,null,null,"-",1303,11,{"$f":"R1303","v":"-"},{"$f":"S1303","v":"-"},"-",{"$f":"IF(LEFT(Z18,3)=\"Res\",MAX(AC$6:AC17)+1,\"-\")","v":"-"},"-",null,null,null,null,null,null,null,null,null,"Y",2,null,null,null,null,null,null,null,null,null,null,null,null,null,null,null,null,null,null,null,null,null,null,null,null,null,null,null,null,null,null,null,null,null,null,null,null,null,null,null,null,null,null,null,null,null,null,null,null,null,null,null,null,null,null,null,null,null,null,null,null,null,null,null,null,null,null,"-"]
[null,null,null,null,null,null,null,null,null,null,null,null,null,null,null,null,null,null,null,null,null,null,"-",1415,12,{"$f":"R1415","v":"-"},{"$f":"S1415","v":"-"},"-",{"$f":"IF(LEFT(Z19,3)=\"Res\",MAX(AC$6:AC18)+1,\"-\")","v":"-"},"-",null,null,null,null,null,null,null,null,null,"Y",1,null,null,null,null,null,null,null,null,null,null,null,null,null,null,null,null,null,null,null,null,null,null,null,null,null,null,null,null,null,null,null,null,null,null,null,null,null,null,null,null,null,null,null,null,null,null,null,null,null,null,null,null,null,null,null,null,null,null,null,null,null,null,null,null,null,null,"-"]
[null,null,null,null,null,null,null,null,null,null,null,null,null,null,null,null,null,null,null,null,null,null,"-",1527,13,{"$f":"R1527","v":"-"},{"$f":"S1527","v":"-"},"-",{"$f":"IF(LEFT(Z20,3)=\"Res\",MAX(AC$6:AC19)+1,\"-\")","v":"-"},"-",null,null,null,null,null,null,null,null,null,"NEVER",1,null,null,null,null,null,null,null,null,null,null,null,null,null,null,null,null,null,null,null,null,null,null,null,null,null,null,null,null,null,null,null,null,null,null,null,null,null,null,null,null,null,null,null,null,null,null,null,null,null,null,null,null,null,null,null,null,null,null,null,null,null,null,null,null,null,null,"-"]
[null,null,null,null,null,null,null,null,null,null,null,null,null,{"$f":"SUM(L25:L113)","v":9},{"$f":"SUM(M25:M113)/N21","v":0.88888888888888884},{"$f":"ROUND(18*O21,0)","v":16},null,null,null,null,null,null,"-",1639,14,{"$f":"R1639","v":"-"},{"$f":"S1639","v":"-"},"-",{"$f":"IF(LEFT(Z21,3)=\"Res\",MAX(AC$6:AC20)+1,\"-\")","v":"-"},"-",null,null,null,null,null,null,null,null,null,null,2," CONTEXTUAL DATA",null,null,null,null,null,{"$f":"IF($R$9=0,\"\",IF(N21=0,\"not req'd at this stage\",\"Progress: \"&ROUND(100*(1-O21),0)&\"%\"))","v":""},null,{"$f":"IF(OR(N21=0,$R$9=0),\"\",REPT(\"g\",18-P21)&REPT(\"c\",P21))","v":""},null,null,null,null,null,null,null,null,null,null,null,null,null,null,null,null,null,null,null,null,null,null,null,null,null,null,null,null,null,null,null,null,null,null,null,null,null,null,null,null,null,null,null,null,null,null,null,null,null,null,null,null,null,null,null,null,null,"-"]
[null,null,null,null,null,null,null,null,null,null,null,null,null,null,null,null,null,null,null,null,null,null,"-",1751,15,{"$f":"R1751","v":"-"},{"$f":"S1751","v":"-"},"-",{"$f":"IF(LEFT(Z22,3)=\"Res\",MAX(AC$6:AC21)+1,\"-\")","v":"-"},"-",null,null,null,null,null,null,null,null,null,null,1,null,null,null,null,null,null,null,null,null,null,null,null,null,null,null,null,null,null,null,null,null,null,null,null,null,null,null,null,null,null,null,null,null,null,null,null,null,null,null,null,null,null,null,null,null,null,null,null,null,null,null,null,null,null,null,null,null,null,null,null,null,null,null,null,null,null,"-"]
[null,null,null,null,null,null,null,null,null,null,null,null,null,{"$f":"(L25+L29)","v":5},{"$f":"(M25+M29)/N23","v":1},{"$f":"ROUND(18*O23,0)","v":18},null,null,null,null,null,null,"-",1863,16,{"$f":"R1863","v":"-"},{"$f":"S1863","v":"-"},"-",{"$f":"IF(LEFT(Z23,3)=\"Res\",MAX(AC$6:AC22)+1,\"-\")","v":"-"},"-",null,null,null,null,null,null,{"$f":"IF($R$9>0,1,0)","v":0},24,34,null,1,{"$f":"IF(AK23=1,\"+\",\"\")","v":""}," ORGANISATION & CONTACT DETAILS",null,null,null,null,null,null,null,null,null,null,null,null,null,null,null,null,null,null,null,null,null,null,null,null,null,null,null,null,null,null,null,null,null,null,null,null,null,null,null,null,null,null,null,null,null,null,null,null,null,null,null,null,null,null,null,null,null,null,null,null,null,null,null,null,"-"]
[null,null,null,null,null,null,null,null,null,null,null,null,null,null,null,null,null,null,null,null,null,null,"-",1975,17,{"$f":"R1975","v":"-"},{"$f":"S1975","v":"-"},"-",{"$f":"IF(LEFT(Z24,3)=\"Res\",MAX(AC$6:AC23)+1,\"-\")","v":"-"},"-",null,null,null,null,null,null,null,null,null,{"$f":"IF($R$9>0,\"N\",\"Y\")","v":"Y"},11,null,null,null,null,null,null,null,null,null,null,null,null,null,null,null,null,null,null,null,null,null,null,null,null,null,null,null,null,null,null,null,null,null,null,null,null,null,null,null,null,null,null,null,null,null,null,null,null,null,null,null,null,null,null,null,null,null,null,null,null,null,null,null,null,null,null,"-"]
[null,null,null,null,null,null,null,null,null,null,null,{"$f":"SUM(I26:I27)","v":2},{"$f":"SUM(K26:K27)","v":2},null,null,null,null,null,null,null,null,null,"-",2087,18,{"$f":"R2087","v":"-"},{"$f":"S2087","v":"-"},"-",{"$f":"IF(LEFT(Z25,3)=\"Res\",MAX(AC$6:AC24)+1,\"-\")","v":"-"},"-",null,null,null,null,null,null,null,null,null,{"$f":"AN24","v":"Y"},10,null,null," ORGANISATION DETAILS",null,null,null,null,null,null,null,null,null,null,null,null,null,null,null,null,null,null,null,null,null,null,null,null,null,null,null,null,null,null,null,null,null,null,null,null,null,null,null,null,null,null,null,null,null,null,null,null,null,null,null,null,null,null,null,null,null,null,null,null,null,null,null,"-"]
[null,null,"-","NULL","constant",null,null,null,1,{"$f":"IF(OR(AX:AX=\"\",AX:AX=\"-\",AX:AX=\" \"),0,1)","v":0},{"$f":"IF(AND(J26=0,I26=1),1,0)","v":1},null,null,null,null,null,null,null,null,null,null,null,"-",2199,19,{"$f":"R2199","v":"-"},{"$f":"S2199","v":"-"},"-",{"$f":"IF(LEFT(Z26,3)=\"Res\",MAX(AC$6:AC25)+1,\"-\")","v":"-"},"-",null,null,null,null,null,null,null,null,null,"Y",9,null,null,null,"Organisation Name",null,null,{"$f":"IF(K26=1,\"Must complete ->\",\"\")","v":"Must complete ->"},null,null,{"$f":"IF(I26=1,\"*\",\"\")","v":"*"},null,null,null,null,null,null,null,null,null,null,null,null,null,null,null,null,null,null,null,null,null,null,null,null,null,null,null,null,null,null,null,null,null,null,null,null,null,null,null,null,null,null,null,null,null,null,null,null,null,null,null,null,null,null,null,null,"-"]
[null,null,"-","NULL","constant",null,null,null,1,{"$f":"IF(OR(AX:AX=\"\",AX:AX=\"-\",AX:AX=\" \"),0,1)","v":0},{"$f":"IF(AND(J27=0,I27=1),1,0)","v":1},null,null,null,null,null,null,null,null,null,null,null,"-",2311,20,{"$f":"R2311","v":"-"},{"$f":"S2311","v":"-"},"-",{"$f":"IF(LEFT(Z27,3)=\"Res\",MAX(AC$6:AC26)+1,\"-\")","v":"-"},"-",null,null,null,null,null,null,null,null,null,"Y",8,null,null,null,"Organisation Address",null,null,{"$f":"IF(K27=1,\"Must complete ->\",\"\")","v":"Must complete ->"},null,null,{"$f":"IF(I27=1,\"*\",\"\")","v":"*"},null,null,null,null,null,null,null,null,null,null,null,null,null,null,null,null,null,null,null,null,null,null,null,null,null,null,null,null,null,null,null,null,null,null,null,null,null,null,null,null,null,null,null,null,null,null,null,null,null,null,null,null,null,null,null,null,"-"]
[null,null,null,null,null,null,null,null,null,null,null,null,null,null,null,null,null,null,null,null,null,null,"-",2423,21,{"$f":"R2423","v":"-"},{"$f":"S2423","v":"-"},"-",{"$f":"IF(LEFT(Z28,3)=\"Res\",MAX(AC$6:AC27)+1,\"-\")","v":"-"},"-",null,null,null,null,null,null,null,null,null,"Y",7,null,null,null,null,null,null,null,null,null,null,null,null,null,null,null,null,null,null,null,null,null,null,null,null,null,null,null,null,null,null,null,null,null,null,null,null,null,null,null,null,null,null,null,null,null,null,null,null,null,null,null,null,null,null,null,null,null,null,null,null,null,null,null,null,null,null,"-"]
[null,null,null,null,null,null,null,null,null,null,null,{"$f":"SUM(I30:I34)","v":3},{"$f":"SUM(K30:K34)","v":3},null,null,null,null,null,null,null,null,null,"-",2535,22,{"$f":"R2535","v":"-"},{"$f":"S2535","v":"-"},"-",{"$f":"IF(LEFT(Z29,3)=\"Res\",MAX(AC$6:AC28)+1,\"-\")","v":"-"},"-",null,null,null,null,null,null,null,null,null,"Y",6,null,null," CONTACT DETAILS",null,null,null,null,null,null,null,null,null,null,null,null,null,null,null,null,null,null,null,null,null,null,null,null,null,null,null,null,null,null,null,null,null,null,null,null,null,null,null,null,null,null,null,null,null,null,null,null,null,null,null,null,null,null,null,null,null,null,null,null,null,null,null,"-"]
[null,null,"-","NULL","constant",null,null,null,1,{"$f":"IF(OR(AX:AX=\"\",AX:AX=\"-\",AX:AX=\" \"),0,1)","v":0},{"$f":"IF(AND(J30=0,I30=1),1,0)","v":1},null,null,null,null,null,null,null,null,null,null,null,"-",2647,23,{"$f":"R2647","v":"-"},{"$f":"S2647","v":"-"},"-",{"$f":"IF(LEFT(Z30,3)=\"Res\",MAX(AC$6:AC29)+1,\"-\")","v":"-"},"-",null,null,null,null,null,null,null,null,null,"Y",5,null,null,null,"Contact Name",null,null,{"$f":"IF(K30=1,\"Must complete ->\",\"\")","v":"Must complete ->"},null,null,{"$f":"IF(I30=1,\"*\",\"\")","v":"*"},null,null,null,null,null,null,null,null,null,null,null,null,null,null,null,null,null,null,null,null,null,null,null,null,null,null,null,null,null,null,null,null,null,null,null,null,null,null,null,null,null,null,null,null,null,null,null,null,null,null,null,null,null,null,null,null,"-"]
[null,null,"-","NULL","constant",null,null,null,1,{"$f":"IF(OR(AX:AX=\"\",AX:AX=\"-\",AX:AX=\" \"),0,1)","v":0},{"$f":"IF(AND(J31=0,I31=1),1,0)","v":1},null,null,null,null,null,null,null,null,null,null,null,"-",2759,24,{"$f":"R2759","v":"-"},{"$f":"S2759","v":"-"},"-",{"$f":"IF(LEFT(Z31,3)=\"Res\",MAX(AC$6:AC30)+1,\"-\")","v":"-"},"-",null,null,null,null,null,null,null,null,null,{"$f":"AN30","v":"Y"},4,null,null,null,"Email",null,null,{"$f":"IF(K31=1,\"Must complete ->\",\"\")","v":"Must complete ->"},null,null,{"$f":"IF(I31=1,\"*\",\"\")","v":"*"},null,null,null,null,null,null,null,null,null,null,null,null,null,null,null,null,null,null,null,null,null,null,null,null,null,null,null,null,null,null,null,null,null,null,null,null,null,null,null,null,null,null,null,null,null,null,null,null,null,null,null,null,null,null,null,null,"-"]
[null,null,"-","NULL","constant",null,null,null,0,{"$f":"IF(OR(AX:AX=\"\",AX:AX=\"-\",AX:AX=\" \"),0,1)","v":0},{"$f":"IF(AND(J32=0,I32=1),1,0)","v":0},null,null,null,null,null,null,null,null,null,null,null,"-",2871,25,{"$f":"R2871","v":"-"},{"$f":"S2871","v":"-"},"-",{"$f":"IF(LEFT(Z32,3)=\"Res\",MAX(AC$6:AC31)+1,\"-\")","v":"-"},"-",null,null,null,null,null,null,null,null,null,{"$f":"AN31","v":"Y"},3,null,null,null,"Additional Email(s)",null,null,null,null,null,null,null,null,null,null,null,null,null,null,null,null,null,null,null,null,null,null,null,null,null,null,null,null,null,null,null,null,null,null,null,null,null,null,null,null,null,null,null,null,null,null,null,null,null,null,null,null,null,null,null,null,null,null,null,null,null,null,"-"]
[null,null,"-","NULL","constant",null,null,null,1,{"$f":"IF(OR(AX:AX=\"\",AX:AX=\"-\",AX:AX=\" \"),0,1)","v":0},{"$f":"IF(AND(J33=0,I33=1),1,0)","v":1},null,null,null,null,null,null,null,null,null,null,null,null,null,null,null,null,null,null,null,null,null,null,null,null,null,null,null,null,"Y",2,null,null,null,"Telephone No.",null,null,{"$f":"IF(K33=1,\"Must complete ->\",\"\")","v":"Must complete ->"},null,null,{"$f":"IF(I33=1,\"*\",\"\")","v":"*"},null,null,null,null,null,null,null,null,null,null,null,null,null,null,null,null,null,null,null,null,null,null,null,null,null,null,null,null,null,null,null,null,null,null,null,null,null,null,null,null,null,null,null,null,null,null,null,null,null,null,null,null,null,null,null,null,"-"]
[null,null,"-","NULL","constant",null,null,null,0,{"$f":"IF(OR(AX:AX=\"\",AX:AX=\"-\",AX:AX=\" \"),0,1)","v":0},{"$f":"IF(AND(J34=0,I34=1),1,0)","v":0},null,null,null,null,null,null,null,null,null,null,null,null,null,"Energy Centre RUs",null,null,null,null,null,null,null,null,null,null,null,null,null,null,"Y",1,null,null,null,"Mobile No.",null,null,null,null,null,null,null,null,null,null,null,null,null,null,null,null,null,null,null,null,null,null,null,null,null,null,null,null,null,null,null,null,null,null,null,null,null,null,null,null,null,null,null,null,null,null,null,null,null,null,null,null,null,null,null,null,null,null,null,null,null,null,"-"]
[null,null,null,null,null,null,null,null,null,null,null,null,null,null,null,null,null,null,null,null,null,null,null,null,"Ref","Included?","Complete?","RU Name",null,null,null,null,null,null,null,null,null,null,null,null,1,null,null,null,null,null,null,null,null,null,null,null,null,null,null,null,null,null,null,null,null,null,null,null,null,null,null,null,null,null,null,null,null,null,null,null,null,null,null,null,null,null,null,null,null,null,null,null,null,null,null,null,null,null,null,null,null,null,null,null,null,null,null,null,null,null,null,"-"]
[null,null,null,null,null,null,null,null,null,null,null,null,null,{"$f":"(L38+L42+L57+L62)","v":4},{"$f":"(M38+M42+M57+M62)/N36","v":0.75},{"$f":"ROUND(18*O36,0)","v":14},null,null,null,null,null,null,null,"RU Row",0,"-","-","-",null,null,null,null,null,null,null,null,{"$f":"IF($R$9>0,1,0)","v":0},37,99,null,1,{"$f":"IF(AK36=1,\"+\",\"\")","v":""}," DEVELOPMENT INFORMATION",null,null,null,null,null,null,null,null,null,null,null,null,null,null,null,null,null,null,null,null,null,null,null,null,null,null,null,null,null,null,null,null,null,null,null,null,null,null,null,null,null,null,null,null,null,null,null,null,null,null,null,null,null,null,null,null,null,null,null,null,null,null,null,null,"-"]
[null,null,null,null,null,null,null,null,null,null,null,null,null,null,null,null,null,null,null,null,null,null,null,{"$f":"ROW(AQ2984)","v":2984},1,{"$f":"R2984","v":"-"},{"$f":"S2984","v":"-"},"-",null,null,null,null,null,null,null,null,null,null,null,{"$f":"IF($R$9>0,\"N\",\"Y\")","v":"Y"},63,null,null,null,null,null,null,null,null,null,null,null,null,null,null,null,null,null,null,null,null,null,null,null,null,null,null,null,null,null,null,null,null,null,null,null,null,null,null,null,null,null,null,null,null,null,null,null,null,null,null,null,null,null,null,null,null,null,null,null,null,null,null,null,null,null,null,"-"]
[null,null,null,null,null,null,null,null,null,null,null,{"$f":"SUM(I39:I40)","v":1},{"$f":"SUM(K39:K40)","v":1},null,null,null,null,null,null,null,null,null,null,{"$f":"ROW(AQ3061)","v":3061},{"$f":"Y37+1","v":2},{"$f":"R3061","v":"-"},{"$f":"S3061","v":"-"},"-",null,null,null,null,null,null,null,null,null,null,null,{"$f":"IF($R$9>0,\"N\",\"Y\")","v":"Y"},62,null,null," OVERALL DEVELOPMENT DETAILS",null,null,null,null,null,null,null,null,null,null,null,null,null,null,null,null,null,null,null,null,null,null,null,null,null,null,null,null,null,null,null,null,null,null,null,null,null,null,null,null,null,null,null,null,null,null,null,null,null,null,null,null,null,null,null,null,null,null,null,null,null,null,null,"-"]
[null,null,"-","NULL","depends on stage",1,0,0,{"$f":"IFERROR(INDEX(F39:H39,$R$9),0)","v":0},{"$f":"IF(OR(AX:AX=\"\",AX:AX=\"-\",AX:AX=\" \"),0,1)","v":0},{"$f":"IF(AND(J39=0,I39=1),1,0)","v":0},null,null,null,null,null,null,null,null,null,null,null,null,{"$f":"X38+(X38-X37)","v":3138},{"$f":"Y38+1","v":3},{"$f":"R3138","v":"-"},{"$f":"S3138","v":"-"},"-",null,null,null,null,null,null,null,null,null,null,null,{"$f":"IF($R$9=1,\"N\",\"Y\")","v":"Y"},61,null,null,null,"Planning Reference Number",null,null,{"$f":"IF(K39=1,\"Must complete ->\",\"\")","v":""},null,null,{"$f":"IF(I39=1,\"*\",\"\")","v":""},null,null,null,null,null,null,null,null,null,null,null,null,null,null,null,null,null,null,null,null,null,null,null,null,null,null,null,null,null,null,null,null,null,null,null,null,null,null,null,null,null,null,null,null,null,null,null,null,null,null,null,null,null,null,null,null,"-"]
[null,null,"-","NULL","constant",null,null,null,1,{"$f":"IF(OR(AX:AX=\"\",AX:AX=\"-\",AX:AX=\" \"),0,1)","v":0},{"$f":"IF(AND(J40=0,I40=1),1,0)","v":1},null,null,null,null,null,null,null,null,null,null,null,null,{"$f":"X39+(X39-X38)","v":3215},4,{"$f":"R3215","v":"-"},{"$f":"S3215","v":"-"},"-",null,null,null,null,null,null,null,null,null,null,null,{"$f":"IF($R$9>0,\"N\",\"Y\")","v":"Y"},60,null,null,null,"Name of Whole Development",null,null,{"$f":"IF(K40=1,\"Must complete ->\",\"\")","v":"Must complete ->"},null,null,{"$f":"IF(I40=1,\"*\",\"\")","v":"*"},null,null,null,null,null,null,null,null,null,null,null,null,null,null,null,null,null,null,null,null,null,null,null,null,null,null,null,null,null,null,null,null,null,null,null,null,null,null,null,null,null,null,null,null,null,null,null,null,null,null,null,null,null,null,null,null,"-"]
[null,null,null,null,null,null,null,null,null,null,null,null,null,null,null,null,null,null,null,null,null,null,null,{"$f":"X40+(X40-X39)","v":3292},5,{"$f":"R3292","v":"-"},{"$f":"S3292","v":"-"},"-",null,null,null,null,null,null,null,null,null,null,null,{"$f":"AN40","v":"Y"},59,null,null,null,null,null,null,null,null,null,null,null,null,null,null,null,null,null,null,null,null,null,null,null,null,null,null,null,null,null,null,null,null,null,null,null,null,null,null,null,null,null,null,null,null,null,null,null,null,null,null,null,null,null,null,null,null,null,null,null,null,null,null,null,null,null,null,"-"]
[null,null,null,null,null,null,null,null,null,null,null,{"$f":"SUM(I44:I54)","v":3},{"$f":"SUM(K44:K54)","v":2},null,null,null,null,null,null,null,null,null,null,null,null,null,null,null,null,null,null,null,null,null,null,null,null,null,null,{"$f":"AN41","v":"Y"},58,null,null," DEVELOPMENT LOCATION",null,null,null,null,null,null,null,null,null,null,null,null,null,null,null,null,null,null,null,null,null,null,null,null,null,null,null,null,null,null,null,null,null,null,null,null,null,null,null,null,null,null,null,null,null,null,null,null,null,null,null,null,null,null,null,null,null,null,null,null,null,null,null,"-"]
[null,null,null,null,null,null,null,null,null,null,null,null,null,null,null,null,null,null,null,null,null,null,null,null,null,null,null,null,null,null,null,null,null,null,null,null,null,null,null,"Y",57,null,null,null,"Development Address",null,null,null,null,null,null,null,null,null,null,null,null,null,null,null,null,null,null,null,null,null,null,null,null,null,null,null,null,null,null,null,null,null,null,null,null,null,null,null,null,null,null,null,null,null,null,null,null,null,null,null,null,null,null,null,null,null,null,null,null,null,null,"-"]
[null,null,"-","NULL","constant",null,null,null,1,{"$f":"IF(OR(AX:AX=\"\",AX:AX=\"-\",AX:AX=\" \"),0,1)","v":0},{"$f":"IF(AND(J44=0,I44=1),1,0)","v":1},null,null,null,null,null,null,null,null,null,null,null,null,null,null,null,null,null,null,null,null,null,null,null,null,1,null,null,null,"Y",56,null,null,null,null,"Address Line 1",null,{"$f":"IF(K44=1,\"Must complete ->\",\"\")","v":"Must complete ->"},null,null,{"$f":"IF(I44=1,\"*\",\"\")","v":"*"},null,null,null,null,null,null,null,null,null,null,null,null,null,null,null,null,null,null,null,null,null,null,null,null,null,null,null,null,null,null,null,null,null,null,null,null,null,null,null,null,null,null,null,null,null,null,null,null,null,null,null,null,null,null,null,null,"-"]
[null,null,"-","NULL","constant",null,null,null,0,0,0,null,null,null,null,null,null,null,null,null,null,null,null,null,null,null,null,null,null,null,null,null,null,null,null,2,null,null,null,"Y",55,null,null,null,null,"Address Line 2",null,null,null,null,null,null,null,null,null,null,null,null,null,null,null,null,null,null,null,null,null,null,null,null,null,null,null,null,null,null,null,null,null,null,null,null,null,null,null,null,null,null,null,null,null,null,null,null,null,null,null,null,null,null,null,null,null,null,null,null,null,"-"]
[null,null,"-","NULL","constant",null,null,null,0,0,0,null,null,null,null,null,null,null,null,null,null,null,null,null,null,null,null,null,null,null,null,null,null,null,null,3,null,null,null,"Y",54,null,null,null,null,"Address Line 3",null,null,null,null,null,null,null,null,null,null,null,null,null,null,null,null,null,null,null,null,null,null,null,null,null,null,null,null,null,null,null,null,null,null,null,null,null,null,null,null,null,null,null,null,null,null,null,null,null,null,null,null,null,null,null,null,null,null,null,null,null,"-"]
[null,null,"-","NULL","constant",null,null,null,0,0,0,null,null,null,null,null,null,null,null,null,null,null,null,null,null,null,null,null,null,null,null,null,null,null,null,4,null,null,null,"Y",53,null,null,null,null,"Address Line 4",null,null,null,null,null,null,null,null,null,null,null,null,null,null,null,null,null,null,null,null,null,null,null,null,null,null,null,null,null,null,null,null,null,null,null,null,null,null,null,null,null,null,null,null,null,null,null,null,null,null,null,null,null,null,null,null,null,null,null,null,null,"-"]
[null,null,"-","NULL","constant",null,null,null,1,1,0,null,null,null,null,null,null,null,null,null,null,null,null,null,null,null,null,null,null,null,null,null,null,null,null,5,null,null,null,"Y",52,null,null,null,null,"London Borough",null,{"$f":"IF(K48=1,\"Must complete ->\",\"\")","v":""},null,"Select from list",{"$f":"IF(I48=1,\"*\",\"\")","v":"*"},null,null,null,null,null,null,null,null,null,null,null,null,null,null,null,null,null,null,null,null,null,null,null,null,null,null,null,null,null,null,null,null,null,null,null,null,null,null,null,null,null,null,null,null,null,null,null,null,null,null,null,null,null,null,null,null,"-"]
[null,null,"-","NULL","constant",null,null,null,1,0,1,null,null,null,null,null,null,null,null,null,null,null,null,null,null,null,null,null,null,null,null,null,null,null,null,6,null,null,null,"Y",51,null,null,null,null,"Postcode",null,"Must complete ->",null,null,{"$f":"IF(I49=1,\"*\",\"\")","v":"*"},null,null,null,null,null,null,null,null,null,null,null,null,null,null,null,null,null,null,null,null,null,null,null,null,null,null,null,null,null,null,null,null,null,null,null,null,null,null,null,null,null,null,null,null,null,null,null,null,null,null,null,null,null,null,null,null,"-"]
[null,null,null,null,null,null,null,null,null,null,null,null,null,null,null,null,null,null,null,null,null,null,null,null,null,null,null,null,null,null,null,null,null,null,null,null,null,null,null,"Y",50,null,null,null,"Ordnance Survey Reference",null,null,null,null,null,null,null,null,null,null,null,null,null,null,null,null,null,null,null,null,null,null,null,null,null,null,null,null,null,null,null,null,null,null,null,null,null,null,null,null,null,null,null,null,null,null,null,null,null,null,null,null,null,null,null,null,null,null,null,null,null,null,"-"]
[null,null,"-","NULL","depends on stage",0,0,0,{"$f":"IFERROR(INDEX(F51:H51,$R$9),0)","v":0},{"$f":"IF(OR(AX:AX=\"\",AX:AX=\"-\",AX:AX=\" \"),0,1)","v":0},{"$f":"IF(AND(J51=0,I51=1),1,0)","v":0},null,null,null,null,null,null,null,null,null,null,null,null,null,null,null,null,null,null,null,null,null,null,null,null,7,null,null,null,"Y",49,null,null,null,null,"Development UPRN (if available)",null,{"$f":"IF(AND(I51=0,J51=0),\"Please add if available ->\",IF(K51=1,\"Must complete ->\",\"\"))","v":"Please add if available ->"},null,null,{"$f":"IF(I51=1,\"*\",\"\")","v":""},null,null,null,null,null,null,null,null,null,null,null,null,null,null,null,null,null,null,null,null,null,null,null,null,null,null,null,null,null,null,null,null,null,null,null,null,null,null,null,null,null,null,null,null,null,null,null,null,null,null,null,null,null,null,null,null,"-"]
[null,null,null,null,null,null,null,null,null,null,null,null,null,null,null,null,null,null,null,null,null,null,null,null,null,null,null,null,null,null,null,null,null,null,null,null,null,null,null,"Y",48,null,null,null,"Geo-Location Coordinates",null,null,null,null,null,null,null,null,null,null,null,null,null,null,null,null,null,null,null,null,null,null,null,null,null,null,null,null,null,null,null,null,null,null,null,null,null,null,null,null,null,null,null,null,null,null,null,null,null,null,null,null,null,null,null,null,null,null,null,null,null,null,"-"]
[null,null,"Numerical (with limits)","NULL","constant",null,null,null,0,{"$f":"IF(OR(AX:AX=\"\",AX:AX=\"-\",AX:AX=\" \"),0,1)","v":0},{"$f":"IF(AND(J53=0,I53=1),1,0)","v":0},null,null,null,null,null,null,null,null,null,null,null,null,null,null,null,null,null,null,null,null,null,null,null,null,8,null,null,null,"Y",47,null,null,null,null,"Latitude (to 6 decimal places)",null,{"$f":"IF(AND(I53=0,J53=0),\"Please add if available ->\",\"\")","v":"Please add if available ->"},null,null,null,null,null,null,null,null,null,null,null,null,null,null,null,null,null,null,null,null,null,null,null,null,null,null,null,null,null,null,null,null,null,null,null,null,null,null,null,null,null,null,null,null,null,null,null,null,null,null,null,null,null,null,null,null,null,null,null,"-"]
[null,null,"Numerical (with limits)","NULL","constant",null,null,null,0,{"$f":"IF(OR(AX:AX=\"\",AX:AX=\"-\",AX:AX=\" \"),0,1)","v":0},{"$f":"IF(AND(J54=0,I54=1),1,0)","v":0},null,null,null,null,null,null,null,null,null,null,null,null,null,null,null,null,null,null,null,null,null,null,null,null,9,null,null,null,"Y",46,null,null,null,null,"Longitude (to 6 decimal places, +ve or -ve)",null,{"$f":"IF(AND(I54=0,J54=0),\"Please add if available ->\",\"\")","v":"Please add if available ->"},null,null,null,null,null,null,null,null,null,null,null,null,null,null,null,null,null,null,null,null,null,null,null,null,null,null,null,null,null,null,null,null,null,null,null,null,null,null,null,null,null,null,null,null,null,null,null,null,null,null,null,null,null,null,null,null,null,null,null,"-"]
[null,null,null,null,null,null,null,null,null,null,null,null,null,null,null,null,null,null,null,null,null,null,null,null,null,null,null,null,null,null,null,null,null,null,null,null,null,null,null,"Y",45,null,null,null,null,null,null,null,null,null,null,null,null,null,null,null,null,null,null,null,null,null,null,null,null,null,null,null,null,null,null,null,null,null,null,null,null,null,null,null,null,null,null,null,null,null,null,null,null,null,null,null,null,null,null,null,null,null,null,null,null,null,null,null,null,null,null,"-"]
[null,null,null,null,null,null,null,null,null,null,null,null,null,null,null,null,null,null,null,null,null,null,null,null,null,null,null,null,null,null,null,null,null,null,null,null,null,null,null,{"$f":"IF($R$9=1,\"N\",\"Y\")","v":"Y"},44,null,null," DEVELOPMENT TOTAL AREA BREAKDOWN",null,null,null,null,null,null,null,null,null,null,null,null,null,null,null,null,null,null,null,null,null,null,null,null,null,null,null,null,null,null,null,null,null,null,null,null,null,null,null,null,null,null,null,null,null,null,null,null,null,null,null,null,null,null,null,null,null,null,null,null,null,null,null,"-"]
[null,null,null,null,null,null,null,null,null,null,null,{"$f":"SUM(I58:I61)","v":0},{"$f":"SUM(K58:K61)","v":0},null,null,null,null,null,null,null,null,null,null,null,null,null,null,null,null,null,null,null,null,null,null,null,null,null,null,{"$f":"AN56","v":"Y"},43,null,null,null,"Residential",null,null,null,null,null,null,null,null,null,null,null,null,null,null,null,null,null,null,null,null,null,null,null,null,null,null,null,null,null,null,null,null,null,null,null,null,null,null,null,null,null,null,null,null,null,null,null,null,null,null,null,null,null,null,null,null,null,null,null,null,null,null,"-"]
[null,null,"Numerical (>=0)","NULL","depends on stage",1,0,0,{"$f":"IFERROR(INDEX(F58:H58,$R$9),0)","v":0},{"$f":"IF(OR(AX:AX=\"\",AX:AX=\"-\",AX:AX=\" \"),0,1)","v":0},{"$f":"IF(AND(J58=0,I58=1),1,0)","v":0},null,null,null,null,null,{"$f":"AX:AX","v":0},null,null,null,null,null,null,null,null,null,null,null,null,null,null,null,null,null,null,null,null,null,null,"Y",42,null,null,null,null,"Total Residential Floor Area","GIA m2",{"$f":"IF(K58=1,\"Must complete ->\",\"\")","v":""},null,null,{"$f":"IF(I58=1,\"*\",\"\")","v":""},null,null,null,null,null,null,null,null,null,null,null,null,null,null,null,null,null,null,null,null,null,null,null,null,null,null,null,null,null,null,null,null,null,null,null,null,null,null,null,null,null,null,null,null,null,null,null,null,null,null,null,null,null,null,null,null,"-"]
[null,null,null,null,null,null,null,null,null,null,null,null,null,null,null,null,null,null,null,null,null,null,null,null,null,null,null,null,null,null,null,null,null,null,null,null,null,null,null,"Y",41,null,null,null,null,"Dwelling Counts",null,null,null,null,null,null,null,null,null,null,null,null,null,null,null,null,null,null,null,null,null,null,null,null,null,null,null,null,null,null,null,null,null,null,null,null,null,null,null,null,null,null,null,null,null,null,null,null,null,null,null,null,null,null,null,null,null,null,null,null,null,"-"]
[null,null,"Integer (>=0)","NULL","depends on stage and resi/non-resi",null,null,null,{"$f":"MIN(I58*Q58,1)","v":0},{"$f":"IF(OR(AX:AX=\"\",AX:AX=\"-\",AX:AX=\" \"),0,1)","v":0},{"$f":"IF(AND(J60=0,I60=1),1,0)","v":0},null,null,null,null,null,null,null,null,null,null,null,null,null,null,null,null,null,null,null,null,null,null,null,null,null,null,null,null,"Y",40,null,null,null,null,"Flats","number",{"$f":"IF(K60=1,\"Must complete ->\",\"\")","v":""},null,null,{"$f":"IF(I60=1,\"*\",\"\")","v":""},null,null,null,null,null,null,null,null,null,null,null,null,null,null,null,null,null,null,null,null,null,null,null,null,null,null,null,null,null,null,null,null,null,null,null,null,null,null,null,null,null,null,null,null,null,null,null,null,null,null,null,null,null,null,null,null,"-"]
[null,null,"Integer (>=0)","NULL","depends on stage and resi/non-resi",null,null,null,{"$f":"I60","v":0},{"$f":"IF(OR(AX:AX=\"\",AX:AX=\"-\",AX:AX=\" \"),0,1)","v":0},0,null,null,null,null,null,null,null,null,null,null,null,null,null,null,null,null,null,null,null,null,null,null,null,null,null,null,null,null,"Y",39,null,null,null,null,"House","number","",null,null,{"$f":"IF(I61=1,\"*\",\"\")","v":""},null,null,null,null,null,null,null,null,null,null,null,null,null,null,null,null,null,null,null,null,null,null,null,null,null,null,null,null,null,null,null,null,null,null,null,null,null,null,null,null,null,null,null,null,null,null,null,null,null,null,null,null,null,null,null,null,"-"]
[null,null,null,null,null,null,null,null,null,null,null,{"$f":"I63","v":0},{"$f":"K63","v":0},null,null,null,null,null,null,null,null,null,null,null,null,null,null,null,null,null,null,null,null,null,null,null,null,null,null,"Y",38,null,null,null,"Non-Residential",null,null,null,null,null,null,null,null,null,null,null,null,null,null,null,null,null,null,null,null,null,null,null,null,null,null,null,null,null,null,null,null,null,null,null,null,null,null,null,null,null,null,null,null,null,null,null,null,null,null,null,null,null,null,null,null,null,null,null,null,null,null,"-"]
[null,null,null,null,"depends on stage",1,0,0,{"$f":"IFERROR(INDEX(F63:H63,$R$9),0)","v":0},{"$f":"MAX(J64:J93)","v":0},{"$f":"IF(AND(J63=0,I63=1),1,0)","v":0},null,null,null,null,null,null,"-",null,null,null,null,null,null,null,null,null,null,null,null,null,null,null,null,null,null,null,null,null,"Y",37,null,null,null,null,"Non-Residential Floor Area Breakdown",null,null,null,{"$f":"IF(I63=1,\"Please include complete non-resi details below\",\"\")","v":""},null,null,null,null,null,null,null,null,null,null,null,null,null,null,null,null,null,null,null,null,null,null,null,null,null,null,null,null,null,null,null,null,null,null,null,null,null,null,null,null,null,null,null,null,null,null,null,null,null,null,null,null,null,null,null,null,null,"-"]
[null,null,"Numerical (>=0)","NULL",null,null,null,null,{"$f":"I63","v":0},{"$f":"IF(OR(AX:AX=\"\",AX:AX=\"-\",AX:AX=\" \"),0,1)","v":0},null,null,null,null,null,null,null,{"$f":"IF(AND(J64=1,AX:AX>0),IF(R63=\"-\",\"\",R63&\"; \")&IFERROR(LEFT(AT64,FIND(\" (\",AT64)-1),AT64),R63)","v":"-"},null,null,null,null,null,null,null,null,null,null,null,null,null,null,null,null,null,null,null,null,null,"Y",36,null,null,null,null,"Landlord Circulation (in Residential Blocks)","GIA m2",null,null,null,{"$f":"IF(I64=1,\"*\",\"\")","v":""},null,null,null,null,null,null,null,null,null,null,null,null,null,null,null,null,null,null,null,null,null,null,null,null,null,null,null,null,null,null,null,null,null,null,null,null,null,null,null,null,null,null,null,null,null,null,null,null,null,null,null,null,null,null,null,null,"-"]
[null,null,"Numerical (>=0)","NULL",null,null,null,null,{"$f":"I64","v":0},0,null,null,null,null,null,null,{"$f":"AX:AX","v":0},"-",null,null,null,null,null,null,null,null,null,null,null,null,null,null,null,null,null,null,null,null,null,"Y",35,null,null,null,null,"General office (A2, B1, B8, D1 planning classes)","GIA m2",null,null,null,{"$f":"IF(I65=1,\"*\",\"\")","v":""},null,null,null,null,null,null,null,null,null,null,null,null,null,null,null,null,null,null,null,null,null,null,null,null,null,null,null,null,null,null,null,null,null,null,null,null,null,null,null,null,null,null,null,null,null,null,null,null,null,null,null,null,null,null,null,null,"-"]
[null,null,"Numerical (>=0)","NULL",null,null,null,null,{"$f":"I65","v":0},0,null,null,null,null,null,null,null,"-",null,null,null,null,null,null,null,null,null,null,null,null,null,null,null,null,null,null,null,null,null,"Y",34,null,null,null,null,"High street agency (A2 planning classes)","GIA m2",null,null,null,"",null,null,null,null,null,null,null,null,null,null,null,null,null,null,null,null,null,null,null,null,null,null,null,null,null,null,null,null,null,null,null,null,null,null,null,null,null,null,null,null,null,null,null,null,null,null,null,null,null,null,null,null,null,null,null,null,"-"]
[null,null,"Numerical (>=0)","NULL",null,null,null,null,0,0,null,null,null,null,null,null,null,"-",null,null,null,null,null,null,null,null,null,null,null,null,null,null,null,null,null,null,null,null,null,"Y",33,null,null,null,null,"General retail (A1, SG planning classes)","GIA m2",null,null,null,"",null,null,null,null,null,null,null,null,null,null,null,null,null,null,null,null,null,null,null,null,null,null,null,null,null,null,null,null,null,null,null,null,null,null,null,null,null,null,null,null,null,null,null,null,null,null,null,null,null,null,null,null,null,null,null,null,"-"]
[null,null,"Numerical (>=0)","NULL",null,null,null,null,0,0,null,null,null,null,null,null,null,"-",null,null,null,null,null,null,null,null,null,null,null,null,null,null,null,null,null,null,null,null,null,"Y",32,null,null,null,null,"Large non-food shop (A1 planning classes)","GIA m2",null,null,null,"",null,null,null,null,null,null,null,null,null,null,null,null,null,null,null,null,null,null,null,null,null,null,null,null,null,null,null,null,null,null,null,null,null,null,null,null,null,null,null,null,null,null,null,null,null,null,null,null,null,null,null,null,null,null,null,null,"-"]
[null,null,"Numerical (>=0)","NULL",null,null,null,null,0,0,null,null,null,null,null,null,null,"-",null,null,null,null,null,null,null,null,null,null,null,null,null,null,null,null,null,null,null,null,null,"Y",31,null,null,null,null,"Small food store","GIA m2",null,null,null,"",null,null,null,null,null,null,null,null,null,null,null,null,null,null,null,null,null,null,null,null,null,null,null,null,null,null,null,null,null,null,null,null,null,null,null,null,null,null,null,null,null,null,null,null,null,null,null,null,null,null,null,null,null,null,null,null,"-"]
[null,null,"Numerical (>=0)","NULL",null,null,null,null,0,0,null,null,null,null,null,null,null,"-",null,null,null,null,null,null,null,null,null,null,null,null,null,null,null,null,null,null,null,null,null,"Y",30,null,null,null,null,"Large food store","GIA m2",null,null,null,"",null,null,null,null,null,null,null,null,null,null,null,null,null,null,null,null,null,null,null,null,null,null,null,null,null,null,null,null,null,null,null,null,null,null,null,null,null,null,null,null,null,null,null,null,null,null,null,null,null,null,null,null,null,null,null,null,"-"]
[null,null,"Numerical (>=0)","NULL",null,null,null,null,0,0,null,null,null,null,null,null,null,"-",null,null,null,null,null,null,null,null,null,null,null,null,null,null,null,null,null,null,null,null,null,"Y",29,null,null,null,null,"Restaurant (A3, A5 planning classes)","GIA m2",null,null,null,"",null,null,null,null,null,null,null,null,null,null,null,null,null,null,null,null,null,null,null,null,null,null,null,null,null,null,null,null,null,null,null,null,null,null,null,null,null,null,null,null,null,null,null,null,null,null,null,null,null,null,null,null,null,null,null,null,"-"]
[null,null,"Numerical (>=0)","NULL",null,null,null,null,0,0,null,null,null,null,null,null,null,"-",null,null,null,null,null,null,null,null,null,null,null,null,null,null,null,null,null,null,null,null,null,"Y",28,null,null,null,null,"Bar, pub or licensed club (A4 planning classes)","GIA m2",null,null,null,"",null,null,null,null,null,null,null,null,null,null,null,null,null,null,null,null,null,null,null,null,null,null,null,null,null,null,null,null,null,null,null,null,null,null,null,null,null,null,null,null,null,null,null,null,null,null,null,null,null,null,null,null,null,null,null,null,"-"]
[null,null,"Numerical (>=0)","NULL",null,null,null,null,0,0,null,null,null,null,null,null,null,"-",null,null,null,null,null,null,null,null,null,null,null,null,null,null,null,null,null,null,null,null,null,"Y",{"$f":"IF(AN74=AN73,AO74+1,1)","v":27},null,null,null,null,"Hotel (C1 planning classes)","GIA m2",null,null,null,"",null,null,null,null,null,null,null,null,null,null,null,null,null,null,null,null,null,null,null,null,null,null,null,null,null,null,null,null,null,null,null,null,null,null,null,null,null,null,null,null,null,null,null,null,null,null,null,null,null,null,null,null,null,null,null,null,"-"]
[null,null,"Numerical (>=0)","NULL",null,null,null,null,0,0,null,null,null,null,null,null,null,"-",null,null,null,null,null,null,null,null,null,null,null,null,null,null,null,null,null,null,null,null,null,"Y",26,null,null,null,null,"Cultural Activities","GIA m2",null,null,null,"",null,null,null,null,null,null,null,null,null,null,null,null,null,null,null,null,null,null,null,null,null,null,null,null,null,null,null,null,null,null,null,null,null,null,null,null,null,null,null,null,null,null,null,null,null,null,null,null,null,null,null,null,null,null,null,null,"-"]
[null,null,"Numerical (>=0)","NULL",null,null,null,null,0,0,null,null,null,null,null,null,null,"-",null,null,null,null,null,null,null,null,null,null,null,null,null,null,null,null,null,null,null,null,null,"Y",25,null,null,null,null,"Entertainment halls (D2 planning classes)","GIA m2",null,null,null,"",null,null,null,null,null,null,null,null,null,null,null,null,null,null,null,null,null,null,null,null,null,null,null,null,null,null,null,null,null,null,null,null,null,null,null,null,null,null,null,null,null,null,null,null,null,null,null,null,null,null,null,null,null,null,null,null,"-"]
[null,null,"Numerical (>=0)","NULL",null,null,null,null,0,0,null,null,null,null,null,null,null,"-",null,null,null,null,null,null,null,null,null,null,null,null,null,null,null,null,null,null,null,null,null,"Y",24,null,null,null,null,"Swimming pool centre","GIA m2",null,null,null,"",null,null,null,null,null,null,null,null,null,null,null,null,null,null,null,null,null,null,null,null,null,null,null,null,null,null,null,null,null,null,null,null,null,null,null,null,null,null,null,null,null,null,null,null,null,null,null,null,null,null,null,null,null,null,null,null,"-"]
[null,null,"Numerical (>=0)","NULL",null,null,null,null,0,0,null,null,null,null,null,null,null,"-",null,null,null,null,null,null,null,null,null,null,null,null,null,null,null,null,null,null,null,null,null,"Y",23,null,null,null,null,"Fitness and health centre","GIA m2",null,null,null,"",null,null,null,null,null,null,null,null,null,null,null,null,null,null,null,null,null,null,null,null,null,null,null,null,null,null,null,null,null,null,null,null,null,null,null,null,null,null,null,null,null,null,null,null,null,null,null,null,null,null,null,null,null,null,null,null,"-"]
[null,null,"Numerical (>=0)","NULL",null,null,null,null,0,0,null,null,null,null,null,null,null,"-",null,null,null,null,null,null,null,null,null,null,null,null,null,null,null,null,null,null,null,null,null,"Y",22,null,null,null,null,"Dry sports and leisure facility (D2 planning classes)","GIA m2",null,null,null,"",null,null,null,null,null,null,null,null,null,null,null,null,null,null,null,null,null,null,null,null,null,null,null,null,null,null,null,null,null,null,null,null,null,null,null,null,null,null,null,null,null,null,null,null,null,null,null,null,null,null,null,null,null,null,null,null,"-"]
[null,null,"Numerical (>=0)","NULL",null,null,null,null,0,0,null,null,null,null,null,null,null,"-",null,null,null,null,null,null,null,null,null,null,null,null,null,null,null,null,null,null,null,null,null,"Y",21,null,null,null,null,"Covered car park","GIA m2",null,null,null,"",null,null,null,null,null,null,null,null,null,null,null,null,null,null,null,null,null,null,null,null,null,null,null,null,null,null,null,null,null,null,null,null,null,null,null,null,null,null,null,null,null,null,null,null,null,null,null,null,null,null,null,null,null,null,null,null,"-"]
[null,null,"Numerical (>=0)","NULL",null,null,null,null,0,0,null,null,null,null,null,null,null,"-",null,null,null,null,null,null,null,null,null,null,null,null,null,null,null,null,null,null,null,null,null,"Y",20,null,null,null,null,"Public buildings with light usage (D1, SG planning classes)","GIA m2",null,null,null,"",null,null,null,null,null,null,null,null,null,null,null,null,null,null,null,null,null,null,null,null,null,null,null,null,null,null,null,null,null,null,null,null,null,null,null,null,null,null,null,null,null,null,null,null,null,null,null,null,null,null,null,null,null,null,null,null,"-"]
[null,null,"Numerical (>=0)","NULL",null,null,null,null,0,0,null,null,null,null,null,null,null,"-",null,null,null,null,null,null,null,null,null,null,null,null,null,null,null,null,null,null,null,null,null,"Y",19,null,null,null,null,"Schools and seasonal public buildings (D1, D2 planning classes)","GIA m2",null,null,null,"",null,null,null,null,null,null,null,null,null,null,null,null,null,null,null,null,null,null,null,null,null,null,null,null,null,null,null,null,null,null,null,null,null,null,null,null,null,null,null,null,null,null,null,null,null,null,null,null,null,null,null,null,null,null,null,null,"-"]
[null,null,"Numerical (>=0)","NULL",null,null,null,null,0,0,null,null,null,null,null,null,null,"-",null,null,null,null,null,null,null,null,null,null,null,null,null,null,null,null,null,null,null,null,null,"Y",18,null,null,null,null,"University campus","GIA m2",null,null,null,"",null,null,null,null,null,null,null,null,null,null,null,null,null,null,null,null,null,null,null,null,null,null,null,null,null,null,null,null,null,null,null,null,null,null,null,null,null,null,null,null,null,null,null,null,null,null,null,null,null,null,null,null,null,null,null,null,"-"]
[null,null,"Numerical (>=0)","NULL",null,null,null,null,0,0,null,null,null,null,null,null,null,"-",null,null,null,null,null,null,null,null,null,null,null,null,null,null,null,null,null,null,null,null,null,"Y",17,null,null,null,null,"Clinic (D1 planning classes)","GIA m2",null,null,null,"",null,null,null,null,null,null,null,null,null,null,null,null,null,null,null,null,null,null,null,null,null,null,null,null,null,null,null,null,null,null,null,null,null,null,null,null,null,null,null,null,null,null,null,null,null,null,null,null,null,null,null,null,null,null,null,null,"-"]
[null,null,"Numerical (>=0)","NULL",null,null,null,null,0,0,null,null,null,null,null,null,null,"-",null,null,null,null,null,null,null,null,null,null,null,null,null,null,null,null,null,null,null,null,null,"Y",16,null,null,null,null,"Hospital (clinical and research)","GIA m2",null,null,null,"",null,null,null,null,null,null,null,null,null,null,null,null,null,null,null,null,null,null,null,null,null,null,null,null,null,null,null,null,null,null,null,null,null,null,null,null,null,null,null,null,null,null,null,null,null,null,null,null,null,null,null,null,null,null,null,null,"-"]
[null,null,"Numerical (>=0)","NULL",null,null,null,null,0,0,null,null,null,null,null,null,null,"-",null,null,null,null,null,null,null,null,null,null,null,null,null,null,null,null,null,null,null,null,null,"Y",15,null,null,null,null,"Long term residential (C1, C2, C2A planning classes)","GIA m2",null,null,null,"",null,null,null,null,null,null,null,null,null,null,null,null,null,null,null,null,null,null,null,null,null,null,null,null,null,null,null,null,null,null,null,null,null,null,null,null,null,null,null,null,null,null,null,null,null,null,null,null,null,null,null,null,null,null,null,null,"-"]
[null,null,"Numerical (>=0)","NULL",null,null,null,null,0,0,null,null,null,null,null,null,null,"-",null,null,null,null,null,null,null,null,null,null,null,null,null,null,null,null,null,null,null,null,null,"Y",14,null,null,null,null,"General accommodation (C1, C2, C3 planning classes)","GIA m2",null,null,null,"",null,null,null,null,null,null,null,null,null,null,null,null,null,null,null,null,null,null,null,null,null,null,null,null,null,null,null,null,null,null,null,null,null,null,null,null,null,null,null,null,null,null,null,null,null,null,null,null,null,null,null,null,null,null,null,null,"-"]
[null,null,"Numerical (>=0)","NULL",null,null,null,null,0,0,null,null,null,null,null,null,null,"-",null,null,null,null,null,null,null,null,null,null,null,null,null,null,null,null,null,null,null,null,null,"Y",13,null,null,null,null,"Emergency services (SG planning classes)","GIA m2",null,null,null,"",null,null,null,null,null,null,null,null,null,null,null,null,null,null,null,null,null,null,null,null,null,null,null,null,null,null,null,null,null,null,null,null,null,null,null,null,null,null,null,null,null,null,null,null,null,null,null,null,null,null,null,null,null,null,null,null,"-"]
[null,null,"Numerical (>=0)","NULL",null,null,null,null,0,0,null,null,null,null,null,null,null,"-",null,null,null,null,null,null,null,null,null,null,null,null,null,null,null,null,null,null,null,null,null,"Y",12,null,null,null,null,"Laboratory or operating theatre","GIA m2",null,null,null,"",null,null,null,null,null,null,null,null,null,null,null,null,null,null,null,null,null,null,null,null,null,null,null,null,null,null,null,null,null,null,null,null,null,null,null,null,null,null,null,null,null,null,null,null,null,null,null,null,null,null,null,null,null,null,null,null,"-"]
[null,null,"Numerical (>=0)","NULL",null,null,null,null,0,0,null,null,null,null,null,null,null,"-",null,null,null,null,null,null,null,null,null,null,null,null,null,null,null,null,null,null,null,null,null,"Y",11,null,null,null,null,"Public waiting or circulation (SG planning classes)","GIA m2",null,null,null,"",null,null,null,null,null,null,null,null,null,null,null,null,null,null,null,null,null,null,null,null,null,null,null,null,null,null,null,null,null,null,null,null,null,null,null,null,null,null,null,null,null,null,null,null,null,null,null,null,null,null,null,null,null,null,null,null,"-"]
[null,null,"Numerical (>=0)","NULL",null,null,null,null,0,0,null,null,null,null,null,null,null,"-",null,null,null,null,null,null,null,null,null,null,null,null,null,null,null,null,null,null,null,null,null,"Y",10,null,null,null,null,"Terminal (B8 planning classes)","GIA m2",null,null,null,"",null,null,null,null,null,null,null,null,null,null,null,null,null,null,null,null,null,null,null,null,null,null,null,null,null,null,null,null,null,null,null,null,null,null,null,null,null,null,null,null,null,null,null,null,null,null,null,null,null,null,null,null,null,null,null,null,"-"]
[null,null,"Numerical (>=0)","NULL",null,null,null,null,0,0,null,null,null,null,null,null,null,"-",null,null,null,null,null,null,null,null,null,null,null,null,null,null,null,null,null,null,null,null,null,"Y",9,null,null,null,null,"Workshop (B1, B2 planning classes)","GIA m2",null,null,null,"",null,null,null,null,null,null,null,null,null,null,null,null,null,null,null,null,null,null,null,null,null,null,null,null,null,null,null,null,null,null,null,null,null,null,null,null,null,null,null,null,null,null,null,null,null,null,null,null,null,null,null,null,null,null,null,null,"-"]
[null,null,"Numerical (>=0)","NULL",null,null,null,null,0,0,null,null,null,null,null,null,null,"-",null,null,null,null,null,null,null,null,null,null,null,null,null,null,null,null,null,null,null,null,null,"Y",8,null,null,null,null,"Storage Facility (B8 planning classes)","GIA m2",null,null,null,"",null,null,null,null,null,null,null,null,null,null,null,null,null,null,null,null,null,null,null,null,null,null,null,null,null,null,null,null,null,null,null,null,null,null,null,null,null,null,null,null,null,null,null,null,null,null,null,null,null,null,null,null,null,null,null,null,"-"]
[null,null,"Numerical (>=0)","NULL",null,null,null,null,0,0,null,null,null,null,null,null,null,"-",null,null,null,null,null,null,null,null,null,null,null,null,null,null,null,null,null,null,null,null,null,"Y",7,null,null,null,null,"Cold Storage (B8 planning classes)","GIA m2",null,null,null,"",null,null,null,null,null,null,null,null,null,null,null,null,null,null,null,null,null,null,null,null,null,null,null,null,null,null,null,null,null,null,null,null,null,null,null,null,null,null,null,null,null,null,null,null,null,null,null,null,null,null,null,null,null,null,null,null,"-"]
[null,null,null,null,null,null,null,null,null,null,null,null,null,null,null,null,null,null,null,null,null,null,null,null,null,null,null,null,null,null,null,null,null,null,null,null,null,null,null,"Y",6,null,null,null,"Overall Development Summary",null,null,null,null,null,null,null,null,null,null,null,null,null,null,null,null,null,null,null,null,null,null,null,null,null,null,null,null,null,null,null,null,null,null,null,null,null,null,null,null,null,null,null,null,null,null,null,null,null,null,null,null,null,null,null,null,null,null,null,null,null,null,"-"]
[null,null,null,null,null,null,null,null,null,null,null,null,null,null,null,null,null,null,null,null,null,null,null,null,null,null,null,null,null,null,null,null,null,null,null,null,null,null,null,"Y",{"$f":"IF(AN96=AN95,AO96+1,1)","v":5},null,null,null,null,"Total Development Floor Area",null,null,null,null,null,null,null,null,null,null,null,null,null,null,null,null,null,null,null,null,null,null,null,null,null,null,null,null,null,null,null,null,null,null,null,null,null,null,null,null,null,null,null,null,null,null,null,null,null,null,null,null,null,null,null,null,null,null,null,null,null,"-"]
[null,null,null,null,null,null,null,null,null,null,null,null,null,null,null,null,null,null,null,null,null,null,null,null,null,null,null,null,null,null,null,null,null,null,null,null,null,null,null,"Y",4,null,null,null,null,"Residential","GIA m2",null,null,{"$f":"Q58","v":0},null,null,null,null,null,null,null,null,null,null,null,null,null,null,null,null,null,null,null,null,null,null,null,null,null,null,null,null,null,null,null,null,null,null,null,null,null,null,null,null,null,null,null,null,null,null,null,null,null,null,null,null,null,null,null,null,null,"-"]
[null,null,null,null,null,null,null,null,null,null,null,null,null,null,null,null,null,null,null,null,null,null,null,null,null,null,null,null,null,null,null,null,null,null,null,null,null,null,null,"Y",3,null,null,null,null,"Non-Residential","GIA m2",null,null,{"$f":"SUM(AX63:AX94)","v":0},null,null,null,null,null,null,null,null,null,null,null,null,null,null,null,null,null,null,null,null,null,null,null,null,null,null,null,null,null,null,null,null,null,null,null,null,null,null,null,null,null,null,null,null,null,null,null,null,null,null,null,null,null,null,null,null,null,"-"]
[null,null,null,null,null,null,null,null,null,null,null,null,null,null,null,null,null,null,null,null,null,null,null,null,null,null,null,null,null,null,null,null,null,null,null,null,null,null,null,"Y",2,null,null,null,null,"Total","GIA m2",null,null,{"$f":"AX96+AX97","v":0},null,null,null,null,null,null,null,null,null,null,null,null,null,null,null,null,null,null,null,null,null,null,null,null,null,null,null,null,null,null,null,null,null,null,null,null,null,null,null,null,null,null,null,null,null,null,null,null,null,null,null,null,null,null,null,null,null,"-"]
[null,null,null,null,null,null,null,null,null,null,null,null,null,null,null,null,null,"LARGE TEXT",null,null,null,null,null,null,null,null,null,null,null,null,null,null,null,null,null,null,null,null,null,"Y",1,null,null,null,null,"Total Non-Residential Uses",null,null,null,{"$f":"IF(R93=\"-\",\"There is no non-domestic floor area.\",R93)","v":"There is no non-domestic floor area."},null,null,null,null,null,null,null,null,null,null,null,null,null,null,null,null,null,null,null,null,null,null,null,null,null,null,null,null,null,null,null,null,null,null,null,null,null,null,null,null,null,null,null,null,null,null,null,null,null,null,null,null,null,null,null,null,null,"-"]
[null,null,null,null,null,null,null,null,null,null,null,null,null,null,null,null,null,null,null,null,null,null,null,null,null,null,null,null,null,null,null,null,null,null,null,null,null,null,null,null,1,null,null,null,null,null,null,null,null,null,null,null,null,null,null,null,null,null,null,null,null,null,null,null,null,null,null,null,null,null,null,null,null,null,null,null,null,null,null,null,null,null,null,null,null,null,null,null,null,null,null,null,null,null,null,null,null,null,null,null,null,null,null,null,null,null,null,"-"]
[null,null,null,null,null,null,null,null,null,null,null,null,null,{"$f":"(L103+L113)","v":0},{"$f":"(M103+M113)/N101","v":{"$error":"#DIV/0!"}},{"$f":"ROUND(18*O101,0)","v":{"$error":"#DIV/0!"}},null,null,null,null,null,null,null,null,null,null,null,null,null,null,null,null,null,null,null,null,{"$f":"IF($R$9=1,1,0)","v":0},102,115,{"$f":"IF($R$9=1,\"N\",\"Y\")","v":"Y"},15,{"$f":"IF(AK101=1,\"+\",\"\")","v":""}," SUPPLEMENTARY FILES AND UPCOMING REPORTING STAGES",null,null,null,null,null,null,null,null,null,null,null,null,null,null,null,null,null,null,null,null,null,null,null,null,null,null,null,null,null,null,null,null,null,null,null,null,null,null,null,null,null,null,null,null,null,null,null,null,null,null,null,null,null,null,null,null,null,null,null,null,null,null,null,null,"-"]
[null,null,null,null,null,null,null,null,null,null,null,null,null,null,null,null,null,null,null,null,null,null,null,null,null,null,null,null,null,null,null,null,null,null,null,null,null,null,null,{"$f":"AN101","v":"Y"},14,null,null,null,null,null,null,null,null,null,null,null,null,null,null,null,null,null,null,null,null,null,null,null,null,null,null,null,null,null,null,null,null,null,null,null,null,null,null,null,null,null,null,null,null,null,null,null,null,null,null,null,null,null,null,null,null,null,null,null,null,null,null,null,null,null,null,"-"]
[null,null,null,null,null,null,null,null,null,null,null,{"$f":"SUM(I105:I111)","v":0},{"$f":"SUM(K105:K111)","v":0},null,null,null,null,null,null,null,null,null,null,null,null,null,null,null,null,null,null,null,null,null,null,null,null,null,null,"Y",13,null,null," SUPPLEMENTARY FILES",null,null,null,null,null,null,null,null,null,null,null,null,null,null,null,null,null,null,null,null,null,null,null,null,null,null,null,null,null,null,null,null,null,null,null,null,null,null,null,null,null,null,null,null,null,null,null,null,null,null,null,null,null,null,null,null,null,null,null,null,null,null,null,"-"]
[null,null,null,null,null,null,null,null,null,null,null,null,null,null,null,null,null,null,null,null,null,null,null,null,null,null,null,null,null,null,null,null,null,null,null,null,null,null,null,"Y",12,null,null,null,"Site Plan",null,null,null,null,null,null,null,null,null,null,null,null,null,null,null,null,null,null,null,null,null,null,null,null,null,null,null,null,null,null,null,null,null,null,null,null,null,null,null,null,null,null,null,null,null,null,null,null,null,null,null,null,null,null,null,null,null,null,null,null,null,null,"-"]
[null,null,"List","Select from list","depends on stage",1,0,0,{"$f":"IFERROR(INDEX(F105:H105,$R$9),0)","v":0},{"$f":"IF(OR(AX:AX=\"\",AX:AX=\"-\",AX:AX=\" \",AX:AX=\"Select from list\"),0,1)","v":0},{"$f":"IF(AND(J105=0,I105=1),1,0)","v":0},null,null,null,null,null,{"$f":"IF(AX:AX=\"Yes\",1,0)","v":0},null,null,null,null,null,null,null,null,null,null,null,null,null,null,null,null,null,null,null,null,106,111,{"$f":"AN104","v":"Y"},11,null,null,null,null,"Does the development have a site plan?",null,{"$f":"IF(K105=1,\"Please select here ->\",\"\")","v":""},null,"Select from List",{"$f":"IF(I105=1,\"*\",\"\")","v":""},null,null,null,null,null,null,null,null,null,null,null,null,null,null,null,null,null,null,null,null,null,null,null,null,null,null,null,null,null,null,null,null,null,null,null,null,null,null,null,null,null,null,null,null,null,null,null,null,null,null,null,null,null,null,null,null,"-"]
[null,null,"-","NULL","depends on stage & previous",1,0,0,{"$f":"IF(Q105=1,IFERROR(INDEX(F106:H106,$R$9),0),0)","v":0},{"$f":"IF(OR(AX:AX=\"\",AX:AX=\"-\",AX:AX=\" \"),0,1)","v":0},0,null,null,null,null,null,null,null,null,null,null,null,null,null,null,null,null,null,null,null,null,null,null,null,null,null,null,null,null,{"$f":"IF(Q105=1,AN105,\"Y\")","v":"Y"},10,null,null,null,null,"What is the site plan filename?",null,{"$f":"IF(K106=1,\"Must complete ->\",\"\")","v":""},null,null,{"$f":"IF(I106=1,\"*\",\"\")","v":""},null,null,null,null,null,null,null,null,null,null,null,null,null,null,null,null,null,null,null,null,null,null,null,null,null,null,null,null,null,null,null,null,null,null,null,null,null,null,null,null,null,null,null,null,null,null,null,null,null,null,null,null,null,null,null,null,"-"]
[null,null,null,null,null,null,null,null,null,null,null,null,null,null,null,null,null,null,null,null,null,null,null,null,null,null,null,null,null,null,null,null,null,null,null,null,null,null,null,{"$f":"AN104","v":"Y"},9,null,null,null,"Best Practice Documents",null,null,null,null,null,null,null,null,null,null,null,null,null,null,null,null,null,null,null,null,null,null,null,null,null,null,null,null,null,null,null,null,null,null,null,null,null,null,null,null,null,null,null,null,null,null,null,null,null,null,null,null,null,null,null,null,null,null,null,null,null,null,"-"]
[null,null,"List","Select from list","depends on stage",1,0,0,{"$f":"IFERROR(INDEX(F108:H108,$R$9),0)","v":0},{"$f":"IF(OR(AX:AX=\"\",AX:AX=\"-\",AX:AX=\" \",AX:AX=\"Select from list\"),0,1)","v":0},{"$f":"IF(AND(J108=0,I108=1),1,0)","v":0},null,null,null,null,null,{"$f":"IF(AX:AX=\"Yes\",1,0)","v":0},null,null,null,null,null,null,null,null,null,null,null,null,null,null,null,null,null,null,null,null,109,111,"Y",8,null,null,null,null,"Does the development have a predicted DEC?",null,{"$f":"IF(K108=1,\"Please select here ->\",\"\")","v":""},null,"Select from List",{"$f":"IF(I108=1,\"*\",\"\")","v":""},null,null,null,null,null,null,null,null,null,null,null,null,null,null,null,null,null,null,null,null,null,null,null,null,null,null,null,null,null,null,null,null,null,null,null,null,null,null,null,null,null,null,null,null,null,null,null,null,null,null,null,null,null,null,null,null,"-"]
[null,null,"-","NULL","depends on stage & previous",1,0,0,{"$f":"IF(Q108=1,IFERROR(INDEX(F109:H109,$R$9),0),0)","v":0},{"$f":"IF(OR(AX:AX=\"\",AX:AX=\"-\",AX:AX=\" \"),0,1)","v":0},0,null,null,null,null,null,null,null,null,null,null,null,null,null,null,null,null,null,null,null,null,null,null,null,null,null,null,null,null,{"$f":"IF(Q108=1,AN108,\"Y\")","v":"Y"},7,null,null,null,null,"What is the predicted DEC filename?",null,{"$f":"IF(K109=1,\"Must complete ->\",\"\")","v":""},null,null,{"$f":"IF(I109=1,\"*\",\"\")","v":""},null,null,null,null,null,null,null,null,null,null,null,null,null,null,null,null,null,null,null,null,null,null,null,null,null,null,null,null,null,null,null,null,null,null,null,null,null,null,null,null,null,null,null,null,null,null,null,null,null,null,null,null,null,null,null,null,"-"]
[null,null,"List","Select from list","depends on stage and office use",1,0,0,{"$f":"IF(Q65=0,0,IFERROR(INDEX(F110:H110,$R$9),0))","v":0},{"$f":"IF(OR(AX:AX=\"\",AX:AX=\"-\",AX:AX=\" \",AX:AX=\"Select from list\"),0,1)","v":0},{"$f":"IF(AND(J110=0,I110=1),1,0)","v":0},null,null,null,null,null,{"$f":"IF(AX:AX=\"Yes\",1,0)","v":0},null,null,null,null,null,null,null,null,null,null,null,null,null,null,null,null,null,null,null,null,111,111,{"$f":"IF(Q65>0,AN104,\"Y\")","v":"Y"},6,null,null,null,null,"Is there a base building energy rating (in line with DFP)?",null,{"$f":"IF(K110=1,\"Please select here ->\",\"\")","v":""},null,"Select from list",{"$f":"IF(I110=1,\"*\",\"\")","v":""},null,null,null,null,null,null,null,null,null,null,null,null,null,null,null,null,null,null,null,null,null,null,null,null,null,null,null,null,null,null,null,null,null,null,null,null,null,null,null,null,null,null,null,null,null,null,null,null,null,null,null,null,null,null,null,null,"-"]
[null,null,"-","NULL","depends on stage & previous",1,0,0,{"$f":"IF(Q110=1,IFERROR(INDEX(F111:H111,$R$9),0),0)","v":0},{"$f":"IF(OR(AX:AX=\"\",AX:AX=\"-\",AX:AX=\" \"),0,1)","v":0},0,null,null,null,null,null,null,null,null,null,null,null,null,null,null,null,null,null,null,null,null,null,null,null,null,null,null,null,null,{"$f":"IF(Q110=1,AN110,\"Y\")","v":"Y"},5,null,null,null,null,"What is the DFP filename?",null,{"$f":"IF(K111=1,\"Must complete ->\",\"\")","v":""},null,null,{"$f":"IF(I111=1,\"*\",\"\")","v":""},null,null,null,null,null,null,null,null,null,null,null,null,null,null,null,null,null,null,null,null,null,null,null,null,null,null,null,null,null,null,null,null,null,null,null,null,null,null,null,null,null,null,null,null,null,null,null,null,null,null,null,null,null,null,null,null,"-"]
[null,null,null,null,null,null,null,null,null,null,null,null,null,null,null,null,null,null,null,null,null,null,null,null,null,null,null,null,null,null,null,null,null,null,null,null,null,null,null,{"$f":"AN104","v":"Y"},4,null,null,null,null,null,null,null,null,null,null,null,null,null,null,null,null,null,null,null,null,null,null,null,null,null,null,null,null,null,null,null,null,null,null,null,null,null,null,null,null,null,null,null,null,null,null,null,null,null,null,null,null,null,null,null,null,null,null,null,null,null,null,null,null,null,null,"-"]
[null,null,null,null,null,null,null,null,null,null,null,{"$f":"SUM(I114:I115)","v":0},{"$f":"SUM(K114:K115)","v":0},null,null,null,null,null,null,null,null,null,null,null,null,null,null,null,null,null,null,null,null,null,null,null,null,null,null,{"$f":"AN112","v":"Y"},3,null,null," ANTICIPATED DATES FOR UPCOMING REPORTING STAGES",null,null,null,null,null,null,null,null,null,null,null,null,null,null,null,null,null,null,null,null,null,null,null,null,null,null,null,null,null,null,null,null,null,null,null,null,null,null,null,null,null,null,null,null,null,null,null,null,null,null,null,null,null,null,null,null,null,null,null,null,null,null,null,"-"]
[null,null,"-","NULL","depends on stage",1,0,0,{"$f":"IFERROR(INDEX(F114:H114,$R$9),0)","v":0},{"$f":"IF(OR(AX:AX=\"\",AX:AX=\"-\",AX:AX=\" \"),0,1)","v":0},0,null,null,null,null,null,null,null,null,null,null,null,null,null,null,null,null,null,null,null,null,null,null,null,null,null,null,null,null,"Y",2,null,null,null,"As-Built Stage",null,null,{"$f":"IF(K114=1,\"Must complete ->\",\"\")","v":""},null,null,{"$f":"IF(I114=1,\"*\",\"\")","v":""},null,null,null,null,null,null,null,null,null,null,null,null,null,null,null,null,null,null,null,null,null,null,null,null,null,null,null,null,null,null,null,null,null,null,null,null,null,null,null,null,null,null,null,null,null,null,null,null,null,null,null,null,null,null,null,null,"-"]
[null,null,"-","NULL","depends on stage",1,0,0,{"$f":"IFERROR(INDEX(F115:H115,$R$9),0)","v":0},{"$f":"IF(OR(AX:AX=\"\",AX:AX=\"-\",AX:AX=\" \"),0,1)","v":0},0,null,null,null,null,null,null,null,null,null,null,null,null,null,null,null,null,null,null,null,null,null,null,null,null,null,null,null,null,"Y",1,null,null,null,"Operational Year 1 End",null,null,{"$f":"IF(K115=1,\"Must complete ->\",\"\")","v":""},null,null,{"$f":"IF(I115=1,\"*\",\"\")","v":""},null,null,null,null,null,null,null,null,null,null,null,null,null,null,null,null,null,null,null,null,null,null,null,null,null,null,null,null,null,null,null,null,null,null,null,null,null,null,null,null,null,null,null,null,null,null,null,null,null,null,null,null,null,null,null,null,"-"]
[null,null,null,null,null,null,null,null,null,null,null,null,null,null,null,null,null,null,null,null,null,null,null,null,null,null,null,null,null,null,null,null,null,null,null,null,null,null,null,"Y",1,null,null,null,null,null,null,null,null,null,null,null,null,null,null,null,null,null,null,null,null,null,null,null,null,null,null,null,null,null,null,null,null,null,null,null,null,null,null,null,null,null,null,null,null,null,null,null,null,null,null,null,null,null,null,null,null,null,null,null,null,null,null,null,null,null,null,"-"]
[null,null,null,null,null,null,null,null,null,null,null,null,null,{"$f":"L121+L158","v":0},{"$f":"(M121+M158)/N117","v":{"$error":"#DIV/0!"}},{"$f":"ROUND(18*O117,0)","v":{"$error":"#DIV/0!"}},null,null,null,null,null,null,null,null,null,null,null,null,null,null,null,null,null,null,null,null,null,null,null,"Y",{"$f":"IF(AN118=AN117,AO118+1,1)","v":2}," DEVELOPMENT PERFORMANCE AND EMISSIONS",null,null,null,null,null,{"$f":"IF($R$9=0,\"\",IF(N117=0,\"not req'd at this stage\",\"Progress: \"&ROUND(100*(1-O117),0)&\"%\"))","v":""},null,{"$f":"IF(OR(N117=0,$R$9=0),\"\",REPT(\"g\",18-P117)&REPT(\"c\",P117))","v":""},null,null,null,null,null,null,null,null,null,null,null,null,null,null,null,null,null,null,null,null,null,null,null,null,null,null,null,null,null,null,null,null,null,null,null,null,null,null,null,null,null,null,null,null,null,null,null,null,null,null,null,null,null,null,null,null,null,"-"]
[null,null,null,null,null,null,null,null,null,null,null,null,null,null,null,null,null,null,null,null,null,null,null,null,null,null,null,null,null,null,null,null,null,null,null,null,null,null,null,"Y",1,null,null,null,null,null,null,null,null,null,null,null,null,null,null,null,null,null,null,null,null,null,null,null,null,null,null,null,null,null,null,null,null,null,null,null,null,null,null,null,null,null,null,null,null,null,null,null,null,null,null,null,null,null,null,null,null,null,null,null,null,null,null,null,null,null,null,"-"]
[null,null,null,null,null,null,null,null,null,null,null,null,null,null,null,null,null,null,null,null,null,null,null,null,null,null,null,null,null,null,null,null,null,null,null,null,{"$f":"IF($R$9=1,1,0)","v":0},120,159,"Y",{"$f":"IF(AN120=AN119,AO120+1,1)","v":42},{"$f":"IF(AK119=1,\"+\",\"\")","v":""}," DEVELOPMENT PERFORMANCE",null,null,null,null,null,null,null,null,null,null,null,null,null,null,null,null,null,null,null,null,null,null,null,null,null,null,null,null,null,null,null,null,null,null,null,null,null,null,null,null,null,null,null,null,null,null,null,null,null,null,null,null,null,null,null,null,null,null,null,null,null,null,null,null,"-"]
[null,null,null,null,null,null,null,null,null,null,null,null,null,null,null,null,null,null,null,null,null,null,null,null,null,null,null,null,null,null,null,null,null,null,null,null,null,null,null,"Y",41,null,null,null,null,null,null,null,null,null,null,null,null,null,null,null,null,null,null,null,null,null,null,null,null,null,null,null,null,null,null,null,null,null,null,null,null,null,null,null,null,null,null,null,null,null,null,null,null,null,null,null,null,null,null,null,null,null,null,null,null,null,null,null,null,null,null,"-"]
[null,null,null,null,null,null,null,null,null,null,null,{"$f":"SUM(I123:I156)","v":0},{"$f":"SUM(K123:K156)","v":0},null,null,null,null,null,null,null,null,null,null,null,null,null,null,null,null,null,null,null,null,null,null,null,null,null,null,{"$f":"AN120","v":"Y"},40,null,null," DEVELOPMENT OVERALL PREDICTED PERFORMANCE",null,null,null,null,null,null,null,null,null,null,null,null,null,null,null,null,null,null,null,null,null,null,null,null,null,null,null,null,null,null,null,null,null,null,null,null,null,null,null,null,null,null,null,null,null,null,null,null,null,null,null,null,null,null,null,null,null,null,null,null,null,null,null,"-"]
[null,null,null,null,null,null,null,null,null,null,null,null,null,null,null,null,null,null,null,null,null,null,null,null,null,null,null,null,null,null,null,null,null,null,null,null,null,null,null,{"$f":"AN121","v":"Y"},39,null,null,null,"Predicted Performance Calculation Details",null,null,null,null,null,null,null,null,null,null,null,null,null,null,null,null,null,null,null,null,null,null,null,null,null,null,null,null,null,null,null,null,null,null,null,null,null,null,null,null,null,null,null,null,null,null,null,null,null,null,null,null,null,null,null,null,null,null,null,null,null,null,"-"]
[null,null,"List_No_VBA","Select from list","depends on stage",1,0,0,{"$f":"IFERROR(INDEX(F123:H123,$R$9),0)","v":0},{"$f":"IF(OR(AX:AX=\"\",AX:AX=\"-\",AX:AX=\" \",AX:AX=\"Select from list\"),0,1)","v":0},{"$f":"IF(AND(J123=0,I123=1),1,0)","v":0},null,null,null,null,null,null,null,null,null,null,null,null,null,null,null,null,null,null,null,null,null,null,null,null,null,null,null,null,{"$f":"AN122","v":"Y"},38,null,null,null,null,"Fuel Carbon Intensity Source (aligned with planning energy statement)",null,{"$f":"IF(K123=1,\"Must complete ->\",\"\")","v":""},null,"Select from list",{"$f":"IF(I123=1,\"*\",\"\")","v":""},null,null,null,null,null,null,null,null,null,null,null,null,null,null,null,null,null,null,null,null,null,null,null,null,null,null,null,null,null,null,null,null,null,null,null,null,null,null,null,null,null,null,null,null,null,null,null,null,null,null,null,null,null,null,null,null,"-"]
[null,null,null,null,null,null,null,null,null,null,null,null,null,null,null,null,null,null,null,null,null,null,null,null,null,null,null,null,null,null,null,null,null,null,null,null,null,null,null,"Y",37,null,null,null,"Residential Elements of the development",null,null,null,null,null,null,null,null,null,null,null,null,null,null,null,null,null,null,null,null,null,null,null,null,null,null,null,null,null,null,null,null,null,null,null,null,null,null,null,null,null,null,null,null,null,null,null,null,null,null,null,null,null,null,null,null,null,null,null,null,null,null,"-"]
[null,null,null,null,null,null,null,null,null,null,null,null,null,null,null,null,null,null,null,null,null,null,null,null,null,null,null,null,null,null,null,null,null,null,null,null,null,null,null,"Y",36,null,null,null,null,"Predicted Annual Energy Use",null,null,null,{"$f":"IF(I126=1,\"Fill in all applicable fuels below\",\"\")","v":""},null,null,null,null,null,null,null,null,null,null,null,null,null,null,null,null,null,null,null,null,null,null,null,null,null,null,null,null,null,null,null,null,null,null,null,null,null,null,null,null,null,null,null,null,null,null,null,null,null,null,null,null,null,null,null,null,null,"-"]
[null,null,"Numerical (>=0)","NULL","depends on stage",1,0,0,{"$f":"IFERROR(INDEX(F126:H126,$R$9),0)","v":0},{"$f":"IF(OR(AX:AX=\"\",AX:AX=\"-\",AX:AX=\" \"),0,1)","v":0},{"$f":"IF(AND(J126=0,I126=1),1,0)","v":0},null,null,null,null,null,null,null,null,null,null,null,null,null,null,null,null,null,null,null,null,null,null,null,null,null,null,null,null,"Y",35,null,null,null,null,"Annual Electricity Use","kWh/yr",{"$f":"IF(K126=1,\"Must complete ->\",\"\")","v":""},null,null,{"$f":"IF(I126=1,\"*\",\"\")","v":""},null,null,null,null,null,null,null,null,null,null,null,null,null,null,null,null,null,null,null,null,null,null,null,null,null,null,null,null,null,null,null,null,null,null,null,null,null,null,null,null,null,null,null,null,null,null,null,null,null,null,null,null,null,null,null,null,"-"]
[null,null,"Numerical (>=0)","NULL","depends on stage",null,null,null,{"$f":"I126","v":0},0,{"$f":"IF(AND(J127=0,I127=1),1,0)","v":0},null,null,null,null,null,null,null,null,null,null,null,null,null,null,null,null,null,null,null,null,null,null,null,null,null,null,null,null,"Y",34,null,null,null,null,"Annual Gas Use","kWh/yr",{"$f":"IF(K127=1,\"Must complete ->\",\"\")","v":""},null,null,{"$f":"IF(I127=1,\"*\",\"\")","v":""},null,null,null,null,null,null,null,null,null,null,null,null,null,null,null,null,null,null,null,null,null,null,null,null,null,null,null,null,null,null,null,null,null,null,null,null,null,null,null,null,null,null,null,null,null,null,null,null,null,null,null,null,null,null,null,null,"-"]
[null,null,"Numerical (>=0)","NULL",null,null,null,null,null,0,null,null,null,null,null,null,null,null,null,null,null,null,null,null,null,null,null,null,null,null,null,null,null,null,null,null,null,null,null,"Y",33,null,null,null,null,"Annual Oil Use (if applicable)","kWh/yr",null,null,null,{"$f":"AY127","v":""},null,null,null,null,null,null,null,null,null,null,null,null,null,null,null,null,null,null,null,null,null,null,null,null,null,null,null,null,null,null,null,null,null,null,null,null,null,null,null,null,null,null,null,null,null,null,null,null,null,null,null,null,null,null,null,null,"-"]
[null,null,"Numerical (>=0)","NULL",null,null,null,null,null,0,null,null,null,null,null,null,null,null,null,null,null,null,null,null,null,null,null,null,null,null,null,null,null,null,null,null,null,null,null,"Y",32,null,null,null,null,"Annual Biomass Use (if applicable)","kWh/yr",null,null,null,{"$f":"AY128","v":""},null,null,null,null,null,null,null,null,null,null,null,null,null,null,null,null,null,null,null,null,null,null,null,null,null,null,null,null,null,null,null,null,null,null,null,null,null,null,null,null,null,null,null,null,null,null,null,null,null,null,null,null,null,null,null,null,"-"]
[null,null,"Numerical (>=0)","NULL",null,null,null,null,null,0,null,null,null,null,null,null,null,null,null,null,null,null,null,null,null,null,null,null,null,null,null,null,null,null,null,null,null,null,null,"Y",31,null,null,null,null,"Annual District Htg Use (if applicable)","kWh/yr",null,null,null,"",null,null,null,null,null,null,null,null,null,null,null,null,null,null,null,null,null,null,null,null,null,null,null,null,null,null,null,null,null,null,null,null,null,null,null,null,null,null,null,null,null,null,null,null,null,null,null,null,null,null,null,null,null,null,null,null,"-"]
[null,null,"Numerical (>=0)","NULL",null,null,null,null,null,0,null,null,null,null,null,null,null,null,null,null,null,null,null,null,null,null,null,null,null,null,null,null,null,null,null,null,null,null,null,"Y",30,null,null,null,null,"Annual District Clg Use (if applicable)","kWh/yr",null,null,null,"",null,null,null,null,null,null,null,null,null,null,null,null,null,null,null,null,null,null,null,null,null,null,null,null,null,null,null,null,null,null,null,null,null,null,null,null,null,null,null,null,null,null,null,null,null,null,null,null,null,null,null,null,null,null,null,null,"-"]
[null,null,"Numerical (>=0)","NULL",null,null,null,null,null,0,null,null,null,null,null,null,null,null,null,null,null,null,null,null,null,null,null,null,null,null,null,null,null,null,null,null,null,null,null,"Y",29,null,null,null,null,"Elec Generation, Gross (if applicable)","kWh/yr",null,null,null,"",null,null,null,null,null,null,null,null,null,null,null,null,null,null,null,null,null,null,null,null,null,null,null,null,null,null,null,null,null,null,null,null,null,null,null,null,null,null,null,null,null,null,null,null,null,null,null,null,null,null,null,null,null,null,null,null,"-"]
[null,null,"Numerical (>=0)","NULL",null,null,null,null,null,0,null,null,null,null,null,null,null,null,null,null,null,null,null,null,null,null,null,null,null,null,null,null,null,null,null,null,null,null,null,"Y",28,null,null,null,null,"Solar Thermal Generation (if applicable)","kWh/yr",null,null,null,"",null,null,null,null,null,null,null,null,null,null,null,null,null,null,null,null,null,null,null,null,null,null,null,null,null,null,null,null,null,null,null,null,null,null,null,null,null,null,null,null,null,null,null,null,null,null,null,null,null,null,null,null,null,null,null,null,"-"]
[null,null,"Numerical (>=0)","NULL","depends on stage",null,null,null,{"$f":"I127","v":0},0,{"$f":"IF(AND(J134=0,I134=1),1,0)","v":0},null,null,null,null,null,null,null,null,null,null,null,null,null,null,null,null,null,null,null,null,null,null,null,null,null,null,null,null,"Y",27,null,null,null,null,"Predicted Annual Carbon Emissions","tCO2/yr",{"$f":"IF(K134=1,\"Must complete ->\",\"\")","v":""},null,null,{"$f":"IF(I134=1,\"*\",\"\")","v":""},null,null,null,null,null,null,null,null,null,null,null,null,null,null,null,null,null,null,null,null,null,null,null,null,null,null,null,null,null,null,null,null,null,null,null,null,null,null,null,null,null,null,null,null,null,null,null,null,null,null,null,null,null,null,null,null,"-"]
[null,null,null,null,null,null,null,null,null,null,null,null,null,null,null,null,null,null,null,null,null,null,null,null,null,null,null,null,null,null,null,null,null,null,null,null,null,null,null,"Y",26,null,null,null,"Non-Residential Elements of the development (Part L Calculation)",null,null,null,null,null,null,null,null,null,null,null,null,null,null,null,null,null,null,null,null,null,null,null,null,null,null,null,null,null,null,null,null,null,null,null,null,null,null,null,null,null,null,null,null,null,null,null,null,null,null,null,null,null,null,null,null,null,null,null,null,null,null,"-"]
[null,null,null,null,null,null,null,null,null,null,null,null,null,null,null,null,null,null,null,null,null,null,null,null,null,null,null,null,null,null,null,null,null,null,null,null,null,null,null,"Y",25,null,null,null,null,"Predicted Annual Energy Use",null,null,null,{"$f":"IF(I137=1,\"Fill in all applicable fuels below\",\"\")","v":""},null,null,null,null,null,null,null,null,null,null,null,null,null,null,null,null,null,null,null,null,null,null,null,null,null,null,null,null,null,null,null,null,null,null,null,null,null,null,null,null,null,null,null,null,null,null,null,null,null,null,null,null,null,null,null,null,null,"-"]
[null,null,"Numerical (>=0)","NULL","depends on stage",1,0,0,{"$f":"IFERROR(INDEX(F137:H137,$R$9),0)","v":0},{"$f":"IF(OR(AX:AX=\"\",AX:AX=\"-\",AX:AX=\" \"),0,1)","v":0},{"$f":"IF(AND(J137=0,I137=1),1,0)","v":0},null,null,null,null,null,null,null,null,null,null,null,null,null,null,null,null,null,null,null,null,null,null,null,null,null,null,null,null,"Y",24,null,null,null,null,"Annual Electricity Use","kWh/yr",{"$f":"IF(K137=1,\"Must complete ->\",\"\")","v":""},null,null,{"$f":"IF(I137=1,\"*\",\"\")","v":""},null,null,null,null,null,null,null,null,null,null,null,null,null,null,null,null,null,null,null,null,null,null,null,null,null,null,null,null,null,null,null,null,null,null,null,null,null,null,null,null,null,null,null,null,null,null,null,null,null,null,null,null,null,null,null,null,"-"]
[null,null,"Numerical (>=0)","NULL","depends on stage",null,null,null,{"$f":"I137","v":0},0,0,null,null,null,null,null,null,null,null,null,null,null,null,null,null,null,null,null,null,null,null,null,null,null,null,null,null,null,null,"Y",23,null,null,null,null,"Annual Gas Use","kWh/yr","",null,null,{"$f":"IF(I138=1,\"*\",\"\")","v":""},null,null,null,null,null,null,null,null,null,null,null,null,null,null,null,null,null,null,null,null,null,null,null,null,null,null,null,null,null,null,null,null,null,null,null,null,null,null,null,null,null,null,null,null,null,null,null,null,null,null,null,null,null,null,null,null,"-"]
[null,null,"Numerical (>=0)","NULL",null,null,null,null,null,0,null,null,null,null,null,null,null,null,null,null,null,null,null,null,null,null,null,null,null,null,null,null,null,null,null,null,null,null,null,"Y",22,null,null,null,null,"Annual Oil Use (if applicable)","kWh/yr",null,null,null,{"$f":"AY138","v":""},null,null,null,null,null,null,null,null,null,null,null,null,null,null,null,null,null,null,null,null,null,null,null,null,null,null,null,null,null,null,null,null,null,null,null,null,null,null,null,null,null,null,null,null,null,null,null,null,null,null,null,null,null,null,null,null,"-"]
[null,null,"Numerical (>=0)","NULL",null,null,null,null,null,0,null,null,null,null,null,null,null,null,null,null,null,null,null,null,null,null,null,null,null,null,null,null,null,null,null,null,null,null,null,"Y",21,null,null,null,null,"Annual Biomass Use (if applicable)","kWh/yr",null,null,null,{"$f":"AY139","v":""},null,null,null,null,null,null,null,null,null,null,null,null,null,null,null,null,null,null,null,null,null,null,null,null,null,null,null,null,null,null,null,null,null,null,null,null,null,null,null,null,null,null,null,null,null,null,null,null,null,null,null,null,null,null,null,null,"-"]
[null,null,"Numerical (>=0)","NULL",null,null,null,null,null,0,null,null,null,null,null,null,null,null,null,null,null,null,null,null,null,null,null,null,null,null,null,null,null,null,null,null,null,null,null,"Y",20,null,null,null,null,"Annual District Htg Use (if applicable)","kWh/yr",null,null,null,"",null,null,null,null,null,null,null,null,null,null,null,null,null,null,null,null,null,null,null,null,null,null,null,null,null,null,null,null,null,null,null,null,null,null,null,null,null,null,null,null,null,null,null,null,null,null,null,null,null,null,null,null,null,null,null,null,"-"]
[null,null,"Numerical (>=0)","NULL",null,null,null,null,null,0,null,null,null,null,null,null,null,null,null,null,null,null,null,null,null,null,null,null,null,null,null,null,null,null,null,null,null,null,null,"Y",19,null,null,null,null,"Annual District Clg Use (if applicable)","kWh/yr",null,null,null,"",null,null,null,null,null,null,null,null,null,null,null,null,null,null,null,null,null,null,null,null,null,null,null,null,null,null,null,null,null,null,null,null,null,null,null,null,null,null,null,null,null,null,null,null,null,null,null,null,null,null,null,null,null,null,null,null,"-"]
[null,null,"Numerical (>=0)","NULL",null,null,null,null,null,0,null,null,null,null,null,null,null,null,null,null,null,null,null,null,null,null,null,null,null,null,null,null,null,null,null,null,null,null,null,"Y",18,null,null,null,null,"Elec Generation, Gross (if applicable)","kWh/yr",null,null,null,"",null,null,null,null,null,null,null,null,null,null,null,null,null,null,null,null,null,null,null,null,null,null,null,null,null,null,null,null,null,null,null,null,null,null,null,null,null,null,null,null,null,null,null,null,null,null,null,null,null,null,null,null,null,null,null,null,"-"]
[null,null,"Numerical (>=0)","NULL",null,null,null,null,null,0,null,null,null,null,null,null,null,null,null,null,null,null,null,null,null,null,null,null,null,null,null,null,null,null,null,null,null,null,null,"Y",17,null,null,null,null,"Solar Thermal Generation (if applicable)","kWh/yr",null,null,null,"",null,null,null,null,null,null,null,null,null,null,null,null,null,null,null,null,null,null,null,null,null,null,null,null,null,null,null,null,null,null,null,null,null,null,null,null,null,null,null,null,null,null,null,null,null,null,null,null,null,null,null,null,null,null,null,null,"-"]
[null,null,"Numerical (>=0)","NULL","depends on stage",null,null,null,{"$f":"I138","v":0},0,{"$f":"IF(AND(J145=0,I145=1),1,0)","v":0},null,null,null,null,null,null,null,null,null,null,null,null,null,null,null,null,null,null,null,null,null,null,null,null,null,null,null,null,"Y",16,null,null,null,null,"Predicted Annual Carbon Emissions","tCO2/yr",{"$f":"IF(K145=1,\"Must complete ->\",\"\")","v":""},null,null,{"$f":"IF(I145=1,\"*\",\"\")","v":""},null,null,null,null,null,null,null,null,null,null,null,null,null,null,null,null,null,null,null,null,null,null,null,null,null,null,null,null,null,null,null,null,null,null,null,null,null,null,null,null,null,null,null,null,null,null,null,null,null,null,null,null,null,null,null,null,"-"]
[null,null,null,null,null,null,null,null,null,null,null,null,null,null,null,null,null,null,null,null,null,null,null,null,null,null,null,null,null,null,null,null,null,null,null,null,null,null,null,"Y",15,null,null,null,"Non-Residential Elements of the development (TM54 Calculation)",null,null,null,null,null,null,null,null,null,null,null,null,null,null,null,null,null,null,null,null,null,null,null,null,null,null,null,null,null,null,null,null,null,null,null,null,null,null,null,null,null,null,null,null,null,null,null,null,null,null,null,null,null,null,null,null,null,null,null,null,null,null,"-"]
[null,null,null,null,null,null,null,null,null,null,null,null,null,null,null,null,null,null,null,null,null,null,null,null,null,null,null,null,null,null,null,null,null,null,null,null,null,null,null,"Y",14,null,null,null,null,"Predicted Annual Energy Use",null,null,null,{"$f":"IF(I148=1,\"Fill in all applicable fuels below\",\"\")","v":""},null,null,null,null,null,null,null,null,null,null,null,null,null,null,null,null,null,null,null,null,null,null,null,null,null,null,null,null,null,null,null,null,null,null,null,null,null,null,null,null,null,null,null,null,null,null,null,null,null,null,null,null,null,null,null,null,null,"-"]
[null,null,"Numerical (>=0)","NULL","depends on stage",1,0,0,{"$f":"IFERROR(INDEX(F148:H148,$R$9),0)","v":0},{"$f":"IF(OR(AX:AX=\"\",AX:AX=\"-\",AX:AX=\" \"),0,1)","v":0},{"$f":"IF(AND(J148=0,I148=1),1,0)","v":0},null,null,null,null,null,null,null,null,null,null,null,null,null,null,null,null,null,null,null,null,null,null,null,null,null,null,null,null,"Y",13,null,null,null,null,"Annual Electricity Use","kWh/yr",{"$f":"IF(K148=1,\"Must complete ->\",\"\")","v":""},null,null,{"$f":"IF(I148=1,\"*\",\"\")","v":""},null,null,null,null,null,null,null,null,null,null,null,null,null,null,null,null,null,null,null,null,null,null,null,null,null,null,null,null,null,null,null,null,null,null,null,null,null,null,null,null,null,null,null,null,null,null,null,null,null,null,null,null,null,null,null,null,"-"]
[null,null,"Numerical (>=0)","NULL","depends on stage",null,null,null,{"$f":"I148","v":0},0,{"$f":"IF(AND(J149=0,I149=1),1,0)","v":0},null,null,null,null,null,null,null,null,null,null,null,null,null,null,null,null,null,null,null,null,null,null,null,null,null,null,null,null,"Y",12,null,null,null,null,"Annual Gas Use","kWh/yr","",null,null,{"$f":"IF(I149=1,\"*\",\"\")","v":""},null,null,null,null,null,null,null,null,null,null,null,null,null,null,null,null,null,null,null,null,null,null,null,null,null,null,null,null,null,null,null,null,null,null,null,null,null,null,null,null,null,null,null,null,null,null,null,null,null,null,null,null,null,null,null,null,"-"]
[null,null,"Numerical (>=0)","NULL",null,null,null,null,null,0,null,null,null,null,null,null,null,null,null,null,null,null,null,null,null,null,null,null,null,null,null,null,null,null,null,null,null,null,null,"Y",11,null,null,null,null,"Annual Oil Use (if applicable)","kWh/yr",null,null,null,{"$f":"AY149","v":""},null,null,null,null,null,null,null,null,null,null,null,null,null,null,null,null,null,null,null,null,null,null,null,null,null,null,null,null,null,null,null,null,null,null,null,null,null,null,null,null,null,null,null,null,null,null,null,null,null,null,null,null,null,null,null,null,"-"]
[null,null,"Numerical (>=0)","NULL",null,null,null,null,null,0,null,null,null,null,null,null,null,null,null,null,null,null,null,null,null,null,null,null,null,null,null,null,null,null,null,null,null,null,null,"Y",10,null,null,null,null,"Annual Biomass Use (if applicable)","kWh/yr",null,null,null,{"$f":"AY150","v":""},null,null,null,null,null,null,null,null,null,null,null,null,null,null,null,null,null,null,null,null,null,null,null,null,null,null,null,null,null,null,null,null,null,null,null,null,null,null,null,null,null,null,null,null,null,null,null,null,null,null,null,null,null,null,null,null,"-"]
[null,null,"Numerical (>=0)","NULL",null,null,null,null,null,0,null,null,null,null,null,null,null,null,null,null,null,null,null,null,null,null,null,null,null,null,null,null,null,null,null,null,null,null,null,"Y",9,null,null,null,null,"Annual District Htg Use (if applicable)","kWh/yr",null,null,null,"",null,null,null,null,null,null,null,null,null,null,null,null,null,null,null,null,null,null,null,null,null,null,null,null,null,null,null,null,null,null,null,null,null,null,null,null,null,null,null,null,null,null,null,null,null,null,null,null,null,null,null,null,null,null,null,null,"-"]
[null,null,"Numerical (>=0)","NULL",null,null,null,null,null,0,null,null,null,null,null,null,null,null,null,null,null,null,null,null,null,null,null,null,null,null,null,null,null,null,null,null,null,null,null,"Y",8,null,null,null,null,"Annual District Clg Use (if applicable)","kWh/yr",null,null,null,"",null,null,null,null,null,null,null,null,null,null,null,null,null,null,null,null,null,null,null,null,null,null,null,null,null,null,null,null,null,null,null,null,null,null,null,null,null,null,null,null,null,null,null,null,null,null,null,null,null,null,null,null,null,null,null,null,"-"]
[null,null,"Numerical (>=0)","NULL",null,null,null,null,null,0,null,null,null,null,null,null,null,null,null,null,null,null,null,null,null,null,null,null,null,null,null,null,null,null,null,null,null,null,null,"Y",7,null,null,null,null,"Elec Generation, Gross (if applicable)","kWh/yr",null,null,null,"",null,null,null,null,null,null,null,null,null,null,null,null,null,null,null,null,null,null,null,null,null,null,null,null,null,null,null,null,null,null,null,null,null,null,null,null,null,null,null,null,null,null,null,null,null,null,null,null,null,null,null,null,null,null,null,null,"-"]
[null,null,"Numerical (>=0)","NULL",null,null,null,null,null,0,null,null,null,null,null,null,null,null,null,null,null,null,null,null,null,null,null,null,null,null,null,null,null,null,null,null,null,null,null,"Y",6,null,null,null,null,"Solar Thermal Generation (if applicable)","kWh/yr",null,null,null,"",null,null,null,null,null,null,null,null,null,null,null,null,null,null,null,null,null,null,null,null,null,null,null,null,null,null,null,null,null,null,null,null,null,null,null,null,null,null,null,null,null,null,null,null,null,null,null,null,null,null,null,null,null,null,null,null,"-"]
[null,null,"Numerical (>=0)","NULL","depends on stage",null,null,null,{"$f":"I149","v":0},0,0,null,null,null,null,null,null,null,null,null,null,null,null,null,null,null,null,null,null,null,null,null,null,null,null,null,null,null,null,"Y",5,null,null,null,null,"Predicted Annual Carbon Emissions","tCO2/yr",{"$f":"IF(K156=1,\"Must complete ->\",\"\")","v":""},null,null,{"$f":"IF(I156=1,\"*\",\"\")","v":""},null,null,null,null,null,null,null,null,null,null,null,null,null,null,null,null,null,null,null,null,null,null,null,null,null,null,null,null,null,null,null,null,null,null,null,null,null,null,null,null,null,null,null,null,null,null,null,null,null,null,null,null,null,null,null,null,"-"]
[null,null,null,null,null,null,null,null,null,null,null,null,null,null,null,null,null,null,null,null,null,null,null,null,null,null,null,null,null,null,null,null,null,null,null,null,null,null,null,"Y",4,null,null,null,null,null,null,null,null,null,null,null,null,null,null,null,null,null,null,null,null,null,null,null,null,null,null,null,null,null,null,null,null,null,null,null,null,null,null,null,null,null,null,null,null,null,null,null,null,null,null,null,null,null,null,null,null,null,null,null,null,null,null,null,null,null,null,"-"]
[null,null,null,null,null,null,null,null,null,null,null,{"$f":"SUM(I159:I160)","v":0},{"$f":"SUM(K159:K160)","v":0},null,null,null,null,null,null,null,null,null,null,null,null,null,null,null,null,null,null,null,null,null,null,null,null,null,null,"Y",3,null,null," CARBON OFFSETTING",null,null,null,null,null,null,null,null,null,null,null,null,null,null,null,null,null,null,null,null,null,null,null,null,null,null,null,null,null,null,null,null,null,null,null,null,null,null,null,null,null,null,null,null,null,null,null,null,null,null,null,null,null,null,null,null,null,null,null,null,null,null,null,"-"]
[null,null,"Numerical (>=0)","NULL","depends on stage",1,0,0,{"$f":"IFERROR(INDEX(F159:H159,$R$9),0)","v":0},{"$f":"IF(OR(AX:AX=\"\",AX:AX=\"-\",AX:AX=\" \"),0,1)","v":0},{"$f":"IF(AND(J159=0,I159=1),1,0)","v":0},null,null,null,null,null,null,null,null,null,null,null,null,null,null,null,null,null,null,null,null,null,null,null,null,null,null,null,null,{"$f":"AN157","v":"Y"},2,null,null,null,"Predicted Carbon Shortfall (aligned with planning energy statement)",null,"tCO2",{"$f":"IF(K159=1,\"Must complete ->\",\"\")","v":""},null,null,{"$f":"IF(I159=1,\"*\",\"\")","v":""},null,null,null,null,null,null,null,null,null,null,null,null,null,null,null,null,null,null,null,null,null,null,null,null,null,null,null,null,null,null,null,null,null,null,null,null,null,null,null,null,null,null,null,null,null,null,null,null,null,null,null,null,null,null,null,null,"-"]
[null,null,"Numerical (>=0)","NULL","depends on stage",null,null,null,{"$f":"I159","v":0},{"$f":"IF(OR(AX:AX=\"\",AX:AX=\"-\",AX:AX=\" \"),0,1)","v":0},{"$f":"IF(AND(J160=0,I160=1),1,0)","v":0},null,null,null,null,null,null,null,null,null,null,null,null,null,null,null,null,null,null,null,null,null,null,null,null,null,null,null,null,"Y",1,null,null,null,"Total Committed Carbon Offset",null,"£",{"$f":"IF(K160=1,\"Must complete ->\",\"\")","v":""},null,null,{"$f":"IF(I160=1,\"*\",\"\")","v":""},null,null,null,null,null,null,null,null,null,null,null,null,null,null,null,null,null,null,null,null,null,null,null,null,null,null,null,null,null,null,null,null,null,null,null,null,null,null,null,null,null,null,null,null,null,null,null,null,null,null,null,null,null,null,null,null,"-"]
[null,null,null,null,null,null,null,null,null,null,null,null,null,null,null,null,null,null,null,null,null,null,null,null,null,null,null,null,null,null,null,null,null,null,null,null,null,null,null,"Y",1,null,null,null,null,null,null,null,null,null,null,null,null,null,null,null,null,null,null,null,null,null,null,null,null,null,null,null,null,null,null,null,null,null,null,null,null,null,null,null,null,null,null,null,null,null,null,null,null,null,null,null,null,null,null,null,null,null,null,null,null,null,null,null,null,null,null,"-"]
[null,null,null,null,null,null,null,null,null,null,null,{"$f":"IF($R$9>1,IF(SUM(Y168:Y169)=0,1,0),0)","v":0},{"$f":"L162","v":0},{"$f":"T168+AX176","v":0},{"$f":"((T168-SUM(T171:T175))+(AX176-T176))/N162","v":{"$error":"#DIV/0!"}},{"$f":"ROUND(18*O162,0)","v":{"$error":"#DIV/0!"}},null,null,null,null,null,null,null,null,null,null,null,null,null,null,null,null,null,null,null,null,null,null,null,{"$f":"IF($R$9>1,\"N\",\"Y\")","v":"Y"},{"$f":"IF(AN163=AN162,AO163+1,1)","v":2}," REPORTABLE UNITS",null,null,null,null,null,{"$f":"IF($R$9=0,\"\",IF(N162=0,\"no RUs currently listed\",\"Progress: \"&ROUND(100*(1-O162),0)&\"%\"))","v":""},null,{"$f":"IF(OR(N162=0,$R$9=0),\"\",REPT(\"g\",18-P162)&REPT(\"c\",P162))","v":""},null,null,null,null,null,null,null,null,null,null,null,null,null,null,null,null,null,null,null,null,null,null,null,null,null,null,null,null,null,null,null,null,null,null,null,null,null,null,null,null,null,null,null,null,null,null,null,null,null,null,null,null,null,null,null,null,null,"-"]
[null,null,null,null,null,null,null,null,null,null,null,null,null,null,null,null,null,null,null,null,null,null,null,null,null,null,null,null,null,null,null,null,null,null,null,null,null,null,null,{"$f":"AN162","v":"Y"},1,null,null,null,null,null,null,null,null,null,null,null,null,null,null,null,null,null,null,null,null,null,null,null,null,null,null,null,null,null,null,null,null,null,null,null,null,null,null,null,null,null,null,null,null,null,null,null,null,null,null,null,null,null,null,null,null,null,null,null,null,null,null,null,null,null,null,"-"]
[null,null,null,null,null,null,null,null,null,null,null,null,null,null,null,null,null,null,null,null,null,null,null,null,null,null,null,null,null,null,null,null,null,null,null,null,{"$f":"IF($R$9>1,1,0)","v":0},165,181,"Y",{"$f":"IF(AN165=AN164,AO165+1,1)","v":19},{"$f":"IF(AK164=1,\"+\",\"\")","v":""}," REPORTABLE UNITS SUMMARY",null,null,null,null,null,null,null,null,null,null,null,null,null,null,null,null,null,null,null,null,null,null,null,null,null,null,null,null,null,null,null,null,null,null,null,null,null,null,null,null,null,null,null,null,null,null,null,null,null,null,null,null,null,null,null,null,null,null,null,null,null,null,null,null,"-"]
[null,null,null,null,null,null,null,null,null,null,null,null,null,null,null,null,null,null,null,null,null,null,null,null,null,null,null,null,null,null,null,null,null,null,null,null,null,null,null,"Y",{"$f":"IF(AN166=AN165,AO166+1,1)","v":18},null,null,null,null,null,null,null,null,null,null,null,null,null,null,null,null,null,null,null,null,null,null,null,null,null,null,null,null,null,null,null,null,null,null,null,null,null,null,null,null,null,null,null,null,null,null,null,null,null,null,null,null,null,null,null,null,null,null,null,null,null,null,null,null,null,null,"-"]
[null,null,null,null,null,null,null,null,null,null,null,null,null,null,null,null,null,"RU Count",null,null,null,null,null,null,null,null,null,null,null,null,null,null,null,null,null,null,null,null,null,"Y",17,null,null," REPORTABLE UNITS BREAKDOWN",null,null,null,null,null,null,null,null,null,null,null,null,null,null,null,null,null,null,null,null,null,null,null,null,null,null,null,null,null,null,null,null,null,null,null,null,null,null,null,null,null,null,null,null,null,null,null,null,null,null,null,null,null,null,null,null,null,null,null,null,null,null,null,"-"]
[null,null,null,null,null,null,null,null,null,null,null,null,null,null,null,null,null,"Progress","RU Type","No.",null,null,null,null,null,null,null,null,null,null,null,null,null,null,null,null,null,null,null,"Y",16,null,null,null,"Total RUs in Development",null,null,null,null,null,null,null,null,null,null,null,null,null,null,null,null,null,null,null,null,null,null,null,null,null,null,null,null,null,null,null,null,null,null,null,null,null,null,null,null,null,null,null,null,null,null,null,null,null,null,null,null,null,null,null,null,null,null,null,null,null,null,"-"]
[null,null,"List","NULL","depends on stage",null,null,null,{"$f":"I169","v":0},0,0,null,null,null,null,null,null,"Listed","Resi",{"$f":"IF(I168=0,0,Y168)","v":0},null,null,null,null,{"$f":"AX:AX","v":0},null,null,null,null,null,null,null,null,null,null,null,null,{"$f":"ROW(B182)","v":182},{"$f":"ROW(B2983)","v":2983},{"$f":"AN167","v":"Y"},15,null,null,null,null,"Total Number of Residential/Non-Residential RUs",null,{"$f":"IF(K168=1,\"Must complete ->\",\"\")","v":""},null,null,{"$f":"IF(I168=1,\"*\",\"\")","v":""},null,null,null,null,null,null,null,null,null,null,null,null,null,null,null,null,null,null,null,null,null,null,null,null,null,null,null,null,null,null,null,null,null,null,null,null,null,null,null,null,null,null,null,null,null,null,null,null,null,null,null,null,null,null,null,null,"-"]
[null,null,"List","NULL","depends on stage",null,null,null,0,0,0,null,null,null,null,null,null,null,"Non-Resi",{"$f":"IF(I169=0,0,Y169)","v":0},null,null,null,null,{"$f":"AX:AX","v":0},null,null,null,null,null,null,null,null,null,null,null,null,{"$f":"ROW(B2983)","v":2983},{"$f":"ROW(B3369)","v":3369},"Y",14,null,null,null,null,"Total Number of Energy Centre RUs",null,{"$f":"IF(K169=1,\"Must complete ->\",\"\")","v":""},null,null,{"$f":"IF(I169=1,\"*\",\"\")","v":""},null,null,null,null,null,null,null,null,null,null,null,null,null,null,null,null,null,null,null,null,null,null,null,null,null,null,null,null,null,null,null,null,null,null,null,null,null,null,null,null,null,null,null,null,null,null,null,null,null,null,null,null,null,null,null,null,"-"]
[null,null,null,null,"depends on stage",0,1,1,{"$f":"IFERROR(INDEX(F170:H170,$R$9),0)","v":0},{"$f":"IF(T170=0,0,1)","v":0},{"$f":"IF(AND(J170=0,I170=1),1,0)","v":0},null,null,null,null,null,null,null,"Total",{"$f":"SUM(T168:T169)","v":0},null,null,null,null,null,null,null,null,null,null,null,null,null,null,null,null,null,null,null,"Y",13,null,null,null,"RU Types Within Development",null,null,null,null,null,null,null,null,null,null,null,null,null,null,null,null,null,null,null,null,null,null,null,null,null,null,null,null,null,null,null,null,null,null,null,null,null,null,null,null,null,null,null,null,null,null,null,null,null,null,null,null,null,null,null,null,null,null,null,null,null,null,"-"]
[null,null,null,null,null,null,null,null,null,null,null,null,null,null,null,null,null,"Complete RUs",{"$f":"AT171","v":"Residential (new build)"},{"$f":"COUNTIFS($AA$7:$AA$41,AT171)","v":0},null,null,null,null,null,null,null,null,null,null,null,null,null,null,null,null,null,null,null,"Y",12,null,null,null,null,"Residential (new build)",null,null,null,{"$f":"COUNTIFS($Z$7:$Z$41,AT171)","v":0},null,null,null,null,null,null,null,null,null,null,null,null,null,null,null,null,null,null,null,null,null,null,null,null,null,null,null,null,null,null,null,null,null,null,null,null,null,null,null,null,null,null,null,null,null,null,null,null,null,null,null,null,null,null,null,null,null,"-"]
[null,null,null,null,null,null,null,null,null,null,null,null,null,null,null,null,null,null,{"$f":"AT172","v":"Residential (refurb)"},0,null,null,null,null,null,null,null,null,null,null,null,null,null,null,null,null,null,null,null,"Y",11,null,null,null,null,"Residential (refurb)",null,null,null,0,null,null,null,null,null,null,null,null,null,null,null,null,null,null,null,null,null,null,null,null,null,null,null,null,null,null,null,null,null,null,null,null,null,null,null,null,null,null,null,null,null,null,null,null,null,null,null,null,null,null,null,null,null,null,null,null,null,"-"]
[null,null,null,null,null,null,null,null,null,null,null,null,null,null,null,null,null,null,"Non-Residential (new build)",0,null,null,null,null,null,null,null,null,null,null,null,null,null,null,null,null,null,null,null,"Y",10,null,null,null,null,"Non-Residential (new build)",null,null,null,0,null,null,null,null,null,null,null,null,null,null,null,null,null,null,null,null,null,null,null,null,null,null,null,null,null,null,null,null,null,null,null,null,null,null,null,null,null,null,null,null,null,null,null,null,null,null,null,null,null,null,null,null,null,null,null,null,null,"-"]
[null,null,null,null,null,null,null,null,null,null,null,null,null,null,null,null,null,null,"Non-Residential (refurb)",0,null,null,null,null,null,null,null,null,null,null,null,null,null,null,null,null,null,null,null,"Y",9,null,null,null,null,"Non-Residential (refurb)",null,null,null,0,null,null,null,null,null,null,null,null,null,null,null,null,null,null,null,null,null,null,null,null,null,null,null,null,null,null,null,null,null,null,null,null,null,null,null,null,null,null,null,null,null,null,null,null,null,null,null,null,null,null,null,null,null,null,null,null,null,"-"]
[null,null,null,null,null,null,null,null,null,null,null,null,null,null,null,null,null,null,"Landlord area in residential RU",0,null,null,null,null,null,null,null,null,null,null,null,null,null,null,null,null,null,null,null,"Y",8,null,null,null,null,"Landlord area in residential RU",null,null,null,0,null,null,null,null,null,null,null,null,null,null,null,null,null,null,null,null,null,null,null,null,null,null,null,null,null,null,null,null,null,null,null,null,null,null,null,null,null,null,null,null,null,null,null,null,null,null,null,null,null,null,null,null,null,null,null,null,null,"-"]
[null,null,null,null,null,null,null,null,null,null,null,null,null,null,null,null,null,null,"Energy Centre RU",0,null,null,null,null,null,null,null,null,null,null,null,null,null,null,null,null,null,null,null,"Y",7,null,null,null,null,"Energy Centre RU",null,null,null,0,null,null,null,null,null,null,null,null,null,null,null,null,null,null,null,null,null,null,null,null,null,null,null,null,null,null,null,null,null,null,null,null,null,null,null,null,null,null,null,null,null,null,null,null,null,null,null,null,null,null,null,null,null,null,null,null,null,"-"]
[null,null,null,null,null,null,null,null,null,null,null,null,null,null,null,null,null,null,null,null,null,null,null,null,null,null,null,null,null,null,null,null,null,null,null,null,null,null,null,"Y",6,null,null,null,null,null,null,null,null,null,null,null,null,null,null,null,null,null,null,null,null,null,null,null,null,null,null,null,null,null,null,null,null,null,null,null,null,null,null,null,null,null,null,null,null,null,null,null,null,null,null,null,null,null,null,null,null,null,null,null,null,null,null,null,null,null,null,"-"]
[null,null,null,null,null,null,null,null,null,null,null,null,null,null,null,null,null,null,null,null,null,null,null,null,null,null,null,null,null,null,null,null,null,null,null,null,null,null,null,{"$f":"AN177","v":"Y"},5,null,null," REPORTABLE UNITS ADDRESS DATA",null,null,null,null,null,null,null,null,null,null,null,null,null,null,null,null,null,null,null,null,null,null,null,null,null,null,null,null,null,null,null,null,null,null,null,null,null,null,null,null,null,null,null,null,null,null,null,null,null,null,null,null,null,null,null,null,null,null,null,null,null,null,null,"-"]
[null,null,null,null,null,null,null,null,null,null,null,null,null,null,null,null,null,null,null,null,null,null,null,null,null,null,null,null,null,null,null,null,null,null,null,null,null,null,null,"Y",{"$f":"IF(AN180=AN179,AO180+1,1)","v":4},null,null,null,"Addresses are required for each Reportable Unit. To copy the address listed for the",null,null,null,null,null,null,null,null,null,null,null,null,null,null,null,null,null,null,null,null,null,null,null,null,null,null,null,null,null,null,null,null,null,null,null,null,null,null,null,null,null,null,null,null,null,null,null,null,null,null,null,null,null,null,null,null,null,null,null,null,null,null,"-"]
[null,null,null,null,null,null,null,null,null,null,null,null,null,null,null,null,null,null,null,null,null,null,null,null,null,null,null,null,null,null,null,null,null,null,null,null,null,null,null,{"$f":"AN179","v":"Y"},3,null,null,null,null,"overall development (rows 43:54) to each Reportable Unit, press the button to the",null,null,null,null,null,null,null,null,null,null,null,null,null,null,null,null,null,null,null,null,null,null,null,null,null,null,null,null,null,null,null,null,null,null,null,null,null,null,null,null,null,null,null,null,null,null,null,null,null,null,null,null,null,null,null,null,null,null,null,null,null,"-"]
[null,null,null,null,null,null,null,null,null,null,null,null,null,null,null,null,null,null,null,null,null,null,null,null,null,null,null,null,null,null,null,null,null,null,null,null,null,null,null,{"$f":"AN180","v":"Y"},2,null,null,null,null,"right. Otherwise, the address will need to be manually entered for each RU.",null,null,null,null,null,null,null,null,null,null,null,null,null,null,null,null,null,null,null,null,null,null,null,null,null,null,null,null,null,null,null,null,null,null,null,null,null,null,null,null,null,null,null,null,null,null,null,null,null,null,null,null,null,null,null,null,null,null,null,null,null,"-"]
[null,"BLDGS BELOW",null,null,null,null,null,null,null,null,null,null,null,null,null,null,null,null,null,null,null,null,null,null,null,null,null,null,null,null,null,null,"Res","Non","Lan",null,null,null,null,"Y",1,null,null,null,null,null,null,null,null,null,null,null,null,null,null,null,null,null,null,null,null,null,null,null,null,null,null,null,null,null,null,null,null,null,null,null,null,null,null,null,null,null,null,null,null,null,null,null,null,null,null,null,null,null,null,null,null,null,null,null,null,null,null,null,null,null,null,"-"]
[null,"BUILDING RU START",null,null,null,null,null,null,null,null,null,null,null,{"$f":"SUM(L185:L287)","v":0},{"$f":"SUM(M185:M287)/N183","v":{"$error":"#DIV/0!"}},{"$f":"ROUND(18*O183,0)","v":{"$error":"#DIV/0!"}},null,{"$f":"IF(AF183=1,Q186,\"-\")","v":"-"},{"$f":"IFERROR(IF(OR(AF183=0,O183<>0),\"-\",R183),\"-\")","v":"-"},{"$f":"IF(AF183=1,Q190,\"-\")","v":"-"},null,null,null,null,null,null,null,null,null,null,1,{"$f":"IF(OR(AE183>$T$168,$R$9<=1),0,1)","v":0},{"$f":"IF($AF183=0,0,IF(LEFT($Q186,3)=\"Res\",1,0))","v":0},{"$f":"IF($AF183=0,0,IF(LEFT($Q186,3)=\"Non\",1,0))","v":0},{"$f":"IF($AF183=0,0,IF(LEFT($Q186,3)=\"Lan\",1,0))","v":0},null,{"$f":"AF183","v":0},{"$f":"ROW()+1","v":184},{"$f":"ROW(AT293)","v":293},{"$f":"IF(AND($R$9>1,AF183=1),\"N\",\"Y\")","v":"Y"},2801,{"$f":"IF(AK183=1,\"+\",\"\")","v":""},{"$f":"\" BUILDINGS REPORTABLE UNIT \"&AE183","v":" BUILDINGS REPORTABLE UNIT 1"},null,null,null,null,{"$f":"IF($R$9=0,\"\",IF(N183=0,\"not req'd at this stage\",\"Progress: \"&ROUND(100*(1-O183),0)&\"%\"))","v":""},null,{"$f":"IF(OR(N183=0,$R$9=0),\"\",REPT(\"g\",18-P183)&REPT(\"c\",P183))","v":""},null,null,null,null,null,null,null,null,null,null,null,null,null,null,null,null,null,null,null,null,null,null,null,null,null,null,null,null,null,null,null,null,null,null,null,null,null,null,null,null,null,null,null,null,null,null,null,null,null,null,null,null,null,null,null,null,null,"-"]
[null,null,null,null,null,null,null,null,null,null,null,null,null,null,null,null,null,null,null,null,null,null,null,null,null,null,null,null,null,null,null,null,null,null,null,null,null,null,null,{"$f":"AN183","v":"Y"},2800,null,null,null,null,null,null,null,null,null,null,null,null,null,null,null,null,null,null,null,null,null,null,null,null,null,null,null,null,null,null,null,null,null,null,null,null,null,null,null,null,null,null,null,null,null,null,null,null,null,null,null,null,null,null,null,null,null,null,null,null,null,null,null,null,null,null,"-"]
[null,null,null,null,null,null,null,null,null,null,null,{"$f":"SUM(I186:I187)","v":0},{"$f":"SUM(K186:K187)","v":0},null,null,null,null,null,null,null,null,null,null,null,null,null,null,null,null,null,null,null,null,null,null,null,null,null,null,{"$f":"AN184","v":"Y"},2799,null,null,{"$f":"\" BUILDINGS REPORTABLE UNIT \"&AE183&\": KEY DETAILS\"","v":" BUILDINGS REPORTABLE UNIT 1: KEY DETAILS"},null,null,null,null,null,null,null,null,null,null,null,null,null,null,null,null,null,null,null,null,null,null,null,null,null,null,null,null,null,null,null,null,null,null,null,null,null,null,null,null,null,null,null,null,null,null,null,null,null,null,null,null,null,null,null,null,null,null,null,null,null,null,null,"-"]
[null,null,"List","Select from list","depends on stage and RU existence",0,1,1,{"$f":"IF(AF183=0,0,IFERROR(INDEX(F186:H186,$R$9),0))","v":0},{"$f":"IF(OR(AX:AX=\"\",AX:AX=\"-\",AX:AX=\" \",AX:AX=\"Select from list\"),0,1)","v":0},{"$f":"IF(AND(J186=0,I186=1),1,0)","v":0},null,null,null,null,null,{"$f":"IF(AND(AX:AX<>\"Select from list\",AX:AX<>\"\"),AX:AX,\"-\")","v":"-"},null,null,null,null,null,null,null,null,null,null,null,null,null,null,null,null,null,null,null,null,{"$f":"ROW()+1","v":187},{"$f":"ROW(AR260)","v":260},{"$f":"AN185","v":"Y"},2798,null,null,null,"Reportable Unit Type",null,null,{"$f":"IF(K186=1,\"Must complete ->\",\"\")","v":""},null,"Select from list",{"$f":"IF(I186=1,\"*\",\"\")","v":""},null,null,null,null,null,null,null,null,null,null,null,null,null,null,null,null,null,null,null,null,null,null,null,null,null,null,null,null,null,null,null,null,null,null,null,null,null,null,null,null,null,null,null,null,null,null,null,null,null,null,null,null,null,null,null,null,"-"]
[null,null,"List_No_VBA","Select from list","depends on stage and RU type",0,1,1,{"$f":"IF(AI183<>1,0,IFERROR(INDEX(F187:H187,$R$9),0))","v":0},{"$f":"IF(OR(AI183=0,Q187=\"-\"),0,IF(ISERROR(MATCH(Q187,$W$8:$W$32,0)),0,1))","v":0},{"$f":"IF(AND(J187=0,I187=1),1,0)","v":0},null,null,null,null,null,{"$f":"IF(AND(AX:AX<>\"Select from list\",AX:AX<>\"\",AX:AX<>\"No residential RUs listed\"),IFERROR(LEFT(AX:AX,FIND(\"(\",AX:AX)-2),\"-\"),\"-\")","v":"-"},null,null,null,null,null,null,null,null,null,null,null,null,null,null,null,null,null,null,null,null,null,null,{"$f":"IF(AI183=1,AN183,\"Y\")","v":"Y"},2797,null,null,null,"Which residential RU does this landlord area belong to?",null,null,{"$f":"IF(K187=1,\"Select resi RU ->\",\"\")","v":""},null,"Select from list",{"$f":"IF(I187=1,\"*\",\"\")","v":""},null,null,null,null,null,null,null,null,null,null,null,null,null,null,null,null,null,null,null,null,null,null,null,null,null,null,null,null,null,null,null,null,null,null,null,null,null,null,null,null,null,null,null,null,null,null,null,null,null,null,null,null,null,null,null,null,"-"]
[null,null,null,null,null,null,null,null,null,null,null,null,null,null,null,null,null,null,null,null,null,null,null,null,null,null,null,null,null,null,null,null,null,null,null,null,null,null,null,{"$f":"AN183","v":"Y"},2796,null,null,null,null,null,null,null,null,null,null,null,null,null,null,null,null,null,null,null,null,null,null,null,null,null,null,null,null,null,null,null,null,null,null,null,null,null,null,null,null,null,null,null,null,null,null,null,null,null,null,null,null,null,null,null,null,null,null,null,null,null,null,null,null,null,null,"-"]
[null,null,null,null,null,null,null,null,null,null,null,{"$f":"SUM(I190:I202)","v":0},{"$f":"SUM(K190:K202)","v":0},null,null,null,null,null,null,null,null,null,null,null,null,null,null,null,null,null,null,null,null,null,null,null,null,null,null,{"$f":"AN188","v":"Y"},2795,null,null,{"$f":"\" BUILDINGS REPORTABLE UNIT \"&AE183&\": ADDRESS/LOCATION INFORMATION\"","v":" BUILDINGS REPORTABLE UNIT 1: ADDRESS/LOCATION INFORMATION"},null,null,null,null,null,null,null,null,null,null,null,null,null,null,null,null,null,null,null,null,null,null,null,null,null,null,null,null,null,null,null,null,null,null,null,null,null,null,null,null,null,null,null,null,null,null,null,null,null,null,null,null,null,null,null,null,null,null,null,null,null,null,null,"-"]
[null,null,"-","NULL","depends on stage",0,1,1,{"$f":"IF(AF183=0,0,IFERROR(INDEX(F190:H190,$R$9),0))","v":0},{"$f":"IF(OR(AX:AX=\"\",AX:AX=\"-\",AX:AX=\" \"),0,1)","v":0},{"$f":"IF(AND(J190=0,I190=1),1,0)","v":0},null,null,null,null,null,{"$f":"IF(AND(AX:AX<>\" \",AX:AX<>\"-\",AX:AX<>\"\"),AX:AX,\"Name not yet provided\")","v":"Name not yet provided"},null,null,null,null,null,null,null,null,null,null,null,null,null,null,null,null,null,null,null,null,null,null,{"$f":"AN189","v":"Y"},2794,null,null,null,"Name/Reference of RU",null,null,{"$f":"IF(K190=1,\"Must complete ->\",\"\")","v":""},null,null,{"$f":"IF(I190=1,\"*\",\"\")","v":""},null,null,null,null,null,null,null,null,null,null,null,null,null,null,null,null,null,null,null,null,null,null,null,null,null,null,null,null,null,null,null,null,null,null,null,null,null,null,null,null,null,null,null,null,null,null,null,null,null,null,null,null,null,null,null,null,"-"]
[null,null,null,null,null,null,null,null,null,null,null,null,null,null,null,null,null,null,null,null,null,null,null,null,null,null,null,null,null,null,null,null,null,null,null,null,null,null,null,"Y",2793,null,null,null,"Reportable Unit Address",null,null,null,null,null,null,null,null,null,null,null,null,null,null,null,null,null,null,null,null,null,null,null,null,null,null,null,null,null,null,null,null,null,null,null,null,null,null,null,null,null,null,null,null,null,null,null,null,null,null,null,null,null,null,null,null,null,null,null,null,null,null,"-"]
[null,null,"-","NULL","depends on stage",0,1,1,{"$f":"IF(AF183=0,0,IFERROR(INDEX(F192:H192,$R$9),0))","v":0},{"$f":"IF(OR(AX:AX=\"\",AX:AX=\"-\",AX:AX=\" \"),0,1)","v":0},{"$f":"IF(AND(J192=0,I192=1),1,0)","v":0},null,null,null,null,null,null,null,null,null,null,null,null,null,null,null,null,null,null,null,null,null,null,null,null,1,null,null,null,"Y",2792,null,null,null,null,"Address Line 1",null,{"$f":"IF(K192=1,\"Must complete ->\",\"\")","v":""},null,null,{"$f":"IF(I192=1,\"*\",\"\")","v":""},null,null,null,null,null,null,null,null,null,null,null,null,null,null,null,null,null,null,null,null,null,null,null,null,null,null,null,null,null,null,null,null,null,null,null,null,null,null,null,null,null,null,null,null,null,null,null,null,null,null,null,null,null,null,null,null,"-"]
[null,null,"-","NULL","constant",null,null,null,0,0,0,null,null,null,null,null,null,null,null,null,null,null,null,null,null,null,null,null,null,null,null,null,null,null,null,2,null,null,null,"Y",2791,null,null,null,null,"Address Line 2",null,null,null,null,null,null,null,null,null,null,null,null,null,null,null,null,null,null,null,null,null,null,null,null,null,null,null,null,null,null,null,null,null,null,null,null,null,null,null,null,null,null,null,null,null,null,null,null,null,null,null,null,null,null,null,null,null,null,null,null,null,"-"]
[null,null,"-","NULL","constant",null,null,null,0,0,0,null,null,null,null,null,null,null,null,null,null,null,null,null,null,null,null,null,null,null,null,null,null,null,null,3,null,null,null,"Y",2790,null,null,null,null,"Address Line 3",null,null,null,null,null,null,null,null,null,null,null,null,null,null,null,null,null,null,null,null,null,null,null,null,null,null,null,null,null,null,null,null,null,null,null,null,null,null,null,null,null,null,null,null,null,null,null,null,null,null,null,null,null,null,null,null,null,null,null,null,null,"-"]
[null,null,"-","NULL","constant",null,null,null,0,0,0,null,null,null,null,null,null,null,null,null,null,null,null,null,null,null,null,null,null,null,null,null,null,null,null,4,null,null,null,"Y",2789,null,null,null,null,"Address Line 4",null,null,null,null,null,null,null,null,null,null,null,null,null,null,null,null,null,null,null,null,null,null,null,null,null,null,null,null,null,null,null,null,null,null,null,null,null,null,null,null,null,null,null,null,null,null,null,null,null,null,null,null,null,null,null,null,null,null,null,null,null,"-"]
[null,null,"-","NULL","depends on stage",0,1,1,{"$f":"I192","v":0},0,0,null,null,null,null,null,null,null,null,null,null,null,null,null,null,null,null,null,null,null,null,null,null,null,null,5,null,null,null,"Y",2788,null,null,null,null,"Post Town",null,{"$f":"IF(K196=1,\"Must complete ->\",\"\")","v":""},null,null,{"$f":"IF(I196=1,\"*\",\"\")","v":""},null,null,null,null,null,null,null,null,null,null,null,null,null,null,null,null,null,null,null,null,null,null,null,null,null,null,null,null,null,null,null,null,null,null,null,null,null,null,null,null,null,null,null,null,null,null,null,null,null,null,null,null,null,null,null,null,"-"]
[null,null,"-","NULL","depends on stage",0,1,1,{"$f":"I192","v":0},0,0,null,null,null,null,null,null,null,null,null,null,null,null,null,null,null,null,null,null,null,null,null,null,null,null,6,null,null,null,{"$f":"AN196","v":"Y"},2787,null,null,null,null,"Postcode",null,{"$f":"IF(K197=1,\"Must complete ->\",\"\")","v":""},null,null,{"$f":"IF(I197=1,\"*\",\"\")","v":""},null,null,null,null,null,null,null,null,null,null,null,null,null,null,null,null,null,null,null,null,null,null,null,null,null,null,null,null,null,null,null,null,null,null,null,null,null,null,null,null,null,null,null,null,null,null,null,null,null,null,null,null,null,null,null,null,"-"]
[null,null,null,null,null,null,null,null,null,null,null,null,null,null,null,null,null,null,null,null,null,null,null,null,null,null,null,null,null,null,null,null,null,null,null,null,null,null,null,"Y",2786,null,null,null,"Ordnance Survey Reference",null,null,null,null,null,null,null,null,null,null,null,null,null,null,null,null,null,null,null,null,null,null,null,null,null,null,null,null,null,null,null,null,null,null,null,null,null,null,null,null,null,null,null,null,null,null,null,null,null,null,null,null,null,null,null,null,null,null,null,null,null,null,"-"]
[null,null,"-","NULL","depends on stage on RU",0,0,1,{"$f":"IF(AF183=0,0,IFERROR(INDEX(F199:H199,$R$9),0))","v":0},{"$f":"IF(OR(AX:AX=\"\",AX:AX=\"-\",AX:AX=\" \"),0,1)","v":0},{"$f":"IF(AND(J199=0,I199=1),1,0)","v":0},null,null,null,null,null,null,null,null,null,null,null,null,null,null,null,null,null,null,null,null,null,null,null,null,7,null,null,null,"Y",2785,null,null,null,null,"Development UPRN (if available)",null,{"$f":"IF(AND(I199=0,J199=0,AF183=1),\"Please add if available ->\",IF(K199=1,\"Must complete ->\",\"\"))","v":""},null,null,{"$f":"IF(I199=1,\"*\",\"\")","v":""},null,null,null,null,null,null,null,null,null,null,null,null,null,null,null,null,null,null,null,null,null,null,null,null,null,null,null,null,null,null,null,null,null,null,null,null,null,null,null,null,null,null,null,null,null,null,null,null,null,null,null,null,null,null,null,null,"-"]
[null,null,null,null,null,null,null,null,null,null,null,null,null,null,null,null,null,null,null,null,null,null,null,null,null,null,null,null,null,null,null,null,null,null,null,null,null,null,null,"Y",2784,null,null,null,"Geo-Location Coordinates",null,null,null,null,null,null,null,null,null,null,null,null,null,null,null,null,null,null,null,null,null,null,null,null,null,null,null,null,null,null,null,null,null,null,null,null,null,null,null,null,null,null,null,null,null,null,null,null,null,null,null,null,null,null,null,null,null,null,null,null,null,null,"-"]
[null,null,"Numerical (with limits)","NULL","constant",null,null,null,0,{"$f":"IF(OR(AX:AX=\"\",AX:AX=\"-\",AX:AX=\" \"),0,1)","v":0},{"$f":"IF(AND(J201=0,I201=1),1,0)","v":0},null,null,null,null,null,null,null,null,null,null,null,null,null,null,null,null,null,null,null,null,null,null,null,null,8,null,null,null,"Y",{"$f":"IF(AN202=AN201,AO202+1,1)","v":2783},null,null,null,null,"Latitude (to 6 decimal places)",null,{"$f":"IF(AND(I201=0,K201=0,AF183=1),\"Please add if available ->\",\"\")","v":""},null,null,null,null,null,null,null,null,null,null,null,null,null,null,null,null,null,null,null,null,null,null,null,null,null,null,null,null,null,null,null,null,null,null,null,null,null,null,null,null,null,null,null,null,null,null,null,null,null,null,null,null,null,null,null,null,null,null,null,"-"]
[null,null,"Numerical (with limits)","NULL","constant",null,null,null,0,{"$f":"IF(OR(AX:AX=\"\",AX:AX=\"-\",AX:AX=\" \"),0,1)","v":0},{"$f":"IF(AND(J202=0,I202=1),1,0)","v":0},null,null,null,null,null,null,null,null,null,null,null,null,null,null,null,null,null,null,null,null,null,null,null,null,9,null,null,null,"Y",2782,null,null,null,null,"Longitude (to 6 decimal places, +ve or -ve)",null,{"$f":"IF(AND(I202=0,K202=0,AF183=1),\"Please add if available ->\",\"\")","v":""},null,null,null,null,null,null,null,null,null,null,null,null,null,null,null,null,null,null,null,null,null,null,null,null,null,null,null,null,null,null,null,null,null,null,null,null,null,null,null,null,null,null,null,null,null,null,null,null,null,null,null,null,null,null,null,null,null,null,null,"-"]
[null,null,null,null,null,null,null,null,null,null,null,null,null,null,null,null,null,null,null,null,null,null,null,null,null,null,null,null,null,null,null,null,null,null,null,null,null,null,null,"Y",2781,null,null,null,null,null,null,null,null,null,null,null,null,null,null,null,null,null,null,null,null,null,null,null,null,null,null,null,null,null,null,null,null,null,null,null,null,null,null,null,null,null,null,null,null,null,null,null,null,null,null,null,null,null,null,null,null,null,null,null,null,null,null,null,null,null,null,"-"]
[null,null,null,null,null,null,null,null,null,null,null,null,null,null,null,null,null,null,null,null,null,null,null,null,null,null,null,null,null,null,null,null,null,null,null,null,null,null,null,"Y",2780,null,null,{"$f":"\" BUILDINGS REPORTABLE UNIT \"&AE183&\": BUILDING USE\"","v":" BUILDINGS REPORTABLE UNIT 1: BUILDING USE"},null,null,null,null,null,null,null,null,null,null,null,null,null,null,null,null,null,null,null,null,null,null,null,null,null,null,null,null,null,null,null,null,null,null,null,null,null,null,null,null,null,null,null,null,null,null,null,null,null,null,null,null,null,null,null,null,null,null,null,null,null,null,null,"-"]
[null,null,null,null,null,null,null,null,null,null,null,null,null,null,null,null,null,null,null,null,null,null,null,null,null,null,null,null,null,null,null,null,null,null,null,null,null,null,null,"Y",2779,null,null,null,"Overall",null,null,null,null,null,null,null,null,null,null,null,null,null,null,null,null,null,null,null,null,null,null,null,null,null,null,null,null,null,null,null,null,null,null,null,null,null,null,null,null,null,null,null,null,null,null,null,null,null,null,null,null,null,null,null,null,null,null,null,null,null,null,"-"]
[null,null,null,null,null,null,null,null,null,null,null,null,null,null,null,null,null,null,null,null,null,null,null,null,null,null,null,null,null,null,null,null,null,null,null,null,null,null,null,{"$f":"AN205","v":"Y"},2778,null,null,null,null,"Total Floor Floor Area","GIA m2",null,null,{"$f":"SUMIFS(AX207:AX209,AN207:AN209,\"N\")+SUMIFS(AX212:AX243,AN212:AN243,\"N\")","v":0},null,null,null,null,null,null,null,null,null,null,null,null,null,null,null,null,null,null,null,null,null,null,null,null,null,null,null,null,null,null,null,null,null,null,null,null,null,null,null,null,null,null,null,null,null,null,null,null,null,null,null,null,null,null,null,null,null,"-"]
[null,null,null,null,null,null,null,null,null,null,null,{"$f":"SUM(I208:I211)","v":0},{"$f":"SUM(K208:K211)","v":0},null,null,null,null,null,null,null,null,null,null,null,null,null,null,null,null,null,null,null,null,null,null,null,null,null,null,{"$f":"IF(AG183=1,AN183,\"Y\")","v":"Y"},2777,null,null,null,"Residential",null,null,null,null,null,null,null,null,null,null,null,null,null,null,null,null,null,null,null,null,null,null,null,null,null,null,null,null,null,null,null,null,null,null,null,null,null,null,null,null,null,null,null,null,null,null,null,null,null,null,null,null,null,null,null,null,null,null,null,null,null,null,"-"]
[null,null,"Numerical (>=0)","NULL","depends on stage and RU type",0,1,1,{"$f":"IF(AG183=0,0,IFERROR(INDEX(F208:H208,$R$9),0))","v":0},{"$f":"IF(OR(AX:AX=\"\",AX:AX=\"-\",AX:AX=\" \",AX:AX=0),0,1)","v":0},{"$f":"IF(AND(J208=0,I208=1),1,0)","v":0},null,null,null,null,null,{"$f":"AX:AX","v":0},null,null,null,null,null,null,null,null,null,null,null,null,null,null,null,null,null,null,null,null,null,null,{"$f":"AN207","v":"Y"},2776,null,null,null,null,"Total Residential Floor Area","GIA m2",{"$f":"IF(K208=1,\"Must complete ->\",\"\")","v":""},null,null,{"$f":"IF(I208=1,\"*\",\"\")","v":""},null,null,null,null,null,null,null,null,null,null,null,null,null,null,null,null,null,null,null,null,null,null,null,null,null,null,null,null,null,null,null,null,null,null,null,null,null,null,null,null,null,null,null,null,null,null,null,null,null,null,null,null,null,null,null,null,"-"]
[null,null,null,null,null,null,null,null,null,null,null,null,null,null,null,null,null,{"$f":"IFERROR(SUM(Q210:Q211),0)","v":0},null,null,null,null,null,null,null,null,null,null,null,null,null,null,null,null,null,null,null,null,null,"Y",2775,null,null,null,null,"Dwelling Counts",null,null,null,null,null,null,null,null,null,null,null,null,null,null,null,null,null,null,null,null,null,null,null,null,null,null,null,null,null,null,null,null,null,null,null,null,null,null,null,null,null,null,null,null,null,null,null,null,null,null,null,null,null,null,null,null,null,null,null,null,null,"-"]
[null,null,"Integer (>=0)","NULL","depends on stage and RU type",null,null,null,{"$f":"I208","v":0},{"$f":"IF(OR(AX:AX=\"\",AX:AX=\"-\",AX:AX=\" \",R209=0),0,1)","v":0},{"$f":"IF(AND(J210=0,I210=1),1,0)","v":0},null,null,null,null,null,{"$f":"AX:AX","v":0},null,null,null,null,null,null,null,null,null,null,null,null,null,null,null,null,null,null,null,null,null,null,"Y",2774,null,null,null,null,"Flats","number",{"$f":"IF(K210=1,\"Must complete ->\",\"\")","v":""},null,null,{"$f":"IF(I210=1,\"*\",\"\")","v":""},null,null,null,null,null,null,null,null,null,null,null,null,null,null,null,null,null,null,null,null,null,null,null,null,null,null,null,null,null,null,null,null,null,null,null,null,null,null,null,null,null,null,null,null,null,null,null,null,null,null,null,null,null,null,null,null,"-"]
[null,null,"Integer (>=0)","NULL","depends on stage and RU type",null,null,null,{"$f":"I210","v":0},{"$f":"IF(OR(AX:AX=\"\",AX:AX=\"-\",AX:AX=\" \",R209=0),0,1)","v":0},0,null,null,null,null,null,{"$f":"AX:AX","v":0},null,null,null,null,null,null,null,null,null,null,null,null,null,null,null,null,null,null,null,null,null,null,"Y",2773,null,null,null,null,"House","number",{"$f":"IF(K211=1,\"Must complete ->\",\"\")","v":""},null,null,{"$f":"IF(I211=1,\"*\",\"\")","v":""},null,null,null,null,null,null,null,null,null,null,null,null,null,null,null,null,null,null,null,null,null,null,null,null,null,null,null,null,null,null,null,null,null,null,null,null,null,null,null,null,null,null,null,null,null,null,null,null,null,null,null,null,null,null,null,null,"-"]
[null,null,null,null,null,null,null,null,null,null,null,{"$f":"SUM(I213:I214)","v":0},{"$f":"SUM(K213:K214)","v":0},null,null,null,null,null,null,null,null,null,null,null,null,null,null,null,null,null,null,null,null,null,null,null,null,null,null,{"$f":"IF(OR(AH183=1,AI183=1),AN183,\"Y\")","v":"Y"},2772,null,null,null,"Non-Residential",null,null,null,null,{"$f":"IF(I214=1,\"Please include complete non-resi details below\",\"\")","v":""},null,null,null,null,null,null,null,null,null,null,null,null,null,null,null,null,null,null,null,null,null,null,null,null,null,null,null,null,null,null,null,null,null,null,null,null,null,null,null,null,null,null,null,null,null,null,null,null,null,null,null,null,null,null,null,null,null,"-"]
[null,null,"Numerical (>=0)","NULL","depends on stage and RU type",0,1,1,{"$f":"IF(AI183=0,0,IFERROR(INDEX(F213:H213,$R$9),0))","v":0},{"$f":"IF(OR(AX:AX=\"\",AX:AX=\"-\",AX:AX=\" \",AX:AX=0),0,1)","v":0},0,null,null,null,null,null,null,null,null,null,null,null,null,null,null,null,null,null,null,null,null,null,null,null,null,null,null,null,null,{"$f":"AN187","v":"Y"},2771,null,null,null,null,"Landlord Circulation (in Residential Blocks)","GIA m2",{"$f":"IF(K213=1,\"Must complete ->\",\"\")","v":""},null,null,{"$f":"IF(I213=1,\"*\",\"\")","v":""},null,null,null,null,null,null,null,null,null,null,null,null,null,null,null,null,null,null,null,null,null,null,null,null,null,null,null,null,null,null,null,null,null,null,null,null,null,null,null,null,null,null,null,null,null,null,null,null,null,null,null,null,null,null,null,null,"-"]
[null,null,"Numerical (>=0)","NULL","depends on stage and RU type",0,1,1,{"$f":"IF(AH183=0,0,IFERROR(INDEX(F214:H214,$R$9),0))","v":0},{"$f":"IF(OR(AX:AX=\"\",AX:AX=\"-\",AX:AX=\" \"),0,1)","v":0},{"$f":"IF(I214=0,0,1-MAX(J214:J242))","v":0},null,null,null,null,null,{"$f":"IF(AH183=0,0,AX:AX)","v":0},null,null,null,null,null,null,null,null,null,null,null,null,null,null,null,null,null,null,null,null,null,null,{"$f":"IF(AH183=1,AN183,\"Y\")","v":"Y"},2770,null,null,null,null,"General office (A2, B1, B8, D1 planning classes)","GIA m2",null,null,null,{"$f":"IF(I214=1,\"*\",\"\")","v":""},null,null,null,null,null,null,null,null,null,null,null,null,null,null,null,null,null,null,null,null,null,null,null,null,null,null,null,null,null,null,null,null,null,null,null,null,null,null,null,null,null,null,null,null,null,null,null,null,null,null,null,null,null,null,null,null,"-"]
[null,null,"Numerical (>=0)","NULL","depends on stage and RU type",null,null,null,{"$f":"I214","v":0},0,null,null,null,null,null,null,null,null,null,null,null,null,null,null,null,null,null,null,null,null,null,null,null,null,null,null,null,null,null,"Y",2769,null,null,null,null,"High street agency (A2 planning classes)","GIA m2",null,null,null,{"$f":"IF(I215=1,\"*\",\"\")","v":""},null,null,null,null,null,null,null,null,null,null,null,null,null,null,null,null,null,null,null,null,null,null,null,null,null,null,null,null,null,null,null,null,null,null,null,null,null,null,null,null,null,null,null,null,null,null,null,null,null,null,null,null,null,null,null,null,"-"]
[null,null,"Numerical (>=0)","NULL","depends on stage and RU type",null,null,null,{"$f":"I215","v":0},0,null,null,null,null,null,null,null,null,null,null,null,null,null,null,null,null,null,null,null,null,null,null,null,null,null,null,null,null,null,"Y",2768,null,null,null,null,"General retail (A1, SG planning classes)","GIA m2",null,null,null,"",null,null,null,null,null,null,null,null,null,null,null,null,null,null,null,null,null,null,null,null,null,null,null,null,null,null,null,null,null,null,null,null,null,null,null,null,null,null,null,null,null,null,null,null,null,null,null,null,null,null,null,null,null,null,null,null,"-"]
[null,null,"Numerical (>=0)","NULL","depends on stage and RU type",null,null,null,0,0,null,null,null,null,null,null,null,null,null,null,null,null,null,null,null,null,null,null,null,null,null,null,null,null,null,null,null,null,null,"Y",2767,null,null,null,null,"Large non-food shop (A1 planning classes)","GIA m2",null,null,null,"",null,null,null,null,null,null,null,null,null,null,null,null,null,null,null,null,null,null,null,null,null,null,null,null,null,null,null,null,null,null,null,null,null,null,null,null,null,null,null,null,null,null,null,null,null,null,null,null,null,null,null,null,null,null,null,null,"-"]
[null,null,"Numerical (>=0)","NULL","depends on stage and RU type",null,null,null,0,0,null,null,null,null,null,null,null,null,null,null,null,null,null,null,null,null,null,null,null,null,null,null,null,null,null,null,null,null,null,"Y",2766,null,null,null,null,"Small food store","GIA m2",null,null,null,"",null,null,null,null,null,null,null,null,null,null,null,null,null,null,null,null,null,null,null,null,null,null,null,null,null,null,null,null,null,null,null,null,null,null,null,null,null,null,null,null,null,null,null,null,null,null,null,null,null,null,null,null,null,null,null,null,"-"]
[null,null,"Numerical (>=0)","NULL","depends on stage and RU type",null,null,null,0,0,null,null,null,null,null,null,null,null,null,null,null,null,null,null,null,null,null,null,null,null,null,null,null,null,null,null,null,null,null,"Y",2765,null,null,null,null,"Large food store","GIA m2",null,null,null,"",null,null,null,null,null,null,null,null,null,null,null,null,null,null,null,null,null,null,null,null,null,null,null,null,null,null,null,null,null,null,null,null,null,null,null,null,null,null,null,null,null,null,null,null,null,null,null,null,null,null,null,null,null,null,null,null,"-"]
[null,null,"Numerical (>=0)","NULL","depends on stage and RU type",null,null,null,0,0,null,null,null,null,null,null,null,null,null,null,null,null,null,null,null,null,null,null,null,null,null,null,null,null,null,null,null,null,null,"Y",2764,null,null,null,null,"Restaurant (A3, A5 planning classes)","GIA m2",null,null,null,"",null,null,null,null,null,null,null,null,null,null,null,null,null,null,null,null,null,null,null,null,null,null,null,null,null,null,null,null,null,null,null,null,null,null,null,null,null,null,null,null,null,null,null,null,null,null,null,null,null,null,null,null,null,null,null,null,"-"]
[null,null,"Numerical (>=0)","NULL","depends on stage and RU type",null,null,null,0,0,null,null,null,null,null,null,null,null,null,null,null,null,null,null,null,null,null,null,null,null,null,null,null,null,null,null,null,null,null,"Y",2763,null,null,null,null,"Bar, pub or licensed club (A4 planning classes)","GIA m2",null,null,null,"",null,null,null,null,null,null,null,null,null,null,null,null,null,null,null,null,null,null,null,null,null,null,null,null,null,null,null,null,null,null,null,null,null,null,null,null,null,null,null,null,null,null,null,null,null,null,null,null,null,null,null,null,null,null,null,null,"-"]
[null,null,"Numerical (>=0)","NULL","depends on stage and RU type",null,null,null,0,0,null,null,null,null,null,null,null,null,null,null,null,null,null,null,null,null,null,null,null,null,null,null,null,null,null,null,null,null,null,"Y",2762,null,null,null,null,"Hotel (C1 planning classes)","GIA m2",null,null,null,"",null,null,null,null,null,null,null,null,null,null,null,null,null,null,null,null,null,null,null,null,null,null,null,null,null,null,null,null,null,null,null,null,null,null,null,null,null,null,null,null,null,null,null,null,null,null,null,null,null,null,null,null,null,null,null,null,"-"]
[null,null,"Numerical (>=0)","NULL","depends on stage and RU type",null,null,null,0,0,null,null,null,null,null,null,null,null,null,null,null,null,null,null,null,null,null,null,null,null,null,null,null,null,null,null,null,null,null,"Y",2761,null,null,null,null,"Cultural Activities","GIA m2",null,null,null,"",null,null,null,null,null,null,null,null,null,null,null,null,null,null,null,null,null,null,null,null,null,null,null,null,null,null,null,null,null,null,null,null,null,null,null,null,null,null,null,null,null,null,null,null,null,null,null,null,null,null,null,null,null,null,null,null,"-"]
[null,null,"Numerical (>=0)","NULL","depends on stage and RU type",null,null,null,0,0,null,null,null,null,null,null,null,null,null,null,null,null,null,null,null,null,null,null,null,null,null,null,null,null,null,null,null,null,null,"Y",2760,null,null,null,null,"Entertainment halls (D2 planning classes)","GIA m2",null,null,null,"",null,null,null,null,null,null,null,null,null,null,null,null,null,null,null,null,null,null,null,null,null,null,null,null,null,null,null,null,null,null,null,null,null,null,null,null,null,null,null,null,null,null,null,null,null,null,null,null,null,null,null,null,null,null,null,null,"-"]
[null,null,"Numerical (>=0)","NULL","depends on stage and RU type",null,null,null,0,0,null,null,null,null,null,null,null,null,null,null,null,null,null,null,null,null,null,null,null,null,null,null,null,null,null,null,null,null,null,"Y",2759,null,null,null,null,"Swimming pool centre","GIA m2",null,null,null,"",null,null,null,null,null,null,null,null,null,null,null,null,null,null,null,null,null,null,null,null,null,null,null,null,null,null,null,null,null,null,null,null,null,null,null,null,null,null,null,null,null,null,null,null,null,null,null,null,null,null,null,null,null,null,null,null,"-"]
[null,null,"Numerical (>=0)","NULL","depends on stage and RU type",null,null,null,0,0,null,null,null,null,null,null,null,null,null,null,null,null,null,null,null,null,null,null,null,null,null,null,null,null,null,null,null,null,null,"Y",2758,null,null,null,null,"Fitness and health centre","GIA m2",null,null,null,"",null,null,null,null,null,null,null,null,null,null,null,null,null,null,null,null,null,null,null,null,null,null,null,null,null,null,null,null,null,null,null,null,null,null,null,null,null,null,null,null,null,null,null,null,null,null,null,null,null,null,null,null,null,null,null,null,"-"]
[null,null,"Numerical (>=0)","NULL","depends on stage and RU type",null,null,null,0,0,null,null,null,null,null,null,null,null,null,null,null,null,null,null,null,null,null,null,null,null,null,null,null,null,null,null,null,null,null,"Y",2757,null,null,null,null,"Dry sports and leisure facility (D2 planning classes)","GIA m2",null,null,null,"",null,null,null,null,null,null,null,null,null,null,null,null,null,null,null,null,null,null,null,null,null,null,null,null,null,null,null,null,null,null,null,null,null,null,null,null,null,null,null,null,null,null,null,null,null,null,null,null,null,null,null,null,null,null,null,null,"-"]
[null,null,"Numerical (>=0)","NULL","depends on stage and RU type",null,null,null,0,0,null,null,null,null,null,null,null,null,null,null,null,null,null,null,null,null,null,null,null,null,null,null,null,null,null,null,null,null,null,"Y",2756,null,null,null,null,"Covered car park","GIA m2",null,null,null,"",null,null,null,null,null,null,null,null,null,null,null,null,null,null,null,null,null,null,null,null,null,null,null,null,null,null,null,null,null,null,null,null,null,null,null,null,null,null,null,null,null,null,null,null,null,null,null,null,null,null,null,null,null,null,null,null,"-"]
[null,null,"Numerical (>=0)","NULL","depends on stage and RU type",null,null,null,0,0,null,null,null,null,null,null,null,null,null,null,null,null,null,null,null,null,null,null,null,null,null,null,null,null,null,null,null,null,null,"Y",2755,null,null,null,null,"Public buildings with light usage (D1, SG planning classes)","GIA m2",null,null,null,"",null,null,null,null,null,null,null,null,null,null,null,null,null,null,null,null,null,null,null,null,null,null,null,null,null,null,null,null,null,null,null,null,null,null,null,null,null,null,null,null,null,null,null,null,null,null,null,null,null,null,null,null,null,null,null,null,"-"]
[null,null,"Numerical (>=0)","NULL","depends on stage and RU type",null,null,null,0,0,null,null,null,null,null,null,null,null,null,null,null,null,null,null,null,null,null,null,null,null,null,null,null,null,null,null,null,null,null,"Y",2754,null,null,null,null,"Schools and seasonal public buildings (D1, D2 planning classes)","GIA m2",null,null,null,"",null,null,null,null,null,null,null,null,null,null,null,null,null,null,null,null,null,null,null,null,null,null,null,null,null,null,null,null,null,null,null,null,null,null,null,null,null,null,null,null,null,null,null,null,null,null,null,null,null,null,null,null,null,null,null,null,"-"]
[null,null,"Numerical (>=0)","NULL","depends on stage and RU type",null,null,null,0,0,null,null,null,null,null,null,null,null,null,null,null,null,null,null,null,null,null,null,null,null,null,null,null,null,null,null,null,null,null,"Y",2753,null,null,null,null,"University campus","GIA m2",null,null,null,"",null,null,null,null,null,null,null,null,null,null,null,null,null,null,null,null,null,null,null,null,null,null,null,null,null,null,null,null,null,null,null,null,null,null,null,null,null,null,null,null,null,null,null,null,null,null,null,null,null,null,null,null,null,null,null,null,"-"]
[null,null,"Numerical (>=0)","NULL","depends on stage and RU type",null,null,null,0,0,null,null,null,null,null,null,null,null,null,null,null,null,null,null,null,null,null,null,null,null,null,null,null,null,null,null,null,null,null,"Y",2752,null,null,null,null,"Clinic (D1 planning classes)","GIA m2",null,null,null,"",null,null,null,null,null,null,null,null,null,null,null,null,null,null,null,null,null,null,null,null,null,null,null,null,null,null,null,null,null,null,null,null,null,null,null,null,null,null,null,null,null,null,null,null,null,null,null,null,null,null,null,null,null,null,null,null,"-"]
[null,null,"Numerical (>=0)","NULL","depends on stage and RU type",null,null,null,0,0,null,null,null,null,null,null,null,null,null,null,null,null,null,null,null,null,null,null,null,null,null,null,null,null,null,null,null,null,null,"Y",2751,null,null,null,null,"Hospital (clinical and research)","GIA m2",null,null,null,"",null,null,null,null,null,null,null,null,null,null,null,null,null,null,null,null,null,null,null,null,null,null,null,null,null,null,null,null,null,null,null,null,null,null,null,null,null,null,null,null,null,null,null,null,null,null,null,null,null,null,null,null,null,null,null,null,"-"]
[null,null,"Numerical (>=0)","NULL","depends on stage and RU type",null,null,null,0,0,null,null,null,null,null,null,null,null,null,null,null,null,null,null,null,null,null,null,null,null,null,null,null,null,null,null,null,null,null,"Y",2750,null,null,null,null,"Long term residential (C1, C2, C2A planning classes)","GIA m2",null,null,null,"",null,null,null,null,null,null,null,null,null,null,null,null,null,null,null,null,null,null,null,null,null,null,null,null,null,null,null,null,null,null,null,null,null,null,null,null,null,null,null,null,null,null,null,null,null,null,null,null,null,null,null,null,null,null,null,null,"-"]
[null,null,"Numerical (>=0)","NULL","depends on stage and RU type",null,null,null,0,0,null,null,null,null,null,null,null,null,null,null,null,null,null,null,null,null,null,null,null,null,null,null,null,null,null,null,null,null,null,"Y",2749,null,null,null,null,"General accommodation (C1, C2, C3 planning classes)","GIA m2",null,null,null,"",null,null,null,null,null,null,null,null,null,null,null,null,null,null,null,null,null,null,null,null,null,null,null,null,null,null,null,null,null,null,null,null,null,null,null,null,null,null,null,null,null,null,null,null,null,null,null,null,null,null,null,null,null,null,null,null,"-"]
[null,null,"Numerical (>=0)","NULL","depends on stage and RU type",null,null,null,0,0,null,null,null,null,null,null,null,null,null,null,null,null,null,null,null,null,null,null,null,null,null,null,null,null,null,null,null,null,null,"Y",2748,null,null,null,null,"Emergency services (SG planning classes)","GIA m2",null,null,null,"",null,null,null,null,null,null,null,null,null,null,null,null,null,null,null,null,null,null,null,null,null,null,null,null,null,null,null,null,null,null,null,null,null,null,null,null,null,null,null,null,null,null,null,null,null,null,null,null,null,null,null,null,null,null,null,null,"-"]
[null,null,"Numerical (>=0)","NULL","depends on stage and RU type",null,null,null,0,0,null,null,null,null,null,null,null,null,null,null,null,null,null,null,null,null,null,null,null,null,null,null,null,null,null,null,null,null,null,"Y",2747,null,null,null,null,"Laboratory or operating theatre","GIA m2",null,null,null,"",null,null,null,null,null,null,null,null,null,null,null,null,null,null,null,null,null,null,null,null,null,null,null,null,null,null,null,null,null,null,null,null,null,null,null,null,null,null,null,null,null,null,null,null,null,null,null,null,null,null,null,null,null,null,null,null,"-"]
[null,null,"Numerical (>=0)","NULL","depends on stage and RU type",null,null,null,0,0,null,null,null,null,null,null,null,null,null,null,null,null,null,null,null,null,null,null,null,null,null,null,null,null,null,null,null,null,null,"Y",2746,null,null,null,null,"Public waiting or circulation (SG planning classes)","GIA m2",null,null,null,"",null,null,null,null,null,null,null,null,null,null,null,null,null,null,null,null,null,null,null,null,null,null,null,null,null,null,null,null,null,null,null,null,null,null,null,null,null,null,null,null,null,null,null,null,null,null,null,null,null,null,null,null,null,null,null,null,"-"]
[null,null,"Numerical (>=0)","NULL","depends on stage and RU type",null,null,null,0,0,null,null,null,null,null,null,null,null,null,null,null,null,null,null,null,null,null,null,null,null,null,null,null,null,null,null,null,null,null,"Y",2745,null,null,null,null,"Terminal (B8 planning classes)","GIA m2",null,null,null,"",null,null,null,null,null,null,null,null,null,null,null,null,null,null,null,null,null,null,null,null,null,null,null,null,null,null,null,null,null,null,null,null,null,null,null,null,null,null,null,null,null,null,null,null,null,null,null,null,null,null,null,null,null,null,null,null,"-"]
[null,null,"Numerical (>=0)","NULL","depends on stage and RU type",null,null,null,0,0,null,null,null,null,null,null,null,null,null,null,null,null,null,null,null,null,null,null,null,null,null,null,null,null,null,null,null,null,null,"Y",2744,null,null,null,null,"Workshop (B1, B2 planning classes)","GIA m2",null,null,null,"",null,null,null,null,null,null,null,null,null,null,null,null,null,null,null,null,null,null,null,null,null,null,null,null,null,null,null,null,null,null,null,null,null,null,null,null,null,null,null,null,null,null,null,null,null,null,null,null,null,null,null,null,null,null,null,null,"-"]
[null,null,"Numerical (>=0)","NULL","depends on stage and RU type",null,null,null,0,0,null,null,null,null,null,null,null,null,null,null,null,null,null,null,null,null,null,null,null,null,null,null,null,null,null,null,null,null,null,"Y",2743,null,null,null,null,"Storage Facility (B8 planning classes)","GIA m2",null,null,null,"",null,null,null,null,null,null,null,null,null,null,null,null,null,null,null,null,null,null,null,null,null,null,null,null,null,null,null,null,null,null,null,null,null,null,null,null,null,null,null,null,null,null,null,null,null,null,null,null,null,null,null,null,null,null,null,null,"-"]
[null,null,"Numerical (>=0)","NULL","depends on stage and RU type",null,null,null,0,0,null,null,null,null,null,null,null,null,null,null,null,null,null,null,null,null,null,null,null,null,null,null,null,null,null,null,null,null,null,"Y",2742,null,null,null,null,"Cold Storage (B8 planning classes)","GIA m2",null,null,null,"",null,null,null,null,null,null,null,null,null,null,null,null,null,null,null,null,null,null,null,null,null,null,null,null,null,null,null,null,null,null,null,null,null,null,null,null,null,null,null,null,null,null,null,null,null,null,null,null,null,null,null,null,null,null,null,null,"-"]
[null,null,null,null,null,null,null,null,null,null,null,null,null,null,null,null,null,null,null,null,null,null,null,null,null,null,null,null,null,null,null,null,null,null,null,null,null,null,null,{"$f":"AN183","v":"Y"},2741,null,null,null,null,null,null,null,null,null,null,null,null,null,null,null,null,null,null,null,null,null,null,null,null,null,null,null,null,null,null,null,null,null,null,null,null,null,null,null,null,null,null,null,null,null,null,null,null,null,null,null,null,null,null,null,null,null,null,null,null,null,null,null,null,null,null,"-"]
[null,null,null,null,null,null,null,null,null,null,null,null,null,null,null,null,null,null,null,null,null,null,null,null,null,null,null,null,null,null,null,null,null,null,null,null,null,null,null,"Y",2740,null,null,{"$f":"\" BUILDINGS REPORTABLE UNIT \"&AE183&\": SUPPLEMENTARY FILES\"","v":" BUILDINGS REPORTABLE UNIT 1: SUPPLEMENTARY FILES"},null,null,null,null,null,null,null,null,null,null,null,null,null,null,null,null,null,null,null,null,null,null,null,null,null,null,null,null,null,null,null,null,null,null,null,null,null,null,null,null,null,null,null,null,null,null,null,null,null,null,null,null,null,null,null,null,null,null,null,null,null,null,null,"-"]
[null,null,null,null,null,null,null,null,null,null,null,{"$f":"SUM(I246:I258)","v":0},{"$f":"SUM(K246:K258)","v":0},null,null,null,null,{"$f":"IF(AND(AH183=0,AI183=0),0,IF($R$9=2,Q246,IF($S$9=1,Q248,IF($S$9=2,Q250,IF($S$9=3,Q252,IF($S$9=4,Q254,IF($S$9=5,Q256,0)))))))","v":0},null,null,null,null,null,null,null,null,null,null,null,null,null,null,null,null,null,null,null,null,null,{"$f":"AN212","v":"Y"},2739,null,null,null,{"$f":"IF(Q214=0,\"Display Energy Certificates\",\"Display Energy Certificates or DFP Base Building Energy Rating\")","v":"Display Energy Certificates"},null,null,null,null,null,null,null,null,null,null,null,null,null,null,null,null,null,null,null,null,null,null,null,null,null,null,null,null,null,null,null,null,null,null,null,null,null,null,null,null,null,null,null,null,null,null,null,null,null,null,null,null,null,null,null,null,null,null,null,null,null,null,"-"]
[null,null,"List","Select from list","depends on stage and RU type & year",0,1,0,{"$f":"IF(AND(AH183=0,AI183=0),0,IFERROR(INDEX(F246:H246,$R$9),0))","v":0},{"$f":"IF(OR(AX:AX=\"\",AX:AX=\"-\",AX:AX=\" \",AX:AX=\"Select from list\"),0,1)","v":0},{"$f":"IF(AND(J246=0,I246=1),1,0)","v":0},null,null,null,null,null,{"$f":"IF(AND(OR(AH183=1,AI183=1),AX:AX=\"Yes\"),1,0)","v":0},null,null,null,null,null,null,null,null,null,null,null,null,null,null,null,null,null,null,null,null,{"$f":"ROW()+1","v":247},{"$f":"ROW(AR286)","v":286},{"$f":"IF($R$9=2,AN245,\"Y\")","v":"Y"},2738,null,null,null,null,{"$f":"IF(Q214=0,\"Does this RU have an as-built DEC?\",\"Does this RU have an as-built DEC/DFP base bldg energy rating?\")","v":"Does this RU have an as-built DEC?"},null,{"$f":"IF(K246=1,\"To complete ->\",\"\")","v":""},null,"Select from list",{"$f":"IF(I246=1,\"*\",\"\")","v":""},null,null,null,null,null,null,null,null,null,null,null,null,null,null,null,null,null,null,null,null,null,null,null,null,null,null,null,null,null,null,null,null,null,null,null,null,null,null,null,null,null,null,null,null,null,null,null,null,null,null,null,null,null,null,null,null,"-"]
[null,null,"-","NULL","depends on stage and RU type & year",null,null,null,{"$f":"IF(Q246=1,I246,0)","v":0},{"$f":"IF(OR(AX:AX=\"\",AX:AX=\"-\",AX:AX=\" \"),0,1)","v":0},0,null,null,null,null,null,null,null,null,null,null,null,null,null,null,null,null,null,null,null,null,null,null,null,null,null,null,null,null,{"$f":"IF(Q246=1,AN246,\"Y\")","v":"Y"},2737,null,null,null,null,"What is the XML filename?",null,{"$f":"IF(K247=1,\"To complete ->\",\"\")","v":""},null,null,{"$f":"IF(I247=1,\"*\",\"\")","v":""},null,null,null,null,null,null,null,null,null,null,null,null,null,null,null,null,null,null,null,null,null,null,null,null,null,null,null,null,null,null,null,null,null,null,null,null,null,null,null,null,null,null,null,null,null,null,null,null,null,null,null,null,null,null,null,null,"-"]
[null,null,"List","Select from list","depends on stage and RU type & year",0,0,{"$f":"IF($S$9=1,1,0)","v":0},{"$f":"IF(AND(AH183=0,AI183=0),0,IFERROR(INDEX(F248:H248,$R$9),0))","v":0},{"$f":"IF(OR(AX:AX=\"\",AX:AX=\"-\",AX:AX=\" \",AX:AX=\"Select from list\"),0,1)","v":0},{"$f":"IF(AND(J248=0,I248=1),1,0)","v":0},null,null,null,null,null,{"$f":"IF(AND(OR(AH183=1,AI183=1),AX:AX=\"Yes\"),1,0)","v":0},null,null,null,null,null,null,null,null,null,null,null,null,null,null,null,null,null,null,null,null,{"$f":"ROW()+1","v":249},{"$f":"AM246","v":286},{"$f":"IF($S$9=1,AN245,\"Y\")","v":"Y"},2736,null,null,null,null,{"$f":"IF(Q214=0,\"Does this RU have a DEC for y1?\",\"Does this RU have a DEC/DFP base bldg energy rating for y1?\")","v":"Does this RU have a DEC for y1?"},null,"",null,"Select from list","",null,null,null,null,null,null,null,null,null,null,null,null,null,null,null,null,null,null,null,null,null,null,null,null,null,null,null,null,null,null,null,null,null,null,null,null,null,null,null,null,null,null,null,null,null,null,null,null,null,null,null,null,null,null,null,null,"-"]
[null,null,"-","NULL","depends on stage and RU type & year",null,null,null,{"$f":"IF(Q248=1,I248,0)","v":0},{"$f":"IF(OR(AX:AX=\"\",AX:AX=\"-\",AX:AX=\" \"),0,1)","v":0},0,null,null,null,null,null,null,null,null,null,null,null,null,null,null,null,null,null,null,null,null,null,null,null,null,null,null,null,null,{"$f":"IF(Q248=1,AN248,\"Y\")","v":"Y"},2735,null,null,null,null,"What is the XML filename?",null,"",null,null,"",null,null,null,null,null,null,null,null,null,null,null,null,null,null,null,null,null,null,null,null,null,null,null,null,null,null,null,null,null,null,null,null,null,null,null,null,null,null,null,null,null,null,null,null,null,null,null,null,null,null,null,null,null,null,null,null,"-"]
[null,null,"List","Select from list","depends on stage and RU type & year",0,0,{"$f":"IF($S$9=2,1,0)","v":0},{"$f":"IF(AND(AH183=0,AI183=0),0,IFERROR(INDEX(F250:H250,$R$9),0))","v":0},{"$f":"IF(OR(AX:AX=\"\",AX:AX=\"-\",AX:AX=\" \",AX:AX=\"Select from list\"),0,1)","v":0},{"$f":"IF(AND(J250=0,I250=1),1,0)","v":0},null,null,null,null,null,{"$f":"IF(AND(OR(AH183=1,AI183=1),AX:AX=\"Yes\"),1,0)","v":0},null,null,null,null,null,null,null,null,null,null,null,null,null,null,null,null,null,null,null,null,{"$f":"ROW()+1","v":251},{"$f":"AM248","v":286},{"$f":"IF($S$9=2,AN245,\"Y\")","v":"Y"},2734,null,null,null,null,{"$f":"IF(Q214=0,\"Does this RU have a DEC for y2?\",\"Does this RU have a DEC/DFP base bldg energy rating for y2?\")","v":"Does this RU have a DEC for y2?"},null,"",null,"Select from list","",null,null,null,null,null,null,null,null,null,null,null,null,null,null,null,null,null,null,null,null,null,null,null,null,null,null,null,null,null,null,null,null,null,null,null,null,null,null,null,null,null,null,null,null,null,null,null,null,null,null,null,null,null,null,null,null,"-"]
[null,null,null,null,null,null,null,null,null,null,null,{"$f":"SUM(I261)","v":0},{"$f":"SUM(K261)","v":0},null,null,null,null,null,null,null,null,null,null,null,null,null,null,null,null,null,null,null,null,null,null,null,null,null,null,{"$f":"IF(R245=1,\"Y\",AN183)","v":"Y"},2724,null,null,{"$f":"\" BUILDINGS REPORTABLE UNIT \"&AE183&\": SYSTEMS\"","v":" BUILDINGS REPORTABLE UNIT 1: SYSTEMS"},null,null,null,null,null,null,null,null,null,null,null,null,null,null,null,null,null,null,null,null,null,null,null,null,null,null,null,null,null,null,null,null,null,null,null,null,null,null,null,null,null,null,null,null,null,null,null,null,null,null,null,null,null,null,null,null,null,null,null,null,null,null,null,"-"]
[null,null,null,"NULL_YEARS",null,null,null,null,0,null,null,null,null,null,null,null,null,null,null,null,null,null,null,null,null,null,null,null,null,null,null,null,null,null,null,null,null,null,null,"Y",2711,null,null,null,null,"Solar Thermal Generation (if applicable)","kWh/yr",null,null,null,null,null,null,null,null,null,{"$f":"IF(AND(BD:BD<>\"\",BA:BA<>\"\"),IFERROR(ROUND(100*(BD:BD-BA:BA)/BA:BA,0)&\"%\",\"INF\"),\"-\")","v":"-"},null,null,null,null,null,null,null,null,null,{"$f":"IF(AND(BN:BN<>\"\",BD:BD<>\"\"),IFERROR(ROUND(100*(BN:BN-BD:BD)/BD:BD,0)&\"%\",\"INF\"),\"-\")","v":"-"},null,null,null,null,null,null,null,null,null,{"$f":"IF(AND(BX:BX<>\"\",BN:BN<>\"\"),IFERROR(ROUND(100*(BX:BX-BN:BN)/BN:BN,0)&\"%\",\"INF\"),\"-\")","v":"-"},null,null,null,null,null,null,null,null,null,{"$f":"IF(AND(CH:CH<>\"\",BX:BX<>\"\"),IFERROR(ROUND(100*(CH:CH-BX:BX)/BX:BX,0)&\"%\",\"INF\"),\"-\")","v":"-"},null,null,null,null,null,null,null,null,null,{"$f":"IF(AND(CR:CR<>\"\",CH:CH<>\"\"),IFERROR(ROUND(100*(CR:CR-CH:CH)/CH:CH,0)&\"%\",\"INF\"),\"-\")","v":"-"},null,null,null,null,null,null,null,null,null,null,"-"]
[null,null,null,null,null,null,null,null,null,null,null,{"$f":"SUM(I283:I284)","v":0},{"$f":"SUM(K283:K284)","v":0},null,null,null,null,null,null,null,null,null,null,null,null,null,null,null,null,null,null,null,null,null,null,null,null,null,null,{"$f":"IF($R$9=2,AN183,AN270)","v":"Y"},2702,null,null,null,"Carbon Offsetting",null,null,null,null,null,null,null,null,null,null,null,null,null,null,null,null,null,null,null,null,null,null,null,null,null,null,null,null,null,null,null,null,null,null,null,null,null,null,null,null,null,null,null,null,null,null,null,null,null,null,null,null,null,null,null,null,null,null,null,null,null,null,"-"]
[null,"BUILDING RU START",null,null,null,null,null,null,null,null,null,null,null,{"$f":"SUM(L297:L399)","v":0},{"$f":"SUM(M297:M399)/N295","v":{"$error":"#DIV/0!"}},{"$f":"ROUND(18*O295,0)","v":{"$error":"#DIV/0!"}},null,{"$f":"IF(AF295=1,Q298,\"-\")","v":"-"},{"$f":"IFERROR(IF(OR(AF295=0,O295<>0),\"-\",R295),\"-\")","v":"-"},{"$f":"IF(AF295=1,Q302,\"-\")","v":"-"},null,null,null,null,null,null,null,null,null,null,{"$f":"AE183+1","v":2},{"$f":"IF(OR(AE295>$T$168,$R$9<=1),0,1)","v":0},{"$f":"IF($AF295=0,0,IF(LEFT($Q298,3)=\"Res\",1,0))","v":0},{"$f":"IF($AF295=0,0,IF(LEFT($Q298,3)=\"Non\",1,0))","v":0},{"$f":"IF($AF295=0,0,IF(LEFT($Q298,3)=\"Lan\",1,0))","v":0},null,{"$f":"AF295","v":0},{"$f":"ROW()+1","v":296},{"$f":"ROW(AT405)","v":405},{"$f":"IF(AND($R$9>1,AF295=1),\"N\",\"Y\")","v":"Y"},2689,{"$f":"IF(AK295=1,\"+\",\"\")","v":""},{"$f":"\" BUILDINGS REPORTABLE UNIT \"&AE295","v":" BUILDINGS REPORTABLE UNIT 2"},null,null,null,null,{"$f":"IF($R$9=0,\"\",IF(N295=0,\"not req'd at this stage\",\"Progress: \"&ROUND(100*(1-O295),0)&\"%\"))","v":""},null,{"$f":"IF(OR(N295=0,$R$9=0),\"\",REPT(\"g\",18-P295)&REPT(\"c\",P295))","v":""},null,null,null,null,null,null,null,null,null,null,null,null,null,null,null,null,null,null,null,null,null,null,null,null,null,null,null,null,null,null,null,null,null,null,null,null,null,null,null,null,null,null,null,null,null,null,null,null,null,null,null,null,null,null,null,null,null,"-"]
[null,null,null,null,null,null,null,null,null,null,null,{"$f":"SUM(I302:I314)","v":0},{"$f":"SUM(K302:K314)","v":0},null,null,null,null,null,null,null,null,null,null,null,null,null,null,null,null,null,null,null,null,null,null,null,null,null,null,{"$f":"AN300","v":"Y"},2683,null,null,{"$f":"\" BUILDINGS REPORTABLE UNIT \"&AE295&\": ADDRESS/LOCATION INFORMATION\"","v":" BUILDINGS REPORTABLE UNIT 2: ADDRESS/LOCATION INFORMATION"},null,null,null,null,null,null,null,null,null,null,null,null,null,null,null,null,null,null,null,null,null,null,null,null,null,null,null,null,null,null,null,null,null,null,null,null,null,null,null,null,null,null,null,null,null,null,null,null,null,null,null,null,null,null,null,null,null,null,null,null,null,null,null,"-"]
[null,null,"Numerical (with limits)","NULL","constant",null,null,null,0,{"$f":"IF(OR(AX:AX=\"\",AX:AX=\"-\",AX:AX=\" \"),0,1)","v":0},{"$f":"IF(AND(J314=0,I314=1),1,0)","v":0},null,null,null,null,null,null,null,null,null,null,null,null,null,null,null,null,null,null,null,null,null,null,null,null,9,null,null,null,"Y",2670,null,null,null,null,"Longitude (to 6 decimal places, +ve or -ve)",null,{"$f":"IF(AND(I314=0,K314=0,AF295=1),\"Please add if available ->\",\"\")","v":""},null,null,null,null,null,null,null,null,null,null,null,null,null,null,null,null,null,null,null,null,null,null,null,null,null,null,null,null,null,null,null,null,null,null,null,null,null,null,null,null,null,null,null,null,null,null,null,null,null,null,null,null,null,null,null,null,null,null,null,"-"]
[null,null,"Numerical (>=0)","NULL","depends on stage and RU type",null,null,null,{"$f":"I326","v":0},0,null,null,null,null,null,null,null,null,null,null,null,null,null,null,null,null,null,null,null,null,null,null,null,null,null,null,null,null,null,"Y",2657,null,null,null,null,"High street agency (A2 planning classes)","GIA m2",null,null,null,{"$f":"IF(I327=1,\"*\",\"\")","v":""},null,null,null,null,null,null,null,null,null,null,null,null,null,null,null,null,null,null,null,null,null,null,null,null,null,null,null,null,null,null,null,null,null,null,null,null,null,null,null,null,null,null,null,null,null,null,null,null,null,null,null,null,null,null,null,null,"-"]
[null,null,"Numerical (>=0)","NULL","depends on stage and RU type",null,null,null,0,0,null,null,null,null,null,null,null,null,null,null,null,null,null,null,null,null,null,null,null,null,null,null,null,null,null,null,null,null,null,"Y",2648,null,null,null,null,"Entertainment halls (D2 planning classes)","GIA m2",null,null,null,"",null,null,null,null,null,null,null,null,null,null,null,null,null,null,null,null,null,null,null,null,null,null,null,null,null,null,null,null,null,null,null,null,null,null,null,null,null,null,null,null,null,null,null,null,null,null,null,null,null,null,null,null,null,null,null,null,"-"]
[null,null,null,null,null,null,null,null,null,null,null,{"$f":"SUM(I358:I370)","v":0},{"$f":"SUM(K358:K370)","v":0},null,null,null,null,{"$f":"IF(AND(AH295=0,AI295=0),0,IF($R$9=2,Q358,IF($S$9=1,Q360,IF($S$9=2,Q362,IF($S$9=3,Q364,IF($S$9=4,Q366,IF($S$9=5,Q368,0)))))))","v":0},null,null,null,null,null,null,null,null,null,null,null,null,null,null,null,null,null,null,null,null,null,{"$f":"AN324","v":"Y"},2627,null,null,null,{"$f":"IF(Q326=0,\"Display Energy Certificates\",\"Display Energy Certificates or DFP Base Building Energy Rating\")","v":"Display Energy Certificates"},null,null,null,null,null,null,null,null,null,null,null,null,null,null,null,null,null,null,null,null,null,null,null,null,null,null,null,null,null,null,null,null,null,null,null,null,null,null,null,null,null,null,null,null,null,null,null,null,null,null,null,null,null,null,null,null,null,null,null,null,null,null,"-"]
[null,null,null,null,null,null,null,null,null,null,null,null,null,null,null,null,null,null,null,null,null,null,null,null,null,null,null,null,null,null,null,null,null,null,null,null,null,null,null,{"$f":"AN370","v":"Y"},2613,null,null,null,null,null,null,null,null,null,null,null,null,null,null,null,null,null,null,null,null,null,null,null,null,null,null,null,null,null,null,null,null,null,null,null,null,null,null,null,null,null,null,null,null,null,null,null,null,null,null,null,null,null,null,null,null,null,null,null,null,null,null,null,null,null,null,"-"]
[null,null,null,"NULL_YEARS",null,null,null,null,0,null,null,null,null,null,null,null,null,null,null,null,null,null,null,null,null,null,null,null,null,null,null,null,null,null,null,null,null,null,null,"Y",2604,null,null,null,null,"Annual Biomass Use (if applicable)","kWh/yr",null,null,null,null,null,null,null,null,null,"-",null,null,null,null,null,null,null,null,null,"-",null,null,null,null,null,null,null,null,null,"-",null,null,null,null,null,null,null,null,null,"-",null,null,null,null,null,null,null,null,null,"-",null,null,null,null,null,null,null,null,null,null,"-"]
[null,null,null,"NULL_YEARS",null,null,null,null,{"$f":"I392","v":0},null,null,null,null,null,null,null,null,null,null,null,null,null,null,null,null,null,null,null,null,null,null,null,null,null,null,null,null,null,null,"Y",{"$f":"IF(AN394=AN393,AO394+1,1)","v":2591},null,null,null,null,"District Clg Exported (if applicable)","kWh/yr",null,null,null,null,null,null,null,null,null,{"$f":"IF(AND(BD:BD<>\"\",BA:BA<>\"\"),IFERROR(ROUND(100*(BD:BD-BA:BA)/BA:BA,0)&\"%\",\"INF\"),\"-\")","v":"-"},null,null,null,null,null,null,null,null,null,{"$f":"IF(AND(BN:BN<>\"\",BD:BD<>\"\"),IFERROR(ROUND(100*(BN:BN-BD:BD)/BD:BD,0)&\"%\",\"INF\"),\"-\")","v":"-"},null,null,null,null,null,null,null,null,null,{"$f":"IF(AND(BX:BX<>\"\",BN:BN<>\"\"),IFERROR(ROUND(100*(BX:BX-BN:BN)/BN:BN,0)&\"%\",\"INF\"),\"-\")","v":"-"},null,null,null,null,null,null,null,null,null,{"$f":"IF(AND(CH:CH<>\"\",BX:BX<>\"\"),IFERROR(ROUND(100*(CH:CH-BX:BX)/BX:BX,0)&\"%\",\"INF\"),\"-\")","v":"-"},null,null,null,null,null,null,null,null,null,{"$f":"IF(AND(CR:CR<>\"\",CH:CH<>\"\"),IFERROR(ROUND(100*(CR:CR-CH:CH)/CH:CH,0)&\"%\",\"INF\"),\"-\")","v":"-"},null,null,null,null,null,null,null,null,null,null,"-"]
[null,null,"-","NULL",null,null,null,null,{"$f":"IF($S$9=4,I399,0)","v":0},0,0,null,null,null,null,null,null,null,null,null,null,null,null,null,null,null,null,null,null,null,null,null,null,null,null,null,null,null,null,{"$f":"IF($S$9=4,AN399,\"Y\")","v":"Y"},2580,null,null,null,null,"Operational Years 3 to 4",null,"",null,null,"",null,null,null,null,null,null,null,null,null,null,null,null,null,null,null,null,null,null,null,null,null,null,null,null,null,null,null,null,null,null,null,null,null,null,null,null,null,null,null,null,null,null,null,null,null,null,null,null,null,null,null,null,null,null,null,null,"-"]
[null,null,null,null,null,null,null,null,null,null,null,null,null,null,null,null,null,null,null,null,null,null,null,null,null,null,null,null,null,null,null,null,null,null,null,null,null,null,null,{"$f":"AN407","v":"Y"},2572,null,null,null,null,null,null,null,null,null,null,null,null,null,null,null,null,null,null,null,null,null,null,null,null,null,null,null,null,null,null,null,null,null,null,null,null,null,null,null,null,null,null,null,null,null,null,null,null,null,null,null,null,null,null,null,null,null,null,null,null,null,null,null,null,null,null,"-"]
[null,null,"Numerical (with limits)","NULL","constant",null,null,null,0,{"$f":"IF(OR(AX:AX=\"\",AX:AX=\"-\",AX:AX=\" \"),0,1)","v":0},{"$f":"IF(AND(J425=0,I425=1),1,0)","v":0},null,null,null,null,null,null,null,null,null,null,null,null,null,null,null,null,null,null,null,null,null,null,null,null,8,null,null,null,"Y",2559,null,null,null,null,"Latitude (to 6 decimal places)",null,{"$f":"IF(AND(I425=0,K425=0,AF407=1),\"Please add if available ->\",\"\")","v":""},null,null,null,null,null,null,null,null,null,null,null,null,null,null,null,null,null,null,null,null,null,null,null,null,null,null,null,null,null,null,null,null,null,null,null,null,null,null,null,null,null,null,null,null,null,null,null,null,null,null,null,null,null,null,null,null,null,null,null,"-"]
[null,null,"Integer (>=0)","NULL","depends on stage and RU type",null,null,null,{"$f":"I432","v":0},{"$f":"IF(OR(AX:AX=\"\",AX:AX=\"-\",AX:AX=\" \",R433=0),0,1)","v":0},{"$f":"IF(AND(J434=0,I434=1),1,0)","v":0},null,null,null,null,null,{"$f":"AX:AX","v":0},null,null,null,null,null,null,null,null,null,null,null,null,null,null,null,null,null,null,null,null,null,null,"Y",2550,null,null,null,null,"Flats","number",{"$f":"IF(K434=1,\"Must complete ->\",\"\")","v":""},null,null,{"$f":"IF(I434=1,\"*\",\"\")","v":""},null,null,null,null,null,null,null,null,null,null,null,null,null,null,null,null,null,null,null,null,null,null,null,null,null,null,null,null,null,null,null,null,null,null,null,null,null,null,null,null,null,null,null,null,null,null,null,null,null,null,null,null,null,null,null,null,"-"]
[null,null,"Numerical (>=0)","NULL","depends on stage and RU type",null,null,null,0,0,null,null,null,null,null,null,null,null,null,null,null,null,null,null,null,null,null,null,null,null,null,null,null,null,null,null,null,null,null,"Y",2537,null,null,null,null,"Cultural Activities","GIA m2",null,null,null,"",null,null,null,null,null,null,null,null,null,null,null,null,null,null,null,null,null,null,null,null,null,null,null,null,null,null,null,null,null,null,null,null,null,null,null,null,null,null,null,null,null,null,null,null,null,null,null,null,null,null,null,null,null,null,null,null,"-"]
[null,null,"Numerical (>=0)","NULL","depends on stage and RU type",null,null,null,0,0,null,null,null,null,null,null,null,null,null,null,null,null,null,null,null,null,null,null,null,null,null,null,null,null,null,null,null,null,null,"Y",2518,null,null,null,null,"Cold Storage (B8 planning classes)","GIA m2",null,null,null,"",null,null,null,null,null,null,null,null,null,null,null,null,null,null,null,null,null,null,null,null,null,null,null,null,null,null,null,null,null,null,null,null,null,null,null,null,null,null,null,null,null,null,null,null,null,null,null,null,null,null,null,null,null,null,null,null,"-"]
[null,null,"List","Select from list","depends on stage and RU type & year",0,0,{"$f":"IF($S$9=4,1,0)","v":0},{"$f":"IF(AND(AH407=0,AI407=0),0,IFERROR(INDEX(F478:H478,$R$9),0))","v":0},{"$f":"IF(OR(AX:AX=\"\",AX:AX=\"-\",AX:AX=\" \",AX:AX=\"Select from list\"),0,1)","v":0},0,null,null,null,null,null,{"$f":"IF(AND(OR(AH407=1,AI407=1),AX:AX=\"Yes\"),1,0)","v":0},null,null,null,null,null,null,null,null,null,null,null,null,null,null,null,null,null,null,null,null,{"$f":"ROW()+1","v":479},{"$f":"AM476","v":510},{"$f":"IF($S$9=4,AN469,\"Y\")","v":"Y"},2506,null,null,null,null,{"$f":"IF(Q438=0,\"Does this RU have a DEC for y4?\",\"Does this RU have a DEC/DFP base bldg energy rating for y4?\")","v":"Does this RU have a DEC for y4?"},null,"",null,"Select from list","",null,null,null,null,null,null,null,null,null,null,null,null,null,null,null,null,null,null,null,null,null,null,null,null,null,null,null,null,null,null,null,null,null,null,null,null,null,null,null,null,null,null,null,null,null,null,null,null,null,null,null,null,null,null,null,null,"-"]
[null,null,null,"NULL_YEARS",null,null,null,null,{"$f":"I490","v":0},null,null,null,null,null,null,null,null,null,null,null,null,null,null,null,null,null,null,null,null,null,null,null,null,null,null,null,null,null,null,{"$f":"AN490","v":"Y"},2493,null,null,null,null,"Annual Oil Use (if applicable)","kWh/yr",null,null,null,null,null,null,null,null,null,"-",null,null,null,null,null,null,null,null,null,"-",null,null,null,null,null,null,null,null,null,"-",null,null,null,null,null,null,null,null,null,"-",null,null,null,null,null,null,null,null,null,"-",null,null,null,null,null,null,null,null,null,null,"-"]
[null,null,null,null,null,null,null,null,null,null,null,null,null,null,null,null,null,null,null,null,null,null,null,null,null,null,null,null,null,null,null,null,null,null,null,null,null,null,null,{"$f":"AN407","v":"Y"},2484,null,null,null,"Energy Storage Equipment",null,null,null,null,null,null,null,null,null,null,null,null,null,null,null,null,null,null,null,null,null,null,null,null,null,null,null,null,null,null,null,null,null,null,null,null,null,null,null,null,null,null,null,null,null,null,null,null,null,null,null,null,null,null,null,null,null,null,null,null,null,null,"-"]
[null,null,null,null,null,null,null,null,null,null,null,null,null,null,null,null,null,null,null,null,null,null,null,null,null,null,null,null,null,null,null,null,null,null,null,null,null,null,null,{"$f":"AN407","v":"Y"},2475,null,null,null,null,null,null,null,null,null,null,null,null,null,null,null,null,null,null,null,null,null,null,null,null,null,null,null,null,null,null,null,null,null,null,null,null,null,null,null,null,null,null,null,null,null,null,null,null,null,null,null,null,null,null,null,null,null,null,null,null,null,null,null,null,null,null,"-"]
[null,null,"List_No_VBA","Select from list","depends on stage and RU type",0,1,1,{"$f":"IF(AI519<>1,0,IFERROR(INDEX(F523:H523,$R$9),0))","v":0},{"$f":"IF(OR(AI519=0,Q523=\"-\"),0,IF(ISERROR(MATCH(Q523,$W$8:$W$32,0)),0,1))","v":0},{"$f":"IF(AND(J523=0,I523=1),1,0)","v":0},null,null,null,null,null,{"$f":"IF(AND(AX:AX<>\"Select from list\",AX:AX<>\"\",AX:AX<>\"No residential RUs listed\"),IFERROR(LEFT(AX:AX,FIND(\"(\",AX:AX)-2),\"-\"),\"-\")","v":"-"},null,null,null,null,null,null,null,null,null,null,null,null,null,null,null,null,null,null,null,null,null,null,{"$f":"IF(AI519=1,AN519,\"Y\")","v":"Y"},2461,null,null,null,"Which residential RU does this landlord area belong to?",null,null,{"$f":"IF(K523=1,\"Select resi RU ->\",\"\")","v":""},null,"Select from list",{"$f":"IF(I523=1,\"*\",\"\")","v":""},null,null,null,null,null,null,null,null,null,null,null,null,null,null,null,null,null,null,null,null,null,null,null,null,null,null,null,null,null,null,null,null,null,null,null,null,null,null,null,null,null,null,null,null,null,null,null,null,null,null,null,null,null,null,null,null,"-"]
[null,null,"-","NULL","depends on stage",0,1,1,{"$f":"I528","v":0},0,0,null,null,null,null,null,null,null,null,null,null,null,null,null,null,null,null,null,null,null,null,null,null,null,null,5,null,null,null,"Y",2452,null,null,null,null,"Post Town",null,{"$f":"IF(K532=1,\"Must complete ->\",\"\")","v":""},null,null,{"$f":"IF(I532=1,\"*\",\"\")","v":""},null,null,null,null,null,null,null,null,null,null,null,null,null,null,null,null,null,null,null,null,null,null,null,null,null,null,null,null,null,null,null,null,null,null,null,null,null,null,null,null,null,null,null,null,null,null,null,null,null,null,null,null,null,null,null,null,"-"]
[null,null,null,null,null,null,null,null,null,null,null,null,null,null,null,null,null,{"$f":"IFERROR(SUM(Q546:Q547),0)","v":0},null,null,null,null,null,null,null,null,null,null,null,null,null,null,null,null,null,null,null,null,null,"Y",2439,null,null,null,null,"Dwelling Counts",null,null,null,null,null,null,null,null,null,null,null,null,null,null,null,null,null,null,null,null,null,null,null,null,null,null,null,null,null,null,null,null,null,null,null,null,null,null,null,null,null,null,null,null,null,null,null,null,null,null,null,null,null,null,null,null,null,null,null,null,null,"-"]
[null,null,"Numerical (>=0)","NULL","depends on stage and RU type",null,null,null,0,0,null,null,null,null,null,null,null,null,null,null,null,null,null,null,null,null,null,null,null,null,null,null,null,null,null,null,null,null,null,"Y",2428,null,null,null,null,"Restaurant (A3, A5 planning classes)","GIA m2",null,null,null,"",null,null,null,null,null,null,null,null,null,null,null,null,null,null,null,null,null,null,null,null,null,null,null,null,null,null,null,null,null,null,null,null,null,null,null,null,null,null,null,null,null,null,null,null,null,null,null,null,null,null,null,null,null,null,null,null,"-"]
[null,null,"Numerical (>=0)","NULL","depends on stage and RU type",null,null,null,0,0,null,null,null,null,null,null,null,null,null,null,null,null,null,null,null,null,null,null,null,null,null,null,null,null,null,null,null,null,null,"Y",2408,null,null,null,null,"Workshop (B1, B2 planning classes)","GIA m2",null,null,null,"",null,null,null,null,null,null,null,null,null,null,null,null,null,null,null,null,null,null,null,null,null,null,null,null,null,null,null,null,null,null,null,null,null,null,null,null,null,null,null,null,null,null,null,null,null,null,null,null,null,null,null,null,null,null,null,null,"-"]
[null,null,"-","NULL","depends on stage and RU type & year",null,null,null,{"$f":"IF(Q588=1,I588,0)","v":0},{"$f":"IF(OR(AX:AX=\"\",AX:AX=\"-\",AX:AX=\" \"),0,1)","v":0},0,null,null,null,null,null,null,null,null,null,null,null,null,null,null,null,null,null,null,null,null,null,null,null,null,null,null,null,null,{"$f":"IF(Q588=1,AN588,\"Y\")","v":"Y"},2395,null,null,null,null,"What is the XML filename?",null,"",null,null,"",null,null,null,null,null,null,null,null,null,null,null,null,null,null,null,null,null,null,null,null,null,null,null,null,null,null,null,null,null,null,null,null,null,null,null,null,null,null,null,null,null,null,null,null,null,null,null,null,null,null,null,null,null,null,null,null,"-"]
[null,null,null,null,null,null,null,null,null,null,null,null,null,null,null,null,null,null,null,null,null,null,null,null,null,null,null,null,null,null,null,null,null,null,null,null,null,null,null,"Y",2386,null,null,null,null,null,null,null,null,null,null,null,null,null,null,null,null,null,null,null,null,null,null,null,null,null,null,null,null,null,null,null,null,null,null,null,null,null,null,null,null,null,null,null,null,null,null,null,null,null,null,null,null,null,null,null,null,null,null,null,null,null,null,null,null,null,null,"-"]
[null,null,null,"NULL_YEARS",null,null,null,null,0,null,null,null,null,null,null,null,null,null,null,null,null,null,null,null,null,null,null,null,null,null,null,null,null,null,null,null,null,null,null,"Y",2373,null,null,null,null,"Renewable Electricity, Used on Site (if applicable)","kWh/yr",null,null,null,null,null,null,null,null,null,{"$f":"IF(AND(BD:BD<>\"\",BA:BA<>\"\"),IFERROR(ROUND(100*(BD:BD-BA:BA)/BA:BA,0)&\"%\",\"INF\"),\"-\")","v":"-"},null,null,null,null,null,null,null,null,null,{"$f":"IF(AND(BN:BN<>\"\",BD:BD<>\"\"),IFERROR(ROUND(100*(BN:BN-BD:BD)/BD:BD,0)&\"%\",\"INF\"),\"-\")","v":"-"},null,null,null,null,null,null,null,null,null,{"$f":"IF(AND(BX:BX<>\"\",BN:BN<>\"\"),IFERROR(ROUND(100*(BX:BX-BN:BN)/BN:BN,0)&\"%\",\"INF\"),\"-\")","v":"-"},null,null,null,null,null,null,null,null,null,{"$f":"IF(AND(CH:CH<>\"\",BX:BX<>\"\"),IFERROR(ROUND(100*(CH:CH-BX:BX)/BX:BX,0)&\"%\",\"INF\"),\"-\")","v":"-"},null,null,null,null,null,null,null,null,null,{"$f":"IF(AND(CR:CR<>\"\",CH:CH<>\"\"),IFERROR(ROUND(100*(CR:CR-CH:CH)/CH:CH,0)&\"%\",\"INF\"),\"-\")","v":"-"},null,null,null,null,null,null,null,null,null,null,"-"]
[null,null,null,null,null,null,null,null,null,null,null,{"$f":"SUM(I619:I620)","v":0},{"$f":"SUM(K619:K620)","v":0},null,null,null,null,null,null,null,null,null,null,null,null,null,null,null,null,null,null,null,null,null,null,null,null,null,null,{"$f":"IF($R$9=2,AN519,AN606)","v":"Y"},2366,null,null,null,"Carbon Offsetting",null,null,null,null,null,null,null,null,null,null,null,null,null,null,null,null,null,null,null,null,null,null,null,null,null,null,null,null,null,null,null,null,null,null,null,null,null,null,null,null,null,null,null,null,null,null,null,null,null,null,null,null,null,null,null,null,null,null,null,null,null,null,"-"]
[null,"BUILDING RU END",null,null,null,null,null,null,null,null,null,null,null,null,null,null,null,null,null,null,null,null,null,null,null,null,null,null,null,null,null,null,null,null,null,null,null,null,null,{"$f":"AN519","v":"Y"},2354,null,null,null,null,null,null,null,null,null,null,null,null,null,null,null,null,null,null,null,null,null,null,null,null,null,null,null,null,null,null,null,null,null,null,null,null,null,null,null,null,null,null,null,null,null,null,null,null,null,null,null,null,null,null,null,null,null,null,null,null,null,null,null,null,null,null,"-"]
[null,null,"-","NULL","constant",null,null,null,0,0,0,null,null,null,null,null,null,null,null,null,null,null,null,null,null,null,null,null,null,null,null,null,null,null,null,4,null,null,null,"Y",2341,null,null,null,null,"Address Line 4",null,null,null,null,null,null,null,null,null,null,null,null,null,null,null,null,null,null,null,null,null,null,null,null,null,null,null,null,null,null,null,null,null,null,null,null,null,null,null,null,null,null,null,null,null,null,null,null,null,null,null,null,null,null,null,null,null,null,null,null,null,"-"]
[null,null,"Numerical (>=0)","NULL","depends on stage and RU type",null,null,null,{"$f":"I663","v":0},0,null,null,null,null,null,null,null,null,null,null,null,null,null,null,null,null,null,null,null,null,null,null,null,null,null,null,null,null,null,"Y",2320,null,null,null,null,"General retail (A1, SG planning classes)","GIA m2",null,null,null,"",null,null,null,null,null,null,null,null,null,null,null,null,null,null,null,null,null,null,null,null,null,null,null,null,null,null,null,null,null,null,null,null,null,null,null,null,null,null,null,null,null,null,null,null,null,null,null,null,null,null,null,null,null,null,null,null,"-"]
[null,null,"Numerical (>=0)","NULL","depends on stage and RU type",null,null,null,0,0,null,null,null,null,null,null,null,null,null,null,null,null,null,null,null,null,null,null,null,null,null,null,null,null,null,null,null,null,null,"Y",2306,null,null,null,null,"Schools and seasonal public buildings (D1, D2 planning classes)","GIA m2",null,null,null,"",null,null,null,null,null,null,null,null,null,null,null,null,null,null,null,null,null,null,null,null,null,null,null,null,null,null,null,null,null,null,null,null,null,null,null,null,null,null,null,null,null,null,null,null,null,null,null,null,null,null,null,null,null,null,null,null,"-"]
[null,null,"Numerical (>=0)","NULL","depends on stage and RU type",null,null,null,0,0,null,null,null,null,null,null,null,null,null,null,null,null,null,null,null,null,null,null,null,null,null,null,null,null,null,null,null,null,null,"Y",2297,null,null,null,null,"Terminal (B8 planning classes)","GIA m2",null,null,null,"",null,null,null,null,null,null,null,null,null,null,null,null,null,null,null,null,null,null,null,null,null,null,null,null,null,null,null,null,null,null,null,null,null,null,null,null,null,null,null,null,null,null,null,null,null,null,null,null,null,null,null,null,null,null,null,null,"-"]
[null,null,"List","Select from list","depends on stage and RU type & year",0,0,{"$f":"IF($S$9=1,1,0)","v":0},{"$f":"IF(AND(AH631=0,AI631=0),0,IFERROR(INDEX(F696:H696,$R$9),0))","v":0},{"$f":"IF(OR(AX:AX=\"\",AX:AX=\"-\",AX:AX=\" \",AX:AX=\"Select from list\"),0,1)","v":0},0,null,null,null,null,null,{"$f":"IF(AND(OR(AH631=1,AI631=1),AX:AX=\"Yes\"),1,0)","v":0},null,null,null,null,null,null,null,null,null,null,null,null,null,null,null,null,null,null,null,null,{"$f":"ROW()+1","v":697},{"$f":"AM694","v":734},{"$f":"IF($S$9=1,AN693,\"Y\")","v":"Y"},2288,null,null,null,null,{"$f":"IF(Q662=0,\"Does this RU have a DEC for y1?\",\"Does this RU have a DEC/DFP base bldg energy rating for y1?\")","v":"Does this RU have a DEC for y1?"},null,"",null,"Select from list","",null,null,null,null,null,null,null,null,null,null,null,null,null,null,null,null,null,null,null,null,null,null,null,null,null,null,null,null,null,null,null,null,null,null,null,null,null,null,null,null,null,null,null,null,null,null,null,null,null,null,null,null,null,null,null,null,"-"]
[null,null,"List_No_VBA","Select from list","depends on stage on RU",0,1,1,{"$f":"IF(OR(AF631=0,R693=1),0,IFERROR(INDEX(F709:H709,$R$9),0))","v":0},{"$f":"IF(OR(AX:AX=\"\",AX:AX=\"Select from list\"),0,1)","v":0},{"$f":"IF(AND(J709=0,I709=1),1,0)","v":0},null,null,null,null,null,null,null,null,null,null,null,null,null,null,null,null,null,null,null,null,null,null,null,null,null,null,null,null,{"$f":"AN708","v":"Y"},2275,null,null,null,"HVAC System (most common by area)",null,null,{"$f":"IF(K709=1,\"To complete ->\",\"\")","v":""},null,"Select from list",{"$f":"IF(I709=1,\"*\",\"\")","v":""},null,null,null,null,null,null,null,null,null,null,null,null,null,null,null,null,null,null,null,null,null,null,null,null,null,null,null,null,null,null,null,null,null,null,null,null,null,null,null,null,null,null,null,null,null,null,null,null,null,null,null,null,null,null,null,null,"-"]
[null,null,null,"NULL_YEARS",null,null,null,null,{"$f":"I720","v":0},null,null,null,null,null,null,null,null,null,null,null,null,null,null,null,null,null,null,null,null,null,null,null,null,null,null,null,null,null,null,"Y",2263,null,null,null,null,"Solar Thermal Generation (if applicable)","kWh/yr",null,null,null,null,null,null,null,null,null,{"$f":"IF(AND(BD:BD<>\"\",BA:BA<>\"\"),IFERROR(ROUND(100*(BD:BD-BA:BA)/BA:BA,0)&\"%\",\"INF\"),\"-\")","v":"-"},null,null,null,null,null,null,null,null,null,{"$f":"IF(AND(BN:BN<>\"\",BD:BD<>\"\"),IFERROR(ROUND(100*(BN:BN-BD:BD)/BD:BD,0)&\"%\",\"INF\"),\"-\")","v":"-"},null,null,null,null,null,null,null,null,null,{"$f":"IF(AND(BX:BX<>\"\",BN:BN<>\"\"),IFERROR(ROUND(100*(BX:BX-BN:BN)/BN:BN,0)&\"%\",\"INF\"),\"-\")","v":"-"},null,null,null,null,null,null,null,null,null,{"$f":"IF(AND(CH:CH<>\"\",BX:BX<>\"\"),IFERROR(ROUND(100*(CH:CH-BX:BX)/BX:BX,0)&\"%\",\"INF\"),\"-\")","v":"-"},null,null,null,null,null,null,null,null,null,{"$f":"IF(AND(CR:CR<>\"\",CH:CH<>\"\"),IFERROR(ROUND(100*(CR:CR-CH:CH)/CH:CH,0)&\"%\",\"INF\"),\"-\")","v":"-"},null,null,null,null,null,null,null,null,null,null,"-"]
[null,null,null,"NULL_YEARS",null,null,null,null,{"$f":"I726","v":0},null,null,null,null,null,null,null,null,null,null,null,null,null,null,null,null,null,null,null,null,null,null,null,null,null,null,null,null,null,null,"Y",2256,null,null,null,null,"District Htg Exported (if applicable)","kWh/yr",null,null,null,null,null,null,null,null,null,{"$f":"IF(AND(BD:BD<>\"\",BA:BA<>\"\"),IFERROR(ROUND(100*(BD:BD-BA:BA)/BA:BA,0)&\"%\",\"INF\"),\"-\")","v":"-"},null,null,null,null,null,null,null,null,null,{"$f":"IF(AND(BN:BN<>\"\",BD:BD<>\"\"),IFERROR(ROUND(100*(BN:BN-BD:BD)/BD:BD,0)&\"%\",\"INF\"),\"-\")","v":"-"},null,null,null,null,null,null,null,null,null,{"$f":"IF(AND(BX:BX<>\"\",BN:BN<>\"\"),IFERROR(ROUND(100*(BX:BX-BN:BN)/BN:BN,0)&\"%\",\"INF\"),\"-\")","v":"-"},null,null,null,null,null,null,null,null,null,{"$f":"IF(AND(CH:CH<>\"\",BX:BX<>\"\"),IFERROR(ROUND(100*(CH:CH-BX:BX)/BX:BX,0)&\"%\",\"INF\"),\"-\")","v":"-"},null,null,null,null,null,null,null,null,null,{"$f":"IF(AND(CR:CR<>\"\",CH:CH<>\"\"),IFERROR(ROUND(100*(CR:CR-CH:CH)/CH:CH,0)&\"%\",\"INF\"),\"-\")","v":"-"},null,null,null,null,null,null,null,null,null,null,"-"]
[null,null,"-","NULL",null,null,null,null,{"$f":"IF($S$9=5,I735,0)","v":0},0,0,null,null,null,null,null,null,null,null,null,null,null,null,null,null,null,null,null,null,null,null,null,null,null,null,null,null,null,null,{"$f":"IF($S$9=5,AN735,\"Y\")","v":"Y"},2243,null,null,null,null,"Operational Years 4 to 5",null,"",null,null,"",null,null,null,null,null,null,null,null,null,null,null,null,null,null,null,null,null,null,null,null,null,null,null,null,null,null,null,null,null,null,null,null,null,null,null,null,null,null,null,null,null,null,null,null,null,null,null,null,null,null,null,null,null,null,null,null,"-"]
[null,null,"Numerical (with limits)","NULL","constant",null,null,null,0,{"$f":"IF(OR(AX:AX=\"\",AX:AX=\"-\",AX:AX=\" \"),0,1)","v":0},{"$f":"IF(AND(J762=0,I762=1),1,0)","v":0},null,null,null,null,null,null,null,null,null,null,null,null,null,null,null,null,null,null,null,null,null,null,null,null,9,null,null,null,"Y",2222,null,null,null,null,"Longitude (to 6 decimal places, +ve or -ve)",null,{"$f":"IF(AND(I762=0,K762=0,AF743=1),\"Please add if available ->\",\"\")","v":""},null,null,null,null,null,null,null,null,null,null,null,null,null,null,null,null,null,null,null,null,null,null,null,null,null,null,null,null,null,null,null,null,null,null,null,null,null,null,null,null,null,null,null,null,null,null,null,null,null,null,null,null,null,null,null,null,null,null,null,"-"]
[null,null,"Numerical (>=0)","NULL","depends on stage and RU type",null,null,null,{"$f":"I774","v":0},0,null,null,null,null,null,null,null,null,null,null,null,null,null,null,null,null,null,null,null,null,null,null,null,null,null,null,null,null,null,"Y",2209,null,null,null,null,"High street agency (A2 planning classes)","GIA m2",null,null,null,{"$f":"IF(I775=1,\"*\",\"\")","v":""},null,null,null,null,null,null,null,null,null,null,null,null,null,null,null,null,null,null,null,null,null,null,null,null,null,null,null,null,null,null,null,null,null,null,null,null,null,null,null,null,null,null,null,null,null,null,null,null,null,null,null,null,null,null,null,null,"-"]
[null,null,"Numerical (>=0)","NULL","depends on stage and RU type",null,null,null,0,0,null,null,null,null,null,null,null,null,null,null,null,null,null,null,null,null,null,null,null,null,null,null,null,null,null,null,null,null,null,"Y",2201,null,null,null,null,"Cultural Activities","GIA m2",null,null,null,"",null,null,null,null,null,null,null,null,null,null,null,null,null,null,null,null,null,null,null,null,null,null,null,null,null,null,null,null,null,null,null,null,null,null,null,null,null,null,null,null,null,null,null,null,null,null,null,null,null,null,null,null,null,null,null,null,"-"]
[null,null,"Numerical (>=0)","NULL","depends on stage and RU type",null,null,null,0,0,null,null,null,null,null,null,null,null,null,null,null,null,null,null,null,null,null,null,null,null,null,null,null,null,null,null,null,null,null,"Y",2190,null,null,null,null,"Long term residential (C1, C2, C2A planning classes)","GIA m2",null,null,null,"",null,null,null,null,null,null,null,null,null,null,null,null,null,null,null,null,null,null,null,null,null,null,null,null,null,null,null,null,null,null,null,null,null,null,null,null,null,null,null,null,null,null,null,null,null,null,null,null,null,null,null,null,null,null,null,null,"-"]
[null,null,"-","NULL","depends on stage and RU type & year",null,null,null,{"$f":"IF(Q806=1,I806,0)","v":0},{"$f":"IF(OR(AX:AX=\"\",AX:AX=\"-\",AX:AX=\" \"),0,1)","v":0},0,null,null,null,null,null,null,null,null,null,null,null,null,null,null,null,null,null,null,null,null,null,null,null,null,null,null,null,null,{"$f":"IF(Q806=1,AN806,\"Y\")","v":"Y"},2177,null,null,null,null,"What is the XML filename?",null,{"$f":"IF(K807=1,\"To complete ->\",\"\")","v":""},null,null,{"$f":"IF(I807=1,\"*\",\"\")","v":""},null,null,null,null,null,null,null,null,null,null,null,null,null,null,null,null,null,null,null,null,null,null,null,null,null,null,null,null,null,null,null,null,null,null,null,null,null,null,null,null,null,null,null,null,null,null,null,null,null,null,null,null,null,null,null,null,"-"]
[null,null,"List","Select from list","depends on stage and RU type & year",0,0,{"$f":"IF($S$9=5,1,0)","v":0},{"$f":"IF(AND(AH743=0,AI743=0),0,IFERROR(INDEX(F816:H816,$R$9),0))","v":0},{"$f":"IF(OR(AX:AX=\"\",AX:AX=\"-\",AX:AX=\" \",AX:AX=\"Select from list\"),0,1)","v":0},0,null,null,null,null,null,{"$f":"IF(AND(OR(AH743=1,AI743=1),AX:AX=\"Yes\"),1,0)","v":0},null,null,null,null,null,null,null,null,null,null,null,null,null,null,null,null,null,null,null,null,{"$f":"ROW()+1","v":817},{"$f":"AM814","v":846},{"$f":"IF($S$9=5,AN805,\"Y\")","v":"Y"},2168,null,null,null,null,{"$f":"IF(Q774=0,\"Does this RU have a DEC for y5?\",\"Does this RU have a DEC/DFP base bldg energy rating for y5?\")","v":"Does this RU have a DEC for y5?"},null,"",null,"Select from list","",null,null,null,null,null,null,null,null,null,null,null,null,null,null,null,null,null,null,null,null,null,null,null,null,null,null,null,null,null,null,null,null,null,null,null,null,null,null,null,null,null,null,null,null,null,null,null,null,null,null,null,null,null,null,null,null,"-"]
[null,null,null,"NULL_YEARS",null,null,null,null,0,null,null,null,null,null,null,null,null,null,null,null,null,null,null,null,null,null,null,null,null,null,null,null,null,null,null,null,null,null,null,"Y",2154,null,null,null,null,"Annual District Clg Use (if applicable)","kWh/yr",null,null,null,null,null,null,null,null,null,"-",null,null,null,null,null,null,null,null,null,"-",null,null,null,null,null,null,null,null,null,"-",null,null,null,null,null,null,null,null,null,"-",null,null,null,null,null,null,null,null,null,"-",null,null,null,null,null,null,null,null,null,null,"-"]
[null,null,null,null,null,null,null,null,null,null,null,null,null,null,null,null,null,null,null,null,null,null,null,null,null,null,null,null,null,null,null,null,null,null,null,null,null,null,null,{"$f":"AN824","v":"Y"},2145,null,null,null,"Plant Parameters (energy exported)",null,null,null,null,null,null,null,null,null,null,null,null,null,null,null,null,null,null,null,null,null,null,null,null,null,null,null,null,null,null,null,null,null,null,null,null,null,null,null,null,null,null,null,null,null,null,null,null,null,null,null,null,null,null,null,null,null,null,null,null,null,null,"-"]
[null,null,null,null,null,null,null,null,null,null,null,null,null,null,null,null,null,null,null,null,null,null,null,null,null,null,null,null,null,null,null,null,null,null,null,null,null,null,null,{"$f":"AN855","v":"Y"},2124,null,null,null,null,null,null,null,null,null,null,null,null,null,null,null,null,null,null,null,null,null,null,null,null,null,null,null,null,null,null,null,null,null,null,null,null,null,null,null,null,null,null,null,null,null,null,null,null,null,null,null,null,null,null,null,null,null,null,null,null,null,null,null,null,null,null,"-"]
[null,null,"Numerical (with limits)","NULL","constant",null,null,null,0,{"$f":"IF(OR(AX:AX=\"\",AX:AX=\"-\",AX:AX=\" \"),0,1)","v":0},{"$f":"IF(AND(J873=0,I873=1),1,0)","v":0},null,null,null,null,null,null,null,null,null,null,null,null,null,null,null,null,null,null,null,null,null,null,null,null,8,null,null,null,"Y",2111,null,null,null,null,"Latitude (to 6 decimal places)",null,{"$f":"IF(AND(I873=0,K873=0,AF855=1),\"Please add if available ->\",\"\")","v":""},null,null,null,null,null,null,null,null,null,null,null,null,null,null,null,null,null,null,null,null,null,null,null,null,null,null,null,null,null,null,null,null,null,null,null,null,null,null,null,null,null,null,null,null,null,null,null,null,null,null,null,null,null,null,null,null,null,null,null,"-"]
[null,null,"Numerical (>=0)","NULL","depends on stage and RU type",0,1,1,{"$f":"IF(AH855=0,0,IFERROR(INDEX(F886:H886,$R$9),0))","v":0},{"$f":"IF(OR(AX:AX=\"\",AX:AX=\"-\",AX:AX=\" \"),0,1)","v":0},{"$f":"IF(I886=0,0,1-MAX(J886:J914))","v":0},null,null,null,null,null,{"$f":"IF(AH855=0,0,AX:AX)","v":0},null,null,null,null,null,null,null,null,null,null,null,null,null,null,null,null,null,null,null,null,null,null,{"$f":"IF(AH855=1,AN855,\"Y\")","v":"Y"},2098,null,null,null,null,"General office (A2, B1, B8, D1 planning classes)","GIA m2",null,null,null,{"$f":"IF(I886=1,\"*\",\"\")","v":""},null,null,null,null,null,null,null,null,null,null,null,null,null,null,null,null,null,null,null,null,null,null,null,null,null,null,null,null,null,null,null,null,null,null,null,null,null,null,null,null,null,null,null,null,null,null,null,null,null,null,null,null,null,null,null,null,"-"]
[null,null,"Numerical (>=0)","NULL","depends on stage and RU type",null,null,null,0,0,null,null,null,null,null,null,null,null,null,null,null,null,null,null,null,null,null,null,null,null,null,null,null,null,null,null,null,null,null,"Y",2092,null,null,null,null,"Restaurant (A3, A5 planning classes)","GIA m2",null,null,null,"",null,null,null,null,null,null,null,null,null,null,null,null,null,null,null,null,null,null,null,null,null,null,null,null,null,null,null,null,null,null,null,null,null,null,null,null,null,null,null,null,null,null,null,null,null,null,null,null,null,null,null,null,null,null,null,null,"-"]
[null,null,"Numerical (>=0)","NULL","depends on stage and RU type",null,null,null,0,0,null,null,null,null,null,null,null,null,null,null,null,null,null,null,null,null,null,null,null,null,null,null,null,null,null,null,null,null,null,"Y",{"$f":"IF(AN906=AN905,AO906+1,1)","v":2079},null,null,null,null,"Hospital (clinical and research)","GIA m2",null,null,null,"",null,null,null,null,null,null,null,null,null,null,null,null,null,null,null,null,null,null,null,null,null,null,null,null,null,null,null,null,null,null,null,null,null,null,null,null,null,null,null,null,null,null,null,null,null,null,null,null,null,null,null,null,null,null,null,null,"-"]
[null,null,"Numerical (>=0)","NULL","depends on stage and RU type",null,null,null,0,0,null,null,null,null,null,null,null,null,null,null,null,null,null,null,null,null,null,null,null,null,null,null,null,null,null,null,null,null,null,"Y",2070,null,null,null,null,"Cold Storage (B8 planning classes)","GIA m2",null,null,null,"",null,null,null,null,null,null,null,null,null,null,null,null,null,null,null,null,null,null,null,null,null,null,null,null,null,null,null,null,null,null,null,null,null,null,null,null,null,null,null,null,null,null,null,null,null,null,null,null,null,null,null,null,null,null,null,null,"-"]
[null,null,"-","NULL","depends on stage and RU type & year",null,null,null,{"$f":"IF(Q926=1,I926,0)","v":0},{"$f":"IF(OR(AX:AX=\"\",AX:AX=\"-\",AX:AX=\" \"),0,1)","v":0},0,null,null,null,null,null,null,null,null,null,null,null,null,null,null,null,null,null,null,null,null,null,null,null,null,null,null,null,null,{"$f":"IF(Q926=1,AN926,\"Y\")","v":"Y"},2057,null,null,null,null,"What is the XML filename?",null,"",null,null,"",null,null,null,null,null,null,null,null,null,null,null,null,null,null,null,null,null,null,null,null,null,null,null,null,null,null,null,null,null,null,null,null,null,null,null,null,null,null,null,null,null,null,null,null,null,null,null,null,null,null,null,null,null,null,null,null,"-"]
[null,null,null,null,null,null,null,null,null,null,null,null,null,null,null,null,null,null,null,null,null,null,null,null,null,null,null,null,null,null,null,null,null,null,null,null,null,null,null,{"$f":"AN855","v":"Y"},2049,null,null,{"$f":"\" BUILDINGS REPORTABLE UNIT \"&AE855&IF(R692=3,\": ANNUAL ENERGY CONSUMPTION\",\": PREDICTED PERFORMANCE\")","v":" BUILDINGS REPORTABLE UNIT 7: PREDICTED PERFORMANCE"},null,null,null,null,null,null,null,null,"AS-BUILT",null,null,"YEAR 1",null,"Start/End Dates (if available)",null,null,null,null,null,null,null,"YEAR 2",null,"Start/End Dates (if available)",null,null,null,null,null,null,null,"YEAR 3",null,"Start/End Dates (if available)",null,null,null,null,null,null,null,"YEAR 4",null,"Start/End Dates (if available)",null,null,null,null,null,null,null,"YEAR 5",null,"Start/End Dates (if available)",null,null,null,null,null,null,null,null,null,"-"]
[null,null,null,null,null,null,null,null,null,null,null,null,null,null,null,null,null,null,null,null,null,null,null,null,null,null,null,null,null,null,null,null,null,null,null,null,null,null,null,{"$f":"AN957","v":"Y"},2026,null,null,{"$f":"\" BUILDINGS REPORTABLE UNIT \"&AE855&\": GENERAL COMMENTS\"","v":" BUILDINGS REPORTABLE UNIT 7: GENERAL COMMENTS"},null,null,null,null,null,null,null,null,null,null,null,null,null,null,null,null,null,null,null,null,null,null,null,null,null,null,null,null,null,null,null,null,null,null,null,null,null,null,null,null,null,null,null,null,null,null,null,null,null,null,null,null,null,null,null,null,null,null,null,null,null,null,null,"-"]
[null,null,"List_No_VBA","Select from list","depends on stage and RU type",0,1,1,{"$f":"IF(AI967<>1,0,IFERROR(INDEX(F971:H971,$R$9),0))","v":0},{"$f":"IF(OR(AI967=0,Q971=\"-\"),0,IF(ISERROR(MATCH(Q971,$W$8:$W$32,0)),0,1))","v":0},{"$f":"IF(AND(J971=0,I971=1),1,0)","v":0},null,null,null,null,null,{"$f":"IF(AND(AX:AX<>\"Select from list\",AX:AX<>\"\",AX:AX<>\"No residential RUs listed\"),IFERROR(LEFT(AX:AX,FIND(\"(\",AX:AX)-2),\"-\"),\"-\")","v":"-"},null,null,null,null,null,null,null,null,null,null,null,null,null,null,null,null,null,null,null,null,null,null,{"$f":"IF(AI967=1,AN967,\"Y\")","v":"Y"},2013,null,null,null,"Which residential RU does this landlord area belong to?",null,null,{"$f":"IF(K971=1,\"Select resi RU ->\",\"\")","v":""},null,"Select from list",{"$f":"IF(I971=1,\"*\",\"\")","v":""},null,null,null,null,null,null,null,null,null,null,null,null,null,null,null,null,null,null,null,null,null,null,null,null,null,null,null,null,null,null,null,null,null,null,null,null,null,null,null,null,null,null,null,null,null,null,null,null,null,null,null,null,null,null,null,null,"-"]
[null,null,"-","NULL","depends on stage",0,1,1,{"$f":"I976","v":0},0,0,null,null,null,null,null,null,null,null,null,null,null,null,null,null,null,null,null,null,null,null,null,null,null,null,5,null,null,null,"Y",2004,null,null,null,null,"Post Town",null,{"$f":"IF(K980=1,\"Must complete ->\",\"\")","v":""},null,null,{"$f":"IF(I980=1,\"*\",\"\")","v":""},null,null,null,null,null,null,null,null,null,null,null,null,null,null,null,null,null,null,null,null,null,null,null,null,null,null,null,null,null,null,null,null,null,null,null,null,null,null,null,null,null,null,null,null,null,null,null,null,null,null,null,null,null,null,null,null,"-"]
[null,null,"Integer (>=0)","NULL","depends on stage and RU type",null,null,null,{"$f":"I994","v":0},{"$f":"IF(OR(AX:AX=\"\",AX:AX=\"-\",AX:AX=\" \",R993=0),0,1)","v":0},0,null,null,null,null,null,{"$f":"AX:AX","v":0},null,null,null,null,null,null,null,null,null,null,null,null,null,null,null,null,null,null,null,null,null,null,"Y",1989,null,null,null,null,"House","number",{"$f":"IF(K995=1,\"Must complete ->\",\"\")","v":""},null,null,{"$f":"IF(I995=1,\"*\",\"\")","v":""},null,null,null,null,null,null,null,null,null,null,null,null,null,null,null,null,null,null,null,null,null,null,null,null,null,null,null,null,null,null,null,null,null,null,null,null,null,null,null,null,null,null,null,null,null,null,null,null,null,null,null,null,null,null,null,null,"-"]
[null,null,"Numerical (>=0)","NULL","depends on stage and RU type",null,null,null,0,0,null,null,null,null,null,null,null,null,null,null,null,null,null,null,null,null,null,null,null,null,null,null,null,null,null,null,null,null,null,"Y",1981,null,null,null,null,"Large food store","GIA m2",null,null,null,"",null,null,null,null,null,null,null,null,null,null,null,null,null,null,null,null,null,null,null,null,null,null,null,null,null,null,null,null,null,null,null,null,null,null,null,null,null,null,null,null,null,null,null,null,null,null,null,null,null,null,null,null,null,null,null,null,"-"]
[null,null,"Numerical (>=0)","NULL","depends on stage and RU type",null,null,null,0,0,null,null,null,null,null,null,null,null,null,null,null,null,null,null,null,null,null,null,null,null,null,null,null,null,null,null,null,null,null,"Y",1972,null,null,null,null,"Covered car park","GIA m2",null,null,null,"",null,null,null,null,null,null,null,null,null,null,null,null,null,null,null,null,null,null,null,null,null,null,null,null,null,null,null,null,null,null,null,null,null,null,null,null,null,null,null,null,null,null,null,null,null,null,null,null,null,null,null,null,null,null,null,null,"-"]
[null,null,"Numerical (>=0)","NULL","depends on stage and RU type",null,null,null,0,0,null,null,null,null,null,null,null,null,null,null,null,null,null,null,null,null,null,null,null,null,null,null,null,null,null,null,null,null,null,"Y",1959,null,null,null,null,"Storage Facility (B8 planning classes)","GIA m2",null,null,null,"",null,null,null,null,null,null,null,null,null,null,null,null,null,null,null,null,null,null,null,null,null,null,null,null,null,null,null,null,null,null,null,null,null,null,null,null,null,null,null,null,null,null,null,null,null,null,null,null,null,null,null,null,null,null,null,null,"-"]
[null,null,"List","Select from list","depends on stage and RU type & year",0,0,{"$f":"IF($S$9=4,1,0)","v":0},{"$f":"IF(AND(AH967=0,AI967=0),0,IFERROR(INDEX(F1038:H1038,$R$9),0))","v":0},{"$f":"IF(OR(AX:AX=\"\",AX:AX=\"-\",AX:AX=\" \",AX:AX=\"Select from list\"),0,1)","v":0},0,null,null,null,null,null,{"$f":"IF(AND(OR(AH967=1,AI967=1),AX:AX=\"Yes\"),1,0)","v":0},null,null,null,null,null,null,null,null,null,null,null,null,null,null,null,null,null,null,null,null,{"$f":"ROW()+1","v":1039},{"$f":"AM1036","v":1070},{"$f":"IF($S$9=4,AN1029,\"Y\")","v":"Y"},1946,null,null,null,null,{"$f":"IF(Q998=0,\"Does this RU have a DEC for y4?\",\"Does this RU have a DEC/DFP base bldg energy rating for y4?\")","v":"Does this RU have a DEC for y4?"},null,"",null,"Select from list","",null,null,null,null,null,null,null,null,null,null,null,null,null,null,null,null,null,null,null,null,null,null,null,null,null,null,null,null,null,null,null,null,null,null,null,null,null,null,null,null,null,null,null,null,null,null,null,null,null,null,null,null,null,null,null,null,"-"]
[null,null,null,"NULL_YEARS",null,null,null,null,{"$f":"I1054","v":0},null,null,null,null,null,null,null,null,null,null,null,null,null,null,null,null,null,null,null,null,null,null,null,null,null,null,null,null,null,null,{"$f":"AN1048","v":"Y"},1928,null,null,null,null,"Elec Generation, Gross (if applicable)","kWh/yr",null,null,null,null,null,null,null,null,null,{"$f":"IF(AND(BD:BD<>\"\",BA:BA<>\"\"),IFERROR(ROUND(100*(BD:BD-BA:BA)/BA:BA,0)&\"%\",\"INF\"),\"-\")","v":"-"},null,null,null,null,null,null,null,null,null,{"$f":"IF(AND(BN:BN<>\"\",BD:BD<>\"\"),IFERROR(ROUND(100*(BN:BN-BD:BD)/BD:BD,0)&\"%\",\"INF\"),\"-\")","v":"-"},null,null,null,null,null,null,null,null,null,{"$f":"IF(AND(BX:BX<>\"\",BN:BN<>\"\"),IFERROR(ROUND(100*(BX:BX-BN:BN)/BN:BN,0)&\"%\",\"INF\"),\"-\")","v":"-"},null,null,null,null,null,null,null,null,null,{"$f":"IF(AND(CH:CH<>\"\",BX:BX<>\"\"),IFERROR(ROUND(100*(CH:CH-BX:BX)/BX:BX,0)&\"%\",\"INF\"),\"-\")","v":"-"},null,null,null,null,null,null,null,null,null,{"$f":"IF(AND(CR:CR<>\"\",CH:CH<>\"\"),IFERROR(ROUND(100*(CR:CR-CH:CH)/CH:CH,0)&\"%\",\"INF\"),\"-\")","v":"-"},null,null,null,null,null,null,null,null,null,null,"-"]
[null,null,null,null,null,null,null,null,null,null,null,null,null,null,null,null,null,null,null,null,null,null,null,null,null,null,null,null,null,null,null,null,null,null,null,null,null,null,null,{"$f":"AN967","v":"Y"},1915,null,null,null,null,null,null,null,null,null,null,null,null,null,null,null,null,null,null,null,null,null,null,null,null,null,null,null,null,null,null,null,null,null,null,null,null,null,null,null,null,null,null,null,null,null,null,null,null,null,null,null,null,null,null,null,null,null,null,null,null,null,null,null,null,null,null,"-"]
[null,"BUILDING RU END",null,null,null,null,null,null,null,null,null,null,null,null,null,null,null,null,null,null,null,null,null,null,null,null,null,null,null,null,null,null,null,null,null,null,null,null,null,{"$f":"AN967","v":"Y"},1906,null,null,null,null,null,null,null,null,null,null,null,null,null,null,null,null,null,null,null,null,null,null,null,null,null,null,null,null,null,null,null,null,null,null,null,null,null,null,null,null,null,null,null,null,null,null,null,null,null,null,null,null,null,null,null,null,null,null,null,null,null,null,null,null,null,null,"-"]
[null,null,null,null,null,null,null,null,null,null,null,{"$f":"SUM(I1086:I1098)","v":0},{"$f":"SUM(K1086:K1098)","v":0},null,null,null,null,null,null,null,null,null,null,null,null,null,null,null,null,null,null,null,null,null,null,null,null,null,null,{"$f":"AN1084","v":"Y"},1899,null,null,{"$f":"\" BUILDINGS REPORTABLE UNIT \"&AE1079&\": ADDRESS/LOCATION INFORMATION\"","v":" BUILDINGS REPORTABLE UNIT 9: ADDRESS/LOCATION INFORMATION"},null,null,null,null,null,null,null,null,null,null,null,null,null,null,null,null,null,null,null,null,null,null,null,null,null,null,null,null,null,null,null,null,null,null,null,null,null,null,null,null,null,null,null,null,null,null,null,null,null,null,null,null,null,null,null,null,null,null,null,null,null,null,null,"-"]
[null,null,null,null,null,null,null,null,null,null,null,null,null,null,null,null,null,null,null,null,null,null,null,null,null,null,null,null,null,null,null,null,null,null,null,null,null,null,null,"Y",1883,null,null,null,"Overall",null,null,null,null,null,null,null,null,null,null,null,null,null,null,null,null,null,null,null,null,null,null,null,null,null,null,null,null,null,null,null,null,null,null,null,null,null,null,null,null,null,null,null,null,null,null,null,null,null,null,null,null,null,null,null,null,null,null,null,null,null,null,"-"]
[null,null,"Numerical (>=0)","NULL","depends on stage and RU type",0,1,1,{"$f":"IF(AH1079=0,0,IFERROR(INDEX(F1110:H1110,$R$9),0))","v":0},{"$f":"IF(OR(AX:AX=\"\",AX:AX=\"-\",AX:AX=\" \"),0,1)","v":0},{"$f":"IF(I1110=0,0,1-MAX(J1110:J1138))","v":0},null,null,null,null,null,{"$f":"IF(AH1079=0,0,AX:AX)","v":0},null,null,null,null,null,null,null,null,null,null,null,null,null,null,null,null,null,null,null,null,null,null,{"$f":"IF(AH1079=1,AN1079,\"Y\")","v":"Y"},1874,null,null,null,null,"General office (A2, B1, B8, D1 planning classes)","GIA m2",null,null,null,{"$f":"IF(I1110=1,\"*\",\"\")","v":""},null,null,null,null,null,null,null,null,null,null,null,null,null,null,null,null,null,null,null,null,null,null,null,null,null,null,null,null,null,null,null,null,null,null,null,null,null,null,null,null,null,null,null,null,null,null,null,null,null,null,null,null,null,null,null,null,"-"]
[null,null,"Numerical (>=0)","NULL","depends on stage and RU type",null,null,null,0,0,null,null,null,null,null,null,null,null,null,null,null,null,null,null,null,null,null,null,null,null,null,null,null,null,null,null,null,null,null,"Y",1861,null,null,null,null,"Dry sports and leisure facility (D2 planning classes)","GIA m2",null,null,null,"",null,null,null,null,null,null,null,null,null,null,null,null,null,null,null,null,null,null,null,null,null,null,null,null,null,null,null,null,null,null,null,null,null,null,null,null,null,null,null,null,null,null,null,null,null,null,null,null,null,null,null,null,null,null,null,null,"-"]
[null,null,"Numerical (>=0)","NULL","depends on stage and RU type",null,null,null,0,0,null,null,null,null,null,null,null,null,null,null,null,null,null,null,null,null,null,null,null,null,null,null,null,null,null,null,null,null,null,"Y",1852,null,null,null,null,"Emergency services (SG planning classes)","GIA m2",null,null,null,"",null,null,null,null,null,null,null,null,null,null,null,null,null,null,null,null,null,null,null,null,null,null,null,null,null,null,null,null,null,null,null,null,null,null,null,null,null,null,null,null,null,null,null,null,null,null,null,null,null,null,null,null,null,null,null,null,"-"]
[null,null,"-","NULL","depends on stage and RU type & year",null,null,null,{"$f":"IF(Q1146=1,I1146,0)","v":0},{"$f":"IF(OR(AX:AX=\"\",AX:AX=\"-\",AX:AX=\" \"),0,1)","v":0},0,null,null,null,null,null,null,null,null,null,null,null,null,null,null,null,null,null,null,null,null,null,null,null,null,null,null,null,null,{"$f":"IF(Q1146=1,AN1146,\"Y\")","v":"Y"},1837,null,null,null,null,"What is the XML filename?",null,"",null,null,"",null,null,null,null,null,null,null,null,null,null,null,null,null,null,null,null,null,null,null,null,null,null,null,null,null,null,null,null,null,null,null,null,null,null,null,null,null,null,null,null,null,null,null,null,null,null,null,null,null,null,null,null,null,null,null,null,"-"]
[null,null,null,null,null,null,null,null,null,null,null,null,null,null,null,null,null,null,null,null,null,null,null,null,null,null,null,null,null,null,null,null,null,null,null,null,null,null,null,{"$f":"IF($R$9=3,AN1079,AN1166)","v":"Y"},1817,null,null,null,"Renewable Energy",null,null,null,null,null,null,null,null,null,null,null,null,null,null,null,null,null,null,null,null,null,null,null,null,null,null,null,null,null,null,null,null,null,null,null,null,null,null,null,null,null,null,null,null,null,null,null,null,null,null,null,null,null,null,null,null,null,null,null,null,null,null,"-"]
[null,null,null,"NULL_YEARS",null,null,null,null,{"$f":"I1174","v":0},null,null,null,null,null,null,null,null,null,null,null,null,null,null,null,null,null,null,null,null,null,null,null,null,null,null,null,null,null,null,"Y",1808,null,null,null,null,"District Htg Exported (if applicable)","kWh/yr",null,null,null,null,null,null,null,null,null,{"$f":"IF(AND(BD:BD<>\"\",BA:BA<>\"\"),IFERROR(ROUND(100*(BD:BD-BA:BA)/BA:BA,0)&\"%\",\"INF\"),\"-\")","v":"-"},null,null,null,null,null,null,null,null,null,{"$f":"IF(AND(BN:BN<>\"\",BD:BD<>\"\"),IFERROR(ROUND(100*(BN:BN-BD:BD)/BD:BD,0)&\"%\",\"INF\"),\"-\")","v":"-"},null,null,null,null,null,null,null,null,null,{"$f":"IF(AND(BX:BX<>\"\",BN:BN<>\"\"),IFERROR(ROUND(100*(BX:BX-BN:BN)/BN:BN,0)&\"%\",\"INF\"),\"-\")","v":"-"},null,null,null,null,null,null,null,null,null,{"$f":"IF(AND(CH:CH<>\"\",BX:BX<>\"\"),IFERROR(ROUND(100*(CH:CH-BX:BX)/BX:BX,0)&\"%\",\"INF\"),\"-\")","v":"-"},null,null,null,null,null,null,null,null,null,{"$f":"IF(AND(CR:CR<>\"\",CH:CH<>\"\"),IFERROR(ROUND(100*(CR:CR-CH:CH)/CH:CH,0)&\"%\",\"INF\"),\"-\")","v":"-"},null,null,null,null,null,null,null,null,null,null,"-"]
[null,null,"-","NULL",null,null,null,null,{"$f":"IF($S$9=5,I1183,0)","v":0},0,0,null,null,null,null,null,null,null,null,null,null,null,null,null,null,null,null,null,null,null,null,null,null,null,null,null,null,null,null,{"$f":"IF($S$9=5,AN1183,\"Y\")","v":"Y"},1795,null,null,null,null,"Operational Years 4 to 5",null,"",null,null,"",null,null,null,null,null,null,null,null,null,null,null,null,null,null,null,null,null,null,null,null,null,null,null,null,null,null,null,null,null,null,null,null,null,null,null,null,null,null,null,null,null,null,null,null,null,null,null,null,null,null,null,null,null,null,null,null,"-"]
[null,null,"-","NULL","constant",null,null,null,0,0,0,null,null,null,null,null,null,null,null,null,null,null,null,null,null,null,null,null,null,null,null,null,null,null,null,4,null,null,null,"Y",1781,null,null,null,null,"Address Line 4",null,null,null,null,null,null,null,null,null,null,null,null,null,null,null,null,null,null,null,null,null,null,null,null,null,null,null,null,null,null,null,null,null,null,null,null,null,null,null,null,null,null,null,null,null,null,null,null,null,null,null,null,null,null,null,null,null,null,null,null,null,"-"]
[null,null,null,null,null,null,null,null,null,null,null,null,null,null,null,null,null,null,null,null,null,null,null,null,null,null,null,null,null,null,null,null,null,null,null,null,null,null,null,"Y",1776,null,null,null,"Geo-Location Coordinates",null,null,null,null,null,null,null,null,null,null,null,null,null,null,null,null,null,null,null,null,null,null,null,null,null,null,null,null,null,null,null,null,null,null,null,null,null,null,null,null,null,null,null,null,null,null,null,null,null,null,null,null,null,null,null,null,null,null,null,null,null,null,"-"]
[null,null,"Numerical (>=0)","NULL","depends on stage and RU type",0,1,1,{"$f":"IF(AI1191=0,0,IFERROR(INDEX(F1221:H1221,$R$9),0))","v":0},{"$f":"IF(OR(AX:AX=\"\",AX:AX=\"-\",AX:AX=\" \",AX:AX=0),0,1)","v":0},{"$f":"IF(AND(J1221=0,I1221=1),1,0)","v":0},null,null,null,null,null,null,null,null,null,null,null,null,null,null,null,null,null,null,null,null,null,null,null,null,null,null,null,null,{"$f":"AN1195","v":"Y"},1763,null,null,null,null,"Landlord Circulation (in Residential Blocks)","GIA m2",{"$f":"IF(K1221=1,\"Must complete ->\",\"\")","v":""},null,null,{"$f":"IF(I1221=1,\"*\",\"\")","v":""},null,null,null,null,null,null,null,null,null,null,null,null,null,null,null,null,null,null,null,null,null,null,null,null,null,null,null,null,null,null,null,null,null,null,null,null,null,null,null,null,null,null,null,null,null,null,null,null,null,null,null,null,null,null,null,null,"-"]
[null,null,"Numerical (>=0)","NULL","depends on stage and RU type",null,null,null,0,0,null,null,null,null,null,null,null,null,null,null,null,null,null,null,null,null,null,null,null,null,null,null,null,null,null,null,null,null,null,"Y",1754,null,null,null,null,"Hotel (C1 planning classes)","GIA m2",null,null,null,"",null,null,null,null,null,null,null,null,null,null,null,null,null,null,null,null,null,null,null,null,null,null,null,null,null,null,null,null,null,null,null,null,null,null,null,null,null,null,null,null,null,null,null,null,null,null,null,null,null,null,null,null,null,null,null,null,"-"]
[null,null,"Numerical (>=0)","NULL","depends on stage and RU type",null,null,null,0,0,null,null,null,null,null,null,null,null,null,null,null,null,null,null,null,null,null,null,null,null,null,null,null,null,null,null,null,null,null,"Y",1734,null,null,null,null,"Cold Storage (B8 planning classes)","GIA m2",null,null,null,"",null,null,null,null,null,null,null,null,null,null,null,null,null,null,null,null,null,null,null,null,null,null,null,null,null,null,null,null,null,null,null,null,null,null,null,null,null,null,null,null,null,null,null,null,null,null,null,null,null,null,null,null,null,null,null,null,"-"]
[null,null,"-","NULL","depends on stage and RU type & year",null,null,null,{"$f":"IF(Q1264=1,I1264,0)","v":0},{"$f":"IF(OR(AX:AX=\"\",AX:AX=\"-\",AX:AX=\" \"),0,1)","v":0},0,null,null,null,null,null,null,null,null,null,null,null,null,null,null,null,null,null,null,null,null,null,null,null,null,null,null,null,null,{"$f":"IF(Q1264=1,AN1264,\"Y\")","v":"Y"},1719,null,null,null,null,"What is the XML filename?",null,"",null,null,"",null,null,null,null,null,null,null,null,null,null,null,null,null,null,null,null,null,null,null,null,null,null,null,null,null,null,null,null,null,null,null,null,null,null,null,null,null,null,null,null,null,null,null,null,null,null,null,null,null,null,null,null,null,null,null,null,"-"]
[null,null,null,"NULL_YEARS","depends on stage and RU type",null,null,null,{"$f":"I1273","v":0},{"$f":"IF($R$9<2,0,IF($R$9=2,R1274,INDEX(S1274:W1274,$S$9)))","v":0},0,null,null,null,null,null,null,{"$f":"IF(COUNTIF(AZ1274:BA1274,\"\")>1,0,1)","v":0},{"$f":"IF(COUNTIF(BC1274:BD1274,\"\")>1,0,1)","v":0},{"$f":"IF(COUNTIF(BM1274:BN1274,\"\")>1,0,1)","v":0},{"$f":"IF(COUNTIF(BW1274:BX1274,\"\")>1,0,1)","v":0},{"$f":"IF(COUNTIF(CG1274:CH1274,\"\")>1,0,1)","v":0},{"$f":"IF(COUNTIF(CQ1274:CR1274,\"\")>1,0,1)","v":0},null,null,null,null,null,null,null,null,null,null,null,null,null,null,null,null,"Y",1710,null,null,null,null,"Annual Gas Use","kWh/yr",{"$f":"IF(K1274=1,\"Must complete ->\",\"\")","v":""},null,null,null,null,null,null,null,null,"-",null,null,null,null,null,null,null,null,null,"-",null,null,null,null,null,null,null,null,null,"-",null,null,null,null,null,null,null,null,null,"-",null,null,null,null,null,null,null,null,null,"-",null,null,null,null,null,null,null,null,null,null,"-"]
[null,null,null,null,null,null,null,null,null,null,null,null,null,null,null,null,null,null,null,null,null,null,null,null,null,null,null,null,null,null,null,null,null,null,null,null,null,null,null,{"$f":"AN1272","v":"Y"},1697,null,null,null,"Plant Parameters (energy exported)",null,null,null,null,null,null,null,null,null,null,null,null,null,null,null,null,null,null,null,null,null,null,null,null,null,null,null,null,null,null,null,null,null,null,null,null,null,null,null,null,null,null,null,null,null,null,null,null,null,null,null,null,null,null,null,null,null,null,null,null,null,null,"-"]
[null,null,"-","NULL",null,null,null,null,{"$f":"IF($R$9=2,I1295,0)","v":0},{"$f":"IF(OR(AX:AX=\"\",AX:AX=\"-\",AX:AX=\" \",AX:AX=\"Select from list\"),0,1)","v":0},0,null,null,null,null,null,null,null,null,null,null,null,null,null,null,null,null,null,null,null,null,null,null,null,null,null,null,null,null,{"$f":"IF($R$9=2,AN1295,\"Y\")","v":"Y"},1688,null,null,null,null,"Planning Stage to As-Built",null,{"$f":"IF(K1296=1,\"To complete ->\",\"\")","v":""},null,null,{"$f":"IF(I1296=1,\"*\",\"\")","v":""},null,null,null,null,null,null,null,null,null,null,null,null,null,null,null,null,null,null,null,null,null,null,null,null,null,null,null,null,null,null,null,null,null,null,null,null,null,null,null,null,null,null,null,null,null,null,null,null,null,null,null,null,null,null,null,null,"-"]
[null,null,"-","NULL","depends on stage",0,1,1,{"$f":"IF(AF1303=0,0,IFERROR(INDEX(F1312:H1312,$R$9),0))","v":0},{"$f":"IF(OR(AX:AX=\"\",AX:AX=\"-\",AX:AX=\" \"),0,1)","v":0},{"$f":"IF(AND(J1312=0,I1312=1),1,0)","v":0},null,null,null,null,null,null,null,null,null,null,null,null,null,null,null,null,null,null,null,null,null,null,null,null,1,null,null,null,"Y",1672,null,null,null,null,"Address Line 1",null,{"$f":"IF(K1312=1,\"Must complete ->\",\"\")","v":""},null,null,{"$f":"IF(I1312=1,\"*\",\"\")","v":""},null,null,null,null,null,null,null,null,null,null,null,null,null,null,null,null,null,null,null,null,null,null,null,null,null,null,null,null,null,null,null,null,null,null,null,null,null,null,null,null,null,null,null,null,null,null,null,null,null,null,null,null,null,null,null,null,"-"]
[null,null,"-","NULL","depends on stage on RU",0,0,1,{"$f":"IF(AF1303=0,0,IFERROR(INDEX(F1319:H1319,$R$9),0))","v":0},{"$f":"IF(OR(AX:AX=\"\",AX:AX=\"-\",AX:AX=\" \"),0,1)","v":0},{"$f":"IF(AND(J1319=0,I1319=1),1,0)","v":0},null,null,null,null,null,null,null,null,null,null,null,null,null,null,null,null,null,null,null,null,null,null,null,null,7,null,null,null,"Y",1665,null,null,null,null,"Development UPRN (if available)",null,{"$f":"IF(AND(I1319=0,J1319=0,AF1303=1),\"Please add if available ->\",IF(K1319=1,\"Must complete ->\",\"\"))","v":""},null,null,{"$f":"IF(I1319=1,\"*\",\"\")","v":""},null,null,null,null,null,null,null,null,null,null,null,null,null,null,null,null,null,null,null,null,null,null,null,null,null,null,null,null,null,null,null,null,null,null,null,null,null,null,null,null,null,null,null,null,null,null,null,null,null,null,null,null,null,null,null,null,"-"]
[null,null,"Numerical (>=0)","NULL","depends on stage and RU type",0,1,1,{"$f":"IF(AG1303=0,0,IFERROR(INDEX(F1328:H1328,$R$9),0))","v":0},{"$f":"IF(OR(AX:AX=\"\",AX:AX=\"-\",AX:AX=\" \",AX:AX=0),0,1)","v":0},{"$f":"IF(AND(J1328=0,I1328=1),1,0)","v":0},null,null,null,null,null,{"$f":"AX:AX","v":0},null,null,null,null,null,null,null,null,null,null,null,null,null,null,null,null,null,null,null,null,null,null,{"$f":"AN1327","v":"Y"},1656,null,null,null,null,"Total Residential Floor Area","GIA m2",{"$f":"IF(K1328=1,\"Must complete ->\",\"\")","v":""},null,null,{"$f":"IF(I1328=1,\"*\",\"\")","v":""},null,null,null,null,null,null,null,null,null,null,null,null,null,null,null,null,null,null,null,null,null,null,null,null,null,null,null,null,null,null,null,null,null,null,null,null,null,null,null,null,null,null,null,null,null,null,null,null,null,null,null,null,null,null,null,null,"-"]
[null,null,"Numerical (>=0)","NULL","depends on stage and RU type",null,null,null,0,0,null,null,null,null,null,null,null,null,null,null,null,null,null,null,null,null,null,null,null,null,null,null,null,null,null,null,null,null,null,"Y",1635,null,null,null,null,"Public buildings with light usage (D1, SG planning classes)","GIA m2",null,null,null,"",null,null,null,null,null,null,null,null,null,null,null,null,null,null,null,null,null,null,null,null,null,null,null,null,null,null,null,null,null,null,null,null,null,null,null,null,null,null,null,null,null,null,null,null,null,null,null,null,null,null,null,null,null,null,null,null,"-"]
[null,null,"Numerical (>=0)","NULL","depends on stage and RU type",null,null,null,0,0,null,null,null,null,null,null,null,null,null,null,null,null,null,null,null,null,null,null,null,null,null,null,null,null,null,null,null,null,null,"Y",1629,null,null,null,null,"General accommodation (C1, C2, C3 planning classes)","GIA m2",null,null,null,"",null,null,null,null,null,null,null,null,null,null,null,null,null,null,null,null,null,null,null,null,null,null,null,null,null,null,null,null,null,null,null,null,null,null,null,null,null,null,null,null,null,null,null,null,null,null,null,null,null,null,null,null,null,null,null,null,"-"]
[null,null,"List","Select from list","depends on stage and RU type & year",0,0,{"$f":"IF($S$9=3,1,0)","v":0},{"$f":"IF(AND(AH1303=0,AI1303=0),0,IFERROR(INDEX(F1372:H1372,$R$9),0))","v":0},{"$f":"IF(OR(AX:AX=\"\",AX:AX=\"-\",AX:AX=\" \",AX:AX=\"Select from list\"),0,1)","v":0},0,null,null,null,null,null,{"$f":"IF(AND(OR(AH1303=1,AI1303=1),AX:AX=\"Yes\"),1,0)","v":0},null,null,null,null,null,null,null,null,null,null,null,null,null,null,null,null,null,null,null,null,{"$f":"ROW()+1","v":1373},{"$f":"AM1370","v":1406},{"$f":"IF($S$9=3,AN1365,\"Y\")","v":"Y"},1612,null,null,null,null,{"$f":"IF(Q1334=0,\"Does this RU have a DEC for y3?\",\"Does this RU have a DEC/DFP base bldg energy rating for y3?\")","v":"Does this RU have a DEC for y3?"},null,"",null,"Select from list","",null,null,null,null,null,null,null,null,null,null,null,null,null,null,null,null,null,null,null,null,null,null,null,null,null,null,null,null,null,null,null,null,null,null,null,null,null,null,null,null,null,null,null,null,null,null,null,null,null,null,null,null,null,null,null,null,"-"]
[null,null,null,"NULL_YEARS","depends on stage and RU type",0,1,1,{"$f":"IF(OR(AF1303=0,R1365=1),0,IFERROR(INDEX(F1385:H1385,$R$9),0))","v":0},{"$f":"IF($R$9<2,0,IF($R$9=2,R1385,INDEX(S1385:W1385,$S$9)))","v":0},{"$f":"IF(AND(J1385=0,I1385=1),1,0)","v":0},null,null,null,null,null,null,{"$f":"IF(COUNTIF(AZ1385:BA1385,\"\")>1,0,1)","v":0},{"$f":"IF(COUNTIF(BC1385:BD1385,\"\")>1,0,1)","v":0},{"$f":"IF(COUNTIF(BM1385:BN1385,\"\")>1,0,1)","v":0},{"$f":"IF(COUNTIF(BW1385:BX1385,\"\")>1,0,1)","v":0},{"$f":"IF(COUNTIF(CG1385:CH1385,\"\")>1,0,1)","v":0},{"$f":"IF(COUNTIF(CQ1385:CR1385,\"\")>1,0,1)","v":0},null,null,null,null,null,null,null,null,null,null,null,null,null,null,null,null,{"$f":"AN1384","v":"Y"},1599,null,null,null,null,"Annual Electricity Use","kWh/yr",{"$f":"IF(K1385=1,\"Must complete ->\",\"\")","v":""},null,null,null,null,null,null,null,null,{"$f":"IF(AND(BD:BD<>\"\",BA:BA<>\"\"),IFERROR(ROUND(100*(BD:BD-BA:BA)/BA:BA,0)&\"%\",\"INF\"),\"-\")","v":"-"},null,null,null,null,null,null,null,null,null,{"$f":"IF(AND(BN:BN<>\"\",BD:BD<>\"\"),IFERROR(ROUND(100*(BN:BN-BD:BD)/BD:BD,0)&\"%\",\"INF\"),\"-\")","v":"-"},null,null,null,null,null,null,null,null,null,{"$f":"IF(AND(BX:BX<>\"\",BN:BN<>\"\"),IFERROR(ROUND(100*(BX:BX-BN:BN)/BN:BN,0)&\"%\",\"INF\"),\"-\")","v":"-"},null,null,null,null,null,null,null,null,null,{"$f":"IF(AND(CH:CH<>\"\",BX:BX<>\"\"),IFERROR(ROUND(100*(CH:CH-BX:BX)/BX:BX,0)&\"%\",\"INF\"),\"-\")","v":"-"},null,null,null,null,null,null,null,null,null,{"$f":"IF(AND(CR:CR<>\"\",CH:CH<>\"\"),IFERROR(ROUND(100*(CR:CR-CH:CH)/CH:CH,0)&\"%\",\"INF\"),\"-\")","v":"-"},null,null,null,null,null,null,null,null,null,null,"-"]
[null,null,null,"NULL_YEARS",null,null,null,null,{"$f":"IF($R$9=2,I1393,0)","v":0},null,null,null,null,null,null,null,null,null,null,null,null,null,null,null,null,null,null,null,null,null,null,null,null,null,null,null,null,null,null,{"$f":"AN1391","v":"Y"},1590,null,null,null,null,"Renewable Electricity, Exported (if applicable)","kWh/yr",null,null,null,null,null,null,null,null,null,{"$f":"IF(AND(BD:BD<>\"\",BA:BA<>\"\"),IFERROR(ROUND(100*(BD:BD-BA:BA)/BA:BA,0)&\"%\",\"INF\"),\"-\")","v":"-"},null,null,null,null,null,null,null,null,null,{"$f":"IF(AND(BN:BN<>\"\",BD:BD<>\"\"),IFERROR(ROUND(100*(BN:BN-BD:BD)/BD:BD,0)&\"%\",\"INF\"),\"-\")","v":"-"},null,null,null,null,null,null,null,null,null,{"$f":"IF(AND(BX:BX<>\"\",BN:BN<>\"\"),IFERROR(ROUND(100*(BX:BX-BN:BN)/BN:BN,0)&\"%\",\"INF\"),\"-\")","v":"-"},null,null,null,null,null,null,null,null,null,{"$f":"IF(AND(CH:CH<>\"\",BX:BX<>\"\"),IFERROR(ROUND(100*(CH:CH-BX:BX)/BX:BX,0)&\"%\",\"INF\"),\"-\")","v":"-"},null,null,null,null,null,null,null,null,null,{"$f":"IF(AND(CR:CR<>\"\",CH:CH<>\"\"),IFERROR(ROUND(100*(CR:CR-CH:CH)/CH:CH,0)&\"%\",\"INF\"),\"-\")","v":"-"},null,null,null,null,null,null,null,null,null,null,"-"]
[null,null,null,null,null,null,null,null,null,null,null,{"$f":"SUM(I1403:I1404)","v":0},{"$f":"SUM(K1403:K1404)","v":0},null,null,null,null,null,null,null,null,null,null,null,null,null,null,null,null,null,null,null,null,null,null,null,null,null,null,{"$f":"IF($R$9=2,AN1303,AN1390)","v":"Y"},1582,null,null,null,"Carbon Offsetting",null,null,null,null,null,null,null,null,null,null,null,null,null,null,null,null,null,null,null,null,null,null,null,null,null,null,null,null,null,null,null,null,null,null,null,null,null,null,null,null,null,null,null,null,null,null,null,null,null,null,null,null,null,null,null,null,null,null,null,null,null,null,"-"]
[null,null,null,null,null,null,null,null,null,null,null,{"$f":"SUM(I1418:I1419)","v":0},{"$f":"SUM(K1418:K1419)","v":0},null,null,null,null,null,null,null,null,null,null,null,null,null,null,null,null,null,null,null,null,null,null,null,null,null,null,{"$f":"AN1416","v":"Y"},{"$f":"IF(AN1418=AN1417,AO1418+1,1)","v":1567},null,null,{"$f":"\" BUILDINGS REPORTABLE UNIT \"&AE1415&\": KEY DETAILS\"","v":" BUILDINGS REPORTABLE UNIT 12: KEY DETAILS"},null,null,null,null,null,null,null,null,null,null,null,null,null,null,null,null,null,null,null,null,null,null,null,null,null,null,null,null,null,null,null,null,null,null,null,null,null,null,null,null,null,null,null,null,null,null,null,null,null,null,null,null,null,null,null,null,null,null,null,null,null,null,null,"-"]
[null,null,"-","NULL","constant",null,null,null,0,0,0,null,null,null,null,null,null,null,null,null,null,null,null,null,null,null,null,null,null,null,null,null,null,null,null,3,null,null,null,"Y",1558,null,null,null,null,"Address Line 3",null,null,null,null,null,null,null,null,null,null,null,null,null,null,null,null,null,null,null,null,null,null,null,null,null,null,null,null,null,null,null,null,null,null,null,null,null,null,null,null,null,null,null,null,null,null,null,null,null,null,null,null,null,null,null,null,null,null,null,null,null,"-"]
[null,null,null,null,null,null,null,null,null,null,null,{"$f":"SUM(I1440:I1443)","v":0},{"$f":"SUM(K1440:K1443)","v":0},null,null,null,null,null,null,null,null,null,null,null,null,null,null,null,null,null,null,null,null,null,null,null,null,null,null,{"$f":"IF(AG1415=1,AN1415,\"Y\")","v":"Y"},1545,null,null,null,"Residential",null,null,null,null,null,null,null,null,null,null,null,null,null,null,null,null,null,null,null,null,null,null,null,null,null,null,null,null,null,null,null,null,null,null,null,null,null,null,null,null,null,null,null,null,null,null,null,null,null,null,null,null,null,null,null,null,null,null,null,null,null,null,"-"]
[null,null,"Numerical (>=0)","NULL","depends on stage and RU type",null,null,null,0,0,null,null,null,null,null,null,null,null,null,null,null,null,null,null,null,null,null,null,null,null,null,null,null,null,null,null,null,null,null,"Y",1524,null,null,null,null,"Covered car park","GIA m2",null,null,null,"",null,null,null,null,null,null,null,null,null,null,null,null,null,null,null,null,null,null,null,null,null,null,null,null,null,null,null,null,null,null,null,null,null,null,null,null,null,null,null,null,null,null,null,null,null,null,null,null,null,null,null,null,null,null,null,null,"-"]
[null,null,"Numerical (>=0)","NULL","depends on stage and RU type",null,null,null,0,0,null,null,null,null,null,null,null,null,null,null,null,null,null,null,null,null,null,null,null,null,null,null,null,null,null,null,null,null,null,"Y",1520,null,null,null,null,"Clinic (D1 planning classes)","GIA m2",null,null,null,"",null,null,null,null,null,null,null,null,null,null,null,null,null,null,null,null,null,null,null,null,null,null,null,null,null,null,null,null,null,null,null,null,null,null,null,null,null,null,null,null,null,null,null,null,null,null,null,null,null,null,null,null,null,null,null,null,"-"]
[null,null,"-","NULL","depends on stage and RU type & year",null,null,null,{"$f":"IF(Q1482=1,I1482,0)","v":0},{"$f":"IF(OR(AX:AX=\"\",AX:AX=\"-\",AX:AX=\" \"),0,1)","v":0},0,null,null,null,null,null,null,null,null,null,null,null,null,null,null,null,null,null,null,null,null,null,null,null,null,null,null,null,null,{"$f":"IF(Q1482=1,AN1482,\"Y\")","v":"Y"},1501,null,null,null,null,"What is the XML filename?",null,"",null,null,"",null,null,null,null,null,null,null,null,null,null,null,null,null,null,null,null,null,null,null,null,null,null,null,null,null,null,null,null,null,null,null,null,null,null,null,null,null,null,null,null,null,null,null,null,null,null,null,null,null,null,null,null,null,null,null,null,"-"]
[null,null,null,null,null,null,null,null,null,null,null,{"$f":"SUM(I1493)","v":0},{"$f":"SUM(K1493)","v":0},null,null,null,null,null,null,null,null,null,null,null,null,null,null,null,null,null,null,null,null,null,null,null,null,null,null,{"$f":"IF(R1477=1,\"Y\",AN1415)","v":"Y"},1492,null,null,{"$f":"\" BUILDINGS REPORTABLE UNIT \"&AE1415&\": SYSTEMS\"","v":" BUILDINGS REPORTABLE UNIT 12: SYSTEMS"},null,null,null,null,null,null,null,null,null,null,null,null,null,null,null,null,null,null,null,null,null,null,null,null,null,null,null,null,null,null,null,null,null,null,null,null,null,null,null,null,null,null,null,null,null,null,null,null,null,null,null,null,null,null,null,null,null,null,null,null,null,null,null,"-"]
[null,null,null,"NULL_YEARS",null,null,null,null,0,null,null,null,null,null,null,null,null,null,null,null,null,null,null,null,null,null,null,null,null,null,null,null,null,null,null,null,null,null,null,"Y",1483,null,null,null,null,"Annual District Htg Use (if applicable)","kWh/yr",null,null,null,null,null,null,null,null,null,"-",null,null,null,null,null,null,null,null,null,"-",null,null,null,null,null,null,null,null,null,"-",null,null,null,null,null,null,null,null,null,"-",null,null,null,null,null,null,null,null,null,"-",null,null,null,null,null,null,null,null,null,null,"-"]
[null,null,"-","NULL",null,null,null,null,{"$f":"IF($R$9=2,I1519,0)","v":0},{"$f":"IF(OR(AX:AX=\"\",AX:AX=\"-\",AX:AX=\" \",AX:AX=\"Select from list\"),0,1)","v":0},0,null,null,null,null,null,null,null,null,null,null,null,null,null,null,null,null,null,null,null,null,null,null,null,null,null,null,null,null,{"$f":"IF($R$9=2,AN1519,\"Y\")","v":"Y"},1464,null,null,null,null,"Planning Stage to As-Built",null,{"$f":"IF(K1520=1,\"To complete ->\",\"\")","v":""},null,null,{"$f":"IF(I1520=1,\"*\",\"\")","v":""},null,null,null,null,null,null,null,null,null,null,null,null,null,null,null,null,null,null,null,null,null,null,null,null,null,null,null,null,null,null,null,null,null,null,null,null,null,null,null,null,null,null,null,null,null,null,null,null,null,null,null,null,null,null,null,null,"-"]
[null,null,"-","NULL",null,null,null,null,{"$f":"IF($S$9=4,I1519,0)","v":0},0,0,null,null,null,null,null,null,null,null,null,null,null,null,null,null,null,null,null,null,null,null,null,null,null,null,null,null,null,null,{"$f":"IF($S$9=4,AN1519,\"Y\")","v":"Y"},1460,null,null,null,null,"Operational Years 3 to 4",null,"",null,null,"",null,null,null,null,null,null,null,null,null,null,null,null,null,null,null,null,null,null,null,null,null,null,null,null,null,null,null,null,null,null,null,null,null,null,null,null,null,null,null,null,null,null,null,null,null,null,null,null,null,null,null,null,null,null,null,null,"-"]
[null,null,"-","NULL","constant",null,null,null,0,0,0,null,null,null,null,null,null,null,null,null,null,null,null,null,null,null,null,null,null,null,null,null,null,null,null,2,null,null,null,"Y",1447,null,null,null,null,"Address Line 2",null,null,null,null,null,null,null,null,null,null,null,null,null,null,null,null,null,null,null,null,null,null,null,null,null,null,null,null,null,null,null,null,null,null,null,null,null,null,null,null,null,null,null,null,null,null,null,null,null,null,null,null,null,null,null,null,null,null,null,null,null,"-"]
[null,null,"Numerical (>=0)","NULL","depends on stage and RU type",0,1,1,{"$f":"IF(AH1527=0,0,IFERROR(INDEX(F1558:H1558,$R$9),0))","v":0},{"$f":"IF(OR(AX:AX=\"\",AX:AX=\"-\",AX:AX=\" \"),0,1)","v":0},{"$f":"IF(I1558=0,0,1-MAX(J1558:J1586))","v":0},null,null,null,null,null,{"$f":"IF(AH1527=0,0,AX:AX)","v":0},null,null,null,null,null,null,null,null,null,null,null,null,null,null,null,null,null,null,null,null,null,null,{"$f":"IF(AH1527=1,AN1527,\"Y\")","v":"Y"},1426,null,null,null,null,"General office (A2, B1, B8, D1 planning classes)","GIA m2",null,null,null,{"$f":"IF(I1558=1,\"*\",\"\")","v":""},null,null,null,null,null,null,null,null,null,null,null,null,null,null,null,null,null,null,null,null,null,null,null,null,null,null,null,null,null,null,null,null,null,null,null,null,null,null,null,null,null,null,null,null,null,null,null,null,null,null,null,null,null,null,null,null,"-"]
[null,null,"Numerical (>=0)","NULL","depends on stage and RU type",null,null,null,0,0,null,null,null,null,null,null,null,null,null,null,null,null,null,null,null,null,null,null,null,null,null,null,null,null,null,null,null,null,null,"Y",1417,null,null,null,null,"Cultural Activities","GIA m2",null,null,null,"",null,null,null,null,null,null,null,null,null,null,null,null,null,null,null,null,null,null,null,null,null,null,null,null,null,null,null,null,null,null,null,null,null,null,null,null,null,null,null,null,null,null,null,null,null,null,null,null,null,null,null,null,null,null,null,null,"-"]
[null,null,"Numerical (>=0)","NULL","depends on stage and RU type",null,null,null,0,0,null,null,null,null,null,null,null,null,null,null,null,null,null,null,null,null,null,null,null,null,null,null,null,null,null,null,null,null,null,"Y",1403,null,null,null,null,"Laboratory or operating theatre","GIA m2",null,null,null,"",null,null,null,null,null,null,null,null,null,null,null,null,null,null,null,null,null,null,null,null,null,null,null,null,null,null,null,null,null,null,null,null,null,null,null,null,null,null,null,null,null,null,null,null,null,null,null,null,null,null,null,null,null,null,null,null,"-"]
[null,null,"List","Select from list","depends on stage and RU type & year",0,1,0,{"$f":"IF(AND(AH1527=0,AI1527=0),0,IFERROR(INDEX(F1590:H1590,$R$9),0))","v":0},{"$f":"IF(OR(AX:AX=\"\",AX:AX=\"-\",AX:AX=\" \",AX:AX=\"Select from list\"),0,1)","v":0},{"$f":"IF(AND(J1590=0,I1590=1),1,0)","v":0},null,null,null,null,null,{"$f":"IF(AND(OR(AH1527=1,AI1527=1),AX:AX=\"Yes\"),1,0)","v":0},null,null,null,null,null,null,null,null,null,null,null,null,null,null,null,null,null,null,null,null,{"$f":"ROW()+1","v":1591},{"$f":"ROW(AR1630)","v":1630},{"$f":"IF($R$9=2,AN1589,\"Y\")","v":"Y"},1394,null,null,null,null,{"$f":"IF(Q1558=0,\"Does this RU have an as-built DEC?\",\"Does this RU have an as-built DEC/DFP base bldg energy rating?\")","v":"Does this RU have an as-built DEC?"},null,{"$f":"IF(K1590=1,\"To complete ->\",\"\")","v":""},null,"Select from list",{"$f":"IF(I1590=1,\"*\",\"\")","v":""},null,null,null,null,null,null,null,null,null,null,null,null,null,null,null,null,null,null,null,null,null,null,null,null,null,null,null,null,null,null,null,null,null,null,null,null,null,null,null,null,null,null,null,null,null,null,null,null,null,null,null,null,null,null,null,null,"-"]
[null,null,null,null,null,null,null,null,null,null,null,null,null,null,null,null,null,null,null,null,null,null,null,null,null,null,null,null,null,null,null,null,null,null,null,null,null,null,null,{"$f":"AN1602","v":"Y"},1381,null,null,null,null,null,null,null,null,null,null,null,null,null,null,null,null,null,null,null,null,null,null,null,null,null,null,null,null,null,null,null,null,null,null,null,null,null,null,null,null,null,null,null,null,null,null,null,null,null,null,null,null,null,null,null,null,null,null,null,null,null,null,null,null,null,null,"-"]
[null,null,null,"NULL_YEARS",null,null,null,null,0,null,null,null,null,null,null,null,null,null,null,null,null,null,null,null,null,null,null,null,null,null,null,null,null,null,null,null,null,null,null,"Y",1372,null,null,null,null,"Annual Biomass Use (if applicable)","kWh/yr",null,null,null,null,null,null,null,null,null,"-",null,null,null,null,null,null,null,null,null,"-",null,null,null,null,null,null,null,null,null,"-",null,null,null,null,null,null,null,null,null,"-",null,null,null,null,null,null,null,null,null,"-",null,null,null,null,null,null,null,null,null,null,"-"]
[null,null,null,null,null,null,null,null,null,null,null,null,null,null,null,null,null,null,null,null,null,null,null,null,null,null,null,null,null,null,null,null,null,null,null,null,null,null,null,{"$f":"AN1527","v":"Y"},1355,null,null,null,null,null,null,null,null,null,null,null,null,null,null,null,null,null,null,null,null,null,null,null,null,null,null,null,null,null,null,null,null,null,null,null,null,null,null,null,null,null,null,null,null,null,null,null,null,null,null,null,null,null,null,null,null,null,null,null,null,null,null,null,null,null,null,"-"]
[null,null,"-","NULL",null,null,null,null,{"$f":"IF($S$9=3,I1631,0)","v":0},0,0,null,null,null,null,null,null,null,null,null,null,null,null,null,null,null,null,null,null,null,null,null,null,null,null,null,null,null,null,{"$f":"IF($S$9=3,AN1631,\"Y\")","v":"Y"},1349,null,null,null,null,"Operational Years 2 to 3",null,"",null,null,"",null,null,null,null,null,null,null,null,null,null,null,null,null,null,null,null,null,null,null,null,null,null,null,null,null,null,null,null,null,null,null,null,null,null,null,null,null,null,null,null,null,null,null,null,null,null,null,null,null,null,null,null,null,null,null,null,"-"]
[null,null,null,null,null,null,null,null,null,null,null,null,null,null,null,null,null,null,null,null,null,null,null,null,null,null,null,null,null,null,null,null,null,null,null,null,null,null,null,"Y",1328,null,null,null,"Geo-Location Coordinates",null,null,null,null,null,null,null,null,null,null,null,null,null,null,null,null,null,null,null,null,null,null,null,null,null,null,null,null,null,null,null,null,null,null,null,null,null,null,null,null,null,null,null,null,null,null,null,null,null,null,null,null,null,null,null,null,null,null,null,null,null,null,"-"]
[null,null,null,null,null,null,null,null,null,null,null,null,null,null,null,null,null,{"$f":"IFERROR(SUM(Q1666:Q1667),0)","v":0},null,null,null,null,null,null,null,null,null,null,null,null,null,null,null,null,null,null,null,null,null,"Y",1319,null,null,null,null,"Dwelling Counts",null,null,null,null,null,null,null,null,null,null,null,null,null,null,null,null,null,null,null,null,null,null,null,null,null,null,null,null,null,null,null,null,null,null,null,null,null,null,null,null,null,null,null,null,null,null,null,null,null,null,null,null,null,null,null,null,null,null,null,null,null,"-"]
[null,null,"Numerical (>=0)","NULL","depends on stage and RU type",null,null,null,{"$f":"I1671","v":0},0,null,null,null,null,null,null,null,null,null,null,null,null,null,null,null,null,null,null,null,null,null,null,null,null,null,null,null,null,null,"Y",1312,null,null,null,null,"General retail (A1, SG planning classes)","GIA m2",null,null,null,"",null,null,null,null,null,null,null,null,null,null,null,null,null,null,null,null,null,null,null,null,null,null,null,null,null,null,null,null,null,null,null,null,null,null,null,null,null,null,null,null,null,null,null,null,null,null,null,null,null,null,null,null,null,null,null,null,"-"]
[null,null,"Numerical (>=0)","NULL","depends on stage and RU type",null,null,null,0,0,null,null,null,null,null,null,null,null,null,null,null,null,null,null,null,null,null,null,null,null,null,null,null,null,null,null,null,null,null,"Y",1296,null,null,null,null,"Clinic (D1 planning classes)","GIA m2",null,null,null,"",null,null,null,null,null,null,null,null,null,null,null,null,null,null,null,null,null,null,null,null,null,null,null,null,null,null,null,null,null,null,null,null,null,null,null,null,null,null,null,null,null,null,null,null,null,null,null,null,null,null,null,null,null,null,null,null,"-"]
[null,null,null,null,null,null,null,null,null,null,null,{"$f":"SUM(I1702:I1714)","v":0},{"$f":"SUM(K1702:K1714)","v":0},null,null,null,null,{"$f":"IF(AND(AH1639=0,AI1639=0),0,IF($R$9=2,Q1702,IF($S$9=1,Q1704,IF($S$9=2,Q1706,IF($S$9=3,Q1708,IF($S$9=4,Q1710,IF($S$9=5,Q1712,0)))))))","v":0},null,null,null,null,null,null,null,null,null,null,null,null,null,null,null,null,null,null,null,null,null,{"$f":"AN1668","v":"Y"},1283,null,null,null,{"$f":"IF(Q1670=0,\"Display Energy Certificates\",\"Display Energy Certificates or DFP Base Building Energy Rating\")","v":"Display Energy Certificates"},null,null,null,null,null,null,null,null,null,null,null,null,null,null,null,null,null,null,null,null,null,null,null,null,null,null,null,null,null,null,null,null,null,null,null,null,null,null,null,null,null,null,null,null,null,null,null,null,null,null,null,null,null,null,null,null,null,null,null,null,null,null,"-"]
[null,null,"List","Select from list","depends on stage and RU type & year",0,0,{"$f":"IF($S$9=4,1,0)","v":0},{"$f":"IF(AND(AH1639=0,AI1639=0),0,IFERROR(INDEX(F1710:H1710,$R$9),0))","v":0},{"$f":"IF(OR(AX:AX=\"\",AX:AX=\"-\",AX:AX=\" \",AX:AX=\"Select from list\"),0,1)","v":0},0,null,null,null,null,null,{"$f":"IF(AND(OR(AH1639=1,AI1639=1),AX:AX=\"Yes\"),1,0)","v":0},null,null,null,null,null,null,null,null,null,null,null,null,null,null,null,null,null,null,null,null,{"$f":"ROW()+1","v":1711},{"$f":"AM1708","v":1742},{"$f":"IF($S$9=4,AN1701,\"Y\")","v":"Y"},1274,null,null,null,null,{"$f":"IF(Q1670=0,\"Does this RU have a DEC for y4?\",\"Does this RU have a DEC/DFP base bldg energy rating for y4?\")","v":"Does this RU have a DEC for y4?"},null,"",null,"Select from list","",null,null,null,null,null,null,null,null,null,null,null,null,null,null,null,null,null,null,null,null,null,null,null,null,null,null,null,null,null,null,null,null,null,null,null,null,null,null,null,null,null,null,null,null,null,null,null,null,null,null,null,null,null,null,null,null,"-"]
[null,null,null,null,null,null,null,null,null,null,null,null,null,null,null,null,null,null,null,null,null,null,null,null,null,null,null,null,null,null,null,null,null,null,null,null,null,null,null,{"$f":"AN1639","v":"Y"},1265,null,null,{"$f":"\" BUILDINGS REPORTABLE UNIT \"&AE1639&IF(R1476=3,\": ANNUAL ENERGY CONSUMPTION\",\": PREDICTED PERFORMANCE\")","v":" BUILDINGS REPORTABLE UNIT 14: PREDICTED PERFORMANCE"},null,null,null,null,null,null,null,null,"AS-BUILT",null,null,"YEAR 1",null,"Start/End Dates (if available)",null,null,null,null,null,null,null,"YEAR 2",null,"Start/End Dates (if available)",null,null,null,null,null,null,null,"YEAR 3",null,"Start/End Dates (if available)",null,null,null,null,null,null,null,"YEAR 4",null,"Start/End Dates (if available)",null,null,null,null,null,null,null,"YEAR 5",null,"Start/End Dates (if available)",null,null,null,null,null,null,null,null,null,"-"]
[null,null,null,"NULL_YEARS",null,null,null,null,{"$f":"I1729","v":0},null,null,null,null,null,null,null,null,null,null,null,null,null,null,null,null,null,null,null,null,null,null,null,null,null,null,null,null,null,null,"Y",1251,null,null,null,null,"Battery Storage Capacity (if applicable)","kWh",null,null,null,null,null,null,null,null,null,{"$f":"IF(AND(BD:BD<>\"\",BA:BA<>\"\"),IFERROR(ROUND(100*(BD:BD-BA:BA)/BA:BA,0)&\"%\",\"INF\"),\"-\")","v":"-"},null,null,null,null,null,null,null,null,null,{"$f":"IF(AND(BN:BN<>\"\",BD:BD<>\"\"),IFERROR(ROUND(100*(BN:BN-BD:BD)/BD:BD,0)&\"%\",\"INF\"),\"-\")","v":"-"},null,null,null,null,null,null,null,null,null,{"$f":"IF(AND(BX:BX<>\"\",BN:BN<>\"\"),IFERROR(ROUND(100*(BX:BX-BN:BN)/BN:BN,0)&\"%\",\"INF\"),\"-\")","v":"-"},null,null,null,null,null,null,null,null,null,{"$f":"IF(AND(CH:CH<>\"\",BX:BX<>\"\"),IFERROR(ROUND(100*(CH:CH-BX:BX)/BX:BX,0)&\"%\",\"INF\"),\"-\")","v":"-"},null,null,null,null,null,null,null,null,null,{"$f":"IF(AND(CR:CR<>\"\",CH:CH<>\"\"),IFERROR(ROUND(100*(CR:CR-CH:CH)/CH:CH,0)&\"%\",\"INF\"),\"-\")","v":"-"},null,null,null,null,null,null,null,null,null,null,"-"]
[null,null,"List","Select from list","depends on stage and RU existence",0,1,1,{"$f":"IF(AF1751=0,0,IFERROR(INDEX(F1754:H1754,$R$9),0))","v":0},{"$f":"IF(OR(AX:AX=\"\",AX:AX=\"-\",AX:AX=\" \",AX:AX=\"Select from list\"),0,1)","v":0},{"$f":"IF(AND(J1754=0,I1754=1),1,0)","v":0},null,null,null,null,null,{"$f":"IF(AND(AX:AX<>\"Select from list\",AX:AX<>\"\"),AX:AX,\"-\")","v":"-"},null,null,null,null,null,null,null,null,null,null,null,null,null,null,null,null,null,null,null,null,{"$f":"ROW()+1","v":1755},{"$f":"ROW(AR1828)","v":1828},{"$f":"AN1753","v":"Y"},1230,null,null,null,"Reportable Unit Type",null,null,{"$f":"IF(K1754=1,\"Must complete ->\",\"\")","v":""},null,"Select from list",{"$f":"IF(I1754=1,\"*\",\"\")","v":""},null,null,null,null,null,null,null,null,null,null,null,null,null,null,null,null,null,null,null,null,null,null,null,null,null,null,null,null,null,null,null,null,null,null,null,null,null,null,null,null,null,null,null,null,null,null,null,null,null,null,null,null,null,null,null,null,"-"]
[null,null,"-","NULL","constant",null,null,null,0,0,0,null,null,null,null,null,null,null,null,null,null,null,null,null,null,null,null,null,null,null,null,null,null,null,null,4,null,null,null,"Y",1221,null,null,null,null,"Address Line 4",null,null,null,null,null,null,null,null,null,null,null,null,null,null,null,null,null,null,null,null,null,null,null,null,null,null,null,null,null,null,null,null,null,null,null,null,null,null,null,null,null,null,null,null,null,null,null,null,null,null,null,null,null,null,null,null,null,null,null,null,null,"-"]
[null,null,null,null,null,null,null,null,null,null,null,{"$f":"SUM(I1776:I1779)","v":0},{"$f":"SUM(K1776:K1779)","v":0},null,null,null,null,null,null,null,null,null,null,null,null,null,null,null,null,null,null,null,null,null,null,null,null,null,null,{"$f":"IF(AG1751=1,AN1751,\"Y\")","v":"Y"},1209,null,null,null,"Residential",null,null,null,null,null,null,null,null,null,null,null,null,null,null,null,null,null,null,null,null,null,null,null,null,null,null,null,null,null,null,null,null,null,null,null,null,null,null,null,null,null,null,null,null,null,null,null,null,null,null,null,null,null,null,null,null,null,null,null,null,null,null,"-"]
[null,null,"Numerical (>=0)","NULL","depends on stage and RU type",null,null,null,0,0,null,null,null,null,null,null,null,null,null,null,null,null,null,null,null,null,null,null,null,null,null,null,null,null,null,null,null,null,null,"Y",1198,null,null,null,null,"Small food store","GIA m2",null,null,null,"",null,null,null,null,null,null,null,null,null,null,null,null,null,null,null,null,null,null,null,null,null,null,null,null,null,null,null,null,null,null,null,null,null,null,null,null,null,null,null,null,null,null,null,null,null,null,null,null,null,null,null,null,null,null,null,null,"-"]
[null,null,"Numerical (>=0)","NULL","depends on stage and RU type",null,null,null,0,0,null,null,null,null,null,null,null,null,null,null,null,null,null,null,null,null,null,null,null,null,null,null,null,null,null,null,null,null,null,"Y",1185,null,null,null,null,"University campus","GIA m2",null,null,null,"",null,null,null,null,null,null,null,null,null,null,null,null,null,null,null,null,null,null,null,null,null,null,null,null,null,null,null,null,null,null,null,null,null,null,null,null,null,null,null,null,null,null,null,null,null,null,null,null,null,null,null,null,null,null,null,null,"-"]
[null,null,"Numerical (>=0)","NULL","depends on stage and RU type",null,null,null,0,0,null,null,null,null,null,null,null,null,null,null,null,null,null,null,null,null,null,null,null,null,null,null,null,null,null,null,null,null,null,"Y",1176,null,null,null,null,"Workshop (B1, B2 planning classes)","GIA m2",null,null,null,"",null,null,null,null,null,null,null,null,null,null,null,null,null,null,null,null,null,null,null,null,null,null,null,null,null,null,null,null,null,null,null,null,null,null,null,null,null,null,null,null,null,null,null,null,null,null,null,null,null,null,null,null,null,null,null,null,"-"]
[null,null,"-","NULL","depends on stage and RU type & year",null,null,null,{"$f":"IF(Q1816=1,I1816,0)","v":0},{"$f":"IF(OR(AX:AX=\"\",AX:AX=\"-\",AX:AX=\" \"),0,1)","v":0},0,null,null,null,null,null,null,null,null,null,null,null,null,null,null,null,null,null,null,null,null,null,null,null,null,null,null,null,null,{"$f":"IF(Q1816=1,AN1816,\"Y\")","v":"Y"},1167,null,null,null,null,"What is the XML filename?",null,"",null,null,"",null,null,null,null,null,null,null,null,null,null,null,null,null,null,null,null,null,null,null,null,null,null,null,null,null,null,null,null,null,null,null,null,null,null,null,null,null,null,null,null,null,null,null,null,null,null,null,null,null,null,null,null,null,null,null,null,"-"]
[null,null,null,"NULL_YEARS",null,null,null,null,0,null,null,null,null,null,null,null,null,null,null,null,null,null,null,null,null,null,null,null,null,null,null,null,null,null,null,null,null,null,null,"Y",1147,null,null,null,null,"Annual District Htg Use (if applicable)","kWh/yr",null,null,null,null,null,null,null,null,null,"-",null,null,null,null,null,null,null,null,null,"-",null,null,null,null,null,null,null,null,null,"-",null,null,null,null,null,null,null,null,null,"-",null,null,null,null,null,null,null,null,null,"-",null,null,null,null,null,null,null,null,null,null,"-"]
[null,null,null,"NULL_YEARS",null,0,1,0,{"$f":"I1851","v":0},{"$f":"IF(OR(BA:BA=\"\",BA:BA=\"Select from list\"),0,1)","v":0},0,null,null,null,null,null,null,null,null,null,null,null,null,null,null,null,null,null,null,null,null,null,null,null,null,null,null,null,null,{"$f":"AN1851","v":"Y"},1132,null,null,null,null,"Carbon Offset Amount","£",null,null,{"$f":"IF(K1852=1,\"To complete ->\",\"\")","v":""},null,null,null,{"$f":"IF(I1852=1,\"*\",\"\")","v":""},null,null,null,null,null,null,null,null,null,null,null,null,null,null,null,null,null,null,null,null,null,null,null,null,null,null,null,null,null,null,null,null,null,null,null,null,null,null,null,null,null,null,null,null,null,null,null,null,null,null,null,null,null,"-"]
[null,null,null,null,null,null,null,null,null,null,null,null,null,null,null,null,null,null,null,null,null,null,null,null,null,null,null,null,null,null,null,null,null,null,null,null,null,null,null,{"$f":"AN1751","v":"Y"},1131,null,null,null,null,null,null,null,null,null,null,null,null,null,null,null,null,null,null,null,null,null,null,null,null,null,null,null,null,null,null,null,null,null,null,null,null,null,null,null,null,null,null,null,null,null,null,null,null,null,null,null,null,null,null,null,null,null,null,null,null,null,null,null,null,null,null,"-"]
[null,null,"-","NULL","constant",null,null,null,0,0,0,null,null,null,null,null,null,null,null,null,null,null,null,null,null,null,null,null,null,null,null,null,null,null,null,3,null,null,null,"Y",1110,null,null,null,null,"Address Line 3",null,null,null,null,null,null,null,null,null,null,null,null,null,null,null,null,null,null,null,null,null,null,null,null,null,null,null,null,null,null,null,null,null,null,null,null,null,null,null,null,null,null,null,null,null,null,null,null,null,null,null,null,null,null,null,null,null,null,null,null,null,"-"]
[null,null,null,null,null,null,null,null,null,null,null,null,null,null,null,null,null,null,null,null,null,null,null,null,null,null,null,null,null,null,null,null,null,null,null,null,null,null,null,"Y",1100,null,null,{"$f":"\" BUILDINGS REPORTABLE UNIT \"&AE1863&\": BUILDING USE\"","v":" BUILDINGS REPORTABLE UNIT 16: BUILDING USE"},null,null,null,null,null,null,null,null,null,null,null,null,null,null,null,null,null,null,null,null,null,null,null,null,null,null,null,null,null,null,null,null,null,null,null,null,null,null,null,null,null,null,null,null,null,null,null,null,null,null,null,null,null,null,null,null,null,null,null,null,null,null,null,"-"]
[null,null,"Numerical (>=0)","NULL","depends on stage and RU type",null,null,null,0,0,null,null,null,null,null,null,null,null,null,null,null,null,null,null,null,null,null,null,null,null,null,null,null,null,null,null,null,null,null,"Y",1087,null,null,null,null,"Large non-food shop (A1 planning classes)","GIA m2",null,null,null,"",null,null,null,null,null,null,null,null,null,null,null,null,null,null,null,null,null,null,null,null,null,null,null,null,null,null,null,null,null,null,null,null,null,null,null,null,null,null,null,null,null,null,null,null,null,null,null,null,null,null,null,null,null,null,null,null,"-"]
[null,null,"Numerical (>=0)","NULL","depends on stage and RU type",null,null,null,0,0,null,null,null,null,null,null,null,null,null,null,null,null,null,null,null,null,null,null,null,null,null,null,null,null,null,null,null,null,null,"Y",1078,null,null,null,null,"Fitness and health centre","GIA m2",null,null,null,"",null,null,null,null,null,null,null,null,null,null,null,null,null,null,null,null,null,null,null,null,null,null,null,null,null,null,null,null,null,null,null,null,null,null,null,null,null,null,null,null,null,null,null,null,null,null,null,null,null,null,null,null,null,null,null,null,"-"]
[null,null,"Numerical (>=0)","NULL","depends on stage and RU type",null,null,null,0,0,null,null,null,null,null,null,null,null,null,null,null,null,null,null,null,null,null,null,null,null,null,null,null,null,null,null,null,null,null,"Y",1069,null,null,null,null,"General accommodation (C1, C2, C3 planning classes)","GIA m2",null,null,null,"",null,null,null,null,null,null,null,null,null,null,null,null,null,null,null,null,null,null,null,null,null,null,null,null,null,null,null,null,null,null,null,null,null,null,null,null,null,null,null,null,null,null,null,null,null,null,null,null,null,null,null,null,null,null,null,null,"-"]
[null,null,"-","NULL","depends on stage and RU type & year",null,null,null,{"$f":"IF(Q1926=1,I1926,0)","v":0},{"$f":"IF(OR(AX:AX=\"\",AX:AX=\"-\",AX:AX=\" \"),0,1)","v":0},0,null,null,null,null,null,null,null,null,null,null,null,null,null,null,null,null,null,null,null,null,null,null,null,null,null,null,null,null,{"$f":"IF(Q1926=1,AN1926,\"Y\")","v":"Y"},1057,null,null,null,null,"What is the XML filename?",null,{"$f":"IF(K1927=1,\"To complete ->\",\"\")","v":""},null,null,{"$f":"IF(I1927=1,\"*\",\"\")","v":""},null,null,null,null,null,null,null,null,null,null,null,null,null,null,null,null,null,null,null,null,null,null,null,null,null,null,null,null,null,null,null,null,null,null,null,null,null,null,null,null,null,null,null,null,null,null,null,null,null,null,null,null,null,null,null,null,"-"]
[null,null,null,"NULL_YEARS",null,null,null,null,0,null,null,null,null,null,null,null,null,null,null,null,null,null,null,null,null,null,null,null,null,null,null,null,null,null,null,null,null,null,null,"Y",1034,null,null,null,null,"Annual District Clg Use (if applicable)","kWh/yr",null,null,null,null,null,null,null,null,null,"-",null,null,null,null,null,null,null,null,null,"-",null,null,null,null,null,null,null,null,null,"-",null,null,null,null,null,null,null,null,null,"-",null,null,null,null,null,null,null,null,null,"-",null,null,null,null,null,null,null,null,null,null,"-"]
[null,null,null,null,null,null,null,null,null,null,null,null,null,null,null,null,null,null,null,null,null,null,null,null,null,null,null,null,null,null,null,null,null,null,null,null,null,null,null,{"$f":"IF($R$9=3,AN1863,AN1950)","v":"Y"},1033,null,null,null,"Renewable Energy",null,null,null,null,null,null,null,null,null,null,null,null,null,null,null,null,null,null,null,null,null,null,null,null,null,null,null,null,null,null,null,null,null,null,null,null,null,null,null,null,null,null,null,null,null,null,null,null,null,null,null,null,null,null,null,null,null,null,null,null,null,null,"-"]
[null,null,"-","NULL",null,null,null,null,{"$f":"IF($S$9=4,I1967,0)","v":0},0,0,null,null,null,null,null,null,null,null,null,null,null,null,null,null,null,null,null,null,null,null,null,null,null,null,null,null,null,null,{"$f":"IF($S$9=4,AN1967,\"Y\")","v":"Y"},1012,null,null,null,null,"Operational Years 3 to 4",null,"",null,null,"",null,null,null,null,null,null,null,null,null,null,null,null,null,null,null,null,null,null,null,null,null,null,null,null,null,null,null,null,null,null,null,null,null,null,null,null,null,null,null,null,null,null,null,null,null,null,null,null,null,null,null,null,null,null,null,null,"-"]
[null,null,null,null,null,null,null,null,null,null,null,{"$f":"SUM(I1982:I1994)","v":0},{"$f":"SUM(K1982:K1994)","v":0},null,null,null,null,null,null,null,null,null,null,null,null,null,null,null,null,null,null,null,null,null,null,null,null,null,null,{"$f":"AN1980","v":"Y"},1003,null,null,{"$f":"\" BUILDINGS REPORTABLE UNIT \"&AE1975&\": ADDRESS/LOCATION INFORMATION\"","v":" BUILDINGS REPORTABLE UNIT 17: ADDRESS/LOCATION INFORMATION"},null,null,null,null,null,null,null,null,null,null,null,null,null,null,null,null,null,null,null,null,null,null,null,null,null,null,null,null,null,null,null,null,null,null,null,null,null,null,null,null,null,null,null,null,null,null,null,null,null,null,null,null,null,null,null,null,null,null,null,null,null,null,null,"-"]
[null,null,"-","NULL","depends on stage",0,1,1,{"$f":"I1984","v":0},0,0,null,null,null,null,null,null,null,null,null,null,null,null,null,null,null,null,null,null,null,null,null,null,null,null,6,null,null,null,"Y",995,null,null,null,null,"Postcode",null,{"$f":"IF(K1989=1,\"Must complete ->\",\"\")","v":""},null,null,{"$f":"IF(I1989=1,\"*\",\"\")","v":""},null,null,null,null,null,null,null,null,null,null,null,null,null,null,null,null,null,null,null,null,null,null,null,null,null,null,null,null,null,null,null,null,null,null,null,null,null,null,null,null,null,null,null,null,null,null,null,null,null,null,null,null,null,null,null,null,"-"]
[null,null,null,null,null,null,null,null,null,null,null,{"$f":"SUM(I2005:I2006)","v":0},{"$f":"SUM(K2005:K2006)","v":0},null,null,null,null,null,null,null,null,null,null,null,null,null,null,null,null,null,null,null,null,null,null,null,null,null,null,{"$f":"IF(OR(AH1975=1,AI1975=1),AN1975,\"Y\")","v":"Y"},980,null,null,null,"Non-Residential",null,null,null,null,{"$f":"IF(I2006=1,\"Please include complete non-resi details below\",\"\")","v":""},null,null,null,null,null,null,null,null,null,null,null,null,null,null,null,null,null,null,null,null,null,null,null,null,null,null,null,null,null,null,null,null,null,null,null,null,null,null,null,null,null,null,null,null,null,null,null,null,null,null,null,null,null,null,null,null,null,"-"]
[null,null,"Numerical (>=0)","NULL","depends on stage and RU type",null,null,null,0,0,null,null,null,null,null,null,null,null,null,null,null,null,null,null,null,null,null,null,null,null,null,null,null,null,null,null,null,null,null,"Y",967,null,null,null,null,"Swimming pool centre","GIA m2",null,null,null,"",null,null,null,null,null,null,null,null,null,null,null,null,null,null,null,null,null,null,null,null,null,null,null,null,null,null,null,null,null,null,null,null,null,null,null,null,null,null,null,null,null,null,null,null,null,null,null,null,null,null,null,null,null,null,null,null,"-"]
[null,null,"Numerical (>=0)","NULL","depends on stage and RU type",null,null,null,0,0,null,null,null,null,null,null,null,null,null,null,null,null,null,null,null,null,null,null,null,null,null,null,null,null,null,null,null,null,null,"Y",958,null,null,null,null,"Long term residential (C1, C2, C2A planning classes)","GIA m2",null,null,null,"",null,null,null,null,null,null,null,null,null,null,null,null,null,null,null,null,null,null,null,null,null,null,null,null,null,null,null,null,null,null,null,null,null,null,null,null,null,null,null,null,null,null,null,null,null,null,null,null,null,null,null,null,null,null,null,null,"-"]
[null,null,null,null,null,null,null,null,null,null,null,null,null,null,null,null,null,null,null,null,null,null,null,null,null,null,null,null,null,null,null,null,null,null,null,null,null,null,null,"Y",948,null,null,{"$f":"\" BUILDINGS REPORTABLE UNIT \"&AE1975&\": SUPPLEMENTARY FILES\"","v":" BUILDINGS REPORTABLE UNIT 17: SUPPLEMENTARY FILES"},null,null,null,null,null,null,null,null,null,null,null,null,null,null,null,null,null,null,null,null,null,null,null,null,null,null,null,null,null,null,null,null,null,null,null,null,null,null,null,null,null,null,null,null,null,null,null,null,null,null,null,null,null,null,null,null,null,null,null,null,null,null,null,"-"]
[null,null,"-","NULL","depends on stage and RU type & year",null,null,null,{"$f":"IF(Q2048=1,I2048,0)","v":0},{"$f":"IF(OR(AX:AX=\"\",AX:AX=\"-\",AX:AX=\" \"),0,1)","v":0},0,null,null,null,null,null,null,null,null,null,null,null,null,null,null,null,null,null,null,null,null,null,null,null,null,null,null,null,null,{"$f":"IF(Q2048=1,AN2048,\"Y\")","v":"Y"},935,null,null,null,null,"What is the XML filename?",null,"",null,null,"",null,null,null,null,null,null,null,null,null,null,null,null,null,null,null,null,null,null,null,null,null,null,null,null,null,null,null,null,null,null,null,null,null,null,null,null,null,null,null,null,null,null,null,null,null,null,null,null,null,null,null,null,null,null,null,null,"-"]
[null,null,null,"NULL_YEARS",null,null,null,null,{"$f":"I2069","v":0},null,null,null,null,null,null,null,null,null,null,null,null,null,null,null,null,null,null,null,null,null,null,null,null,null,null,null,null,null,null,"Y",914,null,null,null,null,"Net Elec Flow to EVs","kWh",null,null,null,null,null,null,null,null,null,{"$f":"IF(AND(BD:BD<>\"\",BA:BA<>\"\"),IFERROR(ROUND(100*(BD:BD-BA:BA)/BA:BA,0)&\"%\",\"INF\"),\"-\")","v":"-"},null,null,null,null,null,null,null,null,null,{"$f":"IF(AND(BN:BN<>\"\",BD:BD<>\"\"),IFERROR(ROUND(100*(BN:BN-BD:BD)/BD:BD,0)&\"%\",\"INF\"),\"-\")","v":"-"},null,null,null,null,null,null,null,null,null,{"$f":"IF(AND(BX:BX<>\"\",BN:BN<>\"\"),IFERROR(ROUND(100*(BX:BX-BN:BN)/BN:BN,0)&\"%\",\"INF\"),\"-\")","v":"-"},null,null,null,null,null,null,null,null,null,{"$f":"IF(AND(CH:CH<>\"\",BX:BX<>\"\"),IFERROR(ROUND(100*(CH:CH-BX:BX)/BX:BX,0)&\"%\",\"INF\"),\"-\")","v":"-"},null,null,null,null,null,null,null,null,null,{"$f":"IF(AND(CR:CR<>\"\",CH:CH<>\"\"),IFERROR(ROUND(100*(CR:CR-CH:CH)/CH:CH,0)&\"%\",\"INF\"),\"-\")","v":"-"},null,null,null,null,null,null,null,null,null,null,"-"]
[null,null,null,null,"depends on stage on RU",0,1,1,{"$f":"IF(AF1975=0,0,IFERROR(INDEX(F2079:H2079,$R$9),0))","v":0},{"$f":"MAX(J2080:J2085)","v":0},{"$f":"IF(AND(J2079=0,I2079=1),1,0)","v":0},{"$f":"I2079","v":0},{"$f":"K2079","v":0},null,null,null,null,null,null,null,null,null,null,null,null,null,null,null,null,null,null,null,null,null,null,null,null,null,null,"Y",905,null,null,null,{"$f":"\"Please include a few comments below on any significant factors which may impact on RU \"&IF($R$9<=2,\"design or \",\"\")&\"performance since the previous stage\"","v":"Please include a few comments below on any significant factors which may impact on RU design or performance since the previous stage"},null,null,null,null,null,null,null,null,null,null,null,null,null,null,null,null,null,null,null,null,null,null,null,null,null,null,null,null,null,null,null,null,null,null,null,null,null,null,null,null,null,null,null,null,null,null,null,null,null,null,null,null,null,null,null,null,null,null,null,null,null,null,"-"]
[null,null,null,null,null,null,null,null,null,null,null,null,null,null,null,null,null,null,null,null,null,null,null,null,null,null,null,null,null,null,null,null,null,null,null,null,null,null,null,{"$f":"AN2087","v":"Y"},892,null,null,null,null,null,null,null,null,null,null,null,null,null,null,null,null,null,null,null,null,null,null,null,null,null,null,null,null,null,null,null,null,null,null,null,null,null,null,null,null,null,null,null,null,null,null,null,null,null,null,null,null,null,null,null,null,null,null,null,null,null,null,null,null,null,null,"-"]
[null,null,null,null,null,null,null,null,null,null,null,null,null,null,null,null,null,null,null,null,null,null,null,null,null,null,null,null,null,null,null,null,null,null,null,null,null,null,null,"Y",882,null,null,null,"Ordnance Survey Reference",null,null,null,null,null,null,null,null,null,null,null,null,null,null,null,null,null,null,null,null,null,null,null,null,null,null,null,null,null,null,null,null,null,null,null,null,null,null,null,null,null,null,null,null,null,null,null,null,null,null,null,null,null,null,null,null,null,null,null,null,null,null,"-"]
[null,null,"Integer (>=0)","NULL","depends on stage and RU type",null,null,null,{"$f":"I2114","v":0},{"$f":"IF(OR(AX:AX=\"\",AX:AX=\"-\",AX:AX=\" \",R2113=0),0,1)","v":0},0,null,null,null,null,null,{"$f":"AX:AX","v":0},null,null,null,null,null,null,null,null,null,null,null,null,null,null,null,null,null,null,null,null,null,null,"Y",869,null,null,null,null,"House","number",{"$f":"IF(K2115=1,\"Must complete ->\",\"\")","v":""},null,null,{"$f":"IF(I2115=1,\"*\",\"\")","v":""},null,null,null,null,null,null,null,null,null,null,null,null,null,null,null,null,null,null,null,null,null,null,null,null,null,null,null,null,null,null,null,null,null,null,null,null,null,null,null,null,null,null,null,null,null,null,null,null,null,null,null,null,null,null,null,null,"-"]
[null,null,"Numerical (>=0)","NULL","depends on stage and RU type",null,null,null,0,0,null,null,null,null,null,null,null,null,null,null,null,null,null,null,null,null,null,null,null,null,null,null,null,null,null,null,null,null,null,"Y",860,null,null,null,null,"Restaurant (A3, A5 planning classes)","GIA m2",null,null,null,"",null,null,null,null,null,null,null,null,null,null,null,null,null,null,null,null,null,null,null,null,null,null,null,null,null,null,null,null,null,null,null,null,null,null,null,null,null,null,null,null,null,null,null,null,null,null,null,null,null,null,null,null,null,null,null,null,"-"]
[null,null,"Numerical (>=0)","NULL","depends on stage and RU type",null,null,null,0,0,null,null,null,null,null,null,null,null,null,null,null,null,null,null,null,null,null,null,null,null,null,null,null,null,null,null,null,null,null,"Y",839,null,null,null,null,"Storage Facility (B8 planning classes)","GIA m2",null,null,null,"",null,null,null,null,null,null,null,null,null,null,null,null,null,null,null,null,null,null,null,null,null,null,null,null,null,null,null,null,null,null,null,null,null,null,null,null,null,null,null,null,null,null,null,null,null,null,null,null,null,null,null,null,null,null,null,null,"-"]
[null,null,"List","Select from list","depends on stage and RU type & year",0,0,{"$f":"IF($S$9=2,1,0)","v":0},{"$f":"IF(AND(AH2087=0,AI2087=0),0,IFERROR(INDEX(F2154:H2154,$R$9),0))","v":0},{"$f":"IF(OR(AX:AX=\"\",AX:AX=\"-\",AX:AX=\" \",AX:AX=\"Select from list\"),0,1)","v":0},0,null,null,null,null,null,{"$f":"IF(AND(OR(AH2087=1,AI2087=1),AX:AX=\"Yes\"),1,0)","v":0},null,null,null,null,null,null,null,null,null,null,null,null,null,null,null,null,null,null,null,null,{"$f":"ROW()+1","v":2155},{"$f":"AM2152","v":2190},{"$f":"IF($S$9=2,AN2149,\"Y\")","v":"Y"},830,null,null,null,null,{"$f":"IF(Q2118=0,\"Does this RU have a DEC for y2?\",\"Does this RU have a DEC/DFP base bldg energy rating for y2?\")","v":"Does this RU have a DEC for y2?"},null,"",null,"Select from list","",null,null,null,null,null,null,null,null,null,null,null,null,null,null,null,null,null,null,null,null,null,null,null,null,null,null,null,null,null,null,null,null,null,null,null,null,null,null,null,null,null,null,null,null,null,null,null,null,null,null,null,null,null,null,null,null,"-"]
[null,null,null,null,null,null,null,null,{"$f":"MAX(I2169:I2185)","v":0},{"$f":"MIN(J2169:J2170)","v":0},{"$f":"IF(AND(J2168=0,I2168=1),1,0)","v":0},{"$f":"SUM(I2168)","v":0},{"$f":"SUM(K2168)","v":0},null,null,null,null,"AB","Y1","Y2","Y3","Y4","Y5",null,null,null,null,null,null,null,null,null,null,null,null,null,null,null,null,{"$f":"IF(R2149=1,\"Y\",AN2109)","v":"Y"},816,null,null,null,"Building Energy Use",null,null,null,null,{"$f":"IF(I2168=1,\"Please fill in all appropriate energy & plant data in this section\",\"\")","v":""},null,null,"Energy",null,null,"Energy","%ch","d","m","yyyy","d","m","yyyy",null,null,"Energy","%ch","d","m","yyyy","d","m","yyyy",null,null,"Energy","%ch","d","m","yyyy","d","m","yyyy",null,null,"Energy","%ch","d","m","yyyy","d","m","yyyy",null,null,"Energy","%ch","d","m","yyyy","d","m","yyyy",null,null,null,null,"-"]
[null,null,null,"NULL_YEARS",null,null,null,null,{"$f":"I2176","v":0},null,null,null,null,null,null,null,null,null,null,null,null,null,null,null,null,null,null,null,null,null,null,null,null,null,null,null,null,null,null,"Y",807,null,null,null,null,"Solar Thermal Generation (if applicable)","kWh/yr",null,null,null,null,null,null,null,null,null,{"$f":"IF(AND(BD:BD<>\"\",BA:BA<>\"\"),IFERROR(ROUND(100*(BD:BD-BA:BA)/BA:BA,0)&\"%\",\"INF\"),\"-\")","v":"-"},null,null,null,null,null,null,null,null,null,{"$f":"IF(AND(BN:BN<>\"\",BD:BD<>\"\"),IFERROR(ROUND(100*(BN:BN-BD:BD)/BD:BD,0)&\"%\",\"INF\"),\"-\")","v":"-"},null,null,null,null,null,null,null,null,null,{"$f":"IF(AND(BX:BX<>\"\",BN:BN<>\"\"),IFERROR(ROUND(100*(BX:BX-BN:BN)/BN:BN,0)&\"%\",\"INF\"),\"-\")","v":"-"},null,null,null,null,null,null,null,null,null,{"$f":"IF(AND(CH:CH<>\"\",BX:BX<>\"\"),IFERROR(ROUND(100*(CH:CH-BX:BX)/BX:BX,0)&\"%\",\"INF\"),\"-\")","v":"-"},null,null,null,null,null,null,null,null,null,{"$f":"IF(AND(CR:CR<>\"\",CH:CH<>\"\"),IFERROR(ROUND(100*(CR:CR-CH:CH)/CH:CH,0)&\"%\",\"INF\"),\"-\")","v":"-"},null,null,null,null,null,null,null,null,null,null,"-"]
[null,null,null,null,null,null,null,null,null,null,null,null,null,null,null,null,null,null,null,null,null,null,null,null,null,null,null,null,null,null,null,null,null,null,null,null,null,null,null,{"$f":"AN2189","v":"Y"},794,null,null,{"$f":"\" BUILDINGS REPORTABLE UNIT \"&AE2087&\": GENERAL COMMENTS\"","v":" BUILDINGS REPORTABLE UNIT 18: GENERAL COMMENTS"},null,null,null,null,null,null,null,null,null,null,null,null,null,null,null,null,null,null,null,null,null,null,null,null,null,null,null,null,null,null,null,null,null,null,null,null,null,null,null,null,null,null,null,null,null,null,null,null,null,null,null,null,null,null,null,null,null,null,null,null,null,null,null,"-"]
[null,null,null,null,null,null,null,null,null,null,null,{"$f":"SUM(I2202:I2203)","v":0},{"$f":"SUM(K2202:K2203)","v":0},null,null,null,null,null,null,null,null,null,null,null,null,null,null,null,null,null,null,null,null,null,null,null,null,null,null,{"$f":"AN2200","v":"Y"},783,null,null,{"$f":"\" BUILDINGS REPORTABLE UNIT \"&AE2199&\": KEY DETAILS\"","v":" BUILDINGS REPORTABLE UNIT 19: KEY DETAILS"},null,null,null,null,null,null,null,null,null,null,null,null,null,null,null,null,null,null,null,null,null,null,null,null,null,null,null,null,null,null,null,null,null,null,null,null,null,null,null,null,null,null,null,null,null,null,null,null,null,null,null,null,null,null,null,null,null,null,null,null,null,null,null,"-"]
[null,null,"-","NULL","depends on stage",0,1,1,{"$f":"I2208","v":0},0,0,null,null,null,null,null,null,null,null,null,null,null,null,null,null,null,null,null,null,null,null,null,null,null,null,6,null,null,null,"Y",771,null,null,null,null,"Postcode",null,{"$f":"IF(K2213=1,\"Must complete ->\",\"\")","v":""},null,null,{"$f":"IF(I2213=1,\"*\",\"\")","v":""},null,null,null,null,null,null,null,null,null,null,null,null,null,null,null,null,null,null,null,null,null,null,null,null,null,null,null,null,null,null,null,null,null,null,null,null,null,null,null,null,null,null,null,null,null,null,null,null,null,null,null,null,null,null,null,null,"-"]
[null,null,null,null,null,null,null,null,null,null,null,null,null,null,null,null,null,null,null,null,null,null,null,null,null,null,null,null,null,null,null,null,null,null,null,null,null,null,null,{"$f":"AN2221","v":"Y"},762,null,null,null,null,"Total Floor Floor Area","GIA m2",null,null,{"$f":"SUMIFS(AX2223:AX2225,AN2223:AN2225,\"N\")+SUMIFS(AX2228:AX2259,AN2228:AN2259,\"N\")","v":0},null,null,null,null,null,null,null,null,null,null,null,null,null,null,null,null,null,null,null,null,null,null,null,null,null,null,null,null,null,null,null,null,null,null,null,null,null,null,null,null,null,null,null,null,null,null,null,null,null,null,null,null,null,null,null,null,null,"-"]
[null,null,"Numerical (>=0)","NULL","depends on stage and RU type",null,null,null,0,0,null,null,null,null,null,null,null,null,null,null,null,null,null,null,null,null,null,null,null,null,null,null,null,null,null,null,null,null,null,"Y",741,null,null,null,null,"Dry sports and leisure facility (D2 planning classes)","GIA m2",null,null,null,"",null,null,null,null,null,null,null,null,null,null,null,null,null,null,null,null,null,null,null,null,null,null,null,null,null,null,null,null,null,null,null,null,null,null,null,null,null,null,null,null,null,null,null,null,null,null,null,null,null,null,null,null,null,null,null,null,"-"]
[null,null,"Numerical (>=0)","NULL","depends on stage and RU type",null,null,null,0,0,null,null,null,null,null,null,null,null,null,null,null,null,null,null,null,null,null,null,null,null,null,null,null,null,null,null,null,null,null,"Y",740,null,null,null,null,"Covered car park","GIA m2",null,null,null,"",null,null,null,null,null,null,null,null,null,null,null,null,null,null,null,null,null,null,null,null,null,null,null,null,null,null,null,null,null,null,null,null,null,null,null,null,null,null,null,null,null,null,null,null,null,null,null,null,null,null,null,null,null,null,null,null,"-"]
[null,null,"List","Select from list","depends on stage and RU type & year",0,0,{"$f":"IF($S$9=2,1,0)","v":0},{"$f":"IF(AND(AH2199=0,AI2199=0),0,IFERROR(INDEX(F2266:H2266,$R$9),0))","v":0},{"$f":"IF(OR(AX:AX=\"\",AX:AX=\"-\",AX:AX=\" \",AX:AX=\"Select from list\"),0,1)","v":0},0,null,null,null,null,null,{"$f":"IF(AND(OR(AH2199=1,AI2199=1),AX:AX=\"Yes\"),1,0)","v":0},null,null,null,null,null,null,null,null,null,null,null,null,null,null,null,null,null,null,null,null,{"$f":"ROW()+1","v":2267},{"$f":"AM2264","v":2302},{"$f":"IF($S$9=2,AN2261,\"Y\")","v":"Y"},718,null,null,null,null,{"$f":"IF(Q2230=0,\"Does this RU have a DEC for y2?\",\"Does this RU have a DEC/DFP base bldg energy rating for y2?\")","v":"Does this RU have a DEC for y2?"},null,"",null,"Select from list","",null,null,null,null,null,null,null,null,null,null,null,null,null,null,null,null,null,null,null,null,null,null,null,null,null,null,null,null,null,null,null,null,null,null,null,null,null,null,null,null,null,null,null,null,null,null,null,null,null,null,null,null,null,null,null,null,"-"]
[null,null,null,null,null,null,null,null,null,null,null,null,null,null,null,null,null,null,null,null,null,null,null,null,null,null,null,null,null,null,null,null,null,null,null,null,null,null,null,{"$f":"AN2199","v":"Y"},705,null,null,{"$f":"\" BUILDINGS REPORTABLE UNIT \"&AE2199&IF(R2036=3,\": ANNUAL ENERGY CONSUMPTION\",\": PREDICTED PERFORMANCE\")","v":" BUILDINGS REPORTABLE UNIT 19: PREDICTED PERFORMANCE"},null,null,null,null,null,null,null,null,"AS-BUILT",null,null,"YEAR 1",null,"Start/End Dates (if available)",null,null,null,null,null,null,null,"YEAR 2",null,"Start/End Dates (if available)",null,null,null,null,null,null,null,"YEAR 3",null,"Start/End Dates (if available)",null,null,null,null,null,null,null,"YEAR 4",null,"Start/End Dates (if available)",null,null,null,null,null,null,null,"YEAR 5",null,"Start/End Dates (if available)",null,null,null,null,null,null,null,null,null,"-"]
[null,null,null,"NULL_YEARS",null,null,null,null,{"$f":"I2286","v":0},null,null,null,null,null,null,null,null,null,null,null,null,null,null,null,null,null,null,null,null,null,null,null,null,null,null,null,null,null,null,{"$f":"AN2280","v":"Y"},696,null,null,null,null,"Elec Generation, Gross (if applicable)","kWh/yr",null,null,null,null,null,null,null,null,null,{"$f":"IF(AND(BD:BD<>\"\",BA:BA<>\"\"),IFERROR(ROUND(100*(BD:BD-BA:BA)/BA:BA,0)&\"%\",\"INF\"),\"-\")","v":"-"},null,null,null,null,null,null,null,null,null,{"$f":"IF(AND(BN:BN<>\"\",BD:BD<>\"\"),IFERROR(ROUND(100*(BN:BN-BD:BD)/BD:BD,0)&\"%\",\"INF\"),\"-\")","v":"-"},null,null,null,null,null,null,null,null,null,{"$f":"IF(AND(BX:BX<>\"\",BN:BN<>\"\"),IFERROR(ROUND(100*(BX:BX-BN:BN)/BN:BN,0)&\"%\",\"INF\"),\"-\")","v":"-"},null,null,null,null,null,null,null,null,null,{"$f":"IF(AND(CH:CH<>\"\",BX:BX<>\"\"),IFERROR(ROUND(100*(CH:CH-BX:BX)/BX:BX,0)&\"%\",\"INF\"),\"-\")","v":"-"},null,null,null,null,null,null,null,null,null,{"$f":"IF(AND(CR:CR<>\"\",CH:CH<>\"\"),IFERROR(ROUND(100*(CR:CR-CH:CH)/CH:CH,0)&\"%\",\"INF\"),\"-\")","v":"-"},null,null,null,null,null,null,null,null,null,null,"-"]
[null,null,null,"NULL_YEARS",null,null,null,null,{"$f":"I2296","v":0},null,null,null,null,null,null,null,null,null,null,null,null,null,null,null,null,null,null,null,null,null,null,null,null,null,null,null,null,null,null,"Y",687,null,null,null,null,"District Clg Exported (if applicable)","kWh/yr",null,null,null,null,null,null,null,null,null,{"$f":"IF(AND(BD:BD<>\"\",BA:BA<>\"\"),IFERROR(ROUND(100*(BD:BD-BA:BA)/BA:BA,0)&\"%\",\"INF\"),\"-\")","v":"-"},null,null,null,null,null,null,null,null,null,{"$f":"IF(AND(BN:BN<>\"\",BD:BD<>\"\"),IFERROR(ROUND(100*(BN:BN-BD:BD)/BD:BD,0)&\"%\",\"INF\"),\"-\")","v":"-"},null,null,null,null,null,null,null,null,null,{"$f":"IF(AND(BX:BX<>\"\",BN:BN<>\"\"),IFERROR(ROUND(100*(BX:BX-BN:BN)/BN:BN,0)&\"%\",\"INF\"),\"-\")","v":"-"},null,null,null,null,null,null,null,null,null,{"$f":"IF(AND(CH:CH<>\"\",BX:BX<>\"\"),IFERROR(ROUND(100*(CH:CH-BX:BX)/BX:BX,0)&\"%\",\"INF\"),\"-\")","v":"-"},null,null,null,null,null,null,null,null,null,{"$f":"IF(AND(CR:CR<>\"\",CH:CH<>\"\"),IFERROR(ROUND(100*(CR:CR-CH:CH)/CH:CH,0)&\"%\",\"INF\"),\"-\")","v":"-"},null,null,null,null,null,null,null,null,null,null,"-"]
[null,null,"-","NULL",null,null,null,null,{"$f":"IF($S$9=2,I2303,0)","v":0},0,0,null,null,null,null,null,null,null,null,null,null,null,null,null,null,null,null,null,null,null,null,null,null,null,null,null,null,null,null,{"$f":"IF($S$9=2,AN2303,\"Y\")","v":"Y"},678,null,null,null,null,"Operational Years 1 to 2",null,"",null,null,"",null,null,null,null,null,null,null,null,null,null,null,null,null,null,null,null,null,null,null,null,null,null,null,null,null,null,null,null,null,null,null,null,null,null,null,null,null,null,null,null,null,null,null,null,null,null,null,null,null,null,null,null,null,null,null,null,"-"]
[null,null,"-","NULL","depends on stage",0,1,1,{"$f":"IF(AF2311=0,0,IFERROR(INDEX(F2320:H2320,$R$9),0))","v":0},{"$f":"IF(OR(AX:AX=\"\",AX:AX=\"-\",AX:AX=\" \"),0,1)","v":0},{"$f":"IF(AND(J2320=0,I2320=1),1,0)","v":0},null,null,null,null,null,null,null,null,null,null,null,null,null,null,null,null,null,null,null,null,null,null,null,null,1,null,null,null,"Y",664,null,null,null,null,"Address Line 1",null,{"$f":"IF(K2320=1,\"Must complete ->\",\"\")","v":""},null,null,{"$f":"IF(I2320=1,\"*\",\"\")","v":""},null,null,null,null,null,null,null,null,null,null,null,null,null,null,null,null,null,null,null,null,null,null,null,null,null,null,null,null,null,null,null,null,null,null,null,null,null,null,null,null,null,null,null,null,null,null,null,null,null,null,null,null,null,null,null,null,"-"]
[null,null,"Numerical (>=0)","NULL","depends on stage and RU type",0,1,1,{"$f":"IF(AI2311=0,0,IFERROR(INDEX(F2341:H2341,$R$9),0))","v":0},{"$f":"IF(OR(AX:AX=\"\",AX:AX=\"-\",AX:AX=\" \",AX:AX=0),0,1)","v":0},{"$f":"IF(AND(J2341=0,I2341=1),1,0)","v":0},null,null,null,null,null,null,null,null,null,null,null,null,null,null,null,null,null,null,null,null,null,null,null,null,null,null,null,null,{"$f":"AN2315","v":"Y"},643,null,null,null,null,"Landlord Circulation (in Residential Blocks)","GIA m2",{"$f":"IF(K2341=1,\"Must complete ->\",\"\")","v":""},null,null,{"$f":"IF(I2341=1,\"*\",\"\")","v":""},null,null,null,null,null,null,null,null,null,null,null,null,null,null,null,null,null,null,null,null,null,null,null,null,null,null,null,null,null,null,null,null,null,null,null,null,null,null,null,null,null,null,null,null,null,null,null,null,null,null,null,null,null,null,null,null,"-"]
[null,null,"Numerical (>=0)","NULL","depends on stage and RU type",0,1,1,{"$f":"IF(AH2311=0,0,IFERROR(INDEX(F2342:H2342,$R$9),0))","v":0},{"$f":"IF(OR(AX:AX=\"\",AX:AX=\"-\",AX:AX=\" \"),0,1)","v":0},{"$f":"IF(I2342=0,0,1-MAX(J2342:J2370))","v":0},null,null,null,null,null,{"$f":"IF(AH2311=0,0,AX:AX)","v":0},null,null,null,null,null,null,null,null,null,null,null,null,null,null,null,null,null,null,null,null,null,null,{"$f":"IF(AH2311=1,AN2311,\"Y\")","v":"Y"},642,null,null,null,null,"General office (A2, B1, B8, D1 planning classes)","GIA m2",null,null,null,{"$f":"IF(I2342=1,\"*\",\"\")","v":""},null,null,null,null,null,null,null,null,null,null,null,null,null,null,null,null,null,null,null,null,null,null,null,null,null,null,null,null,null,null,null,null,null,null,null,null,null,null,null,null,null,null,null,null,null,null,null,null,null,null,null,null,null,null,null,null,"-"]
[null,null,"Numerical (>=0)","NULL","depends on stage and RU type",null,null,null,0,0,null,null,null,null,null,null,null,null,null,null,null,null,null,null,null,null,null,null,null,null,null,null,null,null,null,null,null,null,null,"Y",618,null,null,null,null,"Public waiting or circulation (SG planning classes)","GIA m2",null,null,null,"",null,null,null,null,null,null,null,null,null,null,null,null,null,null,null,null,null,null,null,null,null,null,null,null,null,null,null,null,null,null,null,null,null,null,null,null,null,null,null,null,null,null,null,null,null,null,null,null,null,null,null,null,null,null,null,null,"-"]
[null,null,"-","NULL","depends on stage and RU type & year",null,null,null,{"$f":"IF(Q2376=1,I2376,0)","v":0},{"$f":"IF(OR(AX:AX=\"\",AX:AX=\"-\",AX:AX=\" \"),0,1)","v":0},0,null,null,null,null,null,null,null,null,null,null,null,null,null,null,null,null,null,null,null,null,null,null,null,null,null,null,null,null,{"$f":"IF(Q2376=1,AN2376,\"Y\")","v":"Y"},{"$f":"IF(AN2378=AN2377,AO2378+1,1)","v":607},null,null,null,null,"What is the XML filename?",null,"",null,null,"",null,null,null,null,null,null,null,null,null,null,null,null,null,null,null,null,null,null,null,null,null,null,null,null,null,null,null,null,null,null,null,null,null,null,null,null,null,null,null,null,null,null,null,null,null,null,null,null,null,null,null,null,null,null,null,null,"-"]
[null,null,"List_No_VBA","Select from list","depends on stage and RU type & year",0,1,0,{"$f":"IF(AF2311=0,0,IFERROR(INDEX(F2386:H2386,$R$9),0))","v":0},{"$f":"IF(OR(AX:AX=\"\",AX:AX=\"-\",AX:AX=\" \",AX:AX=\"Select from list\"),0,1)","v":0},0,null,null,null,null,null,null,null,null,null,null,null,null,null,null,null,null,null,null,null,null,null,null,null,null,null,null,null,null,{"$f":"AN2311","v":"Y"},598,null,null,null,"Is there a metering plan in place for this RU?",null,null,"",null,"Select from list","",null,null,null,null,null,null,null,null,null,null,null,null,null,null,null,null,null,null,null,null,null,null,null,null,null,null,null,null,null,null,null,null,null,null,null,null,null,null,null,null,null,null,null,null,null,null,null,null,null,null,null,null,null,null,null,null,"-"]
[null,null,null,"NULL_YEARS",null,null,null,null,{"$f":"I2394","v":0},null,null,null,null,null,null,null,null,null,null,null,null,null,null,null,null,null,null,null,null,null,null,null,null,null,null,null,null,null,null,{"$f":"AN2394","v":"Y"},589,null,null,null,null,"Annual Oil Use (if applicable)","kWh/yr",null,null,null,null,null,null,null,null,null,"-",null,null,null,null,null,null,null,null,null,"-",null,null,null,null,null,null,null,null,null,"-",null,null,null,null,null,null,null,null,null,"-",null,null,null,null,null,null,null,null,null,"-",null,null,null,null,null,null,null,null,null,null,"-"]
[null,null,null,"NULL_YEARS",null,null,null,null,{"$f":"I2408","v":0},null,null,null,null,null,null,null,null,null,null,null,null,null,null,null,null,null,null,null,null,null,null,null,null,null,null,null,null,null,null,"Y",575,null,null,null,null,"District Clg Exported (if applicable)","kWh/yr",null,null,null,null,null,null,null,null,null,{"$f":"IF(AND(BD:BD<>\"\",BA:BA<>\"\"),IFERROR(ROUND(100*(BD:BD-BA:BA)/BA:BA,0)&\"%\",\"INF\"),\"-\")","v":"-"},null,null,null,null,null,null,null,null,null,{"$f":"IF(AND(BN:BN<>\"\",BD:BD<>\"\"),IFERROR(ROUND(100*(BN:BN-BD:BD)/BD:BD,0)&\"%\",\"INF\"),\"-\")","v":"-"},null,null,null,null,null,null,null,null,null,{"$f":"IF(AND(BX:BX<>\"\",BN:BN<>\"\"),IFERROR(ROUND(100*(BX:BX-BN:BN)/BN:BN,0)&\"%\",\"INF\"),\"-\")","v":"-"},null,null,null,null,null,null,null,null,null,{"$f":"IF(AND(CH:CH<>\"\",BX:BX<>\"\"),IFERROR(ROUND(100*(CH:CH-BX:BX)/BX:BX,0)&\"%\",\"INF\"),\"-\")","v":"-"},null,null,null,null,null,null,null,null,null,{"$f":"IF(AND(CR:CR<>\"\",CH:CH<>\"\"),IFERROR(ROUND(100*(CR:CR-CH:CH)/CH:CH,0)&\"%\",\"INF\"),\"-\")","v":"-"},null,null,null,null,null,null,null,null,null,null,"-"]
[null,null,"-","NULL",null,null,null,null,{"$f":"IF($S$9=2,I2415,0)","v":0},0,0,null,null,null,null,null,null,null,null,null,null,null,null,null,null,null,null,null,null,null,null,null,null,null,null,null,null,null,null,{"$f":"IF($S$9=2,AN2415,\"Y\")","v":"Y"},566,null,null,null,null,"Operational Years 1 to 2",null,"",null,null,"",null,null,null,null,null,null,null,null,null,null,null,null,null,null,null,null,null,null,null,null,null,null,null,null,null,null,null,null,null,null,null,null,null,null,null,null,null,null,null,null,null,null,null,null,null,null,null,null,null,null,null,null,null,null,null,null,"-"]
[null,null,"-","NULL","depends on stage on RU",0,0,1,{"$f":"IF(AF2423=0,0,IFERROR(INDEX(F2439:H2439,$R$9),0))","v":0},{"$f":"IF(OR(AX:AX=\"\",AX:AX=\"-\",AX:AX=\" \"),0,1)","v":0},{"$f":"IF(AND(J2439=0,I2439=1),1,0)","v":0},null,null,null,null,null,null,null,null,null,null,null,null,null,null,null,null,null,null,null,null,null,null,null,null,7,null,null,null,"Y",545,null,null,null,null,"Development UPRN (if available)",null,{"$f":"IF(AND(I2439=0,J2439=0,AF2423=1),\"Please add if available ->\",IF(K2439=1,\"Must complete ->\",\"\"))","v":""},null,null,{"$f":"IF(I2439=1,\"*\",\"\")","v":""},null,null,null,null,null,null,null,null,null,null,null,null,null,null,null,null,null,null,null,null,null,null,null,null,null,null,null,null,null,null,null,null,null,null,null,null,null,null,null,null,null,null,null,null,null,null,null,null,null,null,null,null,null,null,null,null,"-"]
[null,null,null,null,null,null,null,null,null,null,null,null,null,null,null,null,null,null,null,null,null,null,null,null,null,null,null,null,null,null,null,null,null,null,null,null,null,null,null,"Y",544,null,null,null,"Geo-Location Coordinates",null,null,null,null,null,null,null,null,null,null,null,null,null,null,null,null,null,null,null,null,null,null,null,null,null,null,null,null,null,null,null,null,null,null,null,null,null,null,null,null,null,null,null,null,null,null,null,null,null,null,null,null,null,null,null,null,null,null,null,null,null,null,"-"]
[null,null,"Numerical (>=0)","NULL","depends on stage and RU type",null,null,null,0,0,null,null,null,null,null,null,null,null,null,null,null,null,null,null,null,null,null,null,null,null,null,null,null,null,null,null,null,null,null,"Y",523,null,null,null,null,"Bar, pub or licensed club (A4 planning classes)","GIA m2",null,null,null,"",null,null,null,null,null,null,null,null,null,null,null,null,null,null,null,null,null,null,null,null,null,null,null,null,null,null,null,null,null,null,null,null,null,null,null,null,null,null,null,null,null,null,null,null,null,null,null,null,null,null,null,null,null,null,null,null,"-"]
[null,null,"Numerical (>=0)","NULL","depends on stage and RU type",null,null,null,0,0,null,null,null,null,null,null,null,null,null,null,null,null,null,null,null,null,null,null,null,null,null,null,null,null,null,null,null,null,null,"Y",513,null,null,null,null,"University campus","GIA m2",null,null,null,"",null,null,null,null,null,null,null,null,null,null,null,null,null,null,null,null,null,null,null,null,null,null,null,null,null,null,null,null,null,null,null,null,null,null,null,null,null,null,null,null,null,null,null,null,null,null,null,null,null,null,null,null,null,null,null,null,"-"]
[null,null,null,null,null,null,null,null,null,null,null,null,null,null,null,null,null,null,null,null,null,null,null,null,null,null,null,null,null,null,null,null,null,null,null,null,null,null,null,"Y",500,null,null,{"$f":"\" BUILDINGS REPORTABLE UNIT \"&AE2423&\": SUPPLEMENTARY FILES\"","v":" BUILDINGS REPORTABLE UNIT 21: SUPPLEMENTARY FILES"},null,null,null,null,null,null,null,null,null,null,null,null,null,null,null,null,null,null,null,null,null,null,null,null,null,null,null,null,null,null,null,null,null,null,null,null,null,null,null,null,null,null,null,null,null,null,null,null,null,null,null,null,null,null,null,null,null,null,null,null,null,null,null,"-"]
[null,null,"-","NULL","depends on stage and RU type & year",null,null,null,{"$f":"IF(Q2492=1,I2492,0)","v":0},{"$f":"IF(OR(AX:AX=\"\",AX:AX=\"-\",AX:AX=\" \"),0,1)","v":0},0,null,null,null,null,null,null,null,null,null,null,null,null,null,null,null,null,null,null,null,null,null,null,null,null,null,null,null,null,{"$f":"IF(Q2492=1,AN2492,\"Y\")","v":"Y"},491,null,null,null,null,"What is the XML filename?",null,"",null,null,"",null,null,null,null,null,null,null,null,null,null,null,null,null,null,null,null,null,null,null,null,null,null,null,null,null,null,null,null,null,null,null,null,null,null,null,null,null,null,null,null,null,null,null,null,null,null,null,null,null,null,null,null,null,null,null,null,"-"]
[null,null,null,"NULL_YEARS","depends on stage and RU type",null,null,null,{"$f":"I2505","v":0},{"$f":"IF($R$9<2,0,IF($R$9=2,R2506,INDEX(S2506:W2506,$S$9)))","v":0},0,null,null,null,null,null,null,{"$f":"IF(COUNTIF(AZ2506:BA2506,\"\")>1,0,1)","v":0},{"$f":"IF(COUNTIF(BC2506:BD2506,\"\")>1,0,1)","v":0},{"$f":"IF(COUNTIF(BM2506:BN2506,\"\")>1,0,1)","v":0},{"$f":"IF(COUNTIF(BW2506:BX2506,\"\")>1,0,1)","v":0},{"$f":"IF(COUNTIF(CG2506:CH2506,\"\")>1,0,1)","v":0},{"$f":"IF(COUNTIF(CQ2506:CR2506,\"\")>1,0,1)","v":0},null,null,null,null,null,null,null,null,null,null,null,null,null,null,null,null,"Y",478,null,null,null,null,"Annual Gas Use","kWh/yr",{"$f":"IF(K2506=1,\"Must complete ->\",\"\")","v":""},null,null,null,null,null,null,null,null,"-",null,null,null,null,null,null,null,null,null,"-",null,null,null,null,null,null,null,null,null,"-",null,null,null,null,null,null,null,null,null,"-",null,null,null,null,null,null,null,null,null,"-",null,null,null,null,null,null,null,null,null,null,"-"]
[null,null,null,"NULL_YEARS",null,null,null,null,{"$f":"I2517","v":0},null,null,null,null,null,null,null,null,null,null,null,null,null,null,null,null,null,null,null,null,null,null,null,null,null,null,null,null,null,null,"Y",466,null,null,null,null,"Net Elec Flow to EVs","kWh",null,null,null,null,null,null,null,null,null,{"$f":"IF(AND(BD:BD<>\"\",BA:BA<>\"\"),IFERROR(ROUND(100*(BD:BD-BA:BA)/BA:BA,0)&\"%\",\"INF\"),\"-\")","v":"-"},null,null,null,null,null,null,null,null,null,{"$f":"IF(AND(BN:BN<>\"\",BD:BD<>\"\"),IFERROR(ROUND(100*(BN:BN-BD:BD)/BD:BD,0)&\"%\",\"INF\"),\"-\")","v":"-"},null,null,null,null,null,null,null,null,null,{"$f":"IF(AND(BX:BX<>\"\",BN:BN<>\"\"),IFERROR(ROUND(100*(BX:BX-BN:BN)/BN:BN,0)&\"%\",\"INF\"),\"-\")","v":"-"},null,null,null,null,null,null,null,null,null,{"$f":"IF(AND(CH:CH<>\"\",BX:BX<>\"\"),IFERROR(ROUND(100*(CH:CH-BX:BX)/BX:BX,0)&\"%\",\"INF\"),\"-\")","v":"-"},null,null,null,null,null,null,null,null,null,{"$f":"IF(AND(CR:CR<>\"\",CH:CH<>\"\"),IFERROR(ROUND(100*(CR:CR-CH:CH)/CH:CH,0)&\"%\",\"INF\"),\"-\")","v":"-"},null,null,null,null,null,null,null,null,null,null,"-"]
[null,null,"-","NULL",null,null,null,null,{"$f":"IF($S$9=1,I2527,0)","v":0},0,0,null,null,null,null,null,null,null,null,null,null,null,null,null,null,null,null,null,null,null,null,null,null,null,null,null,null,null,null,{"$f":"IF($S$9=1,AN2527,\"Y\")","v":"Y"},455,null,null,null,null,"As-Built to Operational year 1",null,{"$f":"IF(K2529=1,\"To complete ->\",\"\")","v":""},null,null,{"$f":"IF(I2529=1,\"*\",\"\")","v":""},null,null,null,null,null,null,null,null,null,null,null,null,null,null,null,null,null,null,null,null,null,null,null,null,null,null,null,null,null,null,null,null,null,null,null,null,null,null,null,null,null,null,null,null,null,null,null,null,null,null,null,null,null,null,null,null,"-"]
[null,null,"List","Select from list","depends on stage and RU existence",0,1,1,{"$f":"IF(AF2535=0,0,IFERROR(INDEX(F2538:H2538,$R$9),0))","v":0},{"$f":"IF(OR(AX:AX=\"\",AX:AX=\"-\",AX:AX=\" \",AX:AX=\"Select from list\"),0,1)","v":0},{"$f":"IF(AND(J2538=0,I2538=1),1,0)","v":0},null,null,null,null,null,{"$f":"IF(AND(AX:AX<>\"Select from list\",AX:AX<>\"\"),AX:AX,\"-\")","v":"-"},null,null,null,null,null,null,null,null,null,null,null,null,null,null,null,null,null,null,null,null,{"$f":"ROW()+1","v":2539},{"$f":"ROW(AR2612)","v":2612},{"$f":"AN2537","v":"Y"},446,null,null,null,"Reportable Unit Type",null,null,{"$f":"IF(K2538=1,\"Must complete ->\",\"\")","v":""},null,"Select from list",{"$f":"IF(I2538=1,\"*\",\"\")","v":""},null,null,null,null,null,null,null,null,null,null,null,null,null,null,null,null,null,null,null,null,null,null,null,null,null,null,null,null,null,null,null,null,null,null,null,null,null,null,null,null,null,null,null,null,null,null,null,null,null,null,null,null,null,null,null,null,"-"]
[null,null,null,null,null,null,null,null,null,null,null,{"$f":"SUM(I2560:I2563)","v":0},{"$f":"SUM(K2560:K2563)","v":0},null,null,null,null,null,null,null,null,null,null,null,null,null,null,null,null,null,null,null,null,null,null,null,null,null,null,{"$f":"IF(AG2535=1,AN2535,\"Y\")","v":"Y"},425,null,null,null,"Residential",null,null,null,null,null,null,null,null,null,null,null,null,null,null,null,null,null,null,null,null,null,null,null,null,null,null,null,null,null,null,null,null,null,null,null,null,null,null,null,null,null,null,null,null,null,null,null,null,null,null,null,null,null,null,null,null,null,null,null,null,null,null,"-"]
[null,null,"Numerical (>=0)","NULL","depends on stage and RU type",null,null,null,0,0,null,null,null,null,null,null,null,null,null,null,null,null,null,null,null,null,null,null,null,null,null,null,null,null,null,null,null,null,null,"Y",410,null,null,null,null,"Hotel (C1 planning classes)","GIA m2",null,null,null,"",null,null,null,null,null,null,null,null,null,null,null,null,null,null,null,null,null,null,null,null,null,null,null,null,null,null,null,null,null,null,null,null,null,null,null,null,null,null,null,null,null,null,null,null,null,null,null,null,null,null,null,null,null,null,null,null,"-"]
[null,null,"Numerical (>=0)","NULL","depends on stage and RU type",null,null,null,0,0,null,null,null,null,null,null,null,null,null,null,null,null,null,null,null,null,null,null,null,null,null,null,null,null,null,null,null,null,null,"Y",402,null,null,null,null,"Schools and seasonal public buildings (D1, D2 planning classes)","GIA m2",null,null,null,"",null,null,null,null,null,null,null,null,null,null,null,null,null,null,null,null,null,null,null,null,null,null,null,null,null,null,null,null,null,null,null,null,null,null,null,null,null,null,null,null,null,null,null,null,null,null,null,null,null,null,null,null,null,null,null,null,"-"]
[null,null,"Numerical (>=0)","NULL","depends on stage and RU type",null,null,null,0,0,null,null,null,null,null,null,null,null,null,null,null,null,null,null,null,null,null,null,null,null,null,null,null,null,null,null,null,null,null,"Y",393,null,null,null,null,"Terminal (B8 planning classes)","GIA m2",null,null,null,"",null,null,null,null,null,null,null,null,null,null,null,null,null,null,null,null,null,null,null,null,null,null,null,null,null,null,null,null,null,null,null,null,null,null,null,null,null,null,null,null,null,null,null,null,null,null,null,null,null,null,null,null,null,null,null,null,"-"]
[null,null,"List","Select from list","depends on stage and RU type & year",0,0,{"$f":"IF($S$9=3,1,0)","v":0},{"$f":"IF(AND(AH2535=0,AI2535=0),0,IFERROR(INDEX(F2604:H2604,$R$9),0))","v":0},{"$f":"IF(OR(AX:AX=\"\",AX:AX=\"-\",AX:AX=\" \",AX:AX=\"Select from list\"),0,1)","v":0},0,null,null,null,null,null,{"$f":"IF(AND(OR(AH2535=1,AI2535=1),AX:AX=\"Yes\"),1,0)","v":0},null,null,null,null,null,null,null,null,null,null,null,null,null,null,null,null,null,null,null,null,{"$f":"ROW()+1","v":2605},{"$f":"AM2602","v":2638},{"$f":"IF($S$9=3,AN2597,\"Y\")","v":"Y"},380,null,null,null,null,{"$f":"IF(Q2566=0,\"Does this RU have a DEC for y3?\",\"Does this RU have a DEC/DFP base bldg energy rating for y3?\")","v":"Does this RU have a DEC for y3?"},null,"",null,"Select from list","",null,null,null,null,null,null,null,null,null,null,null,null,null,null,null,null,null,null,null,null,null,null,null,null,null,null,null,null,null,null,null,null,null,null,null,null,null,null,null,null,null,null,null,null,null,null,null,null,null,null,null,null,null,null,null,null,"-"]
[null,null,null,"NULL_YEARS",null,null,null,null,0,null,null,null,null,null,null,null,null,null,null,null,null,null,null,null,null,null,null,null,null,null,null,null,null,null,null,null,null,null,null,"Y",363,null,null,null,null,"Annual District Htg Use (if applicable)","kWh/yr",null,null,null,null,null,null,null,null,null,"-",null,null,null,null,null,null,null,null,null,"-",null,null,null,null,null,null,null,null,null,"-",null,null,null,null,null,null,null,null,null,"-",null,null,null,null,null,null,null,null,null,"-",null,null,null,null,null,null,null,null,null,null,"-"]
[null,null,null,"NULL_YEARS",null,null,null,null,0,null,null,null,null,null,null,null,null,null,null,null,null,null,null,null,null,null,null,null,null,null,null,null,null,null,null,null,null,null,null,"Y",357,null,null,null,null,"Renewable Electricity, Used on Site (if applicable)","kWh/yr",null,null,null,null,null,null,null,null,null,{"$f":"IF(AND(BD:BD<>\"\",BA:BA<>\"\"),IFERROR(ROUND(100*(BD:BD-BA:BA)/BA:BA,0)&\"%\",\"INF\"),\"-\")","v":"-"},null,null,null,null,null,null,null,null,null,{"$f":"IF(AND(BN:BN<>\"\",BD:BD<>\"\"),IFERROR(ROUND(100*(BN:BN-BD:BD)/BD:BD,0)&\"%\",\"INF\"),\"-\")","v":"-"},null,null,null,null,null,null,null,null,null,{"$f":"IF(AND(BX:BX<>\"\",BN:BN<>\"\"),IFERROR(ROUND(100*(BX:BX-BN:BN)/BN:BN,0)&\"%\",\"INF\"),\"-\")","v":"-"},null,null,null,null,null,null,null,null,null,{"$f":"IF(AND(CH:CH<>\"\",BX:BX<>\"\"),IFERROR(ROUND(100*(CH:CH-BX:BX)/BX:BX,0)&\"%\",\"INF\"),\"-\")","v":"-"},null,null,null,null,null,null,null,null,null,{"$f":"IF(AND(CR:CR<>\"\",CH:CH<>\"\"),IFERROR(ROUND(100*(CR:CR-CH:CH)/CH:CH,0)&\"%\",\"INF\"),\"-\")","v":"-"},null,null,null,null,null,null,null,null,null,null,"-"]
[null,null,null,"NULL_YEARS",null,0,1,0,{"$f":"I2635","v":0},{"$f":"IF(OR(BA:BA=\"\",BA:BA=\"Select from list\"),0,1)","v":0},0,null,null,null,null,null,null,null,null,null,null,null,null,null,null,null,null,null,null,null,null,null,null,null,null,null,null,null,null,{"$f":"AN2635","v":"Y"},348,null,null,null,null,"Carbon Offset Amount","£",null,null,{"$f":"IF(K2636=1,\"To complete ->\",\"\")","v":""},null,null,null,{"$f":"IF(I2636=1,\"*\",\"\")","v":""},null,null,null,null,null,null,null,null,null,null,null,null,null,null,null,null,null,null,null,null,null,null,null,null,null,null,null,null,null,null,null,null,null,null,null,null,null,null,null,null,null,null,null,null,null,null,null,null,null,null,null,null,null,"-"]
[null,null,"-","NULL","constant",null,null,null,0,0,0,null,null,null,null,null,null,null,null,null,null,null,null,null,null,null,null,null,null,null,null,null,null,null,null,2,null,null,null,"Y",327,null,null,null,null,"Address Line 2",null,null,null,null,null,null,null,null,null,null,null,null,null,null,null,null,null,null,null,null,null,null,null,null,null,null,null,null,null,null,null,null,null,null,null,null,null,null,null,null,null,null,null,null,null,null,null,null,null,null,null,null,null,null,null,null,null,null,null,null,null,"-"]
[null,null,null,null,null,null,null,null,null,null,null,null,null,null,null,null,null,null,null,null,null,null,null,null,null,null,null,null,null,null,null,null,null,null,null,null,null,null,null,{"$f":"AN2669","v":"Y"},314,null,null,null,null,"Total Floor Floor Area","GIA m2",null,null,{"$f":"SUMIFS(AX2671:AX2673,AN2671:AN2673,\"N\")+SUMIFS(AX2676:AX2707,AN2676:AN2707,\"N\")","v":0},null,null,null,null,null,null,null,null,null,null,null,null,null,null,null,null,null,null,null,null,null,null,null,null,null,null,null,null,null,null,null,null,null,null,null,null,null,null,null,null,null,null,null,null,null,null,null,null,null,null,null,null,null,null,null,null,null,"-"]
[null,null,"Numerical (>=0)","NULL","depends on stage and RU type",null,null,null,0,0,null,null,null,null,null,null,null,null,null,null,null,null,null,null,null,null,null,null,null,null,null,null,null,null,null,null,null,null,null,"Y",301,null,null,null,null,"Large food store","GIA m2",null,null,null,"",null,null,null,null,null,null,null,null,null,null,null,null,null,null,null,null,null,null,null,null,null,null,null,null,null,null,null,null,null,null,null,null,null,null,null,null,null,null,null,null,null,null,null,null,null,null,null,null,null,null,null,null,null,null,null,null,"-"]
[null,null,"Numerical (>=0)","NULL","depends on stage and RU type",null,null,null,0,0,null,null,null,null,null,null,null,null,null,null,null,null,null,null,null,null,null,null,null,null,null,null,null,null,null,null,null,null,null,"Y",291,null,null,null,null,"Public buildings with light usage (D1, SG planning classes)","GIA m2",null,null,null,"",null,null,null,null,null,null,null,null,null,null,null,null,null,null,null,null,null,null,null,null,null,null,null,null,null,null,null,null,null,null,null,null,null,null,null,null,null,null,null,null,null,null,null,null,null,null,null,null,null,null,null,null,null,null,null,null,"-"]
[null,null,"Numerical (>=0)","NULL","depends on stage and RU type",null,null,null,0,0,null,null,null,null,null,null,null,null,null,null,null,null,null,null,null,null,null,null,null,null,null,null,null,null,null,null,null,null,null,"Y",282,null,null,null,null,"Public waiting or circulation (SG planning classes)","GIA m2",null,null,null,"",null,null,null,null,null,null,null,null,null,null,null,null,null,null,null,null,null,null,null,null,null,null,null,null,null,null,null,null,null,null,null,null,null,null,null,null,null,null,null,null,null,null,null,null,null,null,null,null,null,null,null,null,null,null,null,null,"-"]
[null,null,"-","NULL","depends on stage and RU type & year",null,null,null,{"$f":"IF(Q2710=1,I2710,0)","v":0},{"$f":"IF(OR(AX:AX=\"\",AX:AX=\"-\",AX:AX=\" \"),0,1)","v":0},0,null,null,null,null,null,null,null,null,null,null,null,null,null,null,null,null,null,null,null,null,null,null,null,null,null,null,null,null,{"$f":"IF(Q2710=1,AN2710,\"Y\")","v":"Y"},273,null,null,null,null,"What is the XML filename?",null,{"$f":"IF(K2711=1,\"To complete ->\",\"\")","v":""},null,null,{"$f":"IF(I2711=1,\"*\",\"\")","v":""},null,null,null,null,null,null,null,null,null,null,null,null,null,null,null,null,null,null,null,null,null,null,null,null,null,null,null,null,null,null,null,null,null,null,null,null,null,null,null,null,null,null,null,null,null,null,null,null,null,null,null,null,null,null,null,null,"-"]
[null,null,null,null,null,null,null,null,null,null,null,null,null,null,null,null,null,null,null,null,null,null,null,null,null,null,null,null,null,null,null,null,null,null,null,null,null,null,null,"Y",258,null,null,null,null,null,null,null,null,null,null,null,null,null,null,null,null,null,null,null,null,null,null,null,null,null,null,null,null,null,null,null,null,null,null,null,null,null,null,null,null,null,null,null,null,null,null,null,null,null,null,null,null,null,null,null,null,null,null,null,null,null,null,null,null,null,null,"-"]
[null,null,null,"NULL_YEARS",null,null,null,null,0,null,null,null,null,null,null,null,null,null,null,null,null,null,null,null,null,null,null,null,null,null,null,null,null,null,null,null,null,null,null,"Y",250,null,null,null,null,"Annual District Clg Use (if applicable)","kWh/yr",null,null,null,null,null,null,null,null,null,"-",null,null,null,null,null,null,null,null,null,"-",null,null,null,null,null,null,null,null,null,"-",null,null,null,null,null,null,null,null,null,"-",null,null,null,null,null,null,null,null,null,"-",null,null,null,null,null,null,null,null,null,null,"-"]
[null,null,"-","NULL",null,null,null,null,{"$f":"IF($S$9=3,I2751,0)","v":0},0,0,null,null,null,null,null,null,null,null,null,null,null,null,null,null,null,null,null,null,null,null,null,null,null,null,null,null,null,null,{"$f":"IF($S$9=3,AN2751,\"Y\")","v":"Y"},229,null,null,null,null,"Operational Years 2 to 3",null,"",null,null,"",null,null,null,null,null,null,null,null,null,null,null,null,null,null,null,null,null,null,null,null,null,null,null,null,null,null,null,null,null,null,null,null,null,null,null,null,null,null,null,null,null,null,null,null,null,null,null,null,null,null,null,null,null,null,null,null,"-"]
[null,null,"-","NULL","depends on stage",0,1,1,{"$f":"IF(AF2759=0,0,IFERROR(INDEX(F2768:H2768,$R$9),0))","v":0},{"$f":"IF(OR(AX:AX=\"\",AX:AX=\"-\",AX:AX=\" \"),0,1)","v":0},{"$f":"IF(AND(J2768=0,I2768=1),1,0)","v":0},null,null,null,null,null,null,null,null,null,null,null,null,null,null,null,null,null,null,null,null,null,null,null,null,1,null,null,null,"Y",216,null,null,null,null,"Address Line 1",null,{"$f":"IF(K2768=1,\"Must complete ->\",\"\")","v":""},null,null,{"$f":"IF(I2768=1,\"*\",\"\")","v":""},null,null,null,null,null,null,null,null,null,null,null,null,null,null,null,null,null,null,null,null,null,null,null,null,null,null,null,null,null,null,null,null,null,null,null,null,null,null,null,null,null,null,null,null,null,null,null,null,null,null,null,null,null,null,null,null,"-"]
[null,null,"-","NULL","depends on stage",0,1,1,{"$f":"I2768","v":0},0,0,null,null,null,null,null,null,null,null,null,null,null,null,null,null,null,null,null,null,null,null,null,null,null,null,6,null,null,null,"Y",211,null,null,null,null,"Postcode",null,{"$f":"IF(K2773=1,\"Must complete ->\",\"\")","v":""},null,null,{"$f":"IF(I2773=1,\"*\",\"\")","v":""},null,null,null,null,null,null,null,null,null,null,null,null,null,null,null,null,null,null,null,null,null,null,null,null,null,null,null,null,null,null,null,null,null,null,null,null,null,null,null,null,null,null,null,null,null,null,null,null,null,null,null,null,null,null,null,null,"-"]
[null,null,"Numerical (>=0)","NULL","depends on stage and RU type",null,null,null,{"$f":"I2790","v":0},0,null,null,null,null,null,null,null,null,null,null,null,null,null,null,null,null,null,null,null,null,null,null,null,null,null,null,null,null,null,"Y",193,null,null,null,null,"High street agency (A2 planning classes)","GIA m2",null,null,null,{"$f":"IF(I2791=1,\"*\",\"\")","v":""},null,null,null,null,null,null,null,null,null,null,null,null,null,null,null,null,null,null,null,null,null,null,null,null,null,null,null,null,null,null,null,null,null,null,null,null,null,null,null,null,null,null,null,null,null,null,null,null,null,null,null,null,null,null,null,null,"-"]
[null,null,"Numerical (>=0)","NULL","depends on stage and RU type",null,null,null,0,0,null,null,null,null,null,null,null,null,null,null,null,null,null,null,null,null,null,null,null,null,null,null,null,null,null,null,null,null,null,"Y",184,null,null,null,null,"Entertainment halls (D2 planning classes)","GIA m2",null,null,null,"",null,null,null,null,null,null,null,null,null,null,null,null,null,null,null,null,null,null,null,null,null,null,null,null,null,null,null,null,null,null,null,null,null,null,null,null,null,null,null,null,null,null,null,null,null,null,null,null,null,null,null,null,null,null,null,null,"-"]
[null,null,"Numerical (>=0)","NULL","depends on stage and RU type",null,null,null,0,0,null,null,null,null,null,null,null,null,null,null,null,null,null,null,null,null,null,null,null,null,null,null,null,null,null,null,null,null,null,"Y",175,null,null,null,null,"Hospital (clinical and research)","GIA m2",null,null,null,"",null,null,null,null,null,null,null,null,null,null,null,null,null,null,null,null,null,null,null,null,null,null,null,null,null,null,null,null,null,null,null,null,null,null,null,null,null,null,null,null,null,null,null,null,null,null,null,null,null,null,null,null,null,null,null,null,"-"]
[null,null,"List","Select from list","depends on stage and RU type & year",0,1,0,{"$f":"IF(AND(AH2759=0,AI2759=0),0,IFERROR(INDEX(F2822:H2822,$R$9),0))","v":0},{"$f":"IF(OR(AX:AX=\"\",AX:AX=\"-\",AX:AX=\" \",AX:AX=\"Select from list\"),0,1)","v":0},{"$f":"IF(AND(J2822=0,I2822=1),1,0)","v":0},null,null,null,null,null,{"$f":"IF(AND(OR(AH2759=1,AI2759=1),AX:AX=\"Yes\"),1,0)","v":0},null,null,null,null,null,null,null,null,null,null,null,null,null,null,null,null,null,null,null,null,{"$f":"ROW()+1","v":2823},{"$f":"ROW(AR2862)","v":2862},{"$f":"IF($R$9=2,AN2821,\"Y\")","v":"Y"},162,null,null,null,null,{"$f":"IF(Q2790=0,\"Does this RU have an as-built DEC?\",\"Does this RU have an as-built DEC/DFP base bldg energy rating?\")","v":"Does this RU have an as-built DEC?"},null,{"$f":"IF(K2822=1,\"To complete ->\",\"\")","v":""},null,"Select from list",{"$f":"IF(I2822=1,\"*\",\"\")","v":""},null,null,null,null,null,null,null,null,null,null,null,null,null,null,null,null,null,null,null,null,null,null,null,null,null,null,null,null,null,null,null,null,null,null,null,null,null,null,null,null,null,null,null,null,null,null,null,null,null,null,null,null,null,null,null,null,"-"]
[null,null,null,null,null,null,null,null,null,null,null,null,null,null,null,null,null,null,null,null,null,null,null,null,null,null,null,null,null,null,null,null,null,null,null,null,null,null,null,{"$f":"AN2834","v":"Y"},149,null,null,null,null,null,null,null,null,null,null,null,null,null,null,null,null,null,null,null,null,null,null,null,null,null,null,null,null,null,null,null,null,null,null,null,null,null,null,null,null,null,null,null,null,null,null,null,null,null,null,null,null,null,null,null,null,null,null,null,null,null,null,null,null,null,null,"-"]
[null,null,null,"NULL_YEARS",null,null,null,null,{"$f":"I2849","v":0},null,null,null,null,null,null,null,null,null,null,null,null,null,null,null,null,null,null,null,null,null,null,null,null,null,null,null,null,null,null,"Y",131,null,null,null,null,"Battery Storage Capacity (if applicable)","kWh",null,null,null,null,null,null,null,null,null,{"$f":"IF(AND(BD:BD<>\"\",BA:BA<>\"\"),IFERROR(ROUND(100*(BD:BD-BA:BA)/BA:BA,0)&\"%\",\"INF\"),\"-\")","v":"-"},null,null,null,null,null,null,null,null,null,{"$f":"IF(AND(BN:BN<>\"\",BD:BD<>\"\"),IFERROR(ROUND(100*(BN:BN-BD:BD)/BD:BD,0)&\"%\",\"INF\"),\"-\")","v":"-"},null,null,null,null,null,null,null,null,null,{"$f":"IF(AND(BX:BX<>\"\",BN:BN<>\"\"),IFERROR(ROUND(100*(BX:BX-BN:BN)/BN:BN,0)&\"%\",\"INF\"),\"-\")","v":"-"},null,null,null,null,null,null,null,null,null,{"$f":"IF(AND(CH:CH<>\"\",BX:BX<>\"\"),IFERROR(ROUND(100*(CH:CH-BX:BX)/BX:BX,0)&\"%\",\"INF\"),\"-\")","v":"-"},null,null,null,null,null,null,null,null,null,{"$f":"IF(AND(CR:CR<>\"\",CH:CH<>\"\"),IFERROR(ROUND(100*(CR:CR-CH:CH)/CH:CH,0)&\"%\",\"INF\"),\"-\")","v":"-"},null,null,null,null,null,null,null,null,null,null,"-"]
[null,null,"-","NULL",null,null,null,null,{"$f":"IF($S$9=2,I2863,0)","v":0},0,0,null,null,null,null,null,null,null,null,null,null,null,null,null,null,null,null,null,null,null,null,null,null,null,null,null,null,null,null,{"$f":"IF($S$9=2,AN2863,\"Y\")","v":"Y"},118,null,null,null,null,"Operational Years 1 to 2",null,"",null,null,"",null,null,null,null,null,null,null,null,null,null,null,null,null,null,null,null,null,null,null,null,null,null,null,null,null,null,null,null,null,null,null,null,null,null,null,null,null,null,null,null,null,null,null,null,null,null,null,null,null,null,null,null,null,null,null,null,"-"]
[null,null,"List_No_VBA","Select from list","depends on stage and RU type",0,1,1,{"$f":"IF(AI2871<>1,0,IFERROR(INDEX(F2875:H2875,$R$9),0))","v":0},{"$f":"IF(OR(AI2871=0,Q2875=\"-\"),0,IF(ISERROR(MATCH(Q2875,$W$8:$W$32,0)),0,1))","v":0},{"$f":"IF(AND(J2875=0,I2875=1),1,0)","v":0},null,null,null,null,null,{"$f":"IF(AND(AX:AX<>\"Select from list\",AX:AX<>\"\",AX:AX<>\"No residential RUs listed\"),IFERROR(LEFT(AX:AX,FIND(\"(\",AX:AX)-2),\"-\"),\"-\")","v":"-"},null,null,null,null,null,null,null,null,null,null,null,null,null,null,null,null,null,null,null,null,null,null,{"$f":"IF(AI2871=1,AN2871,\"Y\")","v":"Y"},109,null,null,null,"Which residential RU does this landlord area belong to?",null,null,{"$f":"IF(K2875=1,\"Select resi RU ->\",\"\")","v":""},null,"Select from list",{"$f":"IF(I2875=1,\"*\",\"\")","v":""},null,null,null,null,null,null,null,null,null,null,null,null,null,null,null,null,null,null,null,null,null,null,null,null,null,null,null,null,null,null,null,null,null,null,null,null,null,null,null,null,null,null,null,null,null,null,null,null,null,null,null,null,null,null,null,null,"-"]
[null,null,null,null,null,null,null,null,null,null,null,null,null,null,null,null,null,null,null,null,null,null,null,null,null,null,null,null,null,null,null,null,null,null,null,null,null,null,null,"Y",93,null,null,null,null,null,null,null,null,null,null,null,null,null,null,null,null,null,null,null,null,null,null,null,null,null,null,null,null,null,null,null,null,null,null,null,null,null,null,null,null,null,null,null,null,null,null,null,null,null,null,null,null,null,null,null,null,null,null,null,null,null,null,null,null,null,null,"-"]
[null,null,"Integer (>=0)","NULL","depends on stage and RU type",null,null,null,{"$f":"I2896","v":0},{"$f":"IF(OR(AX:AX=\"\",AX:AX=\"-\",AX:AX=\" \",R2897=0),0,1)","v":0},{"$f":"IF(AND(J2898=0,I2898=1),1,0)","v":0},null,null,null,null,null,{"$f":"AX:AX","v":0},null,null,null,null,null,null,null,null,null,null,null,null,null,null,null,null,null,null,null,null,null,null,"Y",86,null,null,null,null,"Flats","number",{"$f":"IF(K2898=1,\"Must complete ->\",\"\")","v":""},null,null,{"$f":"IF(I2898=1,\"*\",\"\")","v":""},null,null,null,null,null,null,null,null,null,null,null,null,null,null,null,null,null,null,null,null,null,null,null,null,null,null,null,null,null,null,null,null,null,null,null,null,null,null,null,null,null,null,null,null,null,null,null,null,null,null,null,null,null,null,null,null,"-"]
[null,null,"Numerical (>=0)","NULL","depends on stage and RU type",null,null,null,0,0,null,null,null,null,null,null,null,null,null,null,null,null,null,null,null,null,null,null,null,null,null,null,null,null,null,null,null,null,null,"Y",77,null,null,null,null,"Large food store","GIA m2",null,null,null,"",null,null,null,null,null,null,null,null,null,null,null,null,null,null,null,null,null,null,null,null,null,null,null,null,null,null,null,null,null,null,null,null,null,null,null,null,null,null,null,null,null,null,null,null,null,null,null,null,null,null,null,null,null,null,null,null,"-"]
[null,null,"Numerical (>=0)","NULL","depends on stage and RU type",null,null,null,0,0,null,null,null,null,null,null,null,null,null,null,null,null,null,null,null,null,null,null,null,null,null,null,null,null,null,null,null,null,null,"Y",64,null,null,null,null,"Clinic (D1 planning classes)","GIA m2",null,null,null,"",null,null,null,null,null,null,null,null,null,null,null,null,null,null,null,null,null,null,null,null,null,null,null,null,null,null,null,null,null,null,null,null,null,null,null,null,null,null,null,null,null,null,null,null,null,null,null,null,null,null,null,null,null,null,null,null,"-"]
[null,null,"List","Select from list","depends on stage and RU type & year",0,0,{"$f":"IF($S$9=2,1,0)","v":0},{"$f":"IF(AND(AH2871=0,AI2871=0),0,IFERROR(INDEX(F2938:H2938,$R$9),0))","v":0},{"$f":"IF(OR(AX:AX=\"\",AX:AX=\"-\",AX:AX=\" \",AX:AX=\"Select from list\"),0,1)","v":0},0,null,null,null,null,null,{"$f":"IF(AND(OR(AH2871=1,AI2871=1),AX:AX=\"Yes\"),1,0)","v":0},null,null,null,null,null,null,null,null,null,null,null,null,null,null,null,null,null,null,null,null,{"$f":"ROW()+1","v":2939},{"$f":"AM2936","v":2974},{"$f":"IF($S$9=2,AN2933,\"Y\")","v":"Y"},46,null,null,null,null,{"$f":"IF(Q2902=0,\"Does this RU have a DEC for y2?\",\"Does this RU have a DEC/DFP base bldg energy rating for y2?\")","v":"Does this RU have a DEC for y2?"},null,"",null,"Select from list","",null,null,null,null,null,null,null,null,null,null,null,null,null,null,null,null,null,null,null,null,null,null,null,null,null,null,null,null,null,null,null,null,null,null,null,null,null,null,null,null,null,null,null,null,null,null,null,null,null,null,null,null,null,null,null,null,"-"]
[null,null,"-","NULL","depends on stage and RU type & year",null,null,null,{"$f":"IF(Q2942=1,I2942,0)","v":0},{"$f":"IF(OR(AX:AX=\"\",AX:AX=\"-\",AX:AX=\" \"),0,1)","v":0},0,null,null,null,null,null,null,null,null,null,null,null,null,null,null,null,null,null,null,null,null,null,null,null,null,null,null,null,null,{"$f":"IF(Q2942=1,AN2942,\"Y\")","v":"Y"},41,null,null,null,null,"What is the XML filename?",null,"",null,null,"",null,null,null,null,null,null,null,null,null,null,null,null,null,null,null,null,null,null,null,null,null,null,null,null,null,null,null,null,null,null,null,null,null,null,null,null,null,null,null,null,null,null,null,null,null,null,null,null,null,null,null,null,null,null,null,null,"-"]
[null,null,null,null,null,null,null,null,null,null,null,null,null,null,null,null,null,null,null,null,null,null,null,null,null,null,null,null,null,null,null,null,null,null,null,null,null,null,null,{"$f":"AN2871","v":"Y"},20,null,null,null,"Energy Storage Equipment",null,null,null,null,null,null,null,null,null,null,null,null,null,null,null,null,null,null,null,null,null,null,null,null,null,null,null,null,null,null,null,null,null,null,null,null,null,null,null,null,null,null,null,null,null,null,null,null,null,null,null,null,null,null,null,null,null,null,null,null,null,null,"-"]
[null,null,null,null,null,null,null,null,null,null,null,null,null,null,null,null,null,null,null,null,null,null,null,null,null,null,null,null,null,null,null,null,null,null,null,null,null,null,null,{"$f":"AN2871","v":"Y"},11,null,null,null,null,null,null,null,null,null,null,null,null,null,null,null,null,null,null,null,null,null,null,null,null,null,null,null,null,null,null,null,null,null,null,null,null,null,null,null,null,null,null,null,null,null,null,null,null,null,null,null,null,null,null,null,null,null,null,null,null,null,null,null,null,null,null,"-"]
[null,null,null,null,null,null,null,null,null,null,null,{"$f":"SUM(I2987:I2999)","v":0},{"$f":"SUM(K2987:K2999)","v":0},null,null,null,null,null,null,null,null,null,null,null,null,null,null,null,null,null,null,null,null,null,null,null,null,null,null,"Y",383,null,null,{"$f":"\" ENERGY CENTRE REPORTABLE UNIT \"&AE2984&\": ADDRESS/LOCATION INFORMATION\"","v":" ENERGY CENTRE REPORTABLE UNIT 1: ADDRESS/LOCATION INFORMATION"},null,null,null,null,null,null,null,null,null,null,null,null,null,null,null,null,null,null,null,null,null,null,null,null,null,null,null,null,null,null,null,null,null,null,null,null,null,null,null,null,null,null,null,null,null,null,null,null,null,null,null,null,null,null,null,null,null,null,null,null,null,null,null,"-"]
[null,null,null,null,null,null,null,null,null,null,null,null,null,null,null,null,null,null,null,null,null,null,null,null,null,null,null,null,null,null,null,null,null,null,null,null,null,null,null,"Y",369,null,null,null,null,null,null,null,null,null,null,null,null,null,null,null,null,null,null,null,null,null,null,null,null,null,null,null,null,null,null,null,null,null,null,null,null,null,null,null,null,null,null,null,null,null,null,null,null,null,null,null,null,null,null,null,null,null,null,null,null,null,null,null,null,null,null,"-"]
[null,null,null,null,null,null,null,null,{"$f":"MAX(I3006:I3017)","v":0},{"$f":"MIN(J3006:J3007)","v":0},{"$f":"IF(AND(J3005=0,I3005=1),1,0)","v":0},{"$f":"SUM(I3005)","v":0},{"$f":"SUM(K3005)","v":0},null,null,null,null,"AB","Y1","Y2","Y3","Y4","Y5",null,null,null,null,null,null,null,null,null,null,null,null,null,null,null,null,"Y",364,null,null,null,"Energy Centre Inputs",null,null,null,null,{"$f":"IF(I3005=1,\"Please fill in all appropriate energy & plant data in this section\",\"\")","v":""},null,null,"Energy",null,null,"Energy","%ch","d","m","yyyy","d","m","yyyy",null,null,"Energy","%ch","d","m","yyyy","d","m","yyyy",null,null,"Energy","%ch","d","m","yyyy","d","m","yyyy",null,null,"Energy","%ch","d","m","yyyy","d","m","yyyy",null,null,"Energy","%ch","d","m","yyyy","d","m","yyyy",null,null,null,null,"-"]
[null,null,null,null,null,null,null,null,null,null,null,{"$f":"SUM(I3020:I3039)","v":0},{"$f":"SUM(K3020:K3039)","v":0},null,null,null,null,null,null,null,null,null,null,null,null,null,null,null,null,null,null,null,null,null,null,null,null,null,null,"Y",351,null,null,null,"Plant Parameters (plant efficiency)",null,null,null,null,null,null,null,null,null,null,null,null,null,null,null,null,null,null,null,null,null,null,null,null,null,null,null,null,null,null,null,null,null,null,null,null,null,null,null,null,null,null,null,null,null,null,null,null,null,null,null,null,null,null,null,null,null,null,null,null,null,null,"-"]
[null,null,"List","Select from list",null,0,1,1,{"$f":"IF(OR(AF2984=0,Q3020=0),0,IFERROR(INDEX(F3027:H3027,$R$9),0))","v":0},{"$f":"IF(OR(AX:AX=\"\",AX:AX=\"-\",AX:AX=\" \",AX:AX=\"Select from list\"),0,1)","v":0},{"$f":"IF(AND(J3027=0,I3027=1),1,0)","v":0},null,null,null,null,null,{"$f":"IF(AND(AF2984=1,OR(AX:AX=\"Heating\",AX:AX=\"Cooling\")),1,0)","v":0},null,null,null,null,null,null,null,null,null,null,null,null,null,null,null,null,null,null,null,null,{"$f":"ROW()+1","v":3028},{"$f":"ROW()+7","v":3034},"Y",342,null,null,null,null,"Type",null,{"$f":"IF(K3027=1,\"Must complete ->\",\"\")","v":""},null,"Select from list",{"$f":"IF(I3027=1,\"*\",\"\")","v":""},null,null,null,null,null,null,null,null,null,null,null,null,null,null,null,null,null,null,null,null,null,null,null,null,null,null,null,null,null,null,null,null,null,null,null,null,null,null,null,null,null,null,null,null,null,null,null,null,null,null,null,null,null,null,null,null,"-"]
[null,null,null,"NULL_YEARS",null,null,null,null,{"$f":"I3042","v":0},null,null,null,null,null,null,null,null,null,null,null,null,null,null,null,null,null,null,null,null,null,null,null,null,null,null,null,null,null,null,"Y",326,null,null,null,null,"Total District Cooling Output (if applicable)","kWh/yr",null,null,null,null,null,null,null,null,null,"n/a",null,null,null,null,null,null,null,null,null,{"$f":"IF(AND(BN:BN<>\"\",BD:BD<>\"\"),IFERROR(ROUND(100*(BN:BN-BD:BD)/BD:BD,0)&\"%\",\"INF\"),\"-\")","v":"-"},null,null,null,null,null,null,null,null,null,{"$f":"IF(AND(BX:BX<>\"\",BN:BN<>\"\"),IFERROR(ROUND(100*(BX:BX-BN:BN)/BN:BN,0)&\"%\",\"INF\"),\"-\")","v":"-"},null,null,null,null,null,null,null,null,null,{"$f":"IF(AND(CH:CH<>\"\",BX:BX<>\"\"),IFERROR(ROUND(100*(CH:CH-BX:BX)/BX:BX,0)&\"%\",\"INF\"),\"-\")","v":"-"},null,null,null,null,null,null,null,null,null,{"$f":"IF(AND(CR:CR<>\"\",CH:CH<>\"\"),IFERROR(ROUND(100*(CR:CR-CH:CH)/CH:CH,0)&\"%\",\"INF\"),\"-\")","v":"-"},null,null,null,null,null,null,null,null,null,null,"-"]
[null,null,null,null,null,null,null,null,null,null,null,null,null,null,null,null,null,null,null,null,null,null,null,null,null,null,null,null,null,null,null,null,null,null,null,null,null,null,null,{"$f":"AN3061","v":"Y"},307,null,null,null,null,null,null,null,null,null,null,null,null,null,null,null,null,null,null,null,null,null,null,null,null,null,null,null,null,null,null,null,null,null,null,null,null,null,null,null,null,null,null,null,null,null,null,null,null,null,null,null,null,null,null,null,null,null,null,null,null,null,null,null,null,null,null,"-"]
[null,null,"-","NULL","depends on stage",0,1,1,{"$f":"I3066","v":0},0,0,null,null,null,null,null,null,null,null,null,null,null,null,null,null,null,null,null,null,null,null,null,null,null,null,6,null,null,null,"Y",298,null,null,null,null,"Postcode",null,{"$f":"IF(K3071=1,\"Must complete ->\",\"\")","v":""},null,null,{"$f":"IF(I3071=1,\"*\",\"\")","v":""},null,null,null,null,null,null,null,null,null,null,null,null,null,null,null,null,null,null,null,null,null,null,null,null,null,null,null,null,null,null,null,null,null,null,null,null,null,null,null,null,null,null,null,null,null,null,null,null,null,null,null,null,null,null,null,null,"-"]
[null,null,null,"NULL_YEARS","depends on stage and RU type",null,null,null,{"$f":"I3083","v":0},{"$f":"IF($R$9<2,0,IF($R$9=2,R3084,INDEX(S3084:W3084,$S$9)))","v":0},{"$f":"IF(AND(J3084=0,I3084=1),1,0)","v":0},null,null,null,null,null,null,{"$f":"IF(COUNTIF(AZ3084:BA3084,\"\")>1,0,1)","v":0},{"$f":"IF(COUNTIF(BC3084:BD3084,\"\")>1,0,1)","v":0},{"$f":"IF(COUNTIF(BM3084:BN3084,\"\")>1,0,1)","v":0},{"$f":"IF(COUNTIF(BW3084:BX3084,\"\")>1,0,1)","v":0},{"$f":"IF(COUNTIF(CG3084:CH3084,\"\")>1,0,1)","v":0},{"$f":"IF(COUNTIF(CQ3084:CR3084,\"\")>1,0,1)","v":0},null,null,null,null,null,null,null,null,null,null,null,null,null,null,null,null,"Y",285,null,null,null,null,"Annual Gas Use","kWh/yr",{"$f":"IF(K3084=1,\"Must complete ->\",\"\")","v":""},null,null,null,null,null,null,null,null,{"$f":"IF(AND(BD:BD<>\"\",BA:BA<>\"\"),IFERROR(ROUND(100*(BD:BD-BA:BA)/BA:BA,0)&\"%\",\"INF\"),\"-\")","v":"-"},null,null,null,null,null,null,null,null,null,{"$f":"IF(AND(BN:BN<>\"\",BD:BD<>\"\"),IFERROR(ROUND(100*(BN:BN-BD:BD)/BD:BD,0)&\"%\",\"INF\"),\"-\")","v":"-"},null,null,null,null,null,null,null,null,null,{"$f":"IF(AND(BX:BX<>\"\",BN:BN<>\"\"),IFERROR(ROUND(100*(BX:BX-BN:BN)/BN:BN,0)&\"%\",\"INF\"),\"-\")","v":"-"},null,null,null,null,null,null,null,null,null,{"$f":"IF(AND(CH:CH<>\"\",BX:BX<>\"\"),IFERROR(ROUND(100*(CH:CH-BX:BX)/BX:BX,0)&\"%\",\"INF\"),\"-\")","v":"-"},null,null,null,null,null,null,null,null,null,{"$f":"IF(AND(CR:CR<>\"\",CH:CH<>\"\"),IFERROR(ROUND(100*(CR:CR-CH:CH)/CH:CH,0)&\"%\",\"INF\"),\"-\")","v":"-"},null,null,null,null,null,null,null,null,null,null,"-"]
[null,null,null,"NULL_YEARS",null,0,0,1,{"$f":"IF($R$9=3,I3089,0)","v":0},null,null,null,null,null,null,null,null,null,null,null,null,null,null,null,null,null,null,null,null,null,null,null,null,null,null,null,null,null,null,{"$f":"IF($R$9=3,AN3061,\"Y\")","v":"Y"},279,null,null,null,null,"Renewable Electricity, exported (if applicable)","kWh/yr",null,null,null,null,null,null,null,null,null,"n/a",null,null,null,null,null,null,null,null,null,{"$f":"IF(AND(BN:BN<>\"\",BD:BD<>\"\"),IFERROR(ROUND(100*(BN:BN-BD:BD)/BD:BD,0)&\"%\",\"INF\"),\"-\")","v":"-"},null,null,null,null,null,null,null,null,null,{"$f":"IF(AND(BX:BX<>\"\",BN:BN<>\"\"),IFERROR(ROUND(100*(BX:BX-BN:BN)/BN:BN,0)&\"%\",\"INF\"),\"-\")","v":"-"},null,null,null,null,null,null,null,null,null,{"$f":"IF(AND(CH:CH<>\"\",BX:BX<>\"\"),IFERROR(ROUND(100*(CH:CH-BX:BX)/BX:BX,0)&\"%\",\"INF\"),\"-\")","v":"-"},null,null,null,null,null,null,null,null,null,{"$f":"IF(AND(CR:CR<>\"\",CH:CH<>\"\"),IFERROR(ROUND(100*(CR:CR-CH:CH)/CH:CH,0)&\"%\",\"INF\"),\"-\")","v":"-"},null,null,null,null,null,null,null,null,null,null,"-"]
[null,null,null,null,null,null,null,null,null,null,null,null,null,null,null,null,null,null,null,null,null,null,null,null,null,null,null,null,null,null,null,null,null,null,null,null,null,null,null,"Y",266,null,null,null,null,"Energy Centre Thermal Plant 2 (if applicable)",null,null,null,null,null,null,null,null,null,null,null,null,null,null,null,null,null,null,null,null,null,null,null,null,null,null,null,null,null,null,null,null,null,null,null,null,null,null,null,null,null,null,null,null,null,null,null,null,null,null,null,null,null,null,null,null,null,null,null,null,null,"-"]
[null,null,null,"NULL_YEARS",null,null,null,null,{"$f":"I3115","v":0},{"$f":"IF($R$9<2,0,IF($R$9=2,R3116,INDEX(S3116:W3116,$S$9)))","v":0},0,null,null,null,null,null,null,{"$f":"IF(COUNTIF(AZ3116:BA3116,\"\")>1,0,1)","v":0},{"$f":"IF(COUNTIF(BC3116:BD3116,\"\")>1,0,1)","v":0},{"$f":"IF(COUNTIF(BM3116:BN3116,\"\")>1,0,1)","v":0},{"$f":"IF(COUNTIF(BW3116:BX3116,\"\")>1,0,1)","v":0},{"$f":"IF(COUNTIF(CG3116:CH3116,\"\")>1,0,1)","v":0},{"$f":"IF(COUNTIF(CQ3116:CR3116,\"\")>1,0,1)","v":0},null,null,null,null,null,null,null,null,null,null,null,null,null,null,null,null,"Y",253,null,null,null,null,"Energy Output from Plant","kWh/yr",null,null,{"$f":"IF(K3116=1,\"To complete ->\",\"\")","v":""},null,null,null,null,null,null,"n/a",null,null,null,null,null,null,null,null,null,{"$f":"IF(AND(BN:BN<>\"\",BD:BD<>\"\"),IFERROR(ROUND(100*(BN:BN-BD:BD)/BD:BD,0)&\"%\",\"INF\"),\"-\")","v":"-"},null,null,null,null,null,null,null,null,null,{"$f":"IF(AND(BX:BX<>\"\",BN:BN<>\"\"),IFERROR(ROUND(100*(BX:BX-BN:BN)/BN:BN,0)&\"%\",\"INF\"),\"-\")","v":"-"},null,null,null,null,null,null,null,null,null,{"$f":"IF(AND(CH:CH<>\"\",BX:BX<>\"\"),IFERROR(ROUND(100*(CH:CH-BX:BX)/BX:BX,0)&\"%\",\"INF\"),\"-\")","v":"-"},null,null,null,null,null,null,null,null,null,{"$f":"IF(AND(CR:CR<>\"\",CH:CH<>\"\"),IFERROR(ROUND(100*(CR:CR-CH:CH)/CH:CH,0)&\"%\",\"INF\"),\"-\")","v":"-"},null,null,null,null,null,null,null,null,null,null,"-"]
[null,null,null,"NULL_YEARS",null,null,null,null,{"$f":"I3124","v":0},null,null,null,null,null,null,null,null,null,null,null,null,null,null,null,null,null,null,null,null,null,null,null,null,null,null,null,null,null,null,"Y",244,null,null,null,null,"District cooling import (if applicable)","kWh/yr",null,null,null,null,null,null,null,null,null,{"$f":"IF(AND(BD:BD<>\"\",BA:BA<>\"\"),IFERROR(ROUND(100*(BD:BD-BA:BA)/BA:BA,0)&\"%\",\"INF\"),\"-\")","v":"-"},null,null,null,null,null,null,null,null,null,{"$f":"IF(AND(BN:BN<>\"\",BD:BD<>\"\"),IFERROR(ROUND(100*(BN:BN-BD:BD)/BD:BD,0)&\"%\",\"INF\"),\"-\")","v":"-"},null,null,null,null,null,null,null,null,null,{"$f":"IF(AND(BX:BX<>\"\",BN:BN<>\"\"),IFERROR(ROUND(100*(BX:BX-BN:BN)/BN:BN,0)&\"%\",\"INF\"),\"-\")","v":"-"},null,null,null,null,null,null,null,null,null,{"$f":"IF(AND(CH:CH<>\"\",BX:BX<>\"\"),IFERROR(ROUND(100*(CH:CH-BX:BX)/BX:BX,0)&\"%\",\"INF\"),\"-\")","v":"-"},null,null,null,null,null,null,null,null,null,{"$f":"IF(AND(CR:CR<>\"\",CH:CH<>\"\"),IFERROR(ROUND(100*(CR:CR-CH:CH)/CH:CH,0)&\"%\",\"INF\"),\"-\")","v":"-"},null,null,null,null,null,null,null,null,null,null,"-"]
[null,"EC RU START",null,null,null,null,null,null,null,null,null,null,null,{"$f":"SUM(L3140:L3207)","v":0},{"$f":"SUM(M3140:M3207)/N3138","v":{"$error":"#DIV/0!"}},{"$f":"ROUND(18*O3138,0)","v":{"$error":"#DIV/0!"}},null,{"$f":"IF(AF3138=1,\"Energy Centre RU\",\"-\")","v":"-"},{"$f":"IFERROR(IF(OR(AF3138=0,O3138<>0),\"-\",R3138),\"-\")","v":"-"},{"$f":"IF(AF3138=1,Q3141,\"-\")","v":"-"},null,null,null,null,null,null,null,null,null,null,{"$f":"AE3061+1","v":3},{"$f":"IF(OR(AE3138>$T$169,$R$9<=1),0,1)","v":0},null,null,null,null,{"$f":"AF3138","v":0},{"$f":"ROW()+1","v":3139},{"$f":"ROW(AT3213)","v":3213},{"$f":"IF(AND($R$9>1,AF3138=1),\"N\",\"Y\")","v":"Y"},231,{"$f":"IF(AK3138=1,\"+\",\"\")","v":""},{"$f":"\" ENERGY CENTRE REPORTABLE UNIT \"&AE3138","v":" ENERGY CENTRE REPORTABLE UNIT 3"},null,null,null,null,{"$f":"IF($R$9=0,\"\",IF(N3138=0,\"not req'd at this stage\",\"Progress: \"&ROUND(100*(1-O3138),0)&\"%\"))","v":""},null,{"$f":"IF(OR(N3138=0,$R$9=0),\"\",REPT(\"g\",18-P3138)&REPT(\"c\",P3138))","v":""},null,null,null,null,null,null,null,null,null,null,null,null,null,null,null,null,null,null,null,null,null,null,null,null,null,null,null,null,null,null,null,null,null,null,null,null,null,null,null,null,null,null,null,null,null,null,null,null,null,null,null,null,null,null,null,null,null,"-"]
[null,null,"Numerical (with limits)","NULL","constant",null,null,null,0,{"$f":"IF(OR(AX:AX=\"\",AX:AX=\"-\",AX:AX=\" \"),0,1)","v":0},{"$f":"IF(AND(J3152=0,I3152=1),1,0)","v":0},null,null,null,null,null,null,null,null,null,null,null,null,null,null,null,null,null,null,null,null,null,null,null,null,8,null,null,null,"Y",217,null,null,null,null,"Latitude (to 6 decimal places)",null,{"$f":"IF(AND(I3152=0,K3152=0,AF3138=1),\"Please add if available ->\",\"\")","v":""},null,null,null,null,null,null,null,null,null,null,null,null,null,null,null,null,null,null,null,null,null,null,null,null,null,null,null,null,null,null,null,null,null,null,null,null,null,null,null,null,null,null,null,null,null,null,null,null,null,null,null,null,null,null,null,null,null,null,null,"-"]
[null,null,null,null,null,null,null,null,null,null,null,null,null,null,null,null,null,null,null,null,null,null,null,null,null,null,null,null,null,null,null,null,null,null,null,null,null,null,null,{"$f":"AN3138","v":"Y"},200,null,null,null,"Energy Storage Equipment",null,null,null,null,null,null,null,null,null,null,null,null,null,null,null,null,null,null,null,null,null,null,null,null,null,null,null,null,null,null,null,null,null,null,null,null,null,null,null,null,null,null,null,null,null,null,null,null,null,null,null,null,null,null,null,null,null,null,null,null,null,null,"-"]
[null,null,"-","NULL",null,null,null,null,{"$f":"IF(Q3181=1,I3181,0)","v":0},{"$f":"IF(OR(AX:AX=\"\",AX:AX=\"-\",AX:AX=\" \"),0,1)","v":0},0,null,null,null,null,null,null,null,null,null,null,null,null,null,null,null,null,null,null,null,null,null,null,null,null,null,null,null,null,{"$f":"IF(Q3181=1,AN3181,\"Y\")","v":"Y"},187,null,null,null,null,"Plant & Fuel Type (e.g. Gas CHP)",null,{"$f":"IF(K3182=1,\"Must complete ->\",\"\")","v":""},null,null,{"$f":"IF(I3182=1,\"*\",\"\")","v":""},null,null,null,null,null,null,null,null,null,null,null,null,null,null,null,null,null,null,null,null,null,null,null,null,null,null,null,null,null,null,null,null,null,null,null,null,null,null,null,null,null,null,null,null,null,null,null,null,null,null,null,null,null,null,null,null,"-"]
[null,null,null,"NULL_YEARS",null,null,null,null,{"$f":"I3190","v":0},{"$f":"IF(OR(BA:BA=\"\",BA:BA=\"-\",BA:BA=\" \"),0,1)","v":0},0,null,null,null,null,null,null,"AB","Y1","Y2","Y3","Y4","Y5",null,null,null,null,null,null,null,null,null,null,null,null,null,null,null,null,"Y",178,null,null,null,null,"Proportion of Heat supplied by Generation Plant","%",null,null,{"$f":"IF(K3191=1,\"To complete ->\",\"\")","v":""},null,null,null,{"$f":"IF(I3191=1,\"*\",\"\")","v":""},null,null,null,null,null,null,null,null,null,null,null,null,null,null,null,null,null,null,null,null,null,null,null,null,null,null,null,null,null,null,null,null,null,null,null,null,null,null,null,null,null,null,null,null,null,null,null,null,null,null,null,null,null,"-"]
[null,null,null,"NULL",null,null,null,null,{"$f":"IF($R$9=2,I3207,0)","v":0},{"$f":"IF(OR(AX:AX=\"\",AX:AX=\"-\",AX:AX=\" \",AX:AX=\"Select from list\"),0,1)","v":0},0,null,null,null,null,null,null,null,null,null,null,null,null,null,null,null,null,null,null,null,null,null,null,null,null,null,null,null,null,{"$f":"IF($R$9=2,AN3138,\"Y\")","v":"Y"},161,null,null,null,null,"Planning Stage to As-Built",null,{"$f":"IF(K3208=1,\"To complete ->\",\"\")","v":""},null,null,{"$f":"IF(I3208=1,\"*\",\"\")","v":""},null,null,null,null,null,null,null,null,null,null,null,null,null,null,null,null,null,null,null,null,null,null,null,null,null,null,null,null,null,null,null,null,null,null,null,null,null,null,null,null,null,null,null,null,null,null,null,null,null,null,null,null,null,null,null,null,"-"]
[null,"EC RU END",null,null,null,null,null,null,null,null,null,null,null,null,null,null,null,null,null,null,null,null,null,null,null,null,null,null,null,null,null,null,null,null,null,null,null,null,null,{"$f":"AN3138","v":"Y"},155,null,null,null,null,null,null,null,null,null,null,null,null,null,null,null,null,null,null,null,null,null,null,null,null,null,null,null,null,null,null,null,null,null,null,null,null,null,null,null,null,null,null,null,null,null,null,null,null,null,null,null,null,null,null,null,null,null,null,null,null,null,null,null,null,null,null,"-"]
[null,null,"-","NULL","constant",null,null,null,0,0,0,null,null,null,null,null,null,null,null,null,null,null,null,null,null,null,null,null,null,null,null,null,null,null,null,4,null,null,null,"Y",146,null,null,null,null,"Address Line 4",null,null,null,null,null,null,null,null,null,null,null,null,null,null,null,null,null,null,null,null,null,null,null,null,null,null,null,null,null,null,null,null,null,null,null,null,null,null,null,null,null,null,null,null,null,null,null,null,null,null,null,null,null,null,null,null,null,null,null,null,null,"-"]
[null,null,null,null,null,null,null,null,{"$f":"MAX(I3237:I3248)","v":0},{"$f":"MIN(J3237:J3238)","v":0},{"$f":"IF(AND(J3236=0,I3236=1),1,0)","v":0},{"$f":"SUM(I3236)","v":0},{"$f":"SUM(K3236)","v":0},null,null,null,null,"AB","Y1","Y2","Y3","Y4","Y5",null,null,null,null,null,null,null,null,null,null,null,null,null,null,null,null,{"$f":"AN3235","v":"Y"},133,null,null,null,"Energy Centre Inputs",null,null,null,null,{"$f":"IF(I3236=1,\"Please fill in all appropriate energy & plant data in this section\",\"\")","v":""},null,null,"Energy",null,null,"Energy","%ch","d","m","yyyy","d","m","yyyy",null,null,"Energy","%ch","d","m","yyyy","d","m","yyyy",null,null,"Energy","%ch","d","m","yyyy","d","m","yyyy",null,null,"Energy","%ch","d","m","yyyy","d","m","yyyy",null,null,"Energy","%ch","d","m","yyyy","d","m","yyyy",null,null,null,null,"-"]
[null,null,null,"NULL_YEARS",null,0,0,1,{"$f":"IF(I3252=0,0,IFERROR(INDEX(F3255:H3255,$R$9),0))","v":0},{"$f":"IF($R$9<2,0,IF($R$9=2,R3255,INDEX(S3255:W3255,$S$9)))","v":0},0,null,null,null,null,null,null,{"$f":"IF(COUNTIF(AZ3255:BA3255,\"\")>1,0,1)","v":0},{"$f":"IF(COUNTIF(BC3255:BD3255,\"\")>1,0,1)","v":0},{"$f":"IF(COUNTIF(BM3255:BN3255,\"\")>1,0,1)","v":0},{"$f":"IF(COUNTIF(BW3255:BX3255,\"\")>1,0,1)","v":0},{"$f":"IF(COUNTIF(CG3255:CH3255,\"\")>1,0,1)","v":0},{"$f":"IF(COUNTIF(CQ3255:CR3255,\"\")>1,0,1)","v":0},null,null,null,null,null,null,null,null,null,null,null,null,null,null,null,null,"Y",114,null,null,null,null,"Energy Input to Plant","kWh/yr",null,null,{"$f":"IF(K3255=1,\"To complete ->\",\"\")","v":""},null,null,null,null,null,null,"n/a",null,null,null,null,null,null,null,null,null,{"$f":"IF(AND(BN:BN<>\"\",BD:BD<>\"\"),IFERROR(ROUND(100*(BN:BN-BD:BD)/BD:BD,0)&\"%\",\"INF\"),\"-\")","v":"-"},null,null,null,null,null,null,null,null,null,{"$f":"IF(AND(BX:BX<>\"\",BN:BN<>\"\"),IFERROR(ROUND(100*(BX:BX-BN:BN)/BN:BN,0)&\"%\",\"INF\"),\"-\")","v":"-"},null,null,null,null,null,null,null,null,null,{"$f":"IF(AND(CH:CH<>\"\",BX:BX<>\"\"),IFERROR(ROUND(100*(CH:CH-BX:BX)/BX:BX,0)&\"%\",\"INF\"),\"-\")","v":"-"},null,null,null,null,null,null,null,null,null,{"$f":"IF(AND(CR:CR<>\"\",CH:CH<>\"\"),IFERROR(ROUND(100*(CR:CR-CH:CH)/CH:CH,0)&\"%\",\"INF\"),\"-\")","v":"-"},null,null,null,null,null,null,null,null,null,null,"-"]
[null,null,null,"NULL_YEARS",null,0,1,0,{"$f":"IF(I3266=0,0,IFERROR(INDEX(F3267:H3267,$R$9),0))","v":0},{"$f":"IF(OR(BA:BA=\"\",BA:BA=\"-\",BA:BA=\" \"),0,1)","v":0},0,null,null,null,null,null,null,null,null,null,null,null,null,null,null,null,null,null,null,null,null,null,null,null,null,null,null,null,null,"Y",102,null,null,null,null,"Delivered Efficiency of Generation Plant","%",null,null,{"$f":"IF(K3267=1,\"To complete ->\",\"\")","v":""},null,null,null,{"$f":"IF(I3267=1,\"*\",\"\")","v":""},null,null,null,null,null,null,null,null,null,null,null,null,null,null,null,null,null,null,null,null,null,null,null,null,null,null,null,null,null,null,null,null,null,null,null,null,null,null,null,null,null,null,null,null,null,null,null,null,null,null,null,null,null,"-"]
[null,null,null,"NULL_YEARS",null,null,null,null,{"$f":"I3279","v":0},null,null,null,null,null,null,null,null,null,null,null,null,null,null,null,null,null,null,null,null,null,null,null,null,null,null,null,null,null,null,{"$f":"AN3279","v":"Y"},89,null,null,null,null,"District heating export to off-site (if applicable)","kWh/yr",null,null,null,null,null,null,null,null,null,{"$f":"IF(AND(BD:BD<>\"\",BA:BA<>\"\"),IFERROR(ROUND(100*(BD:BD-BA:BA)/BA:BA,0)&\"%\",\"INF\"),\"-\")","v":"-"},null,null,null,null,null,null,null,null,null,{"$f":"IF(AND(BN:BN<>\"\",BD:BD<>\"\"),IFERROR(ROUND(100*(BN:BN-BD:BD)/BD:BD,0)&\"%\",\"INF\"),\"-\")","v":"-"},null,null,null,null,null,null,null,null,null,{"$f":"IF(AND(BX:BX<>\"\",BN:BN<>\"\"),IFERROR(ROUND(100*(BX:BX-BN:BN)/BN:BN,0)&\"%\",\"INF\"),\"-\")","v":"-"},null,null,null,null,null,null,null,null,null,{"$f":"IF(AND(CH:CH<>\"\",BX:BX<>\"\"),IFERROR(ROUND(100*(CH:CH-BX:BX)/BX:BX,0)&\"%\",\"INF\"),\"-\")","v":"-"},null,null,null,null,null,null,null,null,null,{"$f":"IF(AND(CR:CR<>\"\",CH:CH<>\"\"),IFERROR(ROUND(100*(CR:CR-CH:CH)/CH:CH,0)&\"%\",\"INF\"),\"-\")","v":"-"},null,null,null,null,null,null,null,null,null,null,"-"]
[null,null,null,"NULL",null,null,null,null,{"$f":"IF($S$9=4,I3284,0)","v":0},0,0,null,null,null,null,null,null,null,null,null,null,null,null,null,null,null,null,null,null,null,null,null,null,null,null,null,null,null,null,{"$f":"IF($S$9=4,AN3215,\"Y\")","v":"Y"},80,null,null,null,null,"Operational Years 3 to 4",null,"",null,null,"",null,null,null,null,null,null,null,null,null,null,null,null,null,null,null,null,null,null,null,null,null,null,null,null,null,null,null,null,null,null,null,null,null,null,null,null,null,null,null,null,null,null,null,null,null,null,null,null,null,null,null,null,null,null,null,null,"-"]
[null,null,"-","NULL","constant",null,null,null,0,0,0,null,null,null,null,null,null,null,null,null,null,null,null,null,null,null,null,null,null,null,null,null,null,null,null,2,null,null,null,"Y",71,null,null,null,null,"Address Line 2",null,null,null,null,null,null,null,null,null,null,null,null,null,null,null,null,null,null,null,null,null,null,null,null,null,null,null,null,null,null,null,null,null,null,null,null,null,null,null,null,null,null,null,null,null,null,null,null,null,null,null,null,null,null,null,null,null,null,null,null,null,"-"]
[null,null,null,null,null,null,null,null,null,null,null,{"$f":"SUM(I3310)","v":0},{"$f":"SUM(K3310)","v":0},null,null,null,null,null,null,null,null,null,null,null,null,null,null,null,null,null,null,null,null,null,null,null,null,null,null,{"$f":"IF($R$9=2,AN3292,\"Y\")","v":"Y"},60,null,null,{"$f":"\"  ENERGY CENTRE REPORTABLE UNIT \"&AE3292&\": SUPPLEMENTARY FILES\"","v":"  ENERGY CENTRE REPORTABLE UNIT 5: SUPPLEMENTARY FILES"},null,null,null,null,null,null,null,null,null,null,null,null,null,null,null,null,null,null,null,null,null,null,null,null,null,null,null,null,null,null,null,null,null,null,null,null,null,null,null,null,null,null,null,null,null,null,null,null,null,null,null,null,null,null,null,null,null,null,null,null,null,null,null,"-"]
[null,null,"List_No_VBA","Select from list","depends on stage and RU type & year",0,1,0,{"$f":"IF(AF3292=0,0,IFERROR(INDEX(F3310:H3310,$R$9),0))","v":0},{"$f":"IF(OR(AX:AX=\"\",AX:AX=\"-\",AX:AX=\" \",AX:AX=\"Select from list\"),0,1)","v":0},{"$f":"IF(AND(J3310=0,I3310=1),1,0)","v":0},null,null,null,null,null,null,null,null,null,null,null,null,null,null,null,null,null,null,null,null,null,null,null,null,null,null,null,null,"Y",59,null,null,null,"Is there a metering plan in place for this RU?",null,null,{"$f":"IF(K3310=1,\"To complete ->\",\"\")","v":""},null,"Select from list",{"$f":"IF(I3310=1,\"*\",\"\")","v":""},null,null,null,null,null,null,null,null,null,null,null,null,null,null,null,null,null,null,null,null,null,null,null,null,null,null,null,null,null,null,null,null,null,null,null,null,null,null,null,null,null,null,null,null,null,null,null,null,null,null,null,null,null,null,null,null,"-"]
[null,null,null,null,null,null,null,null,null,null,null,null,null,null,null,null,null,null,null,null,null,null,null,null,null,null,null,null,null,null,null,null,null,null,null,null,null,null,null,"Y",58,null,null,null,null,null,null,null,null,null,null,null,null,null,null,null,null,null,null,null,null,null,null,null,null,null,null,null,null,null,null,null,null,null,null,null,null,null,null,null,null,null,null,null,null,null,null,null,null,null,null,null,null,null,null,null,null,null,null,null,null,null,null,null,null,null,null,"-"]
[null,null,null,null,null,null,null,null,null,null,null,null,null,null,null,null,null,null,null,null,null,null,null,null,null,null,null,null,null,null,null,null,null,null,null,null,null,null,null,{"$f":"AN3292","v":"Y"},57,null,null,{"$f":"\" ENERGY CENTRE REPORTABLE UNIT \"&AE3292&\": ANNUAL ENERGY CONSUMPTION\"","v":" ENERGY CENTRE REPORTABLE UNIT 5: ANNUAL ENERGY CONSUMPTION"},null,null,null,null,null,null,null,null,"AS-BUILT",null,null,"YEAR 1",null,"Start/End Dates (if available)",null,null,null,null,null,null,null,"YEAR 2",null,"Start/End Dates (if available)",null,null,null,null,null,null,null,"YEAR 3",null,"Start/End Dates (if available)",null,null,null,null,null,null,null,"YEAR 4",null,"Start/End Dates (if available)",null,null,null,null,null,null,null,"YEAR 5",null,"Start/End Dates (if available)",null,null,null,null,null,null,null,null,null,"-"]
[null,null,null,null,null,null,null,null,{"$f":"MAX(I3314:I3325)","v":0},{"$f":"MIN(J3314:J3315)","v":0},{"$f":"IF(AND(J3313=0,I3313=1),1,0)","v":0},{"$f":"SUM(I3313)","v":0},{"$f":"SUM(K3313)","v":0},null,null,null,null,"AB","Y1","Y2","Y3","Y4","Y5",null,null,null,null,null,null,null,null,null,null,null,null,null,null,null,null,{"$f":"AN3312","v":"Y"},56,null,null,null,"Energy Centre Inputs",null,null,null,null,{"$f":"IF(I3313=1,\"Please fill in all appropriate energy & plant data in this section\",\"\")","v":""},null,null,"Energy",null,null,"Energy","%ch","d","m","yyyy","d","m","yyyy",null,null,"Energy","%ch","d","m","yyyy","d","m","yyyy",null,null,"Energy","%ch","d","m","yyyy","d","m","yyyy",null,null,"Energy","%ch","d","m","yyyy","d","m","yyyy",null,null,"Energy","%ch","d","m","yyyy","d","m","yyyy",null,null,null,null,"-"]
[null,null,null,"NULL_YEARS","depends on stage and RU type",0,1,1,{"$f":"IF(AF3292=0,0,IFERROR(INDEX(F3314:H3314,$R$9),0))","v":0},{"$f":"IF($R$9<2,0,IF($R$9=2,R3314,INDEX(S3314:W3314,$S$9)))","v":0},{"$f":"IF(AND(J3314=0,I3314=1),1,0)","v":0},null,null,null,null,null,null,{"$f":"IF(COUNTIF(AZ3314:BA3314,\"\")>1,0,1)","v":0},{"$f":"IF(COUNTIF(BC3314:BD3314,\"\")>1,0,1)","v":0},{"$f":"IF(COUNTIF(BM3314:BN3314,\"\")>1,0,1)","v":0},{"$f":"IF(COUNTIF(BW3314:BX3314,\"\")>1,0,1)","v":0},{"$f":"IF(COUNTIF(CG3314:CH3314,\"\")>1,0,1)","v":0},{"$f":"IF(COUNTIF(CQ3314:CR3314,\"\")>1,0,1)","v":0},null,null,null,null,null,null,null,null,null,null,null,null,null,null,null,null,"Y",55,null,null,null,null,"Annual Electricity Use","kWh/yr",{"$f":"IF(K3314=1,\"Must complete ->\",\"\")","v":""},null,null,null,null,null,null,null,null,{"$f":"IF(AND(BD:BD<>\"\",BA:BA<>\"\"),IFERROR(ROUND(100*(BD:BD-BA:BA)/BA:BA,0)&\"%\",\"INF\"),\"-\")","v":"-"},null,null,null,null,null,null,null,null,null,{"$f":"IF(AND(BN:BN<>\"\",BD:BD<>\"\"),IFERROR(ROUND(100*(BN:BN-BD:BD)/BD:BD,0)&\"%\",\"INF\"),\"-\")","v":"-"},null,null,null,null,null,null,null,null,null,{"$f":"IF(AND(BX:BX<>\"\",BN:BN<>\"\"),IFERROR(ROUND(100*(BX:BX-BN:BN)/BN:BN,0)&\"%\",\"INF\"),\"-\")","v":"-"},null,null,null,null,null,null,null,null,null,{"$f":"IF(AND(CH:CH<>\"\",BX:BX<>\"\"),IFERROR(ROUND(100*(CH:CH-BX:BX)/BX:BX,0)&\"%\",\"INF\"),\"-\")","v":"-"},null,null,null,null,null,null,null,null,null,{"$f":"IF(AND(CR:CR<>\"\",CH:CH<>\"\"),IFERROR(ROUND(100*(CR:CR-CH:CH)/CH:CH,0)&\"%\",\"INF\"),\"-\")","v":"-"},null,null,null,null,null,null,null,null,null,null,"-"]
[null,null,null,"NULL_YEARS","depends on stage and RU type",null,null,null,{"$f":"I3314","v":0},{"$f":"IF($R$9<2,0,IF($R$9=2,R3315,INDEX(S3315:W3315,$S$9)))","v":0},{"$f":"IF(AND(J3315=0,I3315=1),1,0)","v":0},null,null,null,null,null,null,{"$f":"IF(COUNTIF(AZ3315:BA3315,\"\")>1,0,1)","v":0},{"$f":"IF(COUNTIF(BC3315:BD3315,\"\")>1,0,1)","v":0},{"$f":"IF(COUNTIF(BM3315:BN3315,\"\")>1,0,1)","v":0},{"$f":"IF(COUNTIF(BW3315:BX3315,\"\")>1,0,1)","v":0},{"$f":"IF(COUNTIF(CG3315:CH3315,\"\")>1,0,1)","v":0},{"$f":"IF(COUNTIF(CQ3315:CR3315,\"\")>1,0,1)","v":0},null,null,null,null,null,null,null,null,null,null,null,null,null,null,null,null,"Y",54,null,null,null,null,"Annual Gas Use","kWh/yr",{"$f":"IF(K3315=1,\"Must complete ->\",\"\")","v":""},null,null,null,null,null,null,null,null,{"$f":"IF(AND(BD:BD<>\"\",BA:BA<>\"\"),IFERROR(ROUND(100*(BD:BD-BA:BA)/BA:BA,0)&\"%\",\"INF\"),\"-\")","v":"-"},null,null,null,null,null,null,null,null,null,{"$f":"IF(AND(BN:BN<>\"\",BD:BD<>\"\"),IFERROR(ROUND(100*(BN:BN-BD:BD)/BD:BD,0)&\"%\",\"INF\"),\"-\")","v":"-"},null,null,null,null,null,null,null,null,null,{"$f":"IF(AND(BX:BX<>\"\",BN:BN<>\"\"),IFERROR(ROUND(100*(BX:BX-BN:BN)/BN:BN,0)&\"%\",\"INF\"),\"-\")","v":"-"},null,null,null,null,null,null,null,null,null,{"$f":"IF(AND(CH:CH<>\"\",BX:BX<>\"\"),IFERROR(ROUND(100*(CH:CH-BX:BX)/BX:BX,0)&\"%\",\"INF\"),\"-\")","v":"-"},null,null,null,null,null,null,null,null,null,{"$f":"IF(AND(CR:CR<>\"\",CH:CH<>\"\"),IFERROR(ROUND(100*(CR:CR-CH:CH)/CH:CH,0)&\"%\",\"INF\"),\"-\")","v":"-"},null,null,null,null,null,null,null,null,null,null,"-"]
[null,null,null,"NULL_YEARS",null,null,null,null,{"$f":"I3315","v":0},null,null,null,null,null,null,null,null,null,null,null,null,null,null,null,null,null,null,null,null,null,null,null,null,null,null,null,null,null,null,"Y",53,null,null,null,null,"Annual Oil Use (if applicable)","kWh/yr",null,null,null,null,null,null,null,null,null,{"$f":"IF(AND(BD:BD<>\"\",BA:BA<>\"\"),IFERROR(ROUND(100*(BD:BD-BA:BA)/BA:BA,0)&\"%\",\"INF\"),\"-\")","v":"-"},null,null,null,null,null,null,null,null,null,{"$f":"IF(AND(BN:BN<>\"\",BD:BD<>\"\"),IFERROR(ROUND(100*(BN:BN-BD:BD)/BD:BD,0)&\"%\",\"INF\"),\"-\")","v":"-"},null,null,null,null,null,null,null,null,null,{"$f":"IF(AND(BX:BX<>\"\",BN:BN<>\"\"),IFERROR(ROUND(100*(BX:BX-BN:BN)/BN:BN,0)&\"%\",\"INF\"),\"-\")","v":"-"},null,null,null,null,null,null,null,null,null,{"$f":"IF(AND(CH:CH<>\"\",BX:BX<>\"\"),IFERROR(ROUND(100*(CH:CH-BX:BX)/BX:BX,0)&\"%\",\"INF\"),\"-\")","v":"-"},null,null,null,null,null,null,null,null,null,{"$f":"IF(AND(CR:CR<>\"\",CH:CH<>\"\"),IFERROR(ROUND(100*(CR:CR-CH:CH)/CH:CH,0)&\"%\",\"INF\"),\"-\")","v":"-"},null,null,null,null,null,null,null,null,null,null,"-"]
[null,null,null,"NULL_YEARS",null,null,null,null,0,null,null,null,null,null,null,null,null,null,null,null,null,null,null,null,null,null,null,null,null,null,null,null,null,null,null,null,null,null,null,"Y",52,null,null,null,null,"Annual Biomass Use (if applicable)","kWh/yr",null,null,null,null,null,null,null,null,null,{"$f":"IF(AND(BD:BD<>\"\",BA:BA<>\"\"),IFERROR(ROUND(100*(BD:BD-BA:BA)/BA:BA,0)&\"%\",\"INF\"),\"-\")","v":"-"},null,null,null,null,null,null,null,null,null,{"$f":"IF(AND(BN:BN<>\"\",BD:BD<>\"\"),IFERROR(ROUND(100*(BN:BN-BD:BD)/BD:BD,0)&\"%\",\"INF\"),\"-\")","v":"-"},null,null,null,null,null,null,null,null,null,{"$f":"IF(AND(BX:BX<>\"\",BN:BN<>\"\"),IFERROR(ROUND(100*(BX:BX-BN:BN)/BN:BN,0)&\"%\",\"INF\"),\"-\")","v":"-"},null,null,null,null,null,null,null,null,null,{"$f":"IF(AND(CH:CH<>\"\",BX:BX<>\"\"),IFERROR(ROUND(100*(CH:CH-BX:BX)/BX:BX,0)&\"%\",\"INF\"),\"-\")","v":"-"},null,null,null,null,null,null,null,null,null,{"$f":"IF(AND(CR:CR<>\"\",CH:CH<>\"\"),IFERROR(ROUND(100*(CR:CR-CH:CH)/CH:CH,0)&\"%\",\"INF\"),\"-\")","v":"-"},null,null,null,null,null,null,null,null,null,null,"-"]
[null,null,null,null,null,null,null,null,null,null,null,null,null,null,null,null,null,null,null,null,null,null,null,null,null,null,null,null,null,null,null,null,null,null,null,null,null,null,null,"Y",51,null,null,null,"Renewable Energy",null,null,null,null,null,null,null,null,null,null,null,null,null,null,null,null,null,null,null,null,null,null,null,null,null,null,null,null,null,null,null,null,null,null,null,null,null,null,null,null,null,null,null,null,null,null,null,null,null,null,null,null,null,null,null,null,null,null,null,null,null,null,"-"]
[null,null,null,"NULL_YEARS",null,null,null,null,{"$f":"I3317","v":0},null,null,null,null,null,null,null,null,null,null,null,null,null,null,null,null,null,null,null,null,null,null,null,null,null,null,null,null,null,null,"Y",50,null,null,null,null,"Elec Generation, gross (if applicable)","kWh/yr",null,null,null,null,null,null,null,null,null,{"$f":"IF(AND(BD:BD<>\"\",BA:BA<>\"\"),IFERROR(ROUND(100*(BD:BD-BA:BA)/BA:BA,0)&\"%\",\"INF\"),\"-\")","v":"-"},null,null,null,null,null,null,null,null,null,{"$f":"IF(AND(BN:BN<>\"\",BD:BD<>\"\"),IFERROR(ROUND(100*(BN:BN-BD:BD)/BD:BD,0)&\"%\",\"INF\"),\"-\")","v":"-"},null,null,null,null,null,null,null,null,null,{"$f":"IF(AND(BX:BX<>\"\",BN:BN<>\"\"),IFERROR(ROUND(100*(BX:BX-BN:BN)/BN:BN,0)&\"%\",\"INF\"),\"-\")","v":"-"},null,null,null,null,null,null,null,null,null,{"$f":"IF(AND(CH:CH<>\"\",BX:BX<>\"\"),IFERROR(ROUND(100*(CH:CH-BX:BX)/BX:BX,0)&\"%\",\"INF\"),\"-\")","v":"-"},null,null,null,null,null,null,null,null,null,{"$f":"IF(AND(CR:CR<>\"\",CH:CH<>\"\"),IFERROR(ROUND(100*(CR:CR-CH:CH)/CH:CH,0)&\"%\",\"INF\"),\"-\")","v":"-"},null,null,null,null,null,null,null,null,null,null,"-"]
[null,null,null,"NULL_YEARS",null,null,null,null,{"$f":"I3319","v":0},null,null,null,null,null,null,null,null,null,null,null,null,null,null,null,null,null,null,null,null,null,null,null,null,null,null,null,null,null,null,"Y",49,null,null,null,null,"Solar Thermal Generation (if applicable)","kWh/yr",null,null,null,null,null,null,null,null,null,{"$f":"IF(AND(BD:BD<>\"\",BA:BA<>\"\"),IFERROR(ROUND(100*(BD:BD-BA:BA)/BA:BA,0)&\"%\",\"INF\"),\"-\")","v":"-"},null,null,null,null,null,null,null,null,null,{"$f":"IF(AND(BN:BN<>\"\",BD:BD<>\"\"),IFERROR(ROUND(100*(BN:BN-BD:BD)/BD:BD,0)&\"%\",\"INF\"),\"-\")","v":"-"},null,null,null,null,null,null,null,null,null,{"$f":"IF(AND(BX:BX<>\"\",BN:BN<>\"\"),IFERROR(ROUND(100*(BX:BX-BN:BN)/BN:BN,0)&\"%\",\"INF\"),\"-\")","v":"-"},null,null,null,null,null,null,null,null,null,{"$f":"IF(AND(CH:CH<>\"\",BX:BX<>\"\"),IFERROR(ROUND(100*(CH:CH-BX:BX)/BX:BX,0)&\"%\",\"INF\"),\"-\")","v":"-"},null,null,null,null,null,null,null,null,null,{"$f":"IF(AND(CR:CR<>\"\",CH:CH<>\"\"),IFERROR(ROUND(100*(CR:CR-CH:CH)/CH:CH,0)&\"%\",\"INF\"),\"-\")","v":"-"},null,null,null,null,null,null,null,null,null,null,"-"]
[null,null,null,"NULL_YEARS",null,0,0,1,{"$f":"IF($R$9=3,I3320,0)","v":0},null,null,null,null,null,null,null,null,null,null,null,null,null,null,null,null,null,null,null,null,null,null,null,null,null,null,null,null,null,null,{"$f":"IF($R$9=3,AN3292,\"Y\")","v":"Y"},48,null,null,null,null,"Renewable Electricity, exported (if applicable)","kWh/yr",null,null,null,null,null,null,null,null,null,"n/a",null,null,null,null,null,null,null,null,null,{"$f":"IF(AND(BN:BN<>\"\",BD:BD<>\"\"),IFERROR(ROUND(100*(BN:BN-BD:BD)/BD:BD,0)&\"%\",\"INF\"),\"-\")","v":"-"},null,null,null,null,null,null,null,null,null,{"$f":"IF(AND(BX:BX<>\"\",BN:BN<>\"\"),IFERROR(ROUND(100*(BX:BX-BN:BN)/BN:BN,0)&\"%\",\"INF\"),\"-\")","v":"-"},null,null,null,null,null,null,null,null,null,{"$f":"IF(AND(CH:CH<>\"\",BX:BX<>\"\"),IFERROR(ROUND(100*(CH:CH-BX:BX)/BX:BX,0)&\"%\",\"INF\"),\"-\")","v":"-"},null,null,null,null,null,null,null,null,null,{"$f":"IF(AND(CR:CR<>\"\",CH:CH<>\"\"),IFERROR(ROUND(100*(CR:CR-CH:CH)/CH:CH,0)&\"%\",\"INF\"),\"-\")","v":"-"},null,null,null,null,null,null,null,null,null,null,"-"]
[null,null,null,"NULL_YEARS",null,null,null,null,{"$f":"I3321","v":0},null,null,null,null,null,null,null,null,null,null,null,null,null,null,null,null,null,null,null,null,null,null,null,null,null,null,null,null,null,null,"Y",47,null,null,null,null,"Renewable Electricity, used on site (if applicable)","kWh/yr",null,null,null,null,null,null,null,null,null,"n/a",null,null,null,null,null,null,null,null,null,{"$f":"IF(AND(BN:BN<>\"\",BD:BD<>\"\"),IFERROR(ROUND(100*(BN:BN-BD:BD)/BD:BD,0)&\"%\",\"INF\"),\"-\")","v":"-"},null,null,null,null,null,null,null,null,null,{"$f":"IF(AND(BX:BX<>\"\",BN:BN<>\"\"),IFERROR(ROUND(100*(BX:BX-BN:BN)/BN:BN,0)&\"%\",\"INF\"),\"-\")","v":"-"},null,null,null,null,null,null,null,null,null,{"$f":"IF(AND(CH:CH<>\"\",BX:BX<>\"\"),IFERROR(ROUND(100*(CH:CH-BX:BX)/BX:BX,0)&\"%\",\"INF\"),\"-\")","v":"-"},null,null,null,null,null,null,null,null,null,{"$f":"IF(AND(CR:CR<>\"\",CH:CH<>\"\"),IFERROR(ROUND(100*(CR:CR-CH:CH)/CH:CH,0)&\"%\",\"INF\"),\"-\")","v":"-"},null,null,null,null,null,null,null,null,null,null,"-"]
[null,null,null,null,null,null,null,null,null,null,null,null,null,null,null,null,null,null,null,null,null,null,null,null,null,null,null,null,null,null,null,null,null,null,null,null,null,null,null,{"$f":"AN3292","v":"Y"},46,null,null,null,"Energy Storage Equipment",null,null,null,null,null,null,null,null,null,null,null,null,null,null,null,null,null,null,null,null,null,null,null,null,null,null,null,null,null,null,null,null,null,null,null,null,null,null,null,null,null,null,null,null,null,null,null,null,null,null,null,null,null,null,null,null,null,null,null,null,null,null,"-"]
[null,null,null,"NULL_YEARS",null,null,null,null,{"$f":"I3320","v":0},null,null,null,null,null,null,null,null,null,null,null,null,null,null,null,null,null,null,null,null,null,null,null,null,null,null,null,null,null,null,"Y",45,null,null,null,null,"Battery Storage Capacity (if applicable)","kWh",null,null,null,null,null,null,null,null,null,{"$f":"IF(AND(BD:BD<>\"\",BA:BA<>\"\"),IFERROR(ROUND(100*(BD:BD-BA:BA)/BA:BA,0)&\"%\",\"INF\"),\"-\")","v":"-"},null,null,null,null,null,null,null,null,null,{"$f":"IF(AND(BN:BN<>\"\",BD:BD<>\"\"),IFERROR(ROUND(100*(BN:BN-BD:BD)/BD:BD,0)&\"%\",\"INF\"),\"-\")","v":"-"},null,null,null,null,null,null,null,null,null,{"$f":"IF(AND(BX:BX<>\"\",BN:BN<>\"\"),IFERROR(ROUND(100*(BX:BX-BN:BN)/BN:BN,0)&\"%\",\"INF\"),\"-\")","v":"-"},null,null,null,null,null,null,null,null,null,{"$f":"IF(AND(CH:CH<>\"\",BX:BX<>\"\"),IFERROR(ROUND(100*(CH:CH-BX:BX)/BX:BX,0)&\"%\",\"INF\"),\"-\")","v":"-"},null,null,null,null,null,null,null,null,null,{"$f":"IF(AND(CR:CR<>\"\",CH:CH<>\"\"),IFERROR(ROUND(100*(CR:CR-CH:CH)/CH:CH,0)&\"%\",\"INF\"),\"-\")","v":"-"},null,null,null,null,null,null,null,null,null,null,"-"]
[null,null,null,"NULL_YEARS",null,null,null,null,{"$f":"I3324","v":0},null,null,null,null,null,null,null,null,null,null,null,null,null,null,null,null,null,null,null,null,null,null,null,null,null,null,null,null,null,null,"Y",44,null,null,null,null,"Net Elec Flow to EVs","kWh",null,null,null,null,null,null,null,null,null,{"$f":"IF(AND(BD:BD<>\"\",BA:BA<>\"\"),IFERROR(ROUND(100*(BD:BD-BA:BA)/BA:BA,0)&\"%\",\"INF\"),\"-\")","v":"-"},null,null,null,null,null,null,null,null,null,{"$f":"IF(AND(BN:BN<>\"\",BD:BD<>\"\"),IFERROR(ROUND(100*(BN:BN-BD:BD)/BD:BD,0)&\"%\",\"INF\"),\"-\")","v":"-"},null,null,null,null,null,null,null,null,null,{"$f":"IF(AND(BX:BX<>\"\",BN:BN<>\"\"),IFERROR(ROUND(100*(BX:BX-BN:BN)/BN:BN,0)&\"%\",\"INF\"),\"-\")","v":"-"},null,null,null,null,null,null,null,null,null,{"$f":"IF(AND(CH:CH<>\"\",BX:BX<>\"\"),IFERROR(ROUND(100*(CH:CH-BX:BX)/BX:BX,0)&\"%\",\"INF\"),\"-\")","v":"-"},null,null,null,null,null,null,null,null,null,{"$f":"IF(AND(CR:CR<>\"\",CH:CH<>\"\"),IFERROR(ROUND(100*(CR:CR-CH:CH)/CH:CH,0)&\"%\",\"INF\"),\"-\")","v":"-"},null,null,null,null,null,null,null,null,null,null,"-"]
[null,null,null,null,null,null,null,null,null,null,null,{"$f":"SUM(I3328:I3347)","v":0},{"$f":"SUM(K3328:K3347)","v":0},null,null,null,null,null,null,null,null,null,null,null,null,null,null,null,null,null,null,null,null,null,null,null,null,null,null,"Y",43,null,null,null,"Plant Parameters (plant efficiency)",null,null,null,null,null,null,null,null,null,null,null,null,null,null,null,null,null,null,null,null,null,null,null,null,null,null,null,null,null,null,null,null,null,null,null,null,null,null,null,null,null,null,null,null,null,null,null,null,null,null,null,null,null,null,null,null,null,null,null,null,null,null,"-"]
[null,null,null,null,null,null,null,null,null,null,null,null,null,null,null,null,null,null,null,null,null,null,null,null,null,null,null,null,null,null,null,null,null,null,null,null,null,null,null,"Y",42,null,null,null,null,"Energy Centre Thermal Plant 1",null,null,null,null,null,null,null,null,null,null,null,null,null,null,null,null,null,null,null,null,null,null,null,null,null,null,null,null,null,null,null,null,null,null,null,null,null,null,null,null,null,null,null,null,null,null,null,null,null,null,null,null,null,null,null,null,null,null,null,null,null,"-"]
[null,null,"List","Select from list",null,0,1,1,{"$f":"IF(AF3292=0,0,IFERROR(INDEX(F3328:H3328,$R$9),0))","v":0},{"$f":"IF(OR(AX:AX=\"\",AX:AX=\"-\",AX:AX=\" \",AX:AX=\"Select from list\"),0,1)","v":0},{"$f":"IF(AND(J3328=0,I3328=1),1,0)","v":0},null,null,null,null,null,{"$f":"IF(AND(AF3292=1,OR(AX:AX=\"Heating\",AX:AX=\"Cooling\")),1,0)","v":0},null,null,null,null,null,null,null,null,null,null,null,null,null,null,null,null,null,null,null,null,{"$f":"ROW()+1","v":3329},{"$f":"ROW()+7","v":3335},"Y",41,null,null,null,null,"Type",null,{"$f":"IF(K3328=1,\"Must complete ->\",\"\")","v":""},null,"Select from list",{"$f":"IF(I3328=1,\"*\",\"\")","v":""},null,null,null,null,null,null,null,null,null,null,null,null,null,null,null,null,null,null,null,null,null,null,null,null,null,null,null,null,null,null,null,null,null,null,null,null,null,null,null,null,null,null,null,null,null,null,null,null,null,null,null,null,null,null,null,null,"-"]
[null,null,"-","NULL",null,null,null,null,{"$f":"IF(Q3328=1,I3328,0)","v":0},{"$f":"IF(OR(AX:AX=\"\",AX:AX=\"-\",AX:AX=\" \"),0,1)","v":0},0,null,null,null,null,null,null,null,null,null,null,null,null,null,null,null,null,null,null,null,null,null,null,null,null,null,null,null,null,{"$f":"IF(Q3328=1,AN3328,\"Y\")","v":"Y"},40,null,null,null,null,"Plant & Fuel Type (e.g. Gas CHP)",null,{"$f":"IF(K3329=1,\"Must complete ->\",\"\")","v":""},null,null,{"$f":"IF(I3329=1,\"*\",\"\")","v":""},null,null,null,null,null,null,null,null,null,null,null,null,null,null,null,null,null,null,null,null,null,null,null,null,null,null,null,null,null,null,null,null,null,null,null,null,null,null,null,null,null,null,null,null,null,null,null,null,null,null,null,null,null,null,null,null,"-"]
[null,null,null,"NULL_YEARS",null,0,1,0,{"$f":"IF(I3329=0,0,IFERROR(INDEX(F3330:H3330,$R$9),0))","v":0},{"$f":"IF(OR(BA:BA=\"\",BA:BA=\"-\",BA:BA=\" \"),0,1)","v":0},0,null,null,null,null,null,null,null,null,null,null,null,null,null,null,null,null,null,null,null,null,null,null,null,null,null,null,null,null,"Y",39,null,null,null,null,"Delivered Efficiency of Generation Plant","%",null,null,{"$f":"IF(K3330=1,\"To complete ->\",\"\")","v":""},null,null,null,{"$f":"IF(I3330=1,\"*\",\"\")","v":""},null,null,null,null,null,null,null,null,null,null,null,null,null,null,null,null,null,null,null,null,null,null,null,null,null,null,null,null,null,null,null,null,null,null,null,null,null,null,null,null,null,null,null,null,null,null,null,null,null,null,null,null,null,"-"]
[null,null,null,"NULL_YEARS",null,null,null,null,{"$f":"I3330","v":0},{"$f":"IF(OR(BA:BA=\"\",BA:BA=\"-\",BA:BA=\" \"),0,1)","v":0},0,null,null,null,null,null,null,"AB","Y1","Y2","Y3","Y4","Y5",null,null,null,null,null,null,null,null,null,null,null,null,null,null,null,null,"Y",38,null,null,null,null,"Proportion of Heat supplied by Generation Plant","%",null,null,{"$f":"IF(K3331=1,\"To complete ->\",\"\")","v":""},null,null,null,{"$f":"IF(I3331=1,\"*\",\"\")","v":""},null,null,null,null,null,null,null,null,null,null,null,null,null,null,null,null,null,null,null,null,null,null,null,null,null,null,null,null,null,null,null,null,null,null,null,null,null,null,null,null,null,null,null,null,null,null,null,null,null,null,null,null,null,"-"]
[null,null,null,"NULL_YEARS",null,0,0,1,{"$f":"IF(I3329=0,0,IFERROR(INDEX(F3332:H3332,$R$9),0))","v":0},{"$f":"IF($R$9<2,0,IF($R$9=2,R3332,INDEX(S3332:W3332,$S$9)))","v":0},0,null,null,null,null,null,null,{"$f":"IF(COUNTIF(AZ3332:BA3332,\"\")>1,0,1)","v":0},{"$f":"IF(COUNTIF(BC3332:BD3332,\"\")>1,0,1)","v":0},{"$f":"IF(COUNTIF(BM3332:BN3332,\"\")>1,0,1)","v":0},{"$f":"IF(COUNTIF(BW3332:BX3332,\"\")>1,0,1)","v":0},{"$f":"IF(COUNTIF(CG3332:CH3332,\"\")>1,0,1)","v":0},{"$f":"IF(COUNTIF(CQ3332:CR3332,\"\")>1,0,1)","v":0},null,null,null,null,null,null,null,null,null,null,null,null,null,null,null,null,"Y",37,null,null,null,null,"Energy Input to Plant","kWh/yr",null,null,{"$f":"IF(K3332=1,\"To complete ->\",\"\")","v":""},null,null,null,null,null,null,"n/a",null,null,null,null,null,null,null,null,null,{"$f":"IF(AND(BN:BN<>\"\",BD:BD<>\"\"),IFERROR(ROUND(100*(BN:BN-BD:BD)/BD:BD,0)&\"%\",\"INF\"),\"-\")","v":"-"},null,null,null,null,null,null,null,null,null,{"$f":"IF(AND(BX:BX<>\"\",BN:BN<>\"\"),IFERROR(ROUND(100*(BX:BX-BN:BN)/BN:BN,0)&\"%\",\"INF\"),\"-\")","v":"-"},null,null,null,null,null,null,null,null,null,{"$f":"IF(AND(CH:CH<>\"\",BX:BX<>\"\"),IFERROR(ROUND(100*(CH:CH-BX:BX)/BX:BX,0)&\"%\",\"INF\"),\"-\")","v":"-"},null,null,null,null,null,null,null,null,null,{"$f":"IF(AND(CR:CR<>\"\",CH:CH<>\"\"),IFERROR(ROUND(100*(CR:CR-CH:CH)/CH:CH,0)&\"%\",\"INF\"),\"-\")","v":"-"},null,null,null,null,null,null,null,null,null,null,"-"]
[null,null,null,"NULL_YEARS",null,null,null,null,{"$f":"I3332","v":0},{"$f":"IF($R$9<2,0,IF($R$9=2,R3333,INDEX(S3333:W3333,$S$9)))","v":0},0,null,null,null,null,null,null,{"$f":"IF(COUNTIF(AZ3333:BA3333,\"\")>1,0,1)","v":0},{"$f":"IF(COUNTIF(BC3333:BD3333,\"\")>1,0,1)","v":0},{"$f":"IF(COUNTIF(BM3333:BN3333,\"\")>1,0,1)","v":0},{"$f":"IF(COUNTIF(BW3333:BX3333,\"\")>1,0,1)","v":0},{"$f":"IF(COUNTIF(CG3333:CH3333,\"\")>1,0,1)","v":0},{"$f":"IF(COUNTIF(CQ3333:CR3333,\"\")>1,0,1)","v":0},null,null,null,null,null,null,null,null,null,null,null,null,null,null,null,null,"Y",36,null,null,null,null,"Energy Output from Plant","kWh/yr",null,null,{"$f":"IF(K3333=1,\"To complete ->\",\"\")","v":""},null,null,null,null,null,null,"n/a",null,null,null,null,null,null,null,null,null,{"$f":"IF(AND(BN:BN<>\"\",BD:BD<>\"\"),IFERROR(ROUND(100*(BN:BN-BD:BD)/BD:BD,0)&\"%\",\"INF\"),\"-\")","v":"-"},null,null,null,null,null,null,null,null,null,{"$f":"IF(AND(BX:BX<>\"\",BN:BN<>\"\"),IFERROR(ROUND(100*(BX:BX-BN:BN)/BN:BN,0)&\"%\",\"INF\"),\"-\")","v":"-"},null,null,null,null,null,null,null,null,null,{"$f":"IF(AND(CH:CH<>\"\",BX:BX<>\"\"),IFERROR(ROUND(100*(CH:CH-BX:BX)/BX:BX,0)&\"%\",\"INF\"),\"-\")","v":"-"},null,null,null,null,null,null,null,null,null,{"$f":"IF(AND(CR:CR<>\"\",CH:CH<>\"\"),IFERROR(ROUND(100*(CR:CR-CH:CH)/CH:CH,0)&\"%\",\"INF\"),\"-\")","v":"-"},null,null,null,null,null,null,null,null,null,null,"-"]
[null,null,null,null,null,null,null,null,null,null,null,null,null,null,null,null,null,null,null,null,null,null,null,null,null,null,null,null,null,null,null,null,null,null,null,null,null,null,null,"Y",35,null,null,null,null,"Energy Centre Thermal Plant 2 (if applicable)",null,null,null,null,null,null,null,null,null,null,null,null,null,null,null,null,null,null,null,null,null,null,null,null,null,null,null,null,null,null,null,null,null,null,null,null,null,null,null,null,null,null,null,null,null,null,null,null,null,null,null,null,null,null,null,null,null,null,null,null,null,"-"]
[null,null,"List","Select from list",null,0,1,1,{"$f":"IF(OR(AF3292=0,Q3328=0),0,IFERROR(INDEX(F3335:H3335,$R$9),0))","v":0},{"$f":"IF(OR(AX:AX=\"\",AX:AX=\"-\",AX:AX=\" \",AX:AX=\"Select from list\"),0,1)","v":0},{"$f":"IF(AND(J3335=0,I3335=1),1,0)","v":0},null,null,null,null,null,{"$f":"IF(AND(AF3292=1,OR(AX:AX=\"Heating\",AX:AX=\"Cooling\")),1,0)","v":0},null,null,null,null,null,null,null,null,null,null,null,null,null,null,null,null,null,null,null,null,{"$f":"ROW()+1","v":3336},{"$f":"ROW()+7","v":3342},"Y",34,null,null,null,null,"Type",null,{"$f":"IF(K3335=1,\"Must complete ->\",\"\")","v":""},null,"Select from list",{"$f":"IF(I3335=1,\"*\",\"\")","v":""},null,null,null,null,null,null,null,null,null,null,null,null,null,null,null,null,null,null,null,null,null,null,null,null,null,null,null,null,null,null,null,null,null,null,null,null,null,null,null,null,null,null,null,null,null,null,null,null,null,null,null,null,null,null,null,null,"-"]
[null,null,"-","NULL",null,null,null,null,{"$f":"IF(Q3335=1,I3335,0)","v":0},{"$f":"IF(OR(AX:AX=\"\",AX:AX=\"-\",AX:AX=\" \"),0,1)","v":0},0,null,null,null,null,null,null,null,null,null,null,null,null,null,null,null,null,null,null,null,null,null,null,null,null,null,null,null,null,{"$f":"IF(Q3335=1,AN3335,\"Y\")","v":"Y"},33,null,null,null,null,"Plant & Fuel Type (e.g. Gas CHP)",null,{"$f":"IF(K3336=1,\"Must complete ->\",\"\")","v":""},null,null,{"$f":"IF(I3336=1,\"*\",\"\")","v":""},null,null,null,null,null,null,null,null,null,null,null,null,null,null,null,null,null,null,null,null,null,null,null,null,null,null,null,null,null,null,null,null,null,null,null,null,null,null,null,null,null,null,null,null,null,null,null,null,null,null,null,null,null,null,null,null,"-"]
[null,null,null,"NULL_YEARS",null,0,1,0,{"$f":"IF(I3336=0,0,IFERROR(INDEX(F3337:H3337,$R$9),0))","v":0},{"$f":"IF(OR(BA:BA=\"\",BA:BA=\"-\",BA:BA=\" \"),0,1)","v":0},0,null,null,null,null,null,null,null,null,null,null,null,null,null,null,null,null,null,null,null,null,null,null,null,null,null,null,null,null,"Y",{"$f":"IF(AN3338=AN3337,AO3338+1,1)","v":32},null,null,null,null,"Delivered Efficiency of Generation Plant","%",null,null,{"$f":"IF(K3337=1,\"To complete ->\",\"\")","v":""},null,null,null,{"$f":"IF(I3337=1,\"*\",\"\")","v":""},null,null,null,null,null,null,null,null,null,null,null,null,null,null,null,null,null,null,null,null,null,null,null,null,null,null,null,null,null,null,null,null,null,null,null,null,null,null,null,null,null,null,null,null,null,null,null,null,null,null,null,null,null,"-"]
[null,null,null,"NULL_YEARS",null,null,null,null,{"$f":"I3337","v":0},{"$f":"IF(OR(BA:BA=\"\",BA:BA=\"-\",BA:BA=\" \"),0,1)","v":0},0,null,null,null,null,null,null,"AB","Y1","Y2","Y3","Y4","Y5",null,null,null,null,null,null,null,null,null,null,null,null,null,null,null,null,"Y",31,null,null,null,null,"Proportion of Heat supplied by Generation Plant","%",null,null,{"$f":"IF(K3338=1,\"To complete ->\",\"\")","v":""},null,null,null,{"$f":"IF(I3338=1,\"*\",\"\")","v":""},null,null,null,null,null,null,null,null,null,null,null,null,null,null,null,null,null,null,null,null,null,null,null,null,null,null,null,null,null,null,null,null,null,null,null,null,null,null,null,null,null,null,null,null,null,null,null,null,null,null,null,null,null,"-"]
[null,null,null,"NULL_YEARS",null,0,0,1,{"$f":"IF(I3336=0,0,IFERROR(INDEX(F3339:H3339,$R$9),0))","v":0},{"$f":"IF($R$9<2,0,IF($R$9=2,R3339,INDEX(S3339:W3339,$S$9)))","v":0},0,null,null,null,null,null,null,{"$f":"IF(COUNTIF(AZ3339:BA3339,\"\")>1,0,1)","v":0},{"$f":"IF(COUNTIF(BC3339:BD3339,\"\")>1,0,1)","v":0},{"$f":"IF(COUNTIF(BM3339:BN3339,\"\")>1,0,1)","v":0},{"$f":"IF(COUNTIF(BW3339:BX3339,\"\")>1,0,1)","v":0},{"$f":"IF(COUNTIF(CG3339:CH3339,\"\")>1,0,1)","v":0},{"$f":"IF(COUNTIF(CQ3339:CR3339,\"\")>1,0,1)","v":0},null,null,null,null,null,null,null,null,null,null,null,null,null,null,null,null,"Y",30,null,null,null,null,"Energy Input to Plant","kWh/yr",null,null,{"$f":"IF(K3339=1,\"To complete ->\",\"\")","v":""},null,null,null,null,null,null,"n/a",null,null,null,null,null,null,null,null,null,{"$f":"IF(AND(BN:BN<>\"\",BD:BD<>\"\"),IFERROR(ROUND(100*(BN:BN-BD:BD)/BD:BD,0)&\"%\",\"INF\"),\"-\")","v":"-"},null,null,null,null,null,null,null,null,null,{"$f":"IF(AND(BX:BX<>\"\",BN:BN<>\"\"),IFERROR(ROUND(100*(BX:BX-BN:BN)/BN:BN,0)&\"%\",\"INF\"),\"-\")","v":"-"},null,null,null,null,null,null,null,null,null,{"$f":"IF(AND(CH:CH<>\"\",BX:BX<>\"\"),IFERROR(ROUND(100*(CH:CH-BX:BX)/BX:BX,0)&\"%\",\"INF\"),\"-\")","v":"-"},null,null,null,null,null,null,null,null,null,{"$f":"IF(AND(CR:CR<>\"\",CH:CH<>\"\"),IFERROR(ROUND(100*(CR:CR-CH:CH)/CH:CH,0)&\"%\",\"INF\"),\"-\")","v":"-"},null,null,null,null,null,null,null,null,null,null,"-"]
[null,null,null,"NULL_YEARS",null,null,null,null,{"$f":"I3339","v":0},{"$f":"IF($R$9<2,0,IF($R$9=2,R3340,INDEX(S3340:W3340,$S$9)))","v":0},0,null,null,null,null,null,null,{"$f":"IF(COUNTIF(AZ3340:BA3340,\"\")>1,0,1)","v":0},{"$f":"IF(COUNTIF(BC3340:BD3340,\"\")>1,0,1)","v":0},{"$f":"IF(COUNTIF(BM3340:BN3340,\"\")>1,0,1)","v":0},{"$f":"IF(COUNTIF(BW3340:BX3340,\"\")>1,0,1)","v":0},{"$f":"IF(COUNTIF(CG3340:CH3340,\"\")>1,0,1)","v":0},{"$f":"IF(COUNTIF(CQ3340:CR3340,\"\")>1,0,1)","v":0},null,null,null,null,null,null,null,null,null,null,null,null,null,null,null,null,"Y",29,null,null,null,null,"Energy Output from Plant","kWh/yr",null,null,{"$f":"IF(K3340=1,\"To complete ->\",\"\")","v":""},null,null,null,null,null,null,"n/a",null,null,null,null,null,null,null,null,null,{"$f":"IF(AND(BN:BN<>\"\",BD:BD<>\"\"),IFERROR(ROUND(100*(BN:BN-BD:BD)/BD:BD,0)&\"%\",\"INF\"),\"-\")","v":"-"},null,null,null,null,null,null,null,null,null,{"$f":"IF(AND(BX:BX<>\"\",BN:BN<>\"\"),IFERROR(ROUND(100*(BX:BX-BN:BN)/BN:BN,0)&\"%\",\"INF\"),\"-\")","v":"-"},null,null,null,null,null,null,null,null,null,{"$f":"IF(AND(CH:CH<>\"\",BX:BX<>\"\"),IFERROR(ROUND(100*(CH:CH-BX:BX)/BX:BX,0)&\"%\",\"INF\"),\"-\")","v":"-"},null,null,null,null,null,null,null,null,null,{"$f":"IF(AND(CR:CR<>\"\",CH:CH<>\"\"),IFERROR(ROUND(100*(CR:CR-CH:CH)/CH:CH,0)&\"%\",\"INF\"),\"-\")","v":"-"},null,null,null,null,null,null,null,null,null,null,"-"]
[null,null,null,null,null,null,null,null,null,null,null,null,null,null,null,null,null,null,null,null,null,null,null,null,null,null,null,null,null,null,null,null,null,null,null,null,null,null,null,"Y",28,null,null,null,null,"Energy Centre Thermal Plant 3 (if applicable)",null,null,null,null,null,null,null,null,null,null,null,null,null,null,null,null,null,null,null,null,null,null,null,null,null,null,null,null,null,null,null,null,null,null,null,null,null,null,null,null,null,null,null,null,null,null,null,null,null,null,null,null,null,null,null,null,null,null,null,null,null,"-"]
[null,null,"List","Select from list",null,0,1,1,{"$f":"IF(OR(AF3292=0,Q3335=0),0,IFERROR(INDEX(F3342:H3342,$R$9),0))","v":0},{"$f":"IF(OR(AX:AX=\"\",AX:AX=\"-\",AX:AX=\" \",AX:AX=\"Select from list\"),0,1)","v":0},{"$f":"IF(AND(J3342=0,I3342=1),1,0)","v":0},null,null,null,null,null,{"$f":"IF(AND(AF3292=1,OR(AX:AX=\"Heating\",AX:AX=\"Cooling\")),1,0)","v":0},null,null,null,null,null,null,null,null,null,null,null,null,null,null,null,null,null,null,null,null,{"$f":"ROW()+1","v":3343},{"$f":"ROW()+7","v":3349},"Y",27,null,null,null,null,"Type",null,{"$f":"IF(K3342=1,\"Must complete ->\",\"\")","v":""},null,"Select from list",{"$f":"IF(I3342=1,\"*\",\"\")","v":""},null,null,null,null,null,null,null,null,null,null,null,null,null,null,null,null,null,null,null,null,null,null,null,null,null,null,null,null,null,null,null,null,null,null,null,null,null,null,null,null,null,null,null,null,null,null,null,null,null,null,null,null,null,null,null,null,"-"]
[null,null,"-","NULL",null,null,null,null,{"$f":"IF(Q3342=1,I3342,0)","v":0},{"$f":"IF(OR(AX:AX=\"\",AX:AX=\"-\",AX:AX=\" \"),0,1)","v":0},0,null,null,null,null,null,null,null,null,null,null,null,null,null,null,null,null,null,null,null,null,null,null,null,null,null,null,null,null,{"$f":"IF(Q3342=1,AN3342,\"Y\")","v":"Y"},26,null,null,null,null,"Plant & Fuel Type (e.g. Gas CHP)",null,{"$f":"IF(K3343=1,\"Must complete ->\",\"\")","v":""},null,null,{"$f":"IF(I3343=1,\"*\",\"\")","v":""},null,null,null,null,null,null,null,null,null,null,null,null,null,null,null,null,null,null,null,null,null,null,null,null,null,null,null,null,null,null,null,null,null,null,null,null,null,null,null,null,null,null,null,null,null,null,null,null,null,null,null,null,null,null,null,null,"-"]
[null,null,null,"NULL_YEARS",null,0,1,0,{"$f":"IF(I3343=0,0,IFERROR(INDEX(F3344:H3344,$R$9),0))","v":0},{"$f":"IF(OR(BA:BA=\"\",BA:BA=\"-\",BA:BA=\" \"),0,1)","v":0},0,null,null,null,null,null,null,null,null,null,null,null,null,null,null,null,null,null,null,null,null,null,null,null,null,null,null,null,null,"Y",25,null,null,null,null,"Delivered Efficiency of Generation Plant","%",null,null,{"$f":"IF(K3344=1,\"To complete ->\",\"\")","v":""},null,null,null,{"$f":"IF(I3344=1,\"*\",\"\")","v":""},null,null,null,null,null,null,null,null,null,null,null,null,null,null,null,null,null,null,null,null,null,null,null,null,null,null,null,null,null,null,null,null,null,null,null,null,null,null,null,null,null,null,null,null,null,null,null,null,null,null,null,null,null,"-"]
[null,null,null,"NULL_YEARS",null,null,null,null,{"$f":"I3344","v":0},{"$f":"IF(OR(BA:BA=\"\",BA:BA=\"-\",BA:BA=\" \"),0,1)","v":0},0,null,null,null,null,null,null,"AB","Y1","Y2","Y3","Y4","Y5",null,null,null,null,null,null,null,null,null,null,null,null,null,null,null,null,"Y",24,null,null,null,null,"Proportion of Heat supplied by Generation Plant","%",null,null,{"$f":"IF(K3345=1,\"To complete ->\",\"\")","v":""},null,null,null,{"$f":"IF(I3345=1,\"*\",\"\")","v":""},null,null,null,null,null,null,null,null,null,null,null,null,null,null,null,null,null,null,null,null,null,null,null,null,null,null,null,null,null,null,null,null,null,null,null,null,null,null,null,null,null,null,null,null,null,null,null,null,null,null,null,null,null,"-"]
[null,null,null,"NULL_YEARS",null,0,0,1,{"$f":"IF(I3343=0,0,IFERROR(INDEX(F3346:H3346,$R$9),0))","v":0},{"$f":"IF($R$9<2,0,IF($R$9=2,R3346,INDEX(S3346:W3346,$S$9)))","v":0},0,null,null,null,null,null,null,{"$f":"IF(COUNTIF(AZ3346:BA3346,\"\")>1,0,1)","v":0},{"$f":"IF(COUNTIF(BC3346:BD3346,\"\")>1,0,1)","v":0},{"$f":"IF(COUNTIF(BM3346:BN3346,\"\")>1,0,1)","v":0},{"$f":"IF(COUNTIF(BW3346:BX3346,\"\")>1,0,1)","v":0},{"$f":"IF(COUNTIF(CG3346:CH3346,\"\")>1,0,1)","v":0},{"$f":"IF(COUNTIF(CQ3346:CR3346,\"\")>1,0,1)","v":0},null,null,null,null,null,null,null,null,null,null,null,null,null,null,null,null,"Y",23,null,null,null,null,"Energy Input to Plant","kWh/yr",null,null,{"$f":"IF(K3346=1,\"To complete ->\",\"\")","v":""},null,null,null,null,null,null,"n/a",null,null,null,null,null,null,null,null,null,{"$f":"IF(AND(BN:BN<>\"\",BD:BD<>\"\"),IFERROR(ROUND(100*(BN:BN-BD:BD)/BD:BD,0)&\"%\",\"INF\"),\"-\")","v":"-"},null,null,null,null,null,null,null,null,null,{"$f":"IF(AND(BX:BX<>\"\",BN:BN<>\"\"),IFERROR(ROUND(100*(BX:BX-BN:BN)/BN:BN,0)&\"%\",\"INF\"),\"-\")","v":"-"},null,null,null,null,null,null,null,null,null,{"$f":"IF(AND(CH:CH<>\"\",BX:BX<>\"\"),IFERROR(ROUND(100*(CH:CH-BX:BX)/BX:BX,0)&\"%\",\"INF\"),\"-\")","v":"-"},null,null,null,null,null,null,null,null,null,{"$f":"IF(AND(CR:CR<>\"\",CH:CH<>\"\"),IFERROR(ROUND(100*(CR:CR-CH:CH)/CH:CH,0)&\"%\",\"INF\"),\"-\")","v":"-"},null,null,null,null,null,null,null,null,null,null,"-"]
[null,null,null,"NULL_YEARS",null,null,null,null,{"$f":"I3346","v":0},{"$f":"IF($R$9<2,0,IF($R$9=2,R3347,INDEX(S3347:W3347,$S$9)))","v":0},0,null,null,null,null,null,null,{"$f":"IF(COUNTIF(AZ3347:BA3347,\"\")>1,0,1)","v":0},{"$f":"IF(COUNTIF(BC3347:BD3347,\"\")>1,0,1)","v":0},{"$f":"IF(COUNTIF(BM3347:BN3347,\"\")>1,0,1)","v":0},{"$f":"IF(COUNTIF(BW3347:BX3347,\"\")>1,0,1)","v":0},{"$f":"IF(COUNTIF(CG3347:CH3347,\"\")>1,0,1)","v":0},{"$f":"IF(COUNTIF(CQ3347:CR3347,\"\")>1,0,1)","v":0},null,null,null,null,null,null,null,null,null,null,null,null,null,null,null,null,"Y",22,null,null,null,null,"Energy Output from Plant","kWh/yr",null,null,{"$f":"IF(K3347=1,\"To complete ->\",\"\")","v":""},null,null,null,null,null,null,"n/a",null,null,null,null,null,null,null,null,null,{"$f":"IF(AND(BN:BN<>\"\",BD:BD<>\"\"),IFERROR(ROUND(100*(BN:BN-BD:BD)/BD:BD,0)&\"%\",\"INF\"),\"-\")","v":"-"},null,null,null,null,null,null,null,null,null,{"$f":"IF(AND(BX:BX<>\"\",BN:BN<>\"\"),IFERROR(ROUND(100*(BX:BX-BN:BN)/BN:BN,0)&\"%\",\"INF\"),\"-\")","v":"-"},null,null,null,null,null,null,null,null,null,{"$f":"IF(AND(CH:CH<>\"\",BX:BX<>\"\"),IFERROR(ROUND(100*(CH:CH-BX:BX)/BX:BX,0)&\"%\",\"INF\"),\"-\")","v":"-"},null,null,null,null,null,null,null,null,null,{"$f":"IF(AND(CR:CR<>\"\",CH:CH<>\"\"),IFERROR(ROUND(100*(CR:CR-CH:CH)/CH:CH,0)&\"%\",\"INF\"),\"-\")","v":"-"},null,null,null,null,null,null,null,null,null,null,"-"]
[null,null,null,null,null,null,null,null,null,null,null,null,null,null,null,null,null,null,null,null,null,null,null,null,null,null,null,null,null,null,null,null,null,null,null,null,null,null,null,{"$f":"AN3292","v":"Y"},21,null,null,null,"Plant parameters (network efficiency)",null,null,null,null,null,null,null,null,null,null,null,null,null,null,null,null,null,null,null,null,null,null,null,null,null,null,null,null,null,null,null,null,null,null,null,null,null,null,null,null,null,null,null,null,null,null,null,null,null,null,null,null,null,null,null,null,null,null,null,null,null,null,"-"]
[null,null,null,"NULL_YEARS",null,0,1,0,{"$f":"IF(AF3292=0,0,IFERROR(INDEX(F3349:H3349,$R$9),0))","v":0},null,null,null,null,null,null,null,null,null,null,null,null,null,null,null,null,null,null,null,null,null,null,null,null,null,null,null,null,null,null,"Y",20,null,null,null,null,"Predicted Losses from Htg/Clg Distribution (if applicable)","kWh/yr",null,null,null,null,null,null,null,null,null,null,null,null,null,null,null,null,null,null,null,null,null,null,null,null,null,null,null,null,null,null,null,null,null,null,null,null,null,null,null,null,null,null,null,null,null,null,null,null,null,null,null,null,null,null,null,null,null,null,null,null,"-"]
[null,null,null,"NULL_YEARS",null,0,0,1,{"$f":"IF(AF3292=0,0,IFERROR(INDEX(F3350:H3350,$R$9),0))","v":0},null,null,null,null,null,null,null,null,null,null,null,null,null,null,null,null,null,null,null,null,null,null,null,null,null,null,null,null,null,null,"Y",19,null,null,null,null,"Total District Heating Output (if applicable)","kWh/yr",null,null,null,null,null,null,null,null,null,"n/a",null,null,null,null,null,null,null,null,null,{"$f":"IF(AND(BN:BN<>\"\",BD:BD<>\"\"),IFERROR(ROUND(100*(BN:BN-BD:BD)/BD:BD,0)&\"%\",\"INF\"),\"-\")","v":"-"},null,null,null,null,null,null,null,null,null,{"$f":"IF(AND(BX:BX<>\"\",BN:BN<>\"\"),IFERROR(ROUND(100*(BX:BX-BN:BN)/BN:BN,0)&\"%\",\"INF\"),\"-\")","v":"-"},null,null,null,null,null,null,null,null,null,{"$f":"IF(AND(CH:CH<>\"\",BX:BX<>\"\"),IFERROR(ROUND(100*(CH:CH-BX:BX)/BX:BX,0)&\"%\",\"INF\"),\"-\")","v":"-"},null,null,null,null,null,null,null,null,null,{"$f":"IF(AND(CR:CR<>\"\",CH:CH<>\"\"),IFERROR(ROUND(100*(CR:CR-CH:CH)/CH:CH,0)&\"%\",\"INF\"),\"-\")","v":"-"},null,null,null,null,null,null,null,null,null,null,"-"]
[null,null,null,"NULL_YEARS",null,null,null,null,{"$f":"I3350","v":0},null,null,null,null,null,null,null,null,null,null,null,null,null,null,null,null,null,null,null,null,null,null,null,null,null,null,null,null,null,null,"Y",18,null,null,null,null,"Total District Cooling Output (if applicable)","kWh/yr",null,null,null,null,null,null,null,null,null,"n/a",null,null,null,null,null,null,null,null,null,{"$f":"IF(AND(BN:BN<>\"\",BD:BD<>\"\"),IFERROR(ROUND(100*(BN:BN-BD:BD)/BD:BD,0)&\"%\",\"INF\"),\"-\")","v":"-"},null,null,null,null,null,null,null,null,null,{"$f":"IF(AND(BX:BX<>\"\",BN:BN<>\"\"),IFERROR(ROUND(100*(BX:BX-BN:BN)/BN:BN,0)&\"%\",\"INF\"),\"-\")","v":"-"},null,null,null,null,null,null,null,null,null,{"$f":"IF(AND(CH:CH<>\"\",BX:BX<>\"\"),IFERROR(ROUND(100*(CH:CH-BX:BX)/BX:BX,0)&\"%\",\"INF\"),\"-\")","v":"-"},null,null,null,null,null,null,null,null,null,{"$f":"IF(AND(CR:CR<>\"\",CH:CH<>\"\"),IFERROR(ROUND(100*(CR:CR-CH:CH)/CH:CH,0)&\"%\",\"INF\"),\"-\")","v":"-"},null,null,null,null,null,null,null,null,null,null,"-"]
[null,null,null,"NULL_YEARS",null,null,null,null,{"$f":"I3351","v":0},null,null,null,null,null,null,null,null,null,null,null,null,null,null,null,null,null,null,null,null,null,null,null,null,null,null,null,null,null,null,"Y",17,null,null,null,null,"Total District Heating to Customers (if applicable)","kWh/yr",null,null,null,null,null,null,null,null,null,"n/a",null,null,null,null,null,null,null,null,null,{"$f":"IF(AND(BN:BN<>\"\",BD:BD<>\"\"),IFERROR(ROUND(100*(BN:BN-BD:BD)/BD:BD,0)&\"%\",\"INF\"),\"-\")","v":"-"},null,null,null,null,null,null,null,null,null,{"$f":"IF(AND(BX:BX<>\"\",BN:BN<>\"\"),IFERROR(ROUND(100*(BX:BX-BN:BN)/BN:BN,0)&\"%\",\"INF\"),\"-\")","v":"-"},null,null,null,null,null,null,null,null,null,{"$f":"IF(AND(CH:CH<>\"\",BX:BX<>\"\"),IFERROR(ROUND(100*(CH:CH-BX:BX)/BX:BX,0)&\"%\",\"INF\"),\"-\")","v":"-"},null,null,null,null,null,null,null,null,null,{"$f":"IF(AND(CR:CR<>\"\",CH:CH<>\"\"),IFERROR(ROUND(100*(CR:CR-CH:CH)/CH:CH,0)&\"%\",\"INF\"),\"-\")","v":"-"},null,null,null,null,null,null,null,null,null,null,"-"]
[null,null,null,"NULL_YEARS",null,null,null,null,0,null,null,null,null,null,null,null,null,null,null,null,null,null,null,null,null,null,null,null,null,null,null,null,null,null,null,null,null,null,null,"Y",16,null,null,null,null,"Total District Cooling to Customers (if applicable)","kWh/yr",null,null,null,null,null,null,null,null,null,"n/a",null,null,null,null,null,null,null,null,null,{"$f":"IF(AND(BN:BN<>\"\",BD:BD<>\"\"),IFERROR(ROUND(100*(BN:BN-BD:BD)/BD:BD,0)&\"%\",\"INF\"),\"-\")","v":"-"},null,null,null,null,null,null,null,null,null,{"$f":"IF(AND(BX:BX<>\"\",BN:BN<>\"\"),IFERROR(ROUND(100*(BX:BX-BN:BN)/BN:BN,0)&\"%\",\"INF\"),\"-\")","v":"-"},null,null,null,null,null,null,null,null,null,{"$f":"IF(AND(CH:CH<>\"\",BX:BX<>\"\"),IFERROR(ROUND(100*(CH:CH-BX:BX)/BX:BX,0)&\"%\",\"INF\"),\"-\")","v":"-"},null,null,null,null,null,null,null,null,null,{"$f":"IF(AND(CR:CR<>\"\",CH:CH<>\"\"),IFERROR(ROUND(100*(CR:CR-CH:CH)/CH:CH,0)&\"%\",\"INF\"),\"-\")","v":"-"},null,null,null,null,null,null,null,null,null,null,"-"]
[null,null,null,null,null,null,null,null,null,null,null,null,null,null,null,null,null,null,null,null,null,null,null,null,null,null,null,null,null,null,null,null,null,null,null,null,null,null,null,"Y",15,null,null,null,"Plant Parameters (3rd party networks)",null,null,null,null,null,null,null,null,null,null,null,null,null,null,null,null,null,null,null,null,null,null,null,null,null,null,null,null,null,null,null,null,null,null,null,null,null,null,null,null,null,null,null,null,null,null,null,null,null,null,null,null,null,null,null,null,null,null,null,null,null,null,"-"]
[null,null,null,"NULL_YEARS",null,0,1,1,{"$f":"IF(AF3292=0,0,IFERROR(INDEX(F3355:H3355,$R$9),0))","v":0},null,null,null,null,null,null,null,null,null,null,null,null,null,null,null,null,null,null,null,null,null,null,null,null,null,null,null,null,null,null,"Y",14,null,null,null,null,"District heating import (if applicable)","kWh/yr",null,null,null,null,null,null,null,null,null,{"$f":"IF(AND(BD:BD<>\"\",BA:BA<>\"\"),IFERROR(ROUND(100*(BD:BD-BA:BA)/BA:BA,0)&\"%\",\"INF\"),\"-\")","v":"-"},null,null,null,null,null,null,null,null,null,{"$f":"IF(AND(BN:BN<>\"\",BD:BD<>\"\"),IFERROR(ROUND(100*(BN:BN-BD:BD)/BD:BD,0)&\"%\",\"INF\"),\"-\")","v":"-"},null,null,null,null,null,null,null,null,null,{"$f":"IF(AND(BX:BX<>\"\",BN:BN<>\"\"),IFERROR(ROUND(100*(BX:BX-BN:BN)/BN:BN,0)&\"%\",\"INF\"),\"-\")","v":"-"},null,null,null,null,null,null,null,null,null,{"$f":"IF(AND(CH:CH<>\"\",BX:BX<>\"\"),IFERROR(ROUND(100*(CH:CH-BX:BX)/BX:BX,0)&\"%\",\"INF\"),\"-\")","v":"-"},null,null,null,null,null,null,null,null,null,{"$f":"IF(AND(CR:CR<>\"\",CH:CH<>\"\"),IFERROR(ROUND(100*(CR:CR-CH:CH)/CH:CH,0)&\"%\",\"INF\"),\"-\")","v":"-"},null,null,null,null,null,null,null,null,null,null,"-"]
[null,null,null,"NULL_YEARS",null,null,null,null,{"$f":"I3355","v":0},null,null,null,null,null,null,null,null,null,null,null,null,null,null,null,null,null,null,null,null,null,null,null,null,null,null,null,null,null,null,"Y",13,null,null,null,null,"District cooling import (if applicable)","kWh/yr",null,null,null,null,null,null,null,null,null,{"$f":"IF(AND(BD:BD<>\"\",BA:BA<>\"\"),IFERROR(ROUND(100*(BD:BD-BA:BA)/BA:BA,0)&\"%\",\"INF\"),\"-\")","v":"-"},null,null,null,null,null,null,null,null,null,{"$f":"IF(AND(BN:BN<>\"\",BD:BD<>\"\"),IFERROR(ROUND(100*(BN:BN-BD:BD)/BD:BD,0)&\"%\",\"INF\"),\"-\")","v":"-"},null,null,null,null,null,null,null,null,null,{"$f":"IF(AND(BX:BX<>\"\",BN:BN<>\"\"),IFERROR(ROUND(100*(BX:BX-BN:BN)/BN:BN,0)&\"%\",\"INF\"),\"-\")","v":"-"},null,null,null,null,null,null,null,null,null,{"$f":"IF(AND(CH:CH<>\"\",BX:BX<>\"\"),IFERROR(ROUND(100*(CH:CH-BX:BX)/BX:BX,0)&\"%\",\"INF\"),\"-\")","v":"-"},null,null,null,null,null,null,null,null,null,{"$f":"IF(AND(CR:CR<>\"\",CH:CH<>\"\"),IFERROR(ROUND(100*(CR:CR-CH:CH)/CH:CH,0)&\"%\",\"INF\"),\"-\")","v":"-"},null,null,null,null,null,null,null,null,null,null,"-"]
[null,null,null,"NULL_YEARS",null,null,null,null,{"$f":"I3356","v":0},null,null,null,null,null,null,null,null,null,null,null,null,null,null,null,null,null,null,null,null,null,null,null,null,null,null,null,null,null,null,{"$f":"AN3356","v":"Y"},12,null,null,null,null,"District heating export to off-site (if applicable)","kWh/yr",null,null,null,null,null,null,null,null,null,{"$f":"IF(AND(BD:BD<>\"\",BA:BA<>\"\"),IFERROR(ROUND(100*(BD:BD-BA:BA)/BA:BA,0)&\"%\",\"INF\"),\"-\")","v":"-"},null,null,null,null,null,null,null,null,null,{"$f":"IF(AND(BN:BN<>\"\",BD:BD<>\"\"),IFERROR(ROUND(100*(BN:BN-BD:BD)/BD:BD,0)&\"%\",\"INF\"),\"-\")","v":"-"},null,null,null,null,null,null,null,null,null,{"$f":"IF(AND(BX:BX<>\"\",BN:BN<>\"\"),IFERROR(ROUND(100*(BX:BX-BN:BN)/BN:BN,0)&\"%\",\"INF\"),\"-\")","v":"-"},null,null,null,null,null,null,null,null,null,{"$f":"IF(AND(CH:CH<>\"\",BX:BX<>\"\"),IFERROR(ROUND(100*(CH:CH-BX:BX)/BX:BX,0)&\"%\",\"INF\"),\"-\")","v":"-"},null,null,null,null,null,null,null,null,null,{"$f":"IF(AND(CR:CR<>\"\",CH:CH<>\"\"),IFERROR(ROUND(100*(CR:CR-CH:CH)/CH:CH,0)&\"%\",\"INF\"),\"-\")","v":"-"},null,null,null,null,null,null,null,null,null,null,"-"]
[null,null,null,"NULL_YEARS",null,null,null,null,0,null,null,null,null,null,null,null,null,null,null,null,null,null,null,null,null,null,null,null,null,null,null,null,null,null,null,null,null,null,null,"Y",11,null,null,null,null,"District cooling export to off-site (if applicable)","kWh/yr",null,null,null,null,null,null,null,null,null,{"$f":"IF(AND(BD:BD<>\"\",BA:BA<>\"\"),IFERROR(ROUND(100*(BD:BD-BA:BA)/BA:BA,0)&\"%\",\"INF\"),\"-\")","v":"-"},null,null,null,null,null,null,null,null,null,{"$f":"IF(AND(BN:BN<>\"\",BD:BD<>\"\"),IFERROR(ROUND(100*(BN:BN-BD:BD)/BD:BD,0)&\"%\",\"INF\"),\"-\")","v":"-"},null,null,null,null,null,null,null,null,null,{"$f":"IF(AND(BX:BX<>\"\",BN:BN<>\"\"),IFERROR(ROUND(100*(BX:BX-BN:BN)/BN:BN,0)&\"%\",\"INF\"),\"-\")","v":"-"},null,null,null,null,null,null,null,null,null,{"$f":"IF(AND(CH:CH<>\"\",BX:BX<>\"\"),IFERROR(ROUND(100*(CH:CH-BX:BX)/BX:BX,0)&\"%\",\"INF\"),\"-\")","v":"-"},null,null,null,null,null,null,null,null,null,{"$f":"IF(AND(CR:CR<>\"\",CH:CH<>\"\"),IFERROR(ROUND(100*(CR:CR-CH:CH)/CH:CH,0)&\"%\",\"INF\"),\"-\")","v":"-"},null,null,null,null,null,null,null,null,null,null,"-"]
[null,null,null,null,null,null,null,null,null,null,null,null,null,null,null,null,null,null,null,null,null,null,null,null,null,null,null,null,null,null,null,null,null,null,null,null,null,null,null,"Y",10,null,null,null,null,null,null,null,null,null,null,null,null,null,null,null,null,null,null,null,null,null,null,null,null,null,null,null,null,null,null,null,null,null,null,null,null,null,null,null,null,null,null,null,null,null,null,null,null,null,null,null,null,null,null,null,null,null,null,null,null,null,null,null,null,null,null,"-"]
[null,null,null,null,null,null,null,null,null,null,null,null,null,null,null,null,null,null,null,null,null,null,null,null,null,null,null,null,null,null,null,null,null,null,null,null,null,null,null,"Y",9,null,null,{"$f":"\" ENERGY CENTRE REPORTABLE UNIT \"&AE3292&\": GENERAL COMMENTS\"","v":" ENERGY CENTRE REPORTABLE UNIT 5: GENERAL COMMENTS"},null,null,null,null,null,null,null,null,null,null,null,null,null,null,null,null,null,null,null,null,null,null,null,null,null,null,null,null,null,null,null,null,null,null,null,null,null,null,null,null,null,null,null,null,null,null,null,null,null,null,null,null,null,null,null,null,null,null,null,null,null,null,null,"-"]
[null,null,null,null,"depends on stage on RU",0,1,1,{"$f":"IF(AF3292=0,0,IFERROR(INDEX(F3361:H3361,$R$9),0))","v":0},{"$f":"MAX(J3362:J3367)","v":0},{"$f":"IF(AND(J3361=0,I3361=1),1,0)","v":0},{"$f":"I3361","v":0},{"$f":"K3361","v":0},null,null,null,null,null,null,null,null,null,null,null,null,null,null,null,null,null,null,null,null,null,null,null,null,null,null,"Y",8,null,null,null,{"$f":"\"Please include a few comments below on any significant factors which may impact on RU \"&IF($R$9<=2,\"design or \",\"\")&\"performance since the previous stage\"","v":"Please include a few comments below on any significant factors which may impact on RU design or performance since the previous stage"},null,null,null,null,null,null,null,null,null,null,null,null,null,null,null,null,null,null,null,null,null,null,null,null,null,null,null,null,null,null,null,null,null,null,null,null,null,null,null,null,null,null,null,null,null,null,null,null,null,null,null,null,null,null,null,null,null,null,null,null,null,null,"-"]
[null,null,null,"NULL",null,null,null,null,{"$f":"IF($R$9=2,I3361,0)","v":0},{"$f":"IF(OR(AX:AX=\"\",AX:AX=\"-\",AX:AX=\" \",AX:AX=\"Select from list\"),0,1)","v":0},0,null,null,null,null,null,null,null,null,null,null,null,null,null,null,null,null,null,null,null,null,null,null,null,null,null,null,null,null,{"$f":"IF($R$9=2,AN3292,\"Y\")","v":"Y"},7,null,null,null,null,"Planning Stage to As-Built",null,{"$f":"IF(K3362=1,\"To complete ->\",\"\")","v":""},null,null,{"$f":"IF(I3362=1,\"*\",\"\")","v":""},null,null,null,null,null,null,null,null,null,null,null,null,null,null,null,null,null,null,null,null,null,null,null,null,null,null,null,null,null,null,null,null,null,null,null,null,null,null,null,null,null,null,null,null,null,null,null,null,null,null,null,null,null,null,null,null,"-"]
[null,null,null,"NULL",null,null,null,null,{"$f":"IF($S$9=1,I3361,0)","v":0},0,0,null,null,null,null,null,null,null,null,null,null,null,null,null,null,null,null,null,null,null,null,null,null,null,null,null,null,null,null,{"$f":"IF($S$9=1,AN3292,\"Y\")","v":"Y"},6,null,null,null,null,"As-Built to Operational year 1",null,{"$f":"IF(K3363=1,\"To complete ->\",\"\")","v":""},null,null,{"$f":"IF(I3363=1,\"*\",\"\")","v":""},null,null,null,null,null,null,null,null,null,null,null,null,null,null,null,null,null,null,null,null,null,null,null,null,null,null,null,null,null,null,null,null,null,null,null,null,null,null,null,null,null,null,null,null,null,null,null,null,null,null,null,null,null,null,null,null,"-"]
[null,null,null,"NULL",null,null,null,null,{"$f":"IF($S$9=2,I3361,0)","v":0},0,0,null,null,null,null,null,null,null,null,null,null,null,null,null,null,null,null,null,null,null,null,null,null,null,null,null,null,null,null,{"$f":"IF($S$9=2,AN3292,\"Y\")","v":"Y"},5,null,null,null,null,"Operational Years 1 to 2",null,"",null,null,"",null,null,null,null,null,null,null,null,null,null,null,null,null,null,null,null,null,null,null,null,null,null,null,null,null,null,null,null,null,null,null,null,null,null,null,null,null,null,null,null,null,null,null,null,null,null,null,null,null,null,null,null,null,null,null,null,"-"]
[null,null,null,"NULL",null,null,null,null,{"$f":"IF($S$9=3,I3361,0)","v":0},0,0,null,null,null,null,null,null,null,null,null,null,null,null,null,null,null,null,null,null,null,null,null,null,null,null,null,null,null,null,{"$f":"IF($S$9=3,AN3292,\"Y\")","v":"Y"},{"$f":"IF(AN3366=AN3365,AO3366+1,1)","v":4},null,null,null,null,"Operational Years 2 to 3",null,"",null,null,"",null,null,null,null,null,null,null,null,null,null,null,null,null,null,null,null,null,null,null,null,null,null,null,null,null,null,null,null,null,null,null,null,null,null,null,null,null,null,null,null,null,null,null,null,null,null,null,null,null,null,null,null,null,null,null,null,"-"]
[null,null,null,"NULL",null,null,null,null,{"$f":"IF($S$9=4,I3361,0)","v":0},0,0,null,null,null,null,null,null,null,null,null,null,null,null,null,null,null,null,null,null,null,null,null,null,null,null,null,null,null,null,{"$f":"IF($S$9=4,AN3292,\"Y\")","v":"Y"},3,null,null,null,null,"Operational Years 3 to 4",null,"",null,null,"",null,null,null,null,null,null,null,null,null,null,null,null,null,null,null,null,null,null,null,null,null,null,null,null,null,null,null,null,null,null,null,null,null,null,null,null,null,null,null,null,null,null,null,null,null,null,null,null,null,null,null,null,null,null,null,null,"-"]
[null,null,null,"NULL",null,null,null,null,{"$f":"IF($S$9=5,I3361,0)","v":0},0,0,null,null,null,null,null,null,null,null,null,null,null,null,null,null,null,null,null,null,null,null,null,null,null,null,null,null,null,null,{"$f":"IF($S$9=5,AN3292,\"Y\")","v":"Y"},2,null,null,null,null,"Operational Years 4 to 5",null,"",null,null,"",null,null,null,null,null,null,null,null,null,null,null,null,null,null,null,null,null,null,null,null,null,null,null,null,null,null,null,null,null,null,null,null,null,null,null,null,null,null,null,null,null,null,null,null,null,null,null,null,null,null,null,null,null,null,null,null,"-"]
[null,"EC RU END",null,null,null,null,null,null,null,null,null,null,null,null,null,null,null,null,null,null,null,null,null,null,null,null,null,null,null,null,null,null,null,null,null,null,null,null,null,{"$f":"AN3292","v":"Y"},1,null,null,null,null,null,null,null,null,null,null,null,null,null,null,null,null,null,null,null,null,null,null,null,null,null,null,null,null,null,null,null,null,null,null,null,null,null,null,null,null,null,null,null,null,null,null,null,null,null,null,null,null,null,null,null,null,null,null,null,null,null,null,null,null,null,null,"-"]
[null,"ENERGY ABOVE",null,null,null,null,null,null,null,null,null,null,null,null,null,null,null,null,null,null,null,null,null,null,null,null,null,null,null,null,null,null,null,null,null,null,null,null,null,{"$f":"IF(OR(R9=0,R9=3),\"NEVER\",\"Y\")","v":"NEVER"},{"$f":"IF(AN3370=AN3369,AO3370+1,1)","v":2},null,null,null,null,null,null,null,null,null,null,null,null,null,null,null,null,null,null,null,null,null,null,null,null,null,null,null,null,null,null,null,null,null,null,null,null,null,null,null,null,null,null,null,null,null,null,null,null,null,null,null,null,null,null,null,null,null,null,null,null,null,null,null,null,null,null,"-"]
[null,null,null,null,null,null,null,null,null,null,null,null,null,null,null,null,null,null,null,null,null,null,null,null,null,null,null,null,null,null,null,null,null,null,null,null,null,null,null,"NEVER",1," END",null,null,null,null,null,null,null,null,null,null,null,null,null,null,null,null,null,null,null,null,null,null,null,null,null,null,null,null,null,null,null,null,null,null,null,null,null,null,null,null,null,null,null,null,null,null,null,null,null,null,null,null,null,null,null,null,null,null,null,null,null,null,null,null,null,"-"]

{"sheet":"Version_Control","index":2,"n_rows":14,"n_cols":7,"rows_kept":14,"cut":false,"hidden":true,"merged":[]}
[]
[]
[null," VERSION CONTROL NOTES"]
[]
[null,null,"VERSION","FILENAME","DATE","NOTES","PUBLIC RELEASE?"]
[null,null,"v16-027","Be Seen data collection mock_up v16_027.xlsm","2020-04-02","Working file, sent to GLA","N"]
[null,null,"v16-071","Be Seen data collection mock_up v16_071.xlsm","2020-04-30","Working file, except for all RUs","N"]
[null,null,"v16-073","Be Seen data collection mock_up v16_073.xlsm","2020-04-30","Working file, all RUs","N"]
[null,null,"v16-074","Be Seen data collection mock_up v16_074.xlsm","2020-04-30","Added total unlocker","N"]
[null,null,"v16-078","Be Seen data collection mock_up v16_078.xlsm","2020-04-30","Dealt with scroll problem","N"]
[null,null,"v16-082","Be Seen data collection mock_up v16_082.xlsm","2020-05-08","Final minor updates","Y"]
[null,null,"v16-083","Be Seen data collection mock_up v16_083.xlsm","2020-05-14","Minor change to show/hide","Y"]
[null,null,"v16-084",null,"2020-03-10","Added LPA dropdown, updated email address and added declaration box","N"]
[null,null,"v16-085",null,"2020-03-24","Amends as email for copy on intstructions"]

{"sheet":"Internal_Notes","index":3,"n_rows":95,"n_cols":7,"rows_kept":95,"cut":false,"hidden":true,"merged":[]}
[]
[]
[null," INTERNAL NOTES"]
[]
[null,null,"Progress Notes Apr 2020 (since v16-027)"]
[]
[null,null,null,"Done","Fix cell input types"]
[null,null,null,null,"Change the structure of all_inputs worksheet"]
[null,null,null,null,"Change the instructions worksheet"]
[null,null,null,null,"Change style on the version_control spreadsheet"]
[null,null,null,null,"Protect worksheet and VBA"]
[null,null,null,null,"Go through the comments DOC file"]
[null,null,null,null,"Shift Mayor of London logo on All_Inputs"]
[null,null,null,null,"Update VBA controls (columns B:Z in the all_inputs worksheet)"]
[null,null,null,null,"Hide extra columns (to right from worksheet area) and rows (from yellow cells)"]
[null,null,null,null,"Convert off-white fills to no-fills"]
[null,null,null,null,"Set reset workbook button"]
[null,null,null,null,"Update VBA (address copy button) - it shouldn't appear when not needed"]
[null,null,null,null,"Update VBA (hide/show cells)"]
[null,null,null,null,"Reinstate address copy VBA button"]
[null,null,null,null,"Update VBA to protect workbook structure (and windows?) and VBA"]
[null,null,null,null,"Repeat to 25 building RU"]
[null,null,null,null,"Remove columns DE:DM"]
[null,null,null,null,"Update version_control"]
[]
[null,null,"Buttons"]
[]
[]
[]
[null,null,"Borough List"]
[]
[null,null,null,null,"Select from list"]
[null,null,null,null,"Bexley"]
[null,null,null,null,"Barnet"]
[null,null,null,null,"Barking & Dagenham "]
[null,null,null,null,"Brent"]
[null,null,null,null,"Bromley"]
[null,null,null,null,"Camden"]
[null,null,null,null,"City of London"]
[null,null,null,null,"Croydon"]
[null,null,null,null,"Ealing"]
[null,null,null,null,"Enfield"]
[null,null,null,null,"Greenwich"]
[null,null,null,null,"Hackney"]
[null,null,null,null,"Hammersmith and Fulham"]
[null,null,null,null,"Haringey"]
[null,null,null,null,"Harrow"]
[null,null,null,null,"Havering"]
[null,null,null,null,"Hillingdon"]
[null,null,null,null,"Hounslow"]
[null,null,null,null,"Islington"]
[null,null,null,null,"Kensington and Chelsea"]
[null,null,null,null,"Kingston upon Thames"]
[null,null,null,null,"Lambeth"]
[null,null,null,null,"Lewisham"]
[null,null,null,null,"Merton"]
[null,null,null,null,"Newham"]
[null,null,null,null,"Redbridge"]
[null,null,null,null,"Richmond upon Thames"]
[null,null,null,null,"Southwark"]
[null,null,null,null,"Sutton"]
[null,null,null,null,"Tower Hamlets"]
[null,null,null,null,"Waltham Forest"]
[null,null,null,null,"Wandsworth"]
[null,null,null,null,"Westminster"]
[null,null,null,null,"OPDC"]
[null,null,null,null,"LLDC"]
[null,null,"Process"]
[null,null,null,"When creating the final files:"]
[null,null,null,null,1,"Reset Input Data: Run VBA code ResetAllInputs"]
[null,null,null,null,2,"Protect Workbook: Run VBA code TempProtect"]
[null,null,null,null,3,"Hide & lock VBA code (right-click > VBAProject Properties)"]
[null,null,null,"When unlocking"]
[null,null,null,null,1,"Unlock the VBA code"]
[null,null,null,null,2,"Run the TempUnprotect VBA code"]
[null,null,null,null,"OR"]
[null,null,null,null,1,"Click on the Mayor of London logo on Instructions worksheet"]
[null,null,null,null,2,"Type in the password"]
[]
[null,null,"Adjusting the VBA code based on the rows within All_Inputs worksheet"]
[null,null,null,"Code to create code for the All_Inputs sheet"]
[null,null,null,"Each bit of text should be added to All_Inputs"]
[null,null,null,null,"Private Sub Worksheet_Change(ByVal target As Range)"]
[null,null,null,null,null,"col DE","IF(C1=\"List\",COUNTIF(C$1:C1,\"List\"),0)"]
[null,null,null,null,null,"col DF","IF(DE1=0,\"%%%\",IF(DE1>1,\"Else\",\"\")&SUBSTITUTE(\"If Not Intersect(target, ThisWorkbook.Worksheets(\"&CHAR(34)&\"All_Inputs\"&CHAR(34)&\").Range(\"&CHAR(34)&\"AXRowHere\"&CHAR(34)&\")) Is Nothing Then\",\"RowHere\",ROW()))"]
[null,null,null,null,null,"col DG","IF(DE1=0,\"%%%\",SUBSTITUTE(\"        RowCheck = RowHere\",\"RowHere\",ROW()))"]
[null,null,null,null,null,"col DH","IF(DE1<>1,\"%%%\",\"        HideControlColumnYN = 1\")"]
[null,null,null,null,"Private Sub worksheet_selectionchange(ByVal target As Range)"]
[null,null,null,null,null,"col DJ","IF(AND(ROW()>6,AK1<>\"\"),1,0)"]
[null,null,null,null,null,"col DK","IF(DJ1=0,\"%%%\",IF(SUM(DJ$1:DJ1)>1,\"Else\",\"\")&SUBSTITUTE(\"If Not Intersect(target, ThisWorkbook.Worksheets(\"&CHAR(34)&\"All_Inputs\"&CHAR(34)&\").Range(\"&CHAR(34)&\"APRowHere\"&CHAR(34)&\")) Is Nothing Then\",\"RowHere\",ROW()))"]
[null,null,null,null,null,"col DL","IF(DJ1=0,\"%%%\",SUBSTITUTE(\"        RowCheck = RowHere\",\"RowHere\",ROW()))"]
[null,null,null,null,null,"col DM","IF(DJ1=0,\"%%%\",\"        HideControlButtonYN = 1\")"]
[]
[null,null,"Note"]
[null,null,null,"Annoying bug with Excel in terms of hiding rows and shapes within worksheets, which is connected to the locking/unlocking of cells for protection."]